Workbook

Sheet CHA VERSION ONLY--->
B8: 2019-2021 Hospital Quality Assurance Fee (HQAF) Program VI Fee and Payment Model
B9: 30 Month Program – 7/1/2019 to 12/31/2021
B11: FINAL DRAFT -- SUBMITTED TO CMS ON 9/30/2019

Sheet Gain.Contribute (CHA Only)
E1: =COUNTIF(E28:E261,"SYSTEM TOTAL") -> 31 | F1: 19-20 Results | G1: Gain | H1: Contrib. | I1: C-Systems | J1: 20-21 Results | K1: Gain | L1: Contrib. | M1: C-Systems | N1: 21-22 Results | O1: Gain | P1: Contrib. | Q1: C-Systems | R1: Total Results | S1: Gain | T1: Contrib. | U1: C-Systems
E2: System Gains | F2: =X269 -> 4085840419 | G2: =G28+G36+G41+G70++G74+G77+G81+G84+G88+G91+G95+G101+G107+G112+G115+G119+G125+G128+G138+G145+G150+G168+G173+G178+G181+G204+G218+G223+G226+G229+G261+G269 -> 175 | H2: =H28+H36+H41+H70++H74+H77+H81+H84+H88+H91+H95+H101+H107+H112+H115+H119+H125+H128+H138+H145+H150+H168+H173+H178+H181+H204+H218+H223+H226+H229+H261+H269 -> 43 | I2: =COUNTIF(I28:I269,1) -> 1 | J2: =Z269 -> 4265282177 | K2: =K28+K36+K41+K70++K74+K77+K81+K84+K88+K91+K95+K101+K107+K112+K115+K119+K125+K128+K138+K145+K150+K168+K173+K178+K181+K204+K218+K223+K226+K229+K261+K269 -> 174 | L2: =L28+L36+L41+L70++L74+L77+L81+L84+L88+L91+L95+L101+L107+L112+L115+L119+L125+L128+L138+L145+L150+L168+L173+L178+L181+L204+L218+L223+L226+L229+L261+L269 -> 44 | M2: =COUNTIF(M28:M269,1) -> 1 | N2: =AB269 -> 2148852446 | O2: =O28+O36+O41+O70++O74+O77+O81+O84+O88+O91+O95+O101+O107+O112+O115+O119+O125+O128+O138+O145+O150+O168+O173+O178+O181+O204+O218+O223+O226+O229+O261+O269 -> 174 | P2: =P28+P36+P41+P70++P74+P77+P81+P84+P88+P91+P95+P101+P107+P112+P115+P119+P125+P128+P138+P145+P150+P168+P173+P178+P181+P204+P218+P223+P226+P229+P261+P269 -> 44 | Q2: =COUNTIF(Q28:Q269,1) -> 1 | R2: =AD269 -> 9249876791 | S2: =S28+S36+S41+S70++S74+S77+S81+S84+S88+S91+S95+S101+S107+S112+S115+S119+S125+S128+S138+S145+S150+S168+S173+S178+S181+S204+S218+S223+S226+S229+S261+S269 -> 174 | T2: =T28+T36+T41+T70++T74+T77+T81+T84+T88+T91+T95+T101+T107+T112+T115+T119+T125+T128+T138+T145+T150+T168+T173+T178+T181+T204+T218+T223+T226+T229+T261+T269 -> 44 | U2: =COUNTIF(U28:U269,1) -> 1
E3: System Contributors | F3: =X270 -> -153860714.1 | J3: =Z270 -> -161962756.3 | N3: =AB270 -> -83831403.29 | R3: =AD270 -> -399582300.9 | Z3: Net Ben this page
E4: Individual Hospitals Gains | F4: =F330 -> 614277357.7 | G4: =G328+G269 -> 47 | H4: =H315+H269 -> 0 | J4: =J330 -> 0 | K4: =K328+K269 -> 47 | L4: =L315+L269 -> 0 | N4: =N330 -> 325073854.9 | O4: =O328+O269 -> 47 | P4: =P315+P269 -> 0 | R4: =R330 -> 1582224658 | S4: =S328+S269 -> 47 | T4: =T315+T269 -> 0 | Z4: Net Ben model
E5: Individual Hospital Contributors | F5: =F329 -> -15939978.41 | H5: =H328 -> 6 | J5: =J329 -> 0 | L5: =L328 -> 6 | N5: =N329 -> -8044323.207 | P5: =P328 -> 6 | Q5: =N5+J5+F5 -> -23984301.62 | R5: =R329 -> -39629493.58 | T5: =T328 -> 6 | Z5: Diff s/b zero
E6: Designated Publics and NDPH | F6: =F332 -> 0 | J6: =R332 -> 0 | N6: =N334 -> 0 | R6: =R334 -> 0
E7: Contributing System Totals | F7: =Y270 -> -14620981.77 | I7: =SUM(G2:H6) -> 271 | J7: =AA270 -> -13870920.67 | M7: =SUM(K2:L6) -> 271 | N7: =AC270 -> -7478200.553 | Q7: =SUM(O2:P6) -> 271 | R7: =AE270 -> -35970102.99 | U7: =SUM(S2:T6) -> 271
E8: Total Individual & System Contributors | F8: =+F5+F7 -> -30560960.18 | G8: G | H8: C | J8: =+J5+J7 -> -13870920.67 | K8: G | L8: C | N8: =+N5+N7 -> -15522523.76 | O8: G | P8: C | R8: =+R5+R7 -> -75599596.56 | S8: G | T8: C
A9: OSHPD | B9: Medicare | C9: Hospital Name | E9: System
F10: 2019-2020 | J10: 2020-2021 | N10: 2021-2022 | R10: Total | X10: 2016 | Z10: 2017 | AB10: 2018 | AD10: Total
A11: 106100797 | B11: 50192 | C11: ADVENTIST HEALTH REEDLEY | D11: 3 | E11: ADVENTIST HEALTH SYSTEM | F11: =IFERROR(INDEX('4. FY 2019-20'!AZ:AZ,MATCH(A11,'4. FY 2019-20'!A:A,0)),0) -> 17811712.92 | G11: =IF(F11>0,1,0) -> 1 | H11: =IF(F11<0,1,0) -> 0 | I11: =IFERROR(INDEX('4. FY 2019-20'!AZ:AZ,MATCH(A11,'4. FY 2019-20'!A:A,0)),0) -> 17811712.92 | J11: =IFERROR(INDEX('5. FY 2020-21'!AZ:AZ,MATCH(A11,'5. FY 2020-21'!A:A,0)),0) -> 18175495.63 | K11: =IF(J11>0,1,0) -> 1 | L11: =IF(J11<0,1,0) -> 0 | N11: =IFERROR(INDEX('6. FY 2021-22'!AZ:AZ,MATCH(A11,'6. FY 2021-22'!A:A,0)),0) -> 9196176.746 | O11: =IF(N11>0,1,0) -> 1 | P11: =IF(N11<0,1,0) -> 0 | R11: =F11+J11+N11 -> 45183385.29 | S11: =IF(R11>0,1,0) -> 1 | T11: =IF(R11<0,1,0) -> 0 | X11: =F11 -> 17811712.92 | Z11: =J11 -> 18175495.63 | AB11: =N11 -> 9196176.746 | AD11: =R11 -> 45183385.29 | AG11: =IF(ISERROR(VLOOKUP($B11,#REF!,13,0)),0,VLOOKUP($B11,#REF!,13,0)) -> 0 | AH11: =IF(ISERROR(VLOOKUP($B11,#REF!,14,0)),0,VLOOKUP($B11,#REF!,14,0)) -> 0 | AI11: =IF(ISERROR(VLOOKUP($B11,#REF!,13,0)),0,VLOOKUP($B11,#REF!,15,0)) -> 0 | AJ11: =IF(ISERROR(VLOOKUP($B11,#REF!,16,0)),0,VLOOKUP($B11,#REF!,16,0)) -> 0 | AK11: =(J11-F11)/F11 -> 0.02042379175
A12: 106160787 | B12: 50196 | C12: CENTRAL VALLEY GENERAL HOSPITAL | D12: 3 | E12: ADVENTIST HEALTH SYSTEM | F12: =IFERROR(INDEX('4. FY 2019-20'!AZ:AZ,MATCH(A12,'4. FY 2019-20'!A:A,0)),0) -> 0 | G12: =IF(F12>0,1,0) -> 0 | H12: =IF(F12<0,1,0) -> 0 | I12: =IFERROR(INDEX('4. FY 2019-20'!AZ:AZ,MATCH(A12,'4. FY 2019-20'!A:A,0)),0) -> 0 | J12: =IFERROR(INDEX('5. FY 2020-21'!AZ:AZ,MATCH(A12,'5. FY 2020-21'!A:A,0)),0) -> 0 | K12: =IF(J12>0,1,0) -> 0 | L12: =IF(J12<0,1,0) -> 0 | N12: =IFERROR(INDEX('6. FY 2021-22'!AZ:AZ,MATCH(A12,'6. FY 2021-22'!A:A,0)),0) -> 0 | O12: =IF(N12>0,1,0) -> 0 | P12: =IF(N12<0,1,0) -> 0 | R12: =F12+J12+N12 -> 0 | S12: =IF(R12>0,1,0) -> 0 | T12: =IF(R12<0,1,0) -> 0 | X12: 0 | Z12: 0 | AB12: 0 | AD12: =R12 -> 0 | AG12: =IF(ISERROR(VLOOKUP($B12,#REF!,13,0)),0,VLOOKUP($B12,#REF!,13,0)) -> 0 | AH12: =IF(ISERROR(VLOOKUP($B12,#REF!,14,0)),0,VLOOKUP($B12,#REF!,14,0)) -> 0 | AI12: =IF(ISERROR(VLOOKUP($B12,#REF!,13,0)),0,VLOOKUP($B12,#REF!,15,0)) -> 0 | AJ12: =IF(ISERROR(VLOOKUP($B12,#REF!,16,0)),0,VLOOKUP($B12,#REF!,16,0)) -> 0 | AK12: =(J12-F12)/F12 -> 
A13: 106040875 | B13: 50225 | C13: ADVENTIST HEALTH FEATHER RIVER | D13: 3 | E13: ADVENTIST HEALTH SYSTEM | F13: =IFERROR(INDEX('4. FY 2019-20'!AZ:AZ,MATCH(A13,'4. FY 2019-20'!A:A,0)),0) -> 0 | G13: 0 | H13: 0 | I13: =IFERROR(INDEX('4. FY 2019-20'!AZ:AZ,MATCH(A13,'4. FY 2019-20'!A:A,0)),0) -> 0 | J13: =IFERROR(INDEX('5. FY 2020-21'!AZ:AZ,MATCH(A13,'5. FY 2020-21'!A:A,0)),0) -> 0 | K13: 0 | L13: 0 | N13: =IFERROR(INDEX('6. FY 2021-22'!AZ:AZ,MATCH(A13,'6. FY 2021-22'!A:A,0)),0) -> 0 | O13: 0 | P13: 0 | R13: 0 | S13: 0 | T13: 0 | X13: 0 | Z13: 0 | AB13: 0 | AD13: 0 | AG13: =IF(ISERROR(VLOOKUP($B13,#REF!,13,0)),0,VLOOKUP($B13,#REF!,13,0)) -> 0 | AH13: =IF(ISERROR(VLOOKUP($B13,#REF!,14,0)),0,VLOOKUP($B13,#REF!,14,0)) -> 0 | AI13: =IF(ISERROR(VLOOKUP($B13,#REF!,13,0)),0,VLOOKUP($B13,#REF!,15,0)) -> 0 | AJ13: =IF(ISERROR(VLOOKUP($B13,#REF!,16,0)),0,VLOOKUP($B13,#REF!,16,0)) -> 0
A14: 106230949 | B14: 51310 | C14: ADVENTIST HEALTH HOWARD MEMORIAL | D14: 3 | E14: ADVENTIST HEALTH SYSTEM | F14: =IFERROR(INDEX('4. FY 2019-20'!AZ:AZ,MATCH(A14,'4. FY 2019-20'!A:A,0)),0) -> 5785182.858 | G14: 1 | H14: 0 | I14: =IFERROR(INDEX('4. FY 2019-20'!AZ:AZ,MATCH(A14,'4. FY 2019-20'!A:A,0)),0) -> 5785182.858 | J14: =IFERROR(INDEX('5. FY 2020-21'!AZ:AZ,MATCH(A14,'5. FY 2020-21'!A:A,0)),0) -> 5791144.565 | K14: 1 | L14: 0 | N14: =IFERROR(INDEX('6. FY 2021-22'!AZ:AZ,MATCH(A14,'6. FY 2021-22'!A:A,0)),0) -> 2937559.522 | O14: 1 | P14: 0 | R14: 14513886.95 | S14: 1 | T14: 0 | X14: 5785182.858 | Z14: 5791144.565 | AB14: 2937559.522 | AD14: 14513886.95 | AG14: =IF(ISERROR(VLOOKUP($B14,#REF!,13,0)),0,VLOOKUP($B14,#REF!,13,0)) -> 0 | AH14: =IF(ISERROR(VLOOKUP($B14,#REF!,14,0)),0,VLOOKUP($B14,#REF!,14,0)) -> 0 | AI14: =IF(ISERROR(VLOOKUP($B14,#REF!,13,0)),0,VLOOKUP($B14,#REF!,15,0)) -> 0 | AJ14: =IF(ISERROR(VLOOKUP($B14,#REF!,16,0)),0,VLOOKUP($B14,#REF!,16,0)) -> 0 | AK14: 0.001030513087
A15: 106190323 | B15: 50239 | C15: ADVENTIST HEALTH GLENDALE | D15: 3 | E15: ADVENTIST HEALTH SYSTEM | F15: =IFERROR(INDEX('4. FY 2019-20'!AZ:AZ,MATCH(A15,'4. FY 2019-20'!A:A,0)),0) -> 5859767.642 | G15: 1 | H15: 0 | I15: =IFERROR(INDEX('4. FY 2019-20'!AZ:AZ,MATCH(A15,'4. FY 2019-20'!A:A,0)),0) -> 5859767.642 | J15: =IFERROR(INDEX('5. FY 2020-21'!AZ:AZ,MATCH(A15,'5. FY 2020-21'!A:A,0)),0) -> 5769493.347 | K15: 1 | L15: 0 | N15: =IFERROR(INDEX('6. FY 2021-22'!AZ:AZ,MATCH(A15,'6. FY 2021-22'!A:A,0)),0) -> 3335302.37 | O15: 1 | P15: 0 | R15: 14964563.36 | S15: 1 | T15: 0 | X15: 5859767.642 | Z15: 5769493.347 | AB15: 3335302.37 | AD15: 14964563.36 | AG15: =IF(ISERROR(VLOOKUP($B15,#REF!,13,0)),0,VLOOKUP($B15,#REF!,13,0)) -> 0 | AH15: =IF(ISERROR(VLOOKUP($B15,#REF!,14,0)),0,VLOOKUP($B15,#REF!,14,0)) -> 0 | AI15: =IF(ISERROR(VLOOKUP($B15,#REF!,13,0)),0,VLOOKUP($B15,#REF!,15,0)) -> 0 | AJ15: =IF(ISERROR(VLOOKUP($B15,#REF!,16,0)),0,VLOOKUP($B15,#REF!,16,0)) -> 0 | AK15: -0.01540578068
A16: 106164029 | B16: 50121 | C16: ADVENTIST HEALTH HANFORD | D16: 3 | E16: ADVENTIST HEALTH SYSTEM | F16: =IFERROR(INDEX('4. FY 2019-20'!AZ:AZ,MATCH(A16,'4. FY 2019-20'!A:A,0)),0) -> 56260068.49 | G16: 1 | H16: 0 | I16: =IFERROR(INDEX('4. FY 2019-20'!AZ:AZ,MATCH(A16,'4. FY 2019-20'!A:A,0)),0) -> 56260068.49 | J16: =IFERROR(INDEX('5. FY 2020-21'!AZ:AZ,MATCH(A16,'5. FY 2020-21'!A:A,0)),0) -> 57423636.99 | K16: 1 | L16: 0 | N16: =IFERROR(INDEX('6. FY 2021-22'!AZ:AZ,MATCH(A16,'6. FY 2021-22'!A:A,0)),0) -> 29000643.55 | O16: 1 | P16: 0 | R16: 142684349 | S16: 1 | T16: 0 | X16: 56260068.49 | Z16: 57423636.99 | AB16: 29000643.55 | AD16: 142684349 | AG16: =IF(ISERROR(VLOOKUP($B16,#REF!,13,0)),0,VLOOKUP($B16,#REF!,13,0)) -> 0 | AH16: =IF(ISERROR(VLOOKUP($B16,#REF!,14,0)),0,VLOOKUP($B16,#REF!,14,0)) -> 0 | AI16: =IF(ISERROR(VLOOKUP($B16,#REF!,13,0)),0,VLOOKUP($B16,#REF!,15,0)) -> 0 | AJ16: =IF(ISERROR(VLOOKUP($B16,#REF!,16,0)),0,VLOOKUP($B16,#REF!,16,0)) -> 0 | AK16: 0.02068196017
A17: 106390923 | B17: 50336 | C17: ADVENTIST HEALTH LODI MEMORIAL | D17: 3 | E17: ADVENTIST HEALTH SYSTEM | F17: =IFERROR(INDEX('4. FY 2019-20'!AZ:AZ,MATCH(A17,'4. FY 2019-20'!A:A,0)),0) -> 16114173.12 | G17: 1 | H17: 0 | I17: =IFERROR(INDEX('4. FY 2019-20'!AZ:AZ,MATCH(A17,'4. FY 2019-20'!A:A,0)),0) -> 16114173.12 | J17: =IFERROR(INDEX('5. FY 2020-21'!AZ:AZ,MATCH(A17,'5. FY 2020-21'!A:A,0)),0) -> 16539910.18 | K17: 1 | L17: 0 | N17: =IFERROR(INDEX('6. FY 2021-22'!AZ:AZ,MATCH(A17,'6. FY 2021-22'!A:A,0)),0) -> 8469072.7 | O17: 1 | P17: 0 | R17: 41123156.01 | S17: 1 | T17: 0 | X17: 16114173.12 | Z17: 16539910.18 | AB17: 8469072.7 | AD17: 41123156.01 | AG17: =IF(ISERROR(VLOOKUP($B17,#REF!,13,0)),0,VLOOKUP($B17,#REF!,13,0)) -> 0 | AH17: =IF(ISERROR(VLOOKUP($B17,#REF!,14,0)),0,VLOOKUP($B17,#REF!,14,0)) -> 0 | AI17: =IF(ISERROR(VLOOKUP($B17,#REF!,13,0)),0,VLOOKUP($B17,#REF!,15,0)) -> 0 | AJ17: =IF(ISERROR(VLOOKUP($B17,#REF!,16,0)),0,VLOOKUP($B17,#REF!,16,0)) -> 0 | AK17: 0.02642003756
A18: 106171049 | B18: 51317 | C18: ADVENTIST HEALTH CLEARLAKE | D18: 3 | E18: ADVENTIST HEALTH SYSTEM | F18: =IFERROR(INDEX('4. FY 2019-20'!AZ:AZ,MATCH(A18,'4. FY 2019-20'!A:A,0)),0) -> 9489719.097 | G18: 1 | H18: 0 | I18: =IFERROR(INDEX('4. FY 2019-20'!AZ:AZ,MATCH(A18,'4. FY 2019-20'!A:A,0)),0) -> 9489719.097 | J18: =IFERROR(INDEX('5. FY 2020-21'!AZ:AZ,MATCH(A18,'5. FY 2020-21'!A:A,0)),0) -> 9626396.539 | K18: 1 | L18: 0 | N18: =IFERROR(INDEX('6. FY 2021-22'!AZ:AZ,MATCH(A18,'6. FY 2021-22'!A:A,0)),0) -> 4906255.205 | O18: 1 | P18: 0 | R18: 24022370.84 | S18: 1 | T18: 0 | X18: 9489719.097 | Z18: 9626396.539 | AB18: 4906255.205 | AD18: 24022370.84 | AG18: =IF(ISERROR(VLOOKUP($B18,#REF!,13,0)),0,VLOOKUP($B18,#REF!,13,0)) -> 0 | AH18: =IF(ISERROR(VLOOKUP($B18,#REF!,14,0)),0,VLOOKUP($B18,#REF!,14,0)) -> 0 | AI18: =IF(ISERROR(VLOOKUP($B18,#REF!,13,0)),0,VLOOKUP($B18,#REF!,15,0)) -> 0 | AJ18: =IF(ISERROR(VLOOKUP($B18,#REF!,16,0)),0,VLOOKUP($B18,#REF!,16,0)) -> 0 | AK18: 0.01440268567
A19: 106150788 | B19: 50455 | C19: ADVENTIST HEALTH BAKERSFIELD | D19: 3 | E19: ADVENTIST HEALTH SYSTEM | F19: =IFERROR(INDEX('4. FY 2019-20'!AZ:AZ,MATCH(A19,'4. FY 2019-20'!A:A,0)),0) -> 23875940.51 | G19: 1 | H19: 0 | I19: =IFERROR(INDEX('4. FY 2019-20'!AZ:AZ,MATCH(A19,'4. FY 2019-20'!A:A,0)),0) -> 23875940.51 | J19: =IFERROR(INDEX('5. FY 2020-21'!AZ:AZ,MATCH(A19,'5. FY 2020-21'!A:A,0)),0) -> 24852801.09 | K19: 1 | L19: 0 | N19: =IFERROR(INDEX('6. FY 2021-22'!AZ:AZ,MATCH(A19,'6. FY 2021-22'!A:A,0)),0) -> 12564968.67 | O19: 1 | P19: 0 | R19: 61293710.27 | S19: 1 | T19: 0 | X19: 23875940.51 | Z19: 24852801.09 | AB19: 12564968.67 | AD19: 61293710.27 | AG19: =IF(ISERROR(VLOOKUP($B19,#REF!,13,0)),0,VLOOKUP($B19,#REF!,13,0)) -> 0 | AH19: =IF(ISERROR(VLOOKUP($B19,#REF!,14,0)),0,VLOOKUP($B19,#REF!,14,0)) -> 0 | AI19: =IF(ISERROR(VLOOKUP($B19,#REF!,13,0)),0,VLOOKUP($B19,#REF!,15,0)) -> 0 | AJ19: =IF(ISERROR(VLOOKUP($B19,#REF!,16,0)),0,VLOOKUP($B19,#REF!,16,0)) -> 0 | AK19: 0.04091401477
A20: 106560525 | B20: 50236 | C20: ADVENTIST HEALTH SIMI VALLEY | D20: 3 | E20: ADVENTIST HEALTH SYSTEM | F20: =IFERROR(INDEX('4. FY 2019-20'!AZ:AZ,MATCH(A20,'4. FY 2019-20'!A:A,0)),0) -> 803594.8945 | G20: 1 | H20: 0 | I20: =IFERROR(INDEX('4. FY 2019-20'!AZ:AZ,MATCH(A20,'4. FY 2019-20'!A:A,0)),0) -> 803594.8945 | J20: =IFERROR(INDEX('5. FY 2020-21'!AZ:AZ,MATCH(A20,'5. FY 2020-21'!A:A,0)),0) -> 587495.8129 | K20: 1 | L20: 0 | N20: =IFERROR(INDEX('6. FY 2021-22'!AZ:AZ,MATCH(A20,'6. FY 2021-22'!A:A,0)),0) -> 398434.1344 | O20: 1 | P20: 0 | R20: 1789524.842 | S20: 1 | T20: 0 | X20: 803594.8945 | Z20: 587495.8129 | AB20: 398434.1344 | AD20: 1789524.842 | AG20: =IF(ISERROR(VLOOKUP($B20,#REF!,13,0)),0,VLOOKUP($B20,#REF!,13,0)) -> 0 | AH20: =IF(ISERROR(VLOOKUP($B20,#REF!,14,0)),0,VLOOKUP($B20,#REF!,14,0)) -> 0 | AI20: =IF(ISERROR(VLOOKUP($B20,#REF!,13,0)),0,VLOOKUP($B20,#REF!,15,0)) -> 0 | AJ20: =IF(ISERROR(VLOOKUP($B20,#REF!,16,0)),0,VLOOKUP($B20,#REF!,16,0)) -> 0 | AK20: -0.2689154486
A21: 106554011 | B21: 50335 | C21: ADVENTIST HEALTH SONORA - GREENLEY | D21: 3 | E21: ADVENTIST HEALTH SYSTEM | F21: =IFERROR(INDEX('4. FY 2019-20'!AZ:AZ,MATCH(A21,'4. FY 2019-20'!A:A,0)),0) -> 15870719.51 | G21: 1 | H21: 0 | I21: =IFERROR(INDEX('4. FY 2019-20'!AZ:AZ,MATCH(A21,'4. FY 2019-20'!A:A,0)),0) -> 15870719.51 | J21: =IFERROR(INDEX('5. FY 2020-21'!AZ:AZ,MATCH(A21,'5. FY 2020-21'!A:A,0)),0) -> 16144280.14 | K21: 1 | L21: 0 | N21: =IFERROR(INDEX('6. FY 2021-22'!AZ:AZ,MATCH(A21,'6. FY 2021-22'!A:A,0)),0) -> 8199812.419 | O21: 1 | P21: 0 | R21: 40214812.07 | S21: 1 | T21: 0 | X21: 15870719.51 | Z21: 16144280.14 | AB21: 8199812.419 | AD21: 40214812.07 | AG21: =IF(ISERROR(VLOOKUP($B21,#REF!,13,0)),0,VLOOKUP($B21,#REF!,13,0)) -> 0 | AH21: =IF(ISERROR(VLOOKUP($B21,#REF!,14,0)),0,VLOOKUP($B21,#REF!,14,0)) -> 0 | AI21: =IF(ISERROR(VLOOKUP($B21,#REF!,13,0)),0,VLOOKUP($B21,#REF!,15,0)) -> 0 | AJ21: =IF(ISERROR(VLOOKUP($B21,#REF!,16,0)),0,VLOOKUP($B21,#REF!,16,0)) -> 0 | AK21: 0.01723681336
A22: 106281078 | B22: 50013 | C22: ADVENTIST HEALTH ST. HELENA | D22: 3 | E22: ADVENTIST HEALTH SYSTEM | F22: =IFERROR(INDEX('4. FY 2019-20'!AZ:AZ,MATCH(A22,'4. FY 2019-20'!A:A,0)),0) -> 1235236.841 | G22: 1 | H22: 0 | I22: =IFERROR(INDEX('4. FY 2019-20'!AZ:AZ,MATCH(A22,'4. FY 2019-20'!A:A,0)),0) -> 1235236.841 | J22: =IFERROR(INDEX('5. FY 2020-21'!AZ:AZ,MATCH(A22,'5. FY 2020-21'!A:A,0)),0) -> 1003441.958 | K22: 1 | L22: 0 | N22: =IFERROR(INDEX('6. FY 2021-22'!AZ:AZ,MATCH(A22,'6. FY 2021-22'!A:A,0)),0) -> 668465.6838 | O22: 1 | P22: 0 | R22: 2907144.482 | S22: 1 | T22: 0 | X22: 1235236.841 | Z22: 1003441.958 | AB22: 668465.6838 | AD22: 2907144.482 | AG22: =IF(ISERROR(VLOOKUP($B22,#REF!,13,0)),0,VLOOKUP($B22,#REF!,13,0)) -> 0 | AH22: =IF(ISERROR(VLOOKUP($B22,#REF!,14,0)),0,VLOOKUP($B22,#REF!,14,0)) -> 0 | AI22: =IF(ISERROR(VLOOKUP($B22,#REF!,13,0)),0,VLOOKUP($B22,#REF!,15,0)) -> 0 | AJ22: =IF(ISERROR(VLOOKUP($B22,#REF!,16,0)),0,VLOOKUP($B22,#REF!,16,0)) -> 0 | AK22: -0.1876521775
A23: 106150808 | B23: 51301 | C23: ADVENTIST HEALTH TEHACHAPI VALLEY | D23: 3 | E23: ADVENTIST HEALTH SYSTEM | F23: =IFERROR(INDEX('4. FY 2019-20'!AZ:AZ,MATCH(A23,'4. FY 2019-20'!A:A,0)),0) -> 3454738.012 | G23: 1 | H23: 0 | I23: =IFERROR(INDEX('4. FY 2019-20'!AZ:AZ,MATCH(A23,'4. FY 2019-20'!A:A,0)),0) -> 3454738.012 | J23: =IFERROR(INDEX('5. FY 2020-21'!AZ:AZ,MATCH(A23,'5. FY 2020-21'!A:A,0)),0) -> 3391533.214 | K23: 1 | L23: 0 | N23: =IFERROR(INDEX('6. FY 2021-22'!AZ:AZ,MATCH(A23,'6. FY 2021-22'!A:A,0)),0) -> 1716748.973 | O23: 1 | P23: 0 | R23: 8563020.199 | S23: 1 | T23: 0 | X23: 3454738.012 | Z23: 3391533.214 | AB23: 1716748.973 | AD23: 8563020.199 | AG23: =IF(ISERROR(VLOOKUP($B23,#REF!,13,0)),0,VLOOKUP($B23,#REF!,13,0)) -> 0 | AH23: =IF(ISERROR(VLOOKUP($B23,#REF!,14,0)),0,VLOOKUP($B23,#REF!,14,0)) -> 0 | AI23: =IF(ISERROR(VLOOKUP($B23,#REF!,13,0)),0,VLOOKUP($B23,#REF!,15,0)) -> 0 | AJ23: =IF(ISERROR(VLOOKUP($B23,#REF!,16,0)),0,VLOOKUP($B23,#REF!,16,0)) -> 0 | AK23: -0.01829510597
A24: 106231396 | B24: 50301 | C24: ADVENTIST HEALTH UKIAH VALLEY | D24: 3 | E24: ADVENTIST HEALTH SYSTEM | F24: =IFERROR(INDEX('4. FY 2019-20'!AZ:AZ,MATCH(A24,'4. FY 2019-20'!A:A,0)),0) -> 12986629.57 | G24: 1 | H24: 0 | I24: =IFERROR(INDEX('4. FY 2019-20'!AZ:AZ,MATCH(A24,'4. FY 2019-20'!A:A,0)),0) -> 12986629.57 | J24: =IFERROR(INDEX('5. FY 2020-21'!AZ:AZ,MATCH(A24,'5. FY 2020-21'!A:A,0)),0) -> 13096137.51 | K24: 1 | L24: 0 | N24: =IFERROR(INDEX('6. FY 2021-22'!AZ:AZ,MATCH(A24,'6. FY 2021-22'!A:A,0)),0) -> 6605049.326 | O24: 1 | P24: 0 | R24: 32687816.41 | S24: 1 | T24: 0 | X24: 12986629.57 | Z24: 13096137.51 | AB24: 6605049.326 | AD24: 32687816.41 | AG24: =IF(ISERROR(VLOOKUP($B24,#REF!,13,0)),0,VLOOKUP($B24,#REF!,13,0)) -> 0 | AH24: =IF(ISERROR(VLOOKUP($B24,#REF!,14,0)),0,VLOOKUP($B24,#REF!,14,0)) -> 0 | AI24: =IF(ISERROR(VLOOKUP($B24,#REF!,13,0)),0,VLOOKUP($B24,#REF!,15,0)) -> 0 | AJ24: =IF(ISERROR(VLOOKUP($B24,#REF!,16,0)),0,VLOOKUP($B24,#REF!,16,0)) -> 0 | AK24: 0.008432360382
A25: 106190878 | B25: 50103 | C25: ADVENTIST HEALTH WHITE MEMORIAL | D25: 3 | E25: ADVENTIST HEALTH SYSTEM | F25: =IFERROR(INDEX('4. FY 2019-20'!AZ:AZ,MATCH(A25,'4. FY 2019-20'!A:A,0)),0) -> 49425538.45 | G25: 1 | H25: 0 | I25: =IFERROR(INDEX('4. FY 2019-20'!AZ:AZ,MATCH(A25,'4. FY 2019-20'!A:A,0)),0) -> 49425538.45 | J25: =IFERROR(INDEX('5. FY 2020-21'!AZ:AZ,MATCH(A25,'5. FY 2020-21'!A:A,0)),0) -> 53306969.92 | K25: 1 | L25: 0 | N25: =IFERROR(INDEX('6. FY 2021-22'!AZ:AZ,MATCH(A25,'6. FY 2021-22'!A:A,0)),0) -> 26806321.33 | O25: 1 | P25: 0 | R25: 129538829.7 | S25: 1 | T25: 0 | X25: 49425538.45 | Z25: 53306969.92 | AB25: 26806321.33 | AD25: 129538829.7 | AG25: =IF(ISERROR(VLOOKUP($B25,#REF!,13,0)),0,VLOOKUP($B25,#REF!,13,0)) -> 0 | AH25: =IF(ISERROR(VLOOKUP($B25,#REF!,14,0)),0,VLOOKUP($B25,#REF!,14,0)) -> 0 | AI25: =IF(ISERROR(VLOOKUP($B25,#REF!,13,0)),0,VLOOKUP($B25,#REF!,15,0)) -> 0 | AJ25: =IF(ISERROR(VLOOKUP($B25,#REF!,16,0)),0,VLOOKUP($B25,#REF!,16,0)) -> 0 | AK25: 0.07853088902
A26: 106580996 | B26: 50133 | C26: RIDEOUT MEMORIAL HOSPITAL | D26: 3 | E26: ADVENTIST HEALTH SYSTEM | F26: =IFERROR(INDEX('4. FY 2019-20'!AZ:AZ,MATCH(A26,'4. FY 2019-20'!A:A,0)),0) -> 17729548.18 | G26: =IF(F26>0,1,0) -> 1 | H26: =IF(F26<0,1,0) -> 0 | I26: =IFERROR(INDEX('4. FY 2019-20'!AZ:AZ,MATCH(A26,'4. FY 2019-20'!A:A,0)),0) -> 17729548.18 | J26: =IFERROR(INDEX('5. FY 2020-21'!AZ:AZ,MATCH(A26,'5. FY 2020-21'!A:A,0)),0) -> 18586632.27 | K26: 1 | L26: 0 | N26: =IFERROR(INDEX('6. FY 2021-22'!AZ:AZ,MATCH(A26,'6. FY 2021-22'!A:A,0)),0) -> 9630519.393 | O26: 1 | P26: 0 | R26: =F26+J26+N26 -> 45946699.85 | S26: =IF(R26>0,1,0) -> 1 | T26: =IF(R26<0,1,0) -> 0 | X26: =F26 -> 17729548.18 | Z26: =J26 -> 18586632.27 | AB26: =N26 -> 9630519.393 | AD26: =R26 -> 45946699.85 | AG26: =IF(ISERROR(VLOOKUP($B26,#REF!,13,0)),0,VLOOKUP($B26,#REF!,13,0)) -> 0 | AH26: =IF(ISERROR(VLOOKUP($B26,#REF!,14,0)),0,VLOOKUP($B26,#REF!,14,0)) -> 0 | AI26: =IF(ISERROR(VLOOKUP($B26,#REF!,13,0)),0,VLOOKUP($B26,#REF!,15,0)) -> 0 | AJ26: =IF(ISERROR(VLOOKUP($B26,#REF!,16,0)),0,VLOOKUP($B26,#REF!,16,0)) -> 0 | AK26: 0.048342128
A27: 106540816 | B27: 50359 | C27: TULARE REGIONAL MEDICAL CENTER | D27: 3 | E27: ADVENTIST HEALTH SYSTEM | F27: =IFERROR(INDEX('4. FY 2019-20'!AZ:AZ,MATCH(A27,'4. FY 2019-20'!A:A,0)),0) -> 8509783.863 | G27: =IF(F27>0,1,0) -> 1 | H27: =IF(F27<0,1,0) -> 0 | I27: =IFERROR(INDEX('4. FY 2019-20'!AZ:AZ,MATCH(A27,'4. FY 2019-20'!A:A,0)),0) -> 8509783.863 | J27: =IFERROR(INDEX('5. FY 2020-21'!AZ:AZ,MATCH(A27,'5. FY 2020-21'!A:A,0)),0) -> 8508784.227 | K27: 1 | L27: =IF(J27<0,1,0) -> 0 | N27: =IFERROR(INDEX('6. FY 2021-22'!AZ:AZ,MATCH(A27,'6. FY 2021-22'!A:A,0)),0) -> 4336764.799 | O27: =IF(N27>0,1,0) -> 1 | P27: =IF(N27<0,1,0) -> 0 | R27: =F27+J27+N27 -> 21355332.89 | S27: =IF(R27>0,1,0) -> 1 | T27: =IF(R27<0,1,0) -> 0 | X27: =F27 -> 8509783.863 | Z27: =J27 -> 8508784.227 | AB27: =N27 -> 4336764.799 | AD27: =R27 -> 21355332.89 | AG27: =IF(ISERROR(VLOOKUP($B27,#REF!,13,0)),0,VLOOKUP($B27,#REF!,13,0)) -> 0 | AH27: =IF(ISERROR(VLOOKUP($B27,#REF!,14,0)),0,VLOOKUP($B27,#REF!,14,0)) -> 0 | AI27: =IF(ISERROR(VLOOKUP($B27,#REF!,13,0)),0,VLOOKUP($B27,#REF!,15,0)) -> 0 | AJ27: =IF(ISERROR(VLOOKUP($B27,#REF!,16,0)),0,VLOOKUP($B27,#REF!,16,0)) -> 0 | AK27: -0.0001174690443
D28: 1 | E28: SYSTEM TOTAL | F28: =SUM(F11:F27) -> 245212354 | G28: =SUM(G11:G27) -> 15 | H28: =SUM(H11:H27) -> 0 | I28: =IF(F28<0,1,0) -> 0 | J28: =SUM(J11:J27) -> 252804153.4 | K28: =SUM(K11:K27) -> 15 | L28: =SUM(L11:L27) -> 0 | M28: =IF(J28<0,1,0) -> 0 | N28: =SUM(N11:N27) -> 128772094.8 | O28: =SUM(O11:O27) -> 15 | P28: =SUM(P11:P27) -> 0 | Q28: =IF(N28<0,1,0) -> 0 | R28: =SUM(R11:R27) -> 626788602.2 | S28: =SUM(S11:S27) -> 15 | T28: =SUM(T11:T27) -> 0 | U28: =IF(R28<0,1,0) -> 0 | Y28: =IF(I28=0,0,F28) -> 0 | AA28: =IF(M28=0,0,J28) -> 0 | AC28: =IF(Q28=0,0,N28) -> 0 | AE28: =IF(U28=0,0,R28) -> 0 | AG28: =IF(ISERROR(VLOOKUP($B28,#REF!,13,0)),0,VLOOKUP($B28,#REF!,13,0)) -> 0 | AH28: =IF(ISERROR(VLOOKUP($B28,#REF!,14,0)),0,VLOOKUP($B28,#REF!,14,0)) -> 0 | AI28: =IF(ISERROR(VLOOKUP($B28,#REF!,13,0)),0,VLOOKUP($B28,#REF!,15,0)) -> 0 | AJ28: =IF(ISERROR(VLOOKUP($B28,#REF!,16,0)),0,VLOOKUP($B28,#REF!,16,0)) -> 0 | AK28: 0.03096010179
A29: 106190017 | B29: 50281 | C29: ALHAMBRA HOSPITAL - ALHAMBRA | D29: 3 | E29: AHMC HEALTHCARE INC. | F29: =IFERROR(INDEX('4. FY 2019-20'!AZ:AZ,MATCH(A29,'4. FY 2019-20'!A:A,0)),0) -> 6783361.012 | G29: =IF(F29>0,1,0) -> 1 | H29: =IF(F29<0,1,0) -> 0 | J29: =IFERROR(INDEX('5. FY 2020-21'!AZ:AZ,MATCH(A29,'5. FY 2020-21'!A:A,0)),0) -> 6754845.266 | K29: =IF(J29>0,1,0) -> 1 | L29: =IF(J29<0,1,0) -> 0 | N29: =IFERROR(INDEX('6. FY 2021-22'!AZ:AZ,MATCH(A29,'6. FY 2021-22'!A:A,0)),0) -> 3482426.354 | O29: =IF(N29>0,1,0) -> 1 | P29: =IF(N29<0,1,0) -> 0 | R29: =F29+J29+N29 -> 17020632.63 | S29: =IF(R29>0,1,0) -> 1 | T29: =IF(R29<0,1,0) -> 0 | X29: =F29 -> 6783361.012 | Z29: =J29 -> 6754845.266 | AB29: =N29 -> 3482426.354 | AD29: =R29 -> 17020632.63 | AG29: =IF(ISERROR(VLOOKUP($B29,#REF!,13,0)),0,VLOOKUP($B29,#REF!,13,0)) -> 0 | AH29: =IF(ISERROR(VLOOKUP($B29,#REF!,14,0)),0,VLOOKUP($B29,#REF!,14,0)) -> 0 | AI29: =IF(ISERROR(VLOOKUP($B29,#REF!,13,0)),0,VLOOKUP($B29,#REF!,15,0)) -> 0 | AJ29: =IF(ISERROR(VLOOKUP($B29,#REF!,16,0)),0,VLOOKUP($B29,#REF!,16,0)) -> 0 | AK29: -0.004203778337
A30: 106301098 | B30: 50226 | C30: ANAHEIM MEMORIAL MEDICAL CENTER | D30: 3 | E30: AHMC HEALTHCARE INC. | F30: =IFERROR(INDEX('4. FY 2019-20'!AZ:AZ,MATCH(A30,'4. FY 2019-20'!A:A,0)),0) -> 15070014.26 | G30: 1 | H30: 0 | J30: =IFERROR(INDEX('5. FY 2020-21'!AZ:AZ,MATCH(A30,'5. FY 2020-21'!A:A,0)),0) -> 16020593.95 | K30: 1 | L30: 0 | N30: =IFERROR(INDEX('6. FY 2021-22'!AZ:AZ,MATCH(A30,'6. FY 2021-22'!A:A,0)),0) -> 8114717.741 | O30: 1 | P30: 0 | R30: 39205325.95 | S30: 1 | T30: 0 | X30: 15070014.26 | Z30: 16020593.95 | AB30: 8114717.741 | AD30: 39205325.95 | AG30: =IF(ISERROR(VLOOKUP($B30,#REF!,13,0)),0,VLOOKUP($B30,#REF!,13,0)) -> 0 | AH30: =IF(ISERROR(VLOOKUP($B30,#REF!,14,0)),0,VLOOKUP($B30,#REF!,14,0)) -> 0 | AI30: =IF(ISERROR(VLOOKUP($B30,#REF!,13,0)),0,VLOOKUP($B30,#REF!,15,0)) -> 0 | AJ30: =IF(ISERROR(VLOOKUP($B30,#REF!,16,0)),0,VLOOKUP($B30,#REF!,16,0)) -> 0 | AK30: 0.06307755776
A31: 106190315 | B31: 50737 | C31: GARFIELD MEDICAL CENTER | D31: 3 | E31: AHMC HEALTHCARE INC. | F31: =IFERROR(INDEX('4. FY 2019-20'!AZ:AZ,MATCH(A31,'4. FY 2019-20'!A:A,0)),0) -> 12090452.21 | G31: 1 | H31: 0 | J31: =IFERROR(INDEX('5. FY 2020-21'!AZ:AZ,MATCH(A31,'5. FY 2020-21'!A:A,0)),0) -> 13396442.6 | K31: 1 | L31: 0 | N31: =IFERROR(INDEX('6. FY 2021-22'!AZ:AZ,MATCH(A31,'6. FY 2021-22'!A:A,0)),0) -> 6779109.29 | O31: 1 | P31: 0 | R31: 32266004.1 | S31: 1 | T31: 0 | X31: 12090452.21 | Z31: 13396442.6 | AB31: 6779109.29 | AD31: 32266004.1 | AG31: =IF(ISERROR(VLOOKUP($B31,#REF!,13,0)),0,VLOOKUP($B31,#REF!,13,0)) -> 0 | AH31: =IF(ISERROR(VLOOKUP($B31,#REF!,14,0)),0,VLOOKUP($B31,#REF!,14,0)) -> 0 | AI31: =IF(ISERROR(VLOOKUP($B31,#REF!,13,0)),0,VLOOKUP($B31,#REF!,15,0)) -> 0 | AJ31: =IF(ISERROR(VLOOKUP($B31,#REF!,16,0)),0,VLOOKUP($B31,#REF!,16,0)) -> 0 | AK31: 0.108018325
A32: 106190352 | B32: 50738 | C32: GREATER EL MONTE COMMUNITY HOSPITAL | D32: 3 | E32: AHMC HEALTHCARE INC. | F32: =IFERROR(INDEX('4. FY 2019-20'!AZ:AZ,MATCH(A32,'4. FY 2019-20'!A:A,0)),0) -> 12482142.19 | G32: 1 | H32: 0 | J32: =IFERROR(INDEX('5. FY 2020-21'!AZ:AZ,MATCH(A32,'5. FY 2020-21'!A:A,0)),0) -> 13195989.09 | K32: 1 | L32: 0 | N32: =IFERROR(INDEX('6. FY 2021-22'!AZ:AZ,MATCH(A32,'6. FY 2021-22'!A:A,0)),0) -> 6580816.418 | O32: 1 | P32: 0 | R32: 32258947.69 | S32: 1 | T32: 0 | X32: 12482142.19 | Z32: 13195989.09 | AB32: 6580816.418 | AD32: 32258947.69 | AG32: =IF(ISERROR(VLOOKUP($B32,#REF!,13,0)),0,VLOOKUP($B32,#REF!,13,0)) -> 0 | AH32: =IF(ISERROR(VLOOKUP($B32,#REF!,14,0)),0,VLOOKUP($B32,#REF!,14,0)) -> 0 | AI32: =IF(ISERROR(VLOOKUP($B32,#REF!,13,0)),0,VLOOKUP($B32,#REF!,15,0)) -> 0 | AJ32: =IF(ISERROR(VLOOKUP($B32,#REF!,16,0)),0,VLOOKUP($B32,#REF!,16,0)) -> 0 | AK32: 0.05718945395
A33: 106190547 | B33: 50736 | C33: MONTEREY PARK HOSPITAL | D33: 3 | E33: AHMC HEALTHCARE INC. | F33: =IFERROR(INDEX('4. FY 2019-20'!AZ:AZ,MATCH(A33,'4. FY 2019-20'!A:A,0)),0) -> 11137300.53 | G33: 1 | H33: 0 | J33: =IFERROR(INDEX('5. FY 2020-21'!AZ:AZ,MATCH(A33,'5. FY 2020-21'!A:A,0)),0) -> 11941077.06 | K33: 1 | L33: 0 | N33: =IFERROR(INDEX('6. FY 2021-22'!AZ:AZ,MATCH(A33,'6. FY 2021-22'!A:A,0)),0) -> 5983301.133 | O33: 1 | P33: 0 | R33: 29061678.73 | S33: 1 | T33: 0 | X33: 11137300.53 | Z33: 11941077.06 | AB33: 5983301.133 | AD33: 29061678.73 | AG33: =IF(ISERROR(VLOOKUP($B33,#REF!,13,0)),0,VLOOKUP($B33,#REF!,13,0)) -> 0 | AH33: =IF(ISERROR(VLOOKUP($B33,#REF!,14,0)),0,VLOOKUP($B33,#REF!,14,0)) -> 0 | AI33: =IF(ISERROR(VLOOKUP($B33,#REF!,13,0)),0,VLOOKUP($B33,#REF!,15,0)) -> 0 | AJ33: =IF(ISERROR(VLOOKUP($B33,#REF!,16,0)),0,VLOOKUP($B33,#REF!,16,0)) -> 0 | AK33: 0.07216977959
A34: 106190200 | B34: 50132 | C34: SAN GABRIEL VALLEY MEDICAL CENTER | D34: 3 | E34: AHMC HEALTHCARE INC. | F34: =IFERROR(INDEX('4. FY 2019-20'!AZ:AZ,MATCH(A34,'4. FY 2019-20'!A:A,0)),0) -> 9409851.403 | G34: 1 | H34: 0 | J34: =IFERROR(INDEX('5. FY 2020-21'!AZ:AZ,MATCH(A34,'5. FY 2020-21'!A:A,0)),0) -> 9840911.991 | K34: 1 | L34: 0 | N34: =IFERROR(INDEX('6. FY 2021-22'!AZ:AZ,MATCH(A34,'6. FY 2021-22'!A:A,0)),0) -> 5030834.09 | O34: 1 | P34: 0 | R34: 24281597.48 | S34: 1 | T34: 0 | X34: 9409851.403 | Z34: 9840911.991 | AB34: 5030834.09 | AD34: 24281597.48 | AG34: =IF(ISERROR(VLOOKUP($B34,#REF!,13,0)),0,VLOOKUP($B34,#REF!,13,0)) -> 0 | AH34: =IF(ISERROR(VLOOKUP($B34,#REF!,14,0)),0,VLOOKUP($B34,#REF!,14,0)) -> 0 | AI34: =IF(ISERROR(VLOOKUP($B34,#REF!,13,0)),0,VLOOKUP($B34,#REF!,15,0)) -> 0 | AJ34: =IF(ISERROR(VLOOKUP($B34,#REF!,16,0)),0,VLOOKUP($B34,#REF!,16,0)) -> 0 | AK34: 0.04580949998
A35: 106190883 | B35: 50735 | C35: WHITTIER HOSPITAL MEDICAL CENTER | D35: 3 | E35: AHMC HEALTHCARE INC. | F35: =IFERROR(INDEX('4. FY 2019-20'!AZ:AZ,MATCH(A35,'4. FY 2019-20'!A:A,0)),0) -> 20091441.46 | G35: 1 | H35: 0 | J35: =IFERROR(INDEX('5. FY 2020-21'!AZ:AZ,MATCH(A35,'5. FY 2020-21'!A:A,0)),0) -> 21057063.78 | K35: 1 | L35: 0 | N35: =IFERROR(INDEX('6. FY 2021-22'!AZ:AZ,MATCH(A35,'6. FY 2021-22'!A:A,0)),0) -> 10509571.42 | O35: 1 | P35: 0 | R35: 51658076.66 | S35: 1 | T35: 0 | X35: 20091441.46 | Z35: 21057063.78 | AB35: 10509571.42 | AD35: 51658076.66 | AG35: =IF(ISERROR(VLOOKUP($B35,#REF!,13,0)),0,VLOOKUP($B35,#REF!,13,0)) -> 0 | AH35: =IF(ISERROR(VLOOKUP($B35,#REF!,14,0)),0,VLOOKUP($B35,#REF!,14,0)) -> 0 | AI35: =IF(ISERROR(VLOOKUP($B35,#REF!,13,0)),0,VLOOKUP($B35,#REF!,15,0)) -> 0 | AJ35: =IF(ISERROR(VLOOKUP($B35,#REF!,16,0)),0,VLOOKUP($B35,#REF!,16,0)) -> 0 | AK35: 0.04806137552
D36: 2 | E36: SYSTEM TOTAL | F36: =SUM(F29:F35) -> 87064563.07 | G36: =SUM(G29:G35) -> 7 | H36: =SUM(H29:H35) -> 0 | I36: =IF(F36<0,1,0) -> 0 | J36: =SUM(J29:J35) -> 92206923.73 | K36: =SUM(K29:K35) -> 7 | L36: =SUM(L29:L35) -> 0 | M36: =IF(J36<0,1,0) -> 0 | N36: =SUM(N29:N35) -> 46480776.45 | O36: =SUM(O29:O35) -> 7 | P36: =SUM(P29:P35) -> 0 | Q36: =IF(N36<0,1,0) -> 0 | R36: =SUM(R29:R35) -> 225752263.3 | S36: =SUM(S29:S35) -> 7 | T36: =SUM(T29:T35) -> 0 | U36: =IF(R36<0,1,0) -> 0 | Y36: =IF(I36=0,0,F36) -> 0 | AA36: =IF(M36=0,0,J36) -> 0 | AC36: =IF(Q36=0,0,N36) -> 0 | AE36: =IF(U36=0,0,R36) -> 0 | AG36: =IF(ISERROR(VLOOKUP($B36,#REF!,13,0)),0,VLOOKUP($B36,#REF!,13,0)) -> 0 | AH36: =IF(ISERROR(VLOOKUP($B36,#REF!,14,0)),0,VLOOKUP($B36,#REF!,14,0)) -> 0 | AI36: =IF(ISERROR(VLOOKUP($B36,#REF!,13,0)),0,VLOOKUP($B36,#REF!,15,0)) -> 0 | AJ36: =IF(ISERROR(VLOOKUP($B36,#REF!,16,0)),0,VLOOKUP($B36,#REF!,16,0)) -> 0 | AK36: 0.05906376239
A37: 106190766 | B37: 50219 | C37: COAST PLAZA DOCTORS HOSPITAL | D37: 3 | E37: AVANTI HOSPITALS, LLC | F37: =IFERROR(INDEX('4. FY 2019-20'!AZ:AZ,MATCH(A37,'4. FY 2019-20'!A:A,0)),0) -> 3678064.745 | G37: =IF(F37>0,1,0) -> 1 | H37: =IF(F37<0,1,0) -> 0 | J37: =IFERROR(INDEX('5. FY 2020-21'!AZ:AZ,MATCH(A37,'5. FY 2020-21'!A:A,0)),0) -> 3866120.101 | K37: =IF(J37>0,1,0) -> 1 | L37: =IF(J37<0,1,0) -> 0 | N37: =IFERROR(INDEX('6. FY 2021-22'!AZ:AZ,MATCH(A37,'6. FY 2021-22'!A:A,0)),0) -> 1964967.104 | O37: =IF(N37>0,1,0) -> 1 | P37: =IF(N37<0,1,0) -> 0 | R37: =F37+J37+N37 -> 9509151.95 | S37: =IF(R37>0,1,0) -> 1 | T37: =IF(R37<0,1,0) -> 0 | X37: =F37 -> 3678064.745 | Z37: =J37 -> 3866120.101 | AB37: =N37 -> 1964967.104 | AD37: =R37 -> 9509151.95 | AG37: =IF(ISERROR(VLOOKUP($B37,#REF!,13,0)),0,VLOOKUP($B37,#REF!,13,0)) -> 0 | AH37: =IF(ISERROR(VLOOKUP($B37,#REF!,14,0)),0,VLOOKUP($B37,#REF!,14,0)) -> 0 | AI37: =IF(ISERROR(VLOOKUP($B37,#REF!,13,0)),0,VLOOKUP($B37,#REF!,15,0)) -> 0 | AJ37: =IF(ISERROR(VLOOKUP($B37,#REF!,16,0)),0,VLOOKUP($B37,#REF!,16,0)) -> 0 | AK37: 0.05112888685
A38: 106190197 | B38: 50091 | C38: COMMUNITY HOSPITAL OF HUNTINGTON PARK | D38: 3 | E38: AVANTI HOSPITALS, LLC | F38: =IFERROR(INDEX('4. FY 2019-20'!AZ:AZ,MATCH(A38,'4. FY 2019-20'!A:A,0)),0) -> 13517533.65 | G38: 1 | H38: 0 | J38: =IFERROR(INDEX('5. FY 2020-21'!AZ:AZ,MATCH(A38,'5. FY 2020-21'!A:A,0)),0) -> 14254468.91 | K38: 1 | L38: 0 | N38: =IFERROR(INDEX('6. FY 2021-22'!AZ:AZ,MATCH(A38,'6. FY 2021-22'!A:A,0)),0) -> 7085337.919 | O38: 1 | P38: 0 | R38: 34857340.48 | S38: 1 | T38: 0 | X38: 13517533.65 | Z38: 14254468.91 | AB38: 7085337.919 | AD38: 34857340.48 | AG38: =IF(ISERROR(VLOOKUP($B38,#REF!,13,0)),0,VLOOKUP($B38,#REF!,13,0)) -> 0 | AH38: =IF(ISERROR(VLOOKUP($B38,#REF!,14,0)),0,VLOOKUP($B38,#REF!,14,0)) -> 0 | AI38: =IF(ISERROR(VLOOKUP($B38,#REF!,13,0)),0,VLOOKUP($B38,#REF!,15,0)) -> 0 | AJ38: =IF(ISERROR(VLOOKUP($B38,#REF!,16,0)),0,VLOOKUP($B38,#REF!,16,0)) -> 0 | AK38: 0.05451699095
A39: 106190256 | B39: 50641 | C39: EAST LOS ANGELES DOCTOR'S HOSPITAL | D39: 3 | E39: AVANTI HOSPITALS, LLC | F39: =IFERROR(INDEX('4. FY 2019-20'!AZ:AZ,MATCH(A39,'4. FY 2019-20'!A:A,0)),0) -> 12662018.06 | G39: 1 | H39: 0 | J39: =IFERROR(INDEX('5. FY 2020-21'!AZ:AZ,MATCH(A39,'5. FY 2020-21'!A:A,0)),0) -> 13639242.46 | K39: 1 | L39: 0 | N39: =IFERROR(INDEX('6. FY 2021-22'!AZ:AZ,MATCH(A39,'6. FY 2021-22'!A:A,0)),0) -> 6804896.257 | O39: 1 | P39: 0 | R39: 33106156.77 | S39: 1 | T39: 0 | X39: 12662018.06 | Z39: 13639242.46 | AB39: 6804896.257 | AD39: 33106156.77 | AG39: =IF(ISERROR(VLOOKUP($B39,#REF!,13,0)),0,VLOOKUP($B39,#REF!,13,0)) -> 0 | AH39: =IF(ISERROR(VLOOKUP($B39,#REF!,14,0)),0,VLOOKUP($B39,#REF!,14,0)) -> 0 | AI39: =IF(ISERROR(VLOOKUP($B39,#REF!,13,0)),0,VLOOKUP($B39,#REF!,15,0)) -> 0 | AJ39: =IF(ISERROR(VLOOKUP($B39,#REF!,16,0)),0,VLOOKUP($B39,#REF!,16,0)) -> 0 | AK39: 0.07717761833
A40: 106190521 | B40: 50468 | C40: MEMORIAL HOSPITAL OF GARDENA | D40: 3 | E40: AVANTI HOSPITALS, LLC | F40: =IFERROR(INDEX('4. FY 2019-20'!AZ:AZ,MATCH(A40,'4. FY 2019-20'!A:A,0)),0) -> 25618934.76 | G40: 1 | H40: 0 | J40: =IFERROR(INDEX('5. FY 2020-21'!AZ:AZ,MATCH(A40,'5. FY 2020-21'!A:A,0)),0) -> 26670335.44 | K40: 1 | L40: 0 | N40: =IFERROR(INDEX('6. FY 2021-22'!AZ:AZ,MATCH(A40,'6. FY 2021-22'!A:A,0)),0) -> 13388541.64 | O40: 1 | P40: 0 | R40: 65677811.84 | S40: 1 | T40: 0 | X40: 25618934.76 | Z40: 26670335.44 | AB40: 13388541.64 | AD40: 65677811.84 | AG40: =IF(ISERROR(VLOOKUP($B40,#REF!,13,0)),0,VLOOKUP($B40,#REF!,13,0)) -> 0 | AH40: =IF(ISERROR(VLOOKUP($B40,#REF!,14,0)),0,VLOOKUP($B40,#REF!,14,0)) -> 0 | AI40: =IF(ISERROR(VLOOKUP($B40,#REF!,13,0)),0,VLOOKUP($B40,#REF!,15,0)) -> 0 | AJ40: =IF(ISERROR(VLOOKUP($B40,#REF!,16,0)),0,VLOOKUP($B40,#REF!,16,0)) -> 0 | AK40: 0.04103998435
D41: 3 | E41: SYSTEM TOTAL | F41: =SUM(F37:F40) -> 55476551.22 | G41: =SUM(G37:G40) -> 4 | H41: =SUM(H37:H40) -> 0 | I41: =IF(F41<0,1,0) -> 0 | J41: =SUM(J37:J40) -> 58430166.91 | K41: =SUM(K37:K40) -> 4 | L41: =SUM(L37:L40) -> 0 | M41: =IF(J41<0,1,0) -> 0 | N41: =SUM(N37:N40) -> 29243742.92 | O41: =SUM(O37:O40) -> 4 | P41: =SUM(P37:P40) -> 0 | Q41: =IF(N41<0,1,0) -> 0 | R41: =SUM(R37:R40) -> 143150461 | S41: =SUM(S37:S40) -> 4 | T41: =SUM(T37:T40) -> 0 | U41: =IF(R41<0,1,0) -> 0 | Y41: =IF(I41=0,0,F41) -> 0 | AA41: =IF(M41=0,0,J41) -> 0 | AC41: =IF(Q41=0,0,N41) -> 0 | AE41: =IF(U41=0,0,R41) -> 0 | AG41: =IF(ISERROR(VLOOKUP($B41,#REF!,13,0)),0,VLOOKUP($B41,#REF!,13,0)) -> 0 | AH41: =IF(ISERROR(VLOOKUP($B41,#REF!,14,0)),0,VLOOKUP($B41,#REF!,14,0)) -> 0 | AI41: =IF(ISERROR(VLOOKUP($B41,#REF!,13,0)),0,VLOOKUP($B41,#REF!,15,0)) -> 0 | AJ41: =IF(ISERROR(VLOOKUP($B41,#REF!,16,0)),0,VLOOKUP($B41,#REF!,16,0)) -> 0 | AK41: 0.05324079507
A42: 106150722 | B42: 50036 | C42: BAKERSFIELD MEMORIAL HOSPITAL | D42: 3 | E42: DIGNITY HEALTH | F42: =IFERROR(INDEX('4. FY 2019-20'!AZ:AZ,MATCH(A42,'4. FY 2019-20'!A:A,0)),0) -> 38197208.32 | G42: =IF(F42>0,1,0) -> 1 | H42: =IF(F42<0,1,0) -> 0 | J42: =IFERROR(INDEX('5. FY 2020-21'!AZ:AZ,MATCH(A42,'5. FY 2020-21'!A:A,0)),0) -> 39637735.06 | K42: =IF(J42>0,1,0) -> 1 | L42: =IF(J42<0,1,0) -> 0 | N42: =IFERROR(INDEX('6. FY 2021-22'!AZ:AZ,MATCH(A42,'6. FY 2021-22'!A:A,0)),0) -> 20101069.89 | O42: =IF(N42>0,1,0) -> 1 | P42: =IF(N42<0,1,0) -> 0 | R42: =F42+J42+N42 -> 97936013.27 | S42: =IF(R42>0,1,0) -> 1 | T42: =IF(R42<0,1,0) -> 0 | X42: =F42 -> 38197208.32 | Z42: =J42 -> 39637735.06 | AB42: =N42 -> 20101069.89 | AD42: =R42 -> 97936013.27 | AG42: =IF(ISERROR(VLOOKUP($B42,#REF!,13,0)),0,VLOOKUP($B42,#REF!,13,0)) -> 0 | AH42: =IF(ISERROR(VLOOKUP($B42,#REF!,14,0)),0,VLOOKUP($B42,#REF!,14,0)) -> 0 | AI42: =IF(ISERROR(VLOOKUP($B42,#REF!,13,0)),0,VLOOKUP($B42,#REF!,15,0)) -> 0 | AJ42: =IF(ISERROR(VLOOKUP($B42,#REF!,16,0)),0,VLOOKUP($B42,#REF!,16,0)) -> 0 | AK42: 0.03771287997
A43: 106190125 | B43: 50149 | C43: CALIFORNIA HOSPITAL MEDICAL CENTER | D43: 3 | E43: DIGNITY HEALTH | F43: =IFERROR(INDEX('4. FY 2019-20'!AZ:AZ,MATCH(A43,'4. FY 2019-20'!A:A,0)),0) -> 55147092.6 | G43: 1 | H43: 0 | J43: =IFERROR(INDEX('5. FY 2020-21'!AZ:AZ,MATCH(A43,'5. FY 2020-21'!A:A,0)),0) -> 60174758.87 | K43: 1 | L43: 0 | N43: =IFERROR(INDEX('6. FY 2021-22'!AZ:AZ,MATCH(A43,'6. FY 2021-22'!A:A,0)),0) -> 30007677.44 | O43: 1 | P43: 0 | R43: 145329528.9 | S43: 1 | T43: 0 | X43: 55147092.6 | Z43: 60174758.87 | AB43: 30007677.44 | AD43: 145329528.9 | AG43: =IF(ISERROR(VLOOKUP($B43,#REF!,13,0)),0,VLOOKUP($B43,#REF!,13,0)) -> 0 | AH43: =IF(ISERROR(VLOOKUP($B43,#REF!,14,0)),0,VLOOKUP($B43,#REF!,14,0)) -> 0 | AI43: =IF(ISERROR(VLOOKUP($B43,#REF!,13,0)),0,VLOOKUP($B43,#REF!,15,0)) -> 0 | AJ43: =IF(ISERROR(VLOOKUP($B43,#REF!,16,0)),0,VLOOKUP($B43,#REF!,16,0)) -> 0 | AK43: 0.09116829247
A44: 106361323 | B44: 50089 | C44: COMMUNITY HOSPITAL OF SAN BERNARDINO | D44: 3 | E44: DIGNITY HEALTH | F44: =IFERROR(INDEX('4. FY 2019-20'!AZ:AZ,MATCH(A44,'4. FY 2019-20'!A:A,0)),0) -> 47190313.16 | G44: 1 | H44: 0 | J44: =IFERROR(INDEX('5. FY 2020-21'!AZ:AZ,MATCH(A44,'5. FY 2020-21'!A:A,0)),0) -> 48494108.36 | K44: 1 | L44: 0 | N44: =IFERROR(INDEX('6. FY 2021-22'!AZ:AZ,MATCH(A44,'6. FY 2021-22'!A:A,0)),0) -> 24508888.78 | O44: 1 | P44: 0 | R44: 120193310.3 | S44: 1 | T44: 0 | X44: 47190313.16 | Z44: 48494108.36 | AB44: 24508888.78 | AD44: 120193310.3 | AG44: =IF(ISERROR(VLOOKUP($B44,#REF!,13,0)),0,VLOOKUP($B44,#REF!,13,0)) -> 0 | AH44: =IF(ISERROR(VLOOKUP($B44,#REF!,14,0)),0,VLOOKUP($B44,#REF!,14,0)) -> 0 | AI44: =IF(ISERROR(VLOOKUP($B44,#REF!,13,0)),0,VLOOKUP($B44,#REF!,15,0)) -> 0 | AJ44: =IF(ISERROR(VLOOKUP($B44,#REF!,16,0)),0,VLOOKUP($B44,#REF!,16,0)) -> 0 | AK44: 0.02762844972
A45: 106440755 | B45: 50242 | C45: DOMINICAN SANTA CRUZ HOSPITAL - SOQUEL | D45: 3 | E45: DIGNITY HEALTH | F45: =IFERROR(INDEX('4. FY 2019-20'!AZ:AZ,MATCH(A45,'4. FY 2019-20'!A:A,0)),0) -> 6285694.478 | G45: 1 | H45: 0 | J45: =IFERROR(INDEX('5. FY 2020-21'!AZ:AZ,MATCH(A45,'5. FY 2020-21'!A:A,0)),0) -> 6374517.816 | K45: 1 | L45: 0 | N45: =IFERROR(INDEX('6. FY 2021-22'!AZ:AZ,MATCH(A45,'6. FY 2021-22'!A:A,0)),0) -> 3386936.028 | O45: 1 | P45: 0 | R45: 16047148.32 | S45: 1 | T45: 0 | X45: 6285694.478 | Z45: 6374517.816 | AB45: 3386936.028 | AD45: 16047148.32 | AG45: =IF(ISERROR(VLOOKUP($B45,#REF!,13,0)),0,VLOOKUP($B45,#REF!,13,0)) -> 0 | AH45: =IF(ISERROR(VLOOKUP($B45,#REF!,14,0)),0,VLOOKUP($B45,#REF!,14,0)) -> 0 | AI45: =IF(ISERROR(VLOOKUP($B45,#REF!,13,0)),0,VLOOKUP($B45,#REF!,15,0)) -> 0 | AJ45: =IF(ISERROR(VLOOKUP($B45,#REF!,16,0)),0,VLOOKUP($B45,#REF!,16,0)) -> 0 | AK45: 0.01413103007
A46: 106400480 | B46: 50232 | C46: FRENCH HOSPITAL MEDICAL CENTER - SLO | D46: 3 | E46: DIGNITY HEALTH | F46: =IFERROR(INDEX('4. FY 2019-20'!AZ:AZ,MATCH(A46,'4. FY 2019-20'!A:A,0)),0) -> 776809.2098 | G46: 1 | H46: 0 | J46: =IFERROR(INDEX('5. FY 2020-21'!AZ:AZ,MATCH(A46,'5. FY 2020-21'!A:A,0)),0) -> 598162.0827 | K46: 1 | L46: 0 | N46: =IFERROR(INDEX('6. FY 2021-22'!AZ:AZ,MATCH(A46,'6. FY 2021-22'!A:A,0)),0) -> 387558.8597 | O46: 1 | P46: 0 | R46: 1762530.152 | S46: 1 | T46: 0 | X46: 776809.2098 | Z46: 598162.0827 | AB46: 387558.8597 | AD46: 1762530.152 | AG46: =IF(ISERROR(VLOOKUP($B46,#REF!,13,0)),0,VLOOKUP($B46,#REF!,13,0)) -> 0 | AH46: =IF(ISERROR(VLOOKUP($B46,#REF!,14,0)),0,VLOOKUP($B46,#REF!,14,0)) -> 0 | AI46: =IF(ISERROR(VLOOKUP($B46,#REF!,13,0)),0,VLOOKUP($B46,#REF!,15,0)) -> 0 | AJ46: =IF(ISERROR(VLOOKUP($B46,#REF!,16,0)),0,VLOOKUP($B46,#REF!,16,0)) -> 0 | AK46: -0.2299755523
A47: 106190522 | B47: 50058 | C47: GLENDALE MEMORIAL HOSPITAL & HEALTH CTR | D47: 3 | E47: DIGNITY HEALTH | F47: =IFERROR(INDEX('4. FY 2019-20'!AZ:AZ,MATCH(A47,'4. FY 2019-20'!A:A,0)),0) -> 16543796.68 | G47: 1 | H47: 0 | J47: =IFERROR(INDEX('5. FY 2020-21'!AZ:AZ,MATCH(A47,'5. FY 2020-21'!A:A,0)),0) -> 17712256.36 | K47: 1 | L47: 0 | N47: =IFERROR(INDEX('6. FY 2021-22'!AZ:AZ,MATCH(A47,'6. FY 2021-22'!A:A,0)),0) -> 9119342.874 | O47: 1 | P47: 0 | R47: 43375395.92 | S47: 1 | T47: 0 | X47: 16543796.68 | Z47: 17712256.36 | AB47: 9119342.874 | AD47: 43375395.92 | AG47: =IF(ISERROR(VLOOKUP($B47,#REF!,13,0)),0,VLOOKUP($B47,#REF!,13,0)) -> 0 | AH47: =IF(ISERROR(VLOOKUP($B47,#REF!,14,0)),0,VLOOKUP($B47,#REF!,14,0)) -> 0 | AI47: =IF(ISERROR(VLOOKUP($B47,#REF!,13,0)),0,VLOOKUP($B47,#REF!,15,0)) -> 0 | AJ47: =IF(ISERROR(VLOOKUP($B47,#REF!,16,0)),0,VLOOKUP($B47,#REF!,16,0)) -> 0 | AK47: 0.07062826673
A48: 106420493 | B48: 50107 | C48: MARIAN MEDICAL CENTER | D48: 3 | E48: DIGNITY HEALTH | F48: =IFERROR(INDEX('4. FY 2019-20'!AZ:AZ,MATCH(A48,'4. FY 2019-20'!A:A,0)),0) -> 39735667.54 | G48: 1 | H48: 0 | J48: =IFERROR(INDEX('5. FY 2020-21'!AZ:AZ,MATCH(A48,'5. FY 2020-21'!A:A,0)),0) -> 41805119.88 | K48: 1 | L48: 0 | N48: =IFERROR(INDEX('6. FY 2021-22'!AZ:AZ,MATCH(A48,'6. FY 2021-22'!A:A,0)),0) -> 21260428.63 | O48: 1 | P48: 0 | R48: 102801216 | S48: 1 | T48: 0 | X48: 39735667.54 | Z48: 41805119.88 | AB48: 21260428.63 | AD48: 102801216 | AG48: =IF(ISERROR(VLOOKUP($B48,#REF!,13,0)),0,VLOOKUP($B48,#REF!,13,0)) -> 0 | AH48: =IF(ISERROR(VLOOKUP($B48,#REF!,14,0)),0,VLOOKUP($B48,#REF!,14,0)) -> 0 | AI48: =IF(ISERROR(VLOOKUP($B48,#REF!,13,0)),0,VLOOKUP($B48,#REF!,15,0)) -> 0 | AJ48: =IF(ISERROR(VLOOKUP($B48,#REF!,16,0)),0,VLOOKUP($B48,#REF!,16,0)) -> 0 | AK48: 0.0520804726
A49: 106050932 | B49: 50366 | C49: MARK TWAIN ST. JOSEPH'S HOSPITAL | D49: 3 | E49: DIGNITY HEALTH | F49: =IFERROR(INDEX('4. FY 2019-20'!AZ:AZ,MATCH(A49,'4. FY 2019-20'!A:A,0)),0) -> 4351787.1 | G49: 1 | H49: 0 | J49: =IFERROR(INDEX('5. FY 2020-21'!AZ:AZ,MATCH(A49,'5. FY 2020-21'!A:A,0)),0) -> 4325583.919 | K49: 1 | L49: 0 | N49: =IFERROR(INDEX('6. FY 2021-22'!AZ:AZ,MATCH(A49,'6. FY 2021-22'!A:A,0)),0) -> 2189473.667 | O49: 1 | P49: 0 | R49: 10866844.69 | S49: 1 | T49: 0 | X49: 4351787.1 | Z49: 4325583.919 | AB49: 2189473.667 | AD49: 10866844.69 | AG49: =IF(ISERROR(VLOOKUP($B49,#REF!,13,0)),0,VLOOKUP($B49,#REF!,13,0)) -> 0 | AH49: =IF(ISERROR(VLOOKUP($B49,#REF!,14,0)),0,VLOOKUP($B49,#REF!,14,0)) -> 0 | AI49: =IF(ISERROR(VLOOKUP($B49,#REF!,13,0)),0,VLOOKUP($B49,#REF!,15,0)) -> 0 | AJ49: =IF(ISERROR(VLOOKUP($B49,#REF!,16,0)),0,VLOOKUP($B49,#REF!,16,0)) -> 0 | AK49: -0.006021246065
A50: 106340947 | B50: 50017 | C50: MERCY GENERAL HOSPITAL | D50: 3 | E50: DIGNITY HEALTH | F50: =IFERROR(INDEX('4. FY 2019-20'!AZ:AZ,MATCH(A50,'4. FY 2019-20'!A:A,0)),0) -> 11006002.09 | G50: 1 | H50: 0 | J50: =IFERROR(INDEX('5. FY 2020-21'!AZ:AZ,MATCH(A50,'5. FY 2020-21'!A:A,0)),0) -> 11436237.16 | K50: 1 | L50: 0 | N50: =IFERROR(INDEX('6. FY 2021-22'!AZ:AZ,MATCH(A50,'6. FY 2021-22'!A:A,0)),0) -> 5804364.715 | O50: 1 | P50: 0 | R50: 28246603.97 | S50: 1 | T50: 0 | X50: 11006002.09 | Z50: 11436237.16 | AB50: 5804364.715 | AD50: 28246603.97 | AG50: =IF(ISERROR(VLOOKUP($B50,#REF!,13,0)),0,VLOOKUP($B50,#REF!,13,0)) -> 0 | AH50: =IF(ISERROR(VLOOKUP($B50,#REF!,14,0)),0,VLOOKUP($B50,#REF!,14,0)) -> 0 | AI50: =IF(ISERROR(VLOOKUP($B50,#REF!,13,0)),0,VLOOKUP($B50,#REF!,15,0)) -> 0 | AJ50: =IF(ISERROR(VLOOKUP($B50,#REF!,16,0)),0,VLOOKUP($B50,#REF!,16,0)) -> 0 | AK50: 0.03909094896
A51: 106150761 | B51: 50295 | C51: MERCY HOSPITAL - BAKERSFIELD | D51: 3 | E51: DIGNITY HEALTH | F51: =IFERROR(INDEX('4. FY 2019-20'!AZ:AZ,MATCH(A51,'4. FY 2019-20'!A:A,0)),0) -> 20665719.88 | G51: 1 | H51: 0 | J51: =IFERROR(INDEX('5. FY 2020-21'!AZ:AZ,MATCH(A51,'5. FY 2020-21'!A:A,0)),0) -> 21025510.69 | K51: 1 | L51: 0 | N51: =IFERROR(INDEX('6. FY 2021-22'!AZ:AZ,MATCH(A51,'6. FY 2021-22'!A:A,0)),0) -> 10581613.4 | O51: 1 | P51: 0 | R51: 52272843.97 | S51: 1 | T51: 0 | X51: 20665719.88 | Z51: 21025510.69 | AB51: 10581613.4 | AD51: 52272843.97 | AG51: =IF(ISERROR(VLOOKUP($B51,#REF!,13,0)),0,VLOOKUP($B51,#REF!,13,0)) -> 0 | AH51: =IF(ISERROR(VLOOKUP($B51,#REF!,14,0)),0,VLOOKUP($B51,#REF!,14,0)) -> 0 | AI51: =IF(ISERROR(VLOOKUP($B51,#REF!,13,0)),0,VLOOKUP($B51,#REF!,15,0)) -> 0 | AJ51: =IF(ISERROR(VLOOKUP($B51,#REF!,16,0)),0,VLOOKUP($B51,#REF!,16,0)) -> 0 | AK51: 0.01741003043
A52: 106344029 | B52: 50414 | C52: MERCY HOSPITAL - FOLSOM | D52: 3 | E52: DIGNITY HEALTH | F52: =IFERROR(INDEX('4. FY 2019-20'!AZ:AZ,MATCH(A52,'4. FY 2019-20'!A:A,0)),0) -> 2512214.152 | G52: 1 | H52: 0 | J52: =IFERROR(INDEX('5. FY 2020-21'!AZ:AZ,MATCH(A52,'5. FY 2020-21'!A:A,0)),0) -> 2482019.186 | K52: 1 | L52: 0 | N52: =IFERROR(INDEX('6. FY 2021-22'!AZ:AZ,MATCH(A52,'6. FY 2021-22'!A:A,0)),0) -> 1243730.677 | O52: 1 | P52: 0 | R52: 6237964.015 | S52: 1 | T52: 0 | X52: 2512214.152 | Z52: 2482019.186 | AB52: 1243730.677 | AD52: 6237964.015 | AG52: =IF(ISERROR(VLOOKUP($B52,#REF!,13,0)),0,VLOOKUP($B52,#REF!,13,0)) -> 0 | AH52: =IF(ISERROR(VLOOKUP($B52,#REF!,14,0)),0,VLOOKUP($B52,#REF!,14,0)) -> 0 | AI52: =IF(ISERROR(VLOOKUP($B52,#REF!,13,0)),0,VLOOKUP($B52,#REF!,15,0)) -> 0 | AJ52: =IF(ISERROR(VLOOKUP($B52,#REF!,16,0)),0,VLOOKUP($B52,#REF!,16,0)) -> 0 | AK52: -0.01201926424
A53: 106470871 | B53: 51319 | C53: MERCY HOSPITAL OF MT. SHASTA | D53: 3 | E53: DIGNITY HEALTH | F53: =IFERROR(INDEX('4. FY 2019-20'!AZ:AZ,MATCH(A53,'4. FY 2019-20'!A:A,0)),0) -> 4321086.632 | G53: 1 | H53: 0 | J53: =IFERROR(INDEX('5. FY 2020-21'!AZ:AZ,MATCH(A53,'5. FY 2020-21'!A:A,0)),0) -> 4287115.08 | K53: 1 | L53: 0 | N53: =IFERROR(INDEX('6. FY 2021-22'!AZ:AZ,MATCH(A53,'6. FY 2021-22'!A:A,0)),0) -> 2175834.258 | O53: 1 | P53: 0 | R53: 10784035.97 | S53: 1 | T53: 0 | X53: 4321086.632 | Z53: 4287115.08 | AB53: 2175834.258 | AD53: 10784035.97 | AG53: =IF(ISERROR(VLOOKUP($B53,#REF!,13,0)),0,VLOOKUP($B53,#REF!,13,0)) -> 0 | AH53: =IF(ISERROR(VLOOKUP($B53,#REF!,14,0)),0,VLOOKUP($B53,#REF!,14,0)) -> 0 | AI53: =IF(ISERROR(VLOOKUP($B53,#REF!,13,0)),0,VLOOKUP($B53,#REF!,15,0)) -> 0 | AJ53: =IF(ISERROR(VLOOKUP($B53,#REF!,16,0)),0,VLOOKUP($B53,#REF!,16,0)) -> 0 | AK53: -0.007861807566
A54: 106240942 | B54: 50444 | C54: MERCY MED CTR MERCED-COMMUNITY CAMPUS | D54: 3 | E54: DIGNITY HEALTH | F54: =IFERROR(INDEX('4. FY 2019-20'!AZ:AZ,MATCH(A54,'4. FY 2019-20'!A:A,0)),0) -> 22330869.49 | G54: 1 | H54: 0 | J54: =IFERROR(INDEX('5. FY 2020-21'!AZ:AZ,MATCH(A54,'5. FY 2020-21'!A:A,0)),0) -> 22581198.95 | K54: 1 | L54: 0 | N54: =IFERROR(INDEX('6. FY 2021-22'!AZ:AZ,MATCH(A54,'6. FY 2021-22'!A:A,0)),0) -> 11648936.57 | O54: 1 | P54: 0 | R54: 56561005.02 | S54: 1 | T54: 0 | X54: 22330869.49 | Z54: 22581198.95 | AB54: 11648936.57 | AD54: 56561005.02 | AG54: =IF(ISERROR(VLOOKUP($B54,#REF!,13,0)),0,VLOOKUP($B54,#REF!,13,0)) -> 0 | AH54: =IF(ISERROR(VLOOKUP($B54,#REF!,14,0)),0,VLOOKUP($B54,#REF!,14,0)) -> 0 | AI54: =IF(ISERROR(VLOOKUP($B54,#REF!,13,0)),0,VLOOKUP($B54,#REF!,15,0)) -> 0 | AJ54: =IF(ISERROR(VLOOKUP($B54,#REF!,16,0)),0,VLOOKUP($B54,#REF!,16,0)) -> 0 | AK54: 0.01121001855
A55: 106450949 | B55: 50280 | C55: MERCY MEDICAL CENTER-REDDING | D55: 3 | E55: DIGNITY HEALTH | F55: =IFERROR(INDEX('4. FY 2019-20'!AZ:AZ,MATCH(A55,'4. FY 2019-20'!A:A,0)),0) -> 15992669.78 | G55: 1 | H55: 0 | J55: =IFERROR(INDEX('5. FY 2020-21'!AZ:AZ,MATCH(A55,'5. FY 2020-21'!A:A,0)),0) -> 16301298.05 | K55: 1 | L55: 0 | N55: =IFERROR(INDEX('6. FY 2021-22'!AZ:AZ,MATCH(A55,'6. FY 2021-22'!A:A,0)),0) -> 8575475.933 | O55: 1 | P55: 0 | R55: 40869443.77 | S55: 1 | T55: 0 | X55: 15992669.78 | Z55: 16301298.05 | AB55: 8575475.933 | AD55: 40869443.77 | AG55: =IF(ISERROR(VLOOKUP($B55,#REF!,13,0)),0,VLOOKUP($B55,#REF!,13,0)) -> 0 | AH55: =IF(ISERROR(VLOOKUP($B55,#REF!,14,0)),0,VLOOKUP($B55,#REF!,14,0)) -> 0 | AI55: =IF(ISERROR(VLOOKUP($B55,#REF!,13,0)),0,VLOOKUP($B55,#REF!,15,0)) -> 0 | AJ55: =IF(ISERROR(VLOOKUP($B55,#REF!,16,0)),0,VLOOKUP($B55,#REF!,16,0)) -> 0 | AK55: 0.01929810787
A56: 106340950 | B56: 50516 | C56: MERCY SAN JUAN HOSPITAL | D56: 3 | E56: DIGNITY HEALTH | F56: =IFERROR(INDEX('4. FY 2019-20'!AZ:AZ,MATCH(A56,'4. FY 2019-20'!A:A,0)),0) -> 34090282.01 | G56: 1 | H56: 0 | J56: =IFERROR(INDEX('5. FY 2020-21'!AZ:AZ,MATCH(A56,'5. FY 2020-21'!A:A,0)),0) -> 36538463.44 | K56: 1 | L56: 0 | N56: =IFERROR(INDEX('6. FY 2021-22'!AZ:AZ,MATCH(A56,'6. FY 2021-22'!A:A,0)),0) -> 18424804.6 | O56: 1 | P56: 0 | R56: 89053550.05 | S56: 1 | T56: 0 | X56: 34090282.01 | Z56: 36538463.44 | AB56: 18424804.6 | AD56: 89053550.05 | AG56: =IF(ISERROR(VLOOKUP($B56,#REF!,13,0)),0,VLOOKUP($B56,#REF!,13,0)) -> 0 | AH56: =IF(ISERROR(VLOOKUP($B56,#REF!,14,0)),0,VLOOKUP($B56,#REF!,14,0)) -> 0 | AI56: =IF(ISERROR(VLOOKUP($B56,#REF!,13,0)),0,VLOOKUP($B56,#REF!,15,0)) -> 0 | AJ56: =IF(ISERROR(VLOOKUP($B56,#REF!,16,0)),0,VLOOKUP($B56,#REF!,16,0)) -> 0 | AK56: 0.07181464279
A57: 106340951 | B57: 50590 | C57: METHODIST HOSPITAL OF SACRAMENTO | D57: 3 | E57: DIGNITY HEALTH | F57: =IFERROR(INDEX('4. FY 2019-20'!AZ:AZ,MATCH(A57,'4. FY 2019-20'!A:A,0)),0) -> 21536764.68 | G57: 1 | H57: 0 | J57: =IFERROR(INDEX('5. FY 2020-21'!AZ:AZ,MATCH(A57,'5. FY 2020-21'!A:A,0)),0) -> 22403772.29 | K57: 1 | L57: 0 | N57: =IFERROR(INDEX('6. FY 2021-22'!AZ:AZ,MATCH(A57,'6. FY 2021-22'!A:A,0)),0) -> 11326460.94 | O57: 1 | P57: 0 | R57: 55266997.91 | S57: 1 | T57: 0 | X57: 21536764.68 | Z57: 22403772.29 | AB57: 11326460.94 | AD57: 55266997.91 | AG57: =IF(ISERROR(VLOOKUP($B57,#REF!,13,0)),0,VLOOKUP($B57,#REF!,13,0)) -> 0 | AH57: =IF(ISERROR(VLOOKUP($B57,#REF!,14,0)),0,VLOOKUP($B57,#REF!,14,0)) -> 0 | AI57: =IF(ISERROR(VLOOKUP($B57,#REF!,13,0)),0,VLOOKUP($B57,#REF!,15,0)) -> 0 | AJ57: =IF(ISERROR(VLOOKUP($B57,#REF!,16,0)),0,VLOOKUP($B57,#REF!,16,0)) -> 0 | AK57: 0.04025709636
A58: 106190568 | B58: 50116 | C58: NORTHRIDGE HOSPITAL MEDICAL CENTER | D58: 3 | E58: DIGNITY HEALTH | F58: =IFERROR(INDEX('4. FY 2019-20'!AZ:AZ,MATCH(A58,'4. FY 2019-20'!A:A,0)),0) -> 8406480.647 | G58: 1 | H58: 0 | J58: =IFERROR(INDEX('5. FY 2020-21'!AZ:AZ,MATCH(A58,'5. FY 2020-21'!A:A,0)),0) -> 9126447.081 | K58: 1 | L58: 0 | N58: =IFERROR(INDEX('6. FY 2021-22'!AZ:AZ,MATCH(A58,'6. FY 2021-22'!A:A,0)),0) -> 4384357.912 | O58: 1 | P58: 0 | R58: 21917285.64 | S58: 1 | T58: 0 | X58: 8406480.647 | Z58: 9126447.081 | AB58: 4384357.912 | AD58: 21917285.64 | AG58: =IF(ISERROR(VLOOKUP($B58,#REF!,13,0)),0,VLOOKUP($B58,#REF!,13,0)) -> 0 | AH58: =IF(ISERROR(VLOOKUP($B58,#REF!,14,0)),0,VLOOKUP($B58,#REF!,14,0)) -> 0 | AI58: =IF(ISERROR(VLOOKUP($B58,#REF!,13,0)),0,VLOOKUP($B58,#REF!,15,0)) -> 0 | AJ58: =IF(ISERROR(VLOOKUP($B58,#REF!,16,0)),0,VLOOKUP($B58,#REF!,16,0)) -> 0 | AK58: 0.08564421475
A59: 106410891 | B59: 50197 | C59: SEQUOIA HOSPITAL | D59: 3 | E59: DIGNITY HEALTH | F59: =IFERROR(INDEX('4. FY 2019-20'!AZ:AZ,MATCH(A59,'4. FY 2019-20'!A:A,0)),0) -> -5205302.665 | G59: 0 | H59: 1 | J59: =IFERROR(INDEX('5. FY 2020-21'!AZ:AZ,MATCH(A59,'5. FY 2020-21'!A:A,0)),0) -> -5579965.377 | K59: 0 | L59: 1 | N59: =IFERROR(INDEX('6. FY 2021-22'!AZ:AZ,MATCH(A59,'6. FY 2021-22'!A:A,0)),0) -> -2807832.717 | O59: 0 | P59: 1 | R59: -13593100.76 | S59: 0 | T59: 1 | X59: -5205302.665 | Z59: -5579965.377 | AB59: -2807832.717 | AD59: -13593100.76 | AG59: =IF(ISERROR(VLOOKUP($B59,#REF!,13,0)),0,VLOOKUP($B59,#REF!,13,0)) -> 0 | AH59: =IF(ISERROR(VLOOKUP($B59,#REF!,14,0)),0,VLOOKUP($B59,#REF!,14,0)) -> 0 | AI59: =IF(ISERROR(VLOOKUP($B59,#REF!,13,0)),0,VLOOKUP($B59,#REF!,15,0)) -> 0 | AJ59: =IF(ISERROR(VLOOKUP($B59,#REF!,16,0)),0,VLOOKUP($B59,#REF!,16,0)) -> 0 | AK59: 0.07197712341
A60: 106291023 | B60: 50150 | C60: SIERRA NEVADA MEMORIAL HOSPITAL | D60: 3 | E60: DIGNITY HEALTH | F60: =IFERROR(INDEX('4. FY 2019-20'!AZ:AZ,MATCH(A60,'4. FY 2019-20'!A:A,0)),0) -> 11107526.57 | G60: 1 | H60: 0 | J60: =IFERROR(INDEX('5. FY 2020-21'!AZ:AZ,MATCH(A60,'5. FY 2020-21'!A:A,0)),0) -> 11395197.13 | K60: 1 | L60: 0 | N60: =IFERROR(INDEX('6. FY 2021-22'!AZ:AZ,MATCH(A60,'6. FY 2021-22'!A:A,0)),0) -> 5746790.506 | O60: 1 | P60: 0 | R60: 28249514.21 | S60: 1 | T60: 0 | X60: 11107526.57 | Z60: 11395197.13 | AB60: 5746790.506 | AD60: 28249514.21 | AG60: =IF(ISERROR(VLOOKUP($B60,#REF!,13,0)),0,VLOOKUP($B60,#REF!,13,0)) -> 0 | AH60: =IF(ISERROR(VLOOKUP($B60,#REF!,14,0)),0,VLOOKUP($B60,#REF!,14,0)) -> 0 | AI60: =IF(ISERROR(VLOOKUP($B60,#REF!,13,0)),0,VLOOKUP($B60,#REF!,15,0)) -> 0 | AJ60: =IF(ISERROR(VLOOKUP($B60,#REF!,16,0)),0,VLOOKUP($B60,#REF!,16,0)) -> 0 | AK60: 0.02589870592
A61: 106361339 | B61: 50129 | C61: ST. BERNARDINE MEDICAL CENTER | D61: 3 | E61: DIGNITY HEALTH | F61: =IFERROR(INDEX('4. FY 2019-20'!AZ:AZ,MATCH(A61,'4. FY 2019-20'!A:A,0)),0) -> 34272035.45 | G61: 1 | H61: 0 | J61: =IFERROR(INDEX('5. FY 2020-21'!AZ:AZ,MATCH(A61,'5. FY 2020-21'!A:A,0)),0) -> 35535155.62 | K61: 1 | L61: 0 | N61: =IFERROR(INDEX('6. FY 2021-22'!AZ:AZ,MATCH(A61,'6. FY 2021-22'!A:A,0)),0) -> 17992011.44 | O61: 1 | P61: 0 | R61: 87799202.51 | S61: 1 | T61: 0 | X61: 34272035.45 | Z61: 35535155.62 | AB61: 17992011.44 | AD61: 87799202.51 | AG61: =IF(ISERROR(VLOOKUP($B61,#REF!,13,0)),0,VLOOKUP($B61,#REF!,13,0)) -> 0 | AH61: =IF(ISERROR(VLOOKUP($B61,#REF!,14,0)),0,VLOOKUP($B61,#REF!,14,0)) -> 0 | AI61: =IF(ISERROR(VLOOKUP($B61,#REF!,13,0)),0,VLOOKUP($B61,#REF!,15,0)) -> 0 | AJ61: =IF(ISERROR(VLOOKUP($B61,#REF!,16,0)),0,VLOOKUP($B61,#REF!,16,0)) -> 0 | AK61: 0.03685570929
A62: 106521041 | B62: 50042 | C62: ST. ELIZABETH COMMUNITY HOSPITAL | D62: 3 | E62: DIGNITY HEALTH | F62: =IFERROR(INDEX('4. FY 2019-20'!AZ:AZ,MATCH(A62,'4. FY 2019-20'!A:A,0)),0) -> 10670261.51 | G62: 1 | H62: 0 | J62: =IFERROR(INDEX('5. FY 2020-21'!AZ:AZ,MATCH(A62,'5. FY 2020-21'!A:A,0)),0) -> 10917108.16 | K62: 1 | L62: 0 | N62: =IFERROR(INDEX('6. FY 2021-22'!AZ:AZ,MATCH(A62,'6. FY 2021-22'!A:A,0)),0) -> 5519376.507 | O62: 1 | P62: 0 | R62: 27106746.17 | S62: 1 | T62: 0 | X62: 10670261.51 | Z62: 10917108.16 | AB62: 5519376.507 | AD62: 27106746.17 | AG62: =IF(ISERROR(VLOOKUP($B62,#REF!,13,0)),0,VLOOKUP($B62,#REF!,13,0)) -> 0 | AH62: =IF(ISERROR(VLOOKUP($B62,#REF!,14,0)),0,VLOOKUP($B62,#REF!,14,0)) -> 0 | AI62: =IF(ISERROR(VLOOKUP($B62,#REF!,13,0)),0,VLOOKUP($B62,#REF!,15,0)) -> 0 | AJ62: =IF(ISERROR(VLOOKUP($B62,#REF!,16,0)),0,VLOOKUP($B62,#REF!,16,0)) -> 0 | AK62: 0.02313407674
A63: 106380960 | B63: 50152 | C63: ST. FRANCIS MEMORIAL HOSPITAL | D63: 3 | E63: DIGNITY HEALTH | F63: =IFERROR(INDEX('4. FY 2019-20'!AZ:AZ,MATCH(A63,'4. FY 2019-20'!A:A,0)),0) -> 1721970.208 | G63: 1 | H63: 0 | J63: =IFERROR(INDEX('5. FY 2020-21'!AZ:AZ,MATCH(A63,'5. FY 2020-21'!A:A,0)),0) -> 1815272.649 | K63: 1 | L63: 0 | N63: =IFERROR(INDEX('6. FY 2021-22'!AZ:AZ,MATCH(A63,'6. FY 2021-22'!A:A,0)),0) -> 942976.1064 | O63: 1 | P63: 0 | R63: 4480218.964 | S63: 1 | T63: 0 | X63: 1721970.208 | Z63: 1815272.649 | AB63: 942976.1064 | AD63: 4480218.964 | AG63: =IF(ISERROR(VLOOKUP($B63,#REF!,13,0)),0,VLOOKUP($B63,#REF!,13,0)) -> 0 | AH63: =IF(ISERROR(VLOOKUP($B63,#REF!,14,0)),0,VLOOKUP($B63,#REF!,14,0)) -> 0 | AI63: =IF(ISERROR(VLOOKUP($B63,#REF!,13,0)),0,VLOOKUP($B63,#REF!,15,0)) -> 0 | AJ63: =IF(ISERROR(VLOOKUP($B63,#REF!,16,0)),0,VLOOKUP($B63,#REF!,16,0)) -> 0 | AK63: 0.05418353964
A64: 106560508 | B64: 50616 | C64: ST. JOHN'S PLEASANT VALLEY HOSPITAL | D64: 3 | E64: DIGNITY HEALTH | F64: =IFERROR(INDEX('4. FY 2019-20'!AZ:AZ,MATCH(A64,'4. FY 2019-20'!A:A,0)),0) -> 2994064.117 | G64: 1 | H64: 0 | J64: =IFERROR(INDEX('5. FY 2020-21'!AZ:AZ,MATCH(A64,'5. FY 2020-21'!A:A,0)),0) -> 2779492.492 | K64: 1 | L64: 0 | N64: =IFERROR(INDEX('6. FY 2021-22'!AZ:AZ,MATCH(A64,'6. FY 2021-22'!A:A,0)),0) -> 1457489.609 | O64: 1 | P64: 0 | R64: 7231046.218 | S64: 1 | T64: 0 | X64: 2994064.117 | Z64: 2779492.492 | AB64: 1457489.609 | AD64: 7231046.218 | AG64: =IF(ISERROR(VLOOKUP($B64,#REF!,13,0)),0,VLOOKUP($B64,#REF!,13,0)) -> 0 | AH64: =IF(ISERROR(VLOOKUP($B64,#REF!,14,0)),0,VLOOKUP($B64,#REF!,14,0)) -> 0 | AI64: =IF(ISERROR(VLOOKUP($B64,#REF!,13,0)),0,VLOOKUP($B64,#REF!,15,0)) -> 0 | AJ64: =IF(ISERROR(VLOOKUP($B64,#REF!,16,0)),0,VLOOKUP($B64,#REF!,16,0)) -> 0 | AK64: -0.07166567468
A65: 106560529 | B65: 50082 | C65: ST. JOHN'S REGIONAL MEDICAL CENTER | D65: 3 | E65: DIGNITY HEALTH | F65: =IFERROR(INDEX('4. FY 2019-20'!AZ:AZ,MATCH(A65,'4. FY 2019-20'!A:A,0)),0) -> 13871511.09 | G65: 1 | H65: 0 | J65: =IFERROR(INDEX('5. FY 2020-21'!AZ:AZ,MATCH(A65,'5. FY 2020-21'!A:A,0)),0) -> 15044111.62 | K65: 1 | L65: 0 | N65: =IFERROR(INDEX('6. FY 2021-22'!AZ:AZ,MATCH(A65,'6. FY 2021-22'!A:A,0)),0) -> 7642241.916 | O65: 1 | P65: 0 | R65: 36557864.62 | S65: 1 | T65: 0 | X65: 13871511.09 | Z65: 15044111.62 | AB65: 7642241.916 | AD65: 36557864.62 | AG65: =IF(ISERROR(VLOOKUP($B65,#REF!,13,0)),0,VLOOKUP($B65,#REF!,13,0)) -> 0 | AH65: =IF(ISERROR(VLOOKUP($B65,#REF!,14,0)),0,VLOOKUP($B65,#REF!,14,0)) -> 0 | AI65: =IF(ISERROR(VLOOKUP($B65,#REF!,13,0)),0,VLOOKUP($B65,#REF!,15,0)) -> 0 | AJ65: =IF(ISERROR(VLOOKUP($B65,#REF!,16,0)),0,VLOOKUP($B65,#REF!,16,0)) -> 0 | AK65: 0.08453300556
A66: 106391042 | B66: 50084 | C66: ST. JOSEPH'S MEDICAL CENTER OF STOCKTON | D66: 3 | E66: DIGNITY HEALTH | F66: =IFERROR(INDEX('4. FY 2019-20'!AZ:AZ,MATCH(A66,'4. FY 2019-20'!A:A,0)),0) -> 29425707.84 | G66: 1 | H66: 0 | J66: =IFERROR(INDEX('5. FY 2020-21'!AZ:AZ,MATCH(A66,'5. FY 2020-21'!A:A,0)),0) -> 30841110.55 | K66: 1 | L66: 0 | N66: =IFERROR(INDEX('6. FY 2021-22'!AZ:AZ,MATCH(A66,'6. FY 2021-22'!A:A,0)),0) -> 15684087.62 | O66: 1 | P66: 0 | R66: 75950906.01 | S66: 1 | T66: 0 | X66: 29425707.84 | Z66: 30841110.55 | AB66: 15684087.62 | AD66: 75950906.01 | AG66: =IF(ISERROR(VLOOKUP($B66,#REF!,13,0)),0,VLOOKUP($B66,#REF!,13,0)) -> 0 | AH66: =IF(ISERROR(VLOOKUP($B66,#REF!,14,0)),0,VLOOKUP($B66,#REF!,14,0)) -> 0 | AI66: =IF(ISERROR(VLOOKUP($B66,#REF!,13,0)),0,VLOOKUP($B66,#REF!,15,0)) -> 0 | AJ66: =IF(ISERROR(VLOOKUP($B66,#REF!,16,0)),0,VLOOKUP($B66,#REF!,16,0)) -> 0 | AK66: 0.04810088886
A67: 106190053 | B67: 50191 | C67: ST. MARY MEDICAL CENTER | D67: 3 | E67: DIGNITY HEALTH | F67: =IFERROR(INDEX('4. FY 2019-20'!AZ:AZ,MATCH(A67,'4. FY 2019-20'!A:A,0)),0) -> 34023330 | G67: 1 | H67: 0 | J67: =IFERROR(INDEX('5. FY 2020-21'!AZ:AZ,MATCH(A67,'5. FY 2020-21'!A:A,0)),0) -> 36823958.59 | K67: 1 | L67: 0 | N67: =IFERROR(INDEX('6. FY 2021-22'!AZ:AZ,MATCH(A67,'6. FY 2021-22'!A:A,0)),0) -> 18443062.82 | O67: 1 | P67: 0 | R67: 89290351.41 | S67: 1 | T67: 0 | X67: 34023330 | Z67: 36823958.59 | AB67: 18443062.82 | AD67: 89290351.41 | AG67: =IF(ISERROR(VLOOKUP($B67,#REF!,13,0)),0,VLOOKUP($B67,#REF!,13,0)) -> 0 | AH67: =IF(ISERROR(VLOOKUP($B67,#REF!,14,0)),0,VLOOKUP($B67,#REF!,14,0)) -> 0 | AI67: =IF(ISERROR(VLOOKUP($B67,#REF!,13,0)),0,VLOOKUP($B67,#REF!,15,0)) -> 0 | AJ67: =IF(ISERROR(VLOOKUP($B67,#REF!,16,0)),0,VLOOKUP($B67,#REF!,16,0)) -> 0 | AK67: 0.08231494651
A68: 106380965 | B68: 50457 | C68: ST. MARY'S MEDICAL CENTER-SAN FRANCISCO | D68: 3 | E68: DIGNITY HEALTH | F68: =IFERROR(INDEX('4. FY 2019-20'!AZ:AZ,MATCH(A68,'4. FY 2019-20'!A:A,0)),0) -> -3470970.669 | G68: 0 | H68: 1 | J68: =IFERROR(INDEX('5. FY 2020-21'!AZ:AZ,MATCH(A68,'5. FY 2020-21'!A:A,0)),0) -> -3690494.227 | K68: 0 | L68: 1 | N68: =IFERROR(INDEX('6. FY 2021-22'!AZ:AZ,MATCH(A68,'6. FY 2021-22'!A:A,0)),0) -> -1808793.16 | O68: 0 | P68: 1 | R68: -8970258.056 | S68: 0 | T68: 1 | X68: -3470970.669 | Z68: -3690494.227 | AB68: -1808793.16 | AD68: -8970258.056 | AG68: =IF(ISERROR(VLOOKUP($B68,#REF!,13,0)),0,VLOOKUP($B68,#REF!,13,0)) -> 0 | AH68: =IF(ISERROR(VLOOKUP($B68,#REF!,14,0)),0,VLOOKUP($B68,#REF!,14,0)) -> 0 | AI68: =IF(ISERROR(VLOOKUP($B68,#REF!,13,0)),0,VLOOKUP($B68,#REF!,15,0)) -> 0 | AJ68: =IF(ISERROR(VLOOKUP($B68,#REF!,16,0)),0,VLOOKUP($B68,#REF!,16,0)) -> 0 | AK68: 0.06324558149
A69: 106571086 | B69: 50127 | C69: WOODLAND MEMORIAL HOSPITAL | D69: 3 | E69: DIGNITY HEALTH | F69: =IFERROR(INDEX('4. FY 2019-20'!AZ:AZ,MATCH(A69,'4. FY 2019-20'!A:A,0)),0) -> 6670111.364 | G69: 1 | H69: 0 | J69: =IFERROR(INDEX('5. FY 2020-21'!AZ:AZ,MATCH(A69,'5. FY 2020-21'!A:A,0)),0) -> 6412614.529 | K69: 1 | L69: 0 | N69: =IFERROR(INDEX('6. FY 2021-22'!AZ:AZ,MATCH(A69,'6. FY 2021-22'!A:A,0)),0) -> 3318743.002 | O69: 1 | P69: 0 | R69: 16401468.89 | S69: 1 | T69: 0 | X69: 6670111.364 | Z69: 6412614.529 | AB69: 3318743.002 | AD69: 16401468.89 | AG69: =IF(ISERROR(VLOOKUP($B69,#REF!,13,0)),0,VLOOKUP($B69,#REF!,13,0)) -> 0 | AH69: =IF(ISERROR(VLOOKUP($B69,#REF!,14,0)),0,VLOOKUP($B69,#REF!,14,0)) -> 0 | AI69: =IF(ISERROR(VLOOKUP($B69,#REF!,13,0)),0,VLOOKUP($B69,#REF!,15,0)) -> 0 | AJ69: =IF(ISERROR(VLOOKUP($B69,#REF!,16,0)),0,VLOOKUP($B69,#REF!,16,0)) -> 0 | AK69: -0.03860457808
D70: 4 | E70: SYSTEM TOTAL | F70: =SUM(F42:F69) -> 485170703.3 | G70: =SUM(G42:G69) -> 26 | H70: =SUM(H42:H69) -> 2 | I70: =IF(F70<0,1,0) -> 0 | J70: =SUM(J42:J69) -> 507597866 | K70: =SUM(K42:K69) -> 26 | L70: =SUM(L42:L69) -> 2 | M70: =IF(J70<0,1,0) -> 0 | N70: =SUM(N42:N69) -> 257257108.8 | O70: =SUM(O42:O69) -> 26 | P70: =SUM(P42:P69) -> 2 | Q70: =IF(N70<0,1,0) -> 0 | R70: =SUM(R42:R69) -> 1250025678 | S70: =SUM(S42:S69) -> 26 | T70: =SUM(T42:T69) -> 2 | U70: =IF(R70<0,1,0) -> 0 | X70: =SUM(X42:X69) -> 485170703.3 | Y70: =IF(I70=0,0,F70) -> 0 | Z70: =SUM(Z42:Z69) -> 507597866 | AA70: =IF(M70=0,0,J70) -> 0 | AB70: =SUM(AB42:AB69) -> 257257108.8 | AC70: =IF(Q70=0,0,N70) -> 0 | AE70: =IF(U70=0,0,R70) -> 0 | AG70: =IF(ISERROR(VLOOKUP($B70,#REF!,13,0)),0,VLOOKUP($B70,#REF!,13,0)) -> 0 | AH70: =IF(ISERROR(VLOOKUP($B70,#REF!,14,0)),0,VLOOKUP($B70,#REF!,14,0)) -> 0 | AI70: =IF(ISERROR(VLOOKUP($B70,#REF!,13,0)),0,VLOOKUP($B70,#REF!,15,0)) -> 0 | AJ70: =IF(ISERROR(VLOOKUP($B70,#REF!,16,0)),0,VLOOKUP($B70,#REF!,16,0)) -> 0 | AK70: 0.04622530292
A71: 106190555 | B71: 50625 | C71: CEDARS-SINAI MEDICAL CENTER | D71: 3 | E71: CEDARS-SINAI | F71: =IFERROR(INDEX('4. FY 2019-20'!AZ:AZ,MATCH(A71,'4. FY 2019-20'!A:A,0)),0) -> -2077395.438 | G71: =IF(F71>0,1,0) -> 0 | H71: =IF(F71<0,1,0) -> 1 | J71: =IFERROR(INDEX('5. FY 2020-21'!AZ:AZ,MATCH(A71,'5. FY 2020-21'!A:A,0)),0) -> -1459568.906 | K71: =IF(J71>0,1,0) -> 0 | L71: =IF(J71<0,1,0) -> 1 | N71: =IFERROR(INDEX('6. FY 2021-22'!AZ:AZ,MATCH(A71,'6. FY 2021-22'!A:A,0)),0) -> -932530.3246 | O71: =IF(N71>0,1,0) -> 0 | P71: =IF(N71<0,1,0) -> 1 | R71: =F71+J71+N71 -> -4469494.668 | S71: =IF(R71>0,1,0) -> 0 | T71: =IF(R71<0,1,0) -> 1 | X71: =F71 -> -2077395.438 | Z71: =J71 -> -1459568.906 | AB71: =N71 -> -932530.3246 | AD71: =R71 -> -4469494.668 | AG71: =IF(ISERROR(VLOOKUP($B71,#REF!,13,0)),0,VLOOKUP($B71,#REF!,13,0)) -> 0 | AH71: =IF(ISERROR(VLOOKUP($B71,#REF!,14,0)),0,VLOOKUP($B71,#REF!,14,0)) -> 0 | AI71: =IF(ISERROR(VLOOKUP($B71,#REF!,13,0)),0,VLOOKUP($B71,#REF!,15,0)) -> 0 | AJ71: =IF(ISERROR(VLOOKUP($B71,#REF!,16,0)),0,VLOOKUP($B71,#REF!,16,0)) -> 0 | AK71: -0.2974043944
A72: 106190422 | B72: 50351 | C72: TORRANCE MEMORIAL MEDICAL CENTER | D72: 3 | E72: TORRANCE HOSPITAL ASSOCIATION | F72: =IFERROR(INDEX('4. FY 2019-20'!AZ:AZ,MATCH(A72,'4. FY 2019-20'!A:A,0)),0) -> -10807748.57 | G72: =IF(F72>0,1,0) -> 0 | H72: =IF(F72<0,1,0) -> 1 | J72: =IFERROR(INDEX('5. FY 2020-21'!AZ:AZ,MATCH(A72,'5. FY 2020-21'!A:A,0)),0) -> -10579351.64 | K72: =IF(J72>0,1,0) -> 0 | L72: =IF(J72<0,1,0) -> 1 | N72: =IFERROR(INDEX('6. FY 2021-22'!AZ:AZ,MATCH(A72,'6. FY 2021-22'!A:A,0)),0) -> -5623042.033 | O72: =IF(N72>0,1,0) -> 0 | P72: =IF(N72<0,1,0) -> 1 | R72: =F72+J72+N72 -> -27010142.24 | S72: =IF(R72>0,1,0) -> 0 | T72: =IF(R72<0,1,0) -> 1 | X72: =F72 -> -10807748.57 | Z72: =J72 -> -10579351.64 | AB72: =N72 -> -5623042.033 | AD72: =R72 -> -27010142.24 | AG72: =IF(ISERROR(VLOOKUP($B72,#REF!,13,0)),0,VLOOKUP($B72,#REF!,13,0)) -> 0 | AH72: =IF(ISERROR(VLOOKUP($B72,#REF!,14,0)),0,VLOOKUP($B72,#REF!,14,0)) -> 0 | AI72: =IF(ISERROR(VLOOKUP($B72,#REF!,13,0)),0,VLOOKUP($B72,#REF!,15,0)) -> 0 | AJ72: =IF(ISERROR(VLOOKUP($B72,#REF!,16,0)),0,VLOOKUP($B72,#REF!,16,0)) -> 0 | AK72: =(J72-F72)/F72 -> -0.02113270238
A73: 106190500 | B73: 50740 | C73: MARINA DEL REY HOSPITAL | D73: 3 | E73: CEDARS-SINAI | F73: =IFERROR(INDEX('4. FY 2019-20'!AZ:AZ,MATCH(A73,'4. FY 2019-20'!A:A,0)),0) -> -1735837.759 | G73: 0 | H73: 1 | J73: =IFERROR(INDEX('5. FY 2020-21'!AZ:AZ,MATCH(A73,'5. FY 2020-21'!A:A,0)),0) -> -1832000.123 | K73: =IF(J73>0,1,0) -> 0 | L73: =IF(J73<0,1,0) -> 1 | N73: =IFERROR(INDEX('6. FY 2021-22'!AZ:AZ,MATCH(A73,'6. FY 2021-22'!A:A,0)),0) -> -922628.1959 | O73: =IF(N73>0,1,0) -> 0 | P73: =IF(N73<0,1,0) -> 1 | R73: -4490466.077 | S73: 0 | T73: 1 | X73: -1735837.759 | Z73: -1832000.123 | AB73: -922628.1959 | AD73: -4490466.077 | AG73: =IF(ISERROR(VLOOKUP($B73,#REF!,13,0)),0,VLOOKUP($B73,#REF!,13,0)) -> 0 | AH73: =IF(ISERROR(VLOOKUP($B73,#REF!,14,0)),0,VLOOKUP($B73,#REF!,14,0)) -> 0 | AI73: =IF(ISERROR(VLOOKUP($B73,#REF!,13,0)),0,VLOOKUP($B73,#REF!,15,0)) -> 0 | AJ73: =IF(ISERROR(VLOOKUP($B73,#REF!,16,0)),0,VLOOKUP($B73,#REF!,16,0)) -> 0 | AK73: 0.05539824413
D74: 32 | E74: SYSTEM TOTAL | F74: =SUM(F71:F73) -> -14620981.77 | G74: =SUM(G71:G73) -> 0 | H74: =SUM(H71:H73) -> 3 | I74: =IF(F74<0,1,0) -> 1 | J74: =SUM(J71:J73) -> -13870920.67 | K74: =SUM(K71:K73) -> 0 | L74: =SUM(L71:L73) -> 3 | M74: =IF(J74<0,1,0) -> 1 | N74: =SUM(N71:N73) -> -7478200.553 | O74: =SUM(O71:O73) -> 0 | P74: =SUM(P71:P73) -> 3 | Q74: =IF(N74<0,1,0) -> 1 | R74: =SUM(R71:R73) -> -35970102.99 | S74: =SUM(S71:S73) -> 0 | T74: =SUM(T71:T73) -> 3 | U74: =IF(R74<0,1,0) -> 1 | Y74: =IF(I74=0,0,F74) -> -14620981.77 | AA74: =IF(M74=0,0,J74) -> -13870920.67 | AC74: =IF(Q74=0,0,N74) -> -7478200.553 | AE74: =IF(U74=0,0,R74) -> -35970102.99 | AG74: =IF(ISERROR(VLOOKUP($B74,#REF!,13,0)),0,VLOOKUP($B74,#REF!,13,0)) -> 0 | AH74: =IF(ISERROR(VLOOKUP($B74,#REF!,14,0)),0,VLOOKUP($B74,#REF!,14,0)) -> 0 | AI74: =IF(ISERROR(VLOOKUP($B74,#REF!,13,0)),0,VLOOKUP($B74,#REF!,15,0)) -> 0 | AJ74: =IF(ISERROR(VLOOKUP($B74,#REF!,16,0)),0,VLOOKUP($B74,#REF!,16,0)) -> 0 | AK74: -0.05130032402
A75: 106190636 | B75: 50382 | C75: CITRUS VALLEY MEDICAL CENTER-QV CAMPUS | D75: 3 | E75: EMANATE HEALTH | F75: =IFERROR(INDEX('4. FY 2019-20'!AZ:AZ,MATCH(A75,'4. FY 2019-20'!A:A,0)),0) -> 48425788.81 | G75: =IF(F75>0,1,0) -> 1 | H75: =IF(F75<0,1,0) -> 0 | J75: =IFERROR(INDEX('5. FY 2020-21'!AZ:AZ,MATCH(A75,'5. FY 2020-21'!A:A,0)),0) -> 51780820.97 | K75: =IF(J75>0,1,0) -> 1 | L75: =IF(J75<0,1,0) -> 0 | N75: =IFERROR(INDEX('6. FY 2021-22'!AZ:AZ,MATCH(A75,'6. FY 2021-22'!A:A,0)),0) -> 26024502.92 | O75: =IF(N75>0,1,0) -> 1 | P75: =IF(N75<0,1,0) -> 0 | R75: =F75+J75+N75 -> 126231112.7 | S75: =IF(R75>0,1,0) -> 1 | T75: =IF(R75<0,1,0) -> 0 | X75: =F75 -> 48425788.81 | Z75: =J75 -> 51780820.97 | AB75: =N75 -> 26024502.92 | AD75: =R75 -> 126231112.7 | AG75: =IF(ISERROR(VLOOKUP($B75,#REF!,13,0)),0,VLOOKUP($B75,#REF!,13,0)) -> 0 | AH75: =IF(ISERROR(VLOOKUP($B75,#REF!,14,0)),0,VLOOKUP($B75,#REF!,14,0)) -> 0 | AI75: =IF(ISERROR(VLOOKUP($B75,#REF!,13,0)),0,VLOOKUP($B75,#REF!,15,0)) -> 0 | AJ75: =IF(ISERROR(VLOOKUP($B75,#REF!,16,0)),0,VLOOKUP($B75,#REF!,16,0)) -> 0 | AK75: 0.06928193105
A76: 106190298 | B76: 50597 | C76: FOOTHILL PRESBYTERIAN HOSPITAL | D76: 3 | E76: EMANATE HEALTH | F76: =IFERROR(INDEX('4. FY 2019-20'!AZ:AZ,MATCH(A76,'4. FY 2019-20'!A:A,0)),0) -> 6393746.505 | G76: 1 | H76: 0 | J76: =IFERROR(INDEX('5. FY 2020-21'!AZ:AZ,MATCH(A76,'5. FY 2020-21'!A:A,0)),0) -> 6617558.68 | K76: 1 | L76: 0 | N76: =IFERROR(INDEX('6. FY 2021-22'!AZ:AZ,MATCH(A76,'6. FY 2021-22'!A:A,0)),0) -> 3334007.908 | O76: 1 | P76: 0 | R76: 16345313.09 | S76: 1 | T76: 0 | X76: 6393746.505 | Z76: 6617558.68 | AB76: 3334007.908 | AD76: 16345313.09 | AG76: =IF(ISERROR(VLOOKUP($B76,#REF!,13,0)),0,VLOOKUP($B76,#REF!,13,0)) -> 0 | AH76: =IF(ISERROR(VLOOKUP($B76,#REF!,14,0)),0,VLOOKUP($B76,#REF!,14,0)) -> 0 | AI76: =IF(ISERROR(VLOOKUP($B76,#REF!,13,0)),0,VLOOKUP($B76,#REF!,15,0)) -> 0 | AJ76: =IF(ISERROR(VLOOKUP($B76,#REF!,16,0)),0,VLOOKUP($B76,#REF!,16,0)) -> 0 | AK76: 0.03500485585
D77: 5 | E77: SYSTEM TOTAL | F77: =SUM(F75:F76) -> 54819535.32 | G77: 2 | H77: 0 | I77: =IF(F77<0,1,0) -> 0 | J77: 58398379.65 | K77: 2 | L77: 0 | M77: =IF(J77<0,1,0) -> 0 | N77: 29358510.83 | O77: 2 | P77: 0 | Q77: =IF(N77<0,1,0) -> 0 | R77: 142576425.8 | S77: 2 | T77: 0 | U77: =IF(R77<0,1,0) -> 0 | Y77: =IF(I77=0,0,F77) -> 0 | AA77: =IF(M77=0,0,J77) -> 0 | AC77: =IF(Q77=0,0,N77) -> 0 | AE77: =IF(U77=0,0,R77) -> 0 | AG77: =IF(ISERROR(VLOOKUP($B77,#REF!,13,0)),0,VLOOKUP($B77,#REF!,13,0)) -> 0 | AH77: =IF(ISERROR(VLOOKUP($B77,#REF!,14,0)),0,VLOOKUP($B77,#REF!,14,0)) -> 0 | AI77: =IF(ISERROR(VLOOKUP($B77,#REF!,13,0)),0,VLOOKUP($B77,#REF!,15,0)) -> 0 | AJ77: =IF(ISERROR(VLOOKUP($B77,#REF!,16,0)),0,VLOOKUP($B77,#REF!,16,0)) -> 0 | AK77: =(J77-F77)/F77 -> 0.06528410567
A78: 106301155 | B78: 50543 | C78: COLLEGE HOSPITAL COSTA MESA | D78: 3 | E78: COLLEGE HEALTH ENTERPRISES | F78: =IFERROR(INDEX('4. FY 2019-20'!AZ:AZ,MATCH(A78,'4. FY 2019-20'!A:A,0)),0) -> 32854027.64 | G78: =IF(F78>0,1,0) -> 1 | H78: =IF(F78<0,1,0) -> 0 | J78: =IFERROR(INDEX('5. FY 2020-21'!AZ:AZ,MATCH(A78,'5. FY 2020-21'!A:A,0)),0) -> 34304632.46 | K78: =IF(J78>0,1,0) -> 1 | L78: =IF(J78<0,1,0) -> 0 | N78: =IFERROR(INDEX('6. FY 2021-22'!AZ:AZ,MATCH(A78,'6. FY 2021-22'!A:A,0)),0) -> 17445194.53 | O78: =IF(N78>0,1,0) -> 1 | P78: =IF(N78<0,1,0) -> 0 | R78: =F78+J78+N78 -> 84603854.63 | S78: =IF(R78>0,1,0) -> 1 | T78: =IF(R78<0,1,0) -> 0 | X78: =F78 -> 32854027.64 | Z78: =J78 -> 34304632.46 | AB78: =N78 -> 17445194.53 | AD78: =R78 -> 84603854.63 | AG78: =IF(ISERROR(VLOOKUP($B78,#REF!,13,0)),0,VLOOKUP($B78,#REF!,13,0)) -> 0 | AH78: =IF(ISERROR(VLOOKUP($B78,#REF!,14,0)),0,VLOOKUP($B78,#REF!,14,0)) -> 0 | AI78: =IF(ISERROR(VLOOKUP($B78,#REF!,13,0)),0,VLOOKUP($B78,#REF!,15,0)) -> 0 | AJ78: =IF(ISERROR(VLOOKUP($B78,#REF!,16,0)),0,VLOOKUP($B78,#REF!,16,0)) -> 0 | AK78: 0.04415302852
A79: 106190854 | B79: 50644 | C79: COLLEGE MEDICAL CENTER - HAWTHORNE CAMPUS | D79: 3 | E79: COLLEGE HEALTH ENTERPRISES | F79: =IFERROR(INDEX('4. FY 2019-20'!AZ:AZ,MATCH(A79,'4. FY 2019-20'!A:A,0)),0) -> 0 | G79: 0 | H79: 0 | J79: =IFERROR(INDEX('5. FY 2020-21'!AZ:AZ,MATCH(A79,'5. FY 2020-21'!A:A,0)),0) -> 0 | K79: 0 | L79: 0 | N79: =IFERROR(INDEX('6. FY 2021-22'!AZ:AZ,MATCH(A79,'6. FY 2021-22'!A:A,0)),0) -> 0 | O79: 0 | P79: 0 | R79: 0 | S79: 0 | T79: 0 | X79: 0 | Z79: 0 | AB79: 0 | AD79: 0 | AG79: =IF(ISERROR(VLOOKUP($B79,#REF!,13,0)),0,VLOOKUP($B79,#REF!,13,0)) -> 0 | AH79: =IF(ISERROR(VLOOKUP($B79,#REF!,14,0)),0,VLOOKUP($B79,#REF!,14,0)) -> 0 | AI79: =IF(ISERROR(VLOOKUP($B79,#REF!,13,0)),0,VLOOKUP($B79,#REF!,15,0)) -> 0 | AJ79: =IF(ISERROR(VLOOKUP($B79,#REF!,16,0)),0,VLOOKUP($B79,#REF!,16,0)) -> 0
A80: 106190587 | B80: 50277 | C80: COLLEGE MEDICAL CENTER LONG BEACH | D80: 3 | E80: COLLEGE HEALTH ENTERPRISES | F80: =IFERROR(INDEX('4. FY 2019-20'!AZ:AZ,MATCH(A80,'4. FY 2019-20'!A:A,0)),0) -> 42708108.18 | G80: 1 | H80: 0 | J80: =IFERROR(INDEX('5. FY 2020-21'!AZ:AZ,MATCH(A80,'5. FY 2020-21'!A:A,0)),0) -> 43585054.85 | K80: 1 | L80: 0 | N80: =IFERROR(INDEX('6. FY 2021-22'!AZ:AZ,MATCH(A80,'6. FY 2021-22'!A:A,0)),0) -> 22336882.95 | O80: 1 | P80: 0 | R80: 108630046 | S80: 1 | T80: 0 | X80: 42708108.18 | Z80: 43585054.85 | AB80: 22336882.95 | AD80: 108630046 | AG80: =IF(ISERROR(VLOOKUP($B80,#REF!,13,0)),0,VLOOKUP($B80,#REF!,13,0)) -> 0 | AH80: =IF(ISERROR(VLOOKUP($B80,#REF!,14,0)),0,VLOOKUP($B80,#REF!,14,0)) -> 0 | AI80: =IF(ISERROR(VLOOKUP($B80,#REF!,13,0)),0,VLOOKUP($B80,#REF!,15,0)) -> 0 | AJ80: =IF(ISERROR(VLOOKUP($B80,#REF!,16,0)),0,VLOOKUP($B80,#REF!,16,0)) -> 0 | AK80: 0.02053349369
D81: 6 | E81: SYSTEM TOTAL | F81: =SUM(F78:F80) -> 75562135.82 | G81: 2 | H81: 0 | I81: =IF(F81<0,1,0) -> 0 | J81: 77889687.31 | K81: 2 | L81: 0 | M81: =IF(J81<0,1,0) -> 0 | N81: 39782077.48 | O81: 2 | P81: 0 | Q81: =IF(N81<0,1,0) -> 0 | R81: 193233900.6 | S81: 2 | T81: 0 | U81: =IF(R81<0,1,0) -> 0 | Y81: =IF(I81=0,0,F81) -> 0 | AA81: =IF(M81=0,0,J81) -> 0 | AC81: =IF(Q81=0,0,N81) -> 0 | AE81: =IF(U81=0,0,R81) -> 0 | AG81: =IF(ISERROR(VLOOKUP($B81,#REF!,13,0)),0,VLOOKUP($B81,#REF!,13,0)) -> 0 | AH81: =IF(ISERROR(VLOOKUP($B81,#REF!,14,0)),0,VLOOKUP($B81,#REF!,14,0)) -> 0 | AI81: =IF(ISERROR(VLOOKUP($B81,#REF!,13,0)),0,VLOOKUP($B81,#REF!,15,0)) -> 0 | AJ81: =IF(ISERROR(VLOOKUP($B81,#REF!,16,0)),0,VLOOKUP($B81,#REF!,16,0)) -> 0 | AK81: 0.03080314583
A82: 106364430 | B82: 50298 | C82: BARSTOW COMMUNITY HOSPITAL | D82: 3 | E82: COMMUNITY HEALTH SYSTEMS INC. | F82: =IFERROR(INDEX('4. FY 2019-20'!AZ:AZ,MATCH(A82,'4. FY 2019-20'!A:A,0)),0) -> 10866651.39 | G82: =IF(F82>0,1,0) -> 1 | H82: =IF(F82<0,1,0) -> 0 | J82: =IFERROR(INDEX('5. FY 2020-21'!AZ:AZ,MATCH(A82,'5. FY 2020-21'!A:A,0)),0) -> 11205579.55 | K82: =IF(J82>0,1,0) -> 1 | L82: =IF(J82<0,1,0) -> 0 | N82: =IFERROR(INDEX('6. FY 2021-22'!AZ:AZ,MATCH(A82,'6. FY 2021-22'!A:A,0)),0) -> 5602929.256 | O82: =IF(N82>0,1,0) -> 1 | P82: =IF(N82<0,1,0) -> 0 | R82: =F82+J82+N82 -> 27675160.2 | S82: =IF(R82>0,1,0) -> 1 | T82: =IF(R82<0,1,0) -> 0 | X82: =F82 -> 10866651.39 | Z82: =J82 -> 11205579.55 | AB82: =N82 -> 5602929.256 | AD82: =R82 -> 27675160.2 | AG82: =IF(ISERROR(VLOOKUP($B82,#REF!,13,0)),0,VLOOKUP($B82,#REF!,13,0)) -> 0 | AH82: =IF(ISERROR(VLOOKUP($B82,#REF!,14,0)),0,VLOOKUP($B82,#REF!,14,0)) -> 0 | AI82: =IF(ISERROR(VLOOKUP($B82,#REF!,13,0)),0,VLOOKUP($B82,#REF!,15,0)) -> 0 | AJ82: =IF(ISERROR(VLOOKUP($B82,#REF!,16,0)),0,VLOOKUP($B82,#REF!,16,0)) -> 0 | AK82: 0.03118975218
A83: 106444013 | B83: 50194 | C83: WATSONVILLE COMMUNITY HOSPITAL | D83: 3 | E83: COMMUNITY HEALTH SYSTEMS INC. | F83: =IFERROR(INDEX('4. FY 2019-20'!AZ:AZ,MATCH(A83,'4. FY 2019-20'!A:A,0)),0) -> 14893863.09 | G83: 1 | H83: 0 | J83: =IFERROR(INDEX('5. FY 2020-21'!AZ:AZ,MATCH(A83,'5. FY 2020-21'!A:A,0)),0) -> 15688502.53 | K83: 1 | L83: 0 | N83: =IFERROR(INDEX('6. FY 2021-22'!AZ:AZ,MATCH(A83,'6. FY 2021-22'!A:A,0)),0) -> 7934042 | O83: 1 | P83: 0 | R83: 38516407.62 | S83: 1 | T83: 0 | X83: 14893863.09 | Z83: 15688502.53 | AB83: 7934042 | AD83: 38516407.62 | AG83: =IF(ISERROR(VLOOKUP($B83,#REF!,13,0)),0,VLOOKUP($B83,#REF!,13,0)) -> 0 | AH83: =IF(ISERROR(VLOOKUP($B83,#REF!,14,0)),0,VLOOKUP($B83,#REF!,14,0)) -> 0 | AI83: =IF(ISERROR(VLOOKUP($B83,#REF!,13,0)),0,VLOOKUP($B83,#REF!,15,0)) -> 0 | AJ83: =IF(ISERROR(VLOOKUP($B83,#REF!,16,0)),0,VLOOKUP($B83,#REF!,16,0)) -> 0 | AK83: 0.05335348082
D84: 7 | E84: SYSTEM TOTAL | F84: =SUM(F82:F83) -> 25760514.48 | G84: 2 | H84: 0 | I84: =IF(F84<0,1,0) -> 0 | J84: 26894082.08 | K84: 2 | L84: 0 | M84: =IF(J84<0,1,0) -> 0 | N84: 13536971.26 | O84: 2 | P84: 0 | Q84: =IF(N84<0,1,0) -> 0 | R84: 66191567.82 | S84: 2 | T84: 0 | U84: =IF(R84<0,1,0) -> 0 | Y84: =IF(I84=0,0,F84) -> 0 | AA84: =IF(M84=0,0,J84) -> 0 | AC84: =IF(Q84=0,0,N84) -> 0 | AE84: =IF(U84=0,0,R84) -> 0 | AG84: =IF(ISERROR(VLOOKUP($B84,#REF!,13,0)),0,VLOOKUP($B84,#REF!,13,0)) -> 0 | AH84: =IF(ISERROR(VLOOKUP($B84,#REF!,14,0)),0,VLOOKUP($B84,#REF!,14,0)) -> 0 | AI84: =IF(ISERROR(VLOOKUP($B84,#REF!,13,0)),0,VLOOKUP($B84,#REF!,15,0)) -> 0 | AJ84: =IF(ISERROR(VLOOKUP($B84,#REF!,16,0)),0,VLOOKUP($B84,#REF!,16,0)) -> 0 | AK84: 0.04400407466
A85: 106100005 | B85: 50492 | C85: COMMUNITY MEDICAL CENTER - CLOVIS | D85: 3 | E85: COMMUNITY MEDICAL CENTERS | F85: =IFERROR(INDEX('4. FY 2019-20'!AZ:AZ,MATCH(A85,'4. FY 2019-20'!A:A,0)),0) -> 19962944.02 | G85: =IF(F85>0,1,0) -> 1 | H85: =IF(F85<0,1,0) -> 0 | J85: =IFERROR(INDEX('5. FY 2020-21'!AZ:AZ,MATCH(A85,'5. FY 2020-21'!A:A,0)),0) -> 20719853.13 | K85: =IF(J85>0,1,0) -> 1 | L85: =IF(J85<0,1,0) -> 0 | N85: =IFERROR(INDEX('6. FY 2021-22'!AZ:AZ,MATCH(A85,'6. FY 2021-22'!A:A,0)),0) -> 10543635.55 | O85: =IF(N85>0,1,0) -> 1 | P85: =IF(N85<0,1,0) -> 0 | R85: =F85+J85+N85 -> 51226432.71 | S85: =IF(R85>0,1,0) -> 1 | T85: =IF(R85<0,1,0) -> 0 | X85: =F85 -> 19962944.02 | Z85: =J85 -> 20719853.13 | AB85: =N85 -> 10543635.55 | AD85: =R85 -> 51226432.71 | AG85: =IF(ISERROR(VLOOKUP($B85,#REF!,13,0)),0,VLOOKUP($B85,#REF!,13,0)) -> 0 | AH85: =IF(ISERROR(VLOOKUP($B85,#REF!,14,0)),0,VLOOKUP($B85,#REF!,14,0)) -> 0 | AI85: =IF(ISERROR(VLOOKUP($B85,#REF!,13,0)),0,VLOOKUP($B85,#REF!,15,0)) -> 0 | AJ85: =IF(ISERROR(VLOOKUP($B85,#REF!,16,0)),0,VLOOKUP($B85,#REF!,16,0)) -> 0 | AK85: 0.03791570562
A86: 106100717 | B86: 50060 | C86: COMMUNITY REGIONAL MED CTR-FRESNO | D86: 3 | E86: COMMUNITY MEDICAL CENTERS | F86: =IFERROR(INDEX('4. FY 2019-20'!AZ:AZ,MATCH(A86,'4. FY 2019-20'!A:A,0)),0) -> 128873004.6 | G86: 1 | H86: 0 | J86: =IFERROR(INDEX('5. FY 2020-21'!AZ:AZ,MATCH(A86,'5. FY 2020-21'!A:A,0)),0) -> 137345599.4 | K86: 1 | L86: 0 | N86: =IFERROR(INDEX('6. FY 2021-22'!AZ:AZ,MATCH(A86,'6. FY 2021-22'!A:A,0)),0) -> 69719993.99 | O86: 1 | P86: 0 | R86: 335938598 | S86: 1 | T86: 0 | X86: 128873004.6 | Z86: 137345599.4 | AB86: 69719993.99 | AD86: 335938598 | AG86: =IF(ISERROR(VLOOKUP($B86,#REF!,13,0)),0,VLOOKUP($B86,#REF!,13,0)) -> 0 | AH86: =IF(ISERROR(VLOOKUP($B86,#REF!,14,0)),0,VLOOKUP($B86,#REF!,14,0)) -> 0 | AI86: =IF(ISERROR(VLOOKUP($B86,#REF!,13,0)),0,VLOOKUP($B86,#REF!,15,0)) -> 0 | AJ86: =IF(ISERROR(VLOOKUP($B86,#REF!,16,0)),0,VLOOKUP($B86,#REF!,16,0)) -> 0 | AK86: 0.06574375117
A87: 106105029 | B87: 50732 | C87: FRESNO HEART HOSPITAL | D87: 3 | E87: COMMUNITY MEDICAL CENTER | F87: =IFERROR(INDEX('4. FY 2019-20'!AZ:AZ,MATCH(A87,'4. FY 2019-20'!A:A,0)),0) -> 0 | G87: 0 | H87: 0 | J87: =IFERROR(INDEX('5. FY 2020-21'!AZ:AZ,MATCH(A87,'5. FY 2020-21'!A:A,0)),0) -> 0 | K87: 0 | L87: 0 | N87: =IFERROR(INDEX('6. FY 2021-22'!AZ:AZ,MATCH(A87,'6. FY 2021-22'!A:A,0)),0) -> 0 | O87: 0 | P87: 0 | R87: 0 | S87: 0 | T87: 0 | X87: 0 | Z87: 0 | AB87: 0 | AD87: 0 | AG87: =IF(ISERROR(VLOOKUP($B87,#REF!,13,0)),0,VLOOKUP($B87,#REF!,13,0)) -> 0 | AH87: =IF(ISERROR(VLOOKUP($B87,#REF!,14,0)),0,VLOOKUP($B87,#REF!,14,0)) -> 0 | AI87: =IF(ISERROR(VLOOKUP($B87,#REF!,13,0)),0,VLOOKUP($B87,#REF!,15,0)) -> 0 | AJ87: =IF(ISERROR(VLOOKUP($B87,#REF!,16,0)),0,VLOOKUP($B87,#REF!,16,0)) -> 0
D88: 8 | E88: SYSTEM TOTAL | F88: =SUM(F85:F87) -> 148835948.6 | G88: =SUM(G85:G87) -> 2 | H88: =SUM(H85:H87) -> 0 | I88: =IF(F88<0,1,0) -> 0 | J88: =SUM(J85:J87) -> 158065452.5 | K88: =SUM(K85:K87) -> 2 | L88: =SUM(L85:L87) -> 0 | M88: =IF(J88<0,1,0) -> 0 | N88: =SUM(N85:N87) -> 80263629.54 | O88: =SUM(O85:O87) -> 2 | P88: =SUM(P85:P87) -> 0 | Q88: =IF(N88<0,1,0) -> 0 | R88: =SUM(R85:R87) -> 387165030.7 | S88: =SUM(S85:S87) -> 2 | T88: =SUM(T85:T87) -> 0 | U88: =IF(R88<0,1,0) -> 0 | Y88: =IF(I88=0,0,F88) -> 0 | AA88: =IF(M88=0,0,J88) -> 0 | AC88: =IF(Q88=0,0,N88) -> 0 | AE88: =IF(U88=0,0,R88) -> 0 | AG88: =IF(ISERROR(VLOOKUP($B88,#REF!,13,0)),0,VLOOKUP($B88,#REF!,13,0)) -> 0 | AH88: =IF(ISERROR(VLOOKUP($B88,#REF!,14,0)),0,VLOOKUP($B88,#REF!,14,0)) -> 0 | AI88: =IF(ISERROR(VLOOKUP($B88,#REF!,13,0)),0,VLOOKUP($B88,#REF!,15,0)) -> 0 | AJ88: =IF(ISERROR(VLOOKUP($B88,#REF!,16,0)),0,VLOOKUP($B88,#REF!,16,0)) -> 0 | AK88: 0.06201125428
A89: 106560473 | B89: 50394 | C89: COMMUNITY MEM HOSP - SAN BUENAVENTURA | D89: 3 | E89: COMMUNITY MEMORIAL HEALTH SYSTEM | F89: =IFERROR(INDEX('4. FY 2019-20'!AZ:AZ,MATCH(A89,'4. FY 2019-20'!A:A,0)),0) -> 6295584.842 | G89: =IF(F89>0,1,0) -> 1 | H89: =IF(F89<0,1,0) -> 0 | J89: =IFERROR(INDEX('5. FY 2020-21'!AZ:AZ,MATCH(A89,'5. FY 2020-21'!A:A,0)),0) -> 6318195.85 | K89: =IF(J89>0,1,0) -> 1 | L89: =IF(J89<0,1,0) -> 0 | N89: =IFERROR(INDEX('6. FY 2021-22'!AZ:AZ,MATCH(A89,'6. FY 2021-22'!A:A,0)),0) -> 3090891.541 | O89: =IF(N89>0,1,0) -> 1 | P89: =IF(N89<0,1,0) -> 0 | R89: =F89+J89+N89 -> 15704672.23 | S89: =IF(R89>0,1,0) -> 1 | T89: =IF(R89<0,1,0) -> 0 | X89: =F89 -> 6295584.842 | Z89: =J89 -> 6318195.85 | AB89: =N89 -> 3090891.541 | AD89: =R89 -> 15704672.23 | AG89: =IF(ISERROR(VLOOKUP($B89,#REF!,13,0)),0,VLOOKUP($B89,#REF!,13,0)) -> 0 | AH89: =IF(ISERROR(VLOOKUP($B89,#REF!,14,0)),0,VLOOKUP($B89,#REF!,14,0)) -> 0 | AI89: =IF(ISERROR(VLOOKUP($B89,#REF!,13,0)),0,VLOOKUP($B89,#REF!,15,0)) -> 0 | AJ89: =IF(ISERROR(VLOOKUP($B89,#REF!,16,0)),0,VLOOKUP($B89,#REF!,16,0)) -> 0 | AK89: 0.003591565782
A90: 106560501 | B90: 50046 | C90: OJAI VALLEY COMMUNITY HOSPITAL | D90: 3 | E90: COMMUNITY MEMORIAL HEALTH SYSTEM | F90: =IFERROR(INDEX('4. FY 2019-20'!AZ:AZ,MATCH(A90,'4. FY 2019-20'!A:A,0)),0) -> 1695322.434 | G90: 1 | H90: 0 | J90: =IFERROR(INDEX('5. FY 2020-21'!AZ:AZ,MATCH(A90,'5. FY 2020-21'!A:A,0)),0) -> 1700355.589 | K90: 1 | L90: 0 | N90: =IFERROR(INDEX('6. FY 2021-22'!AZ:AZ,MATCH(A90,'6. FY 2021-22'!A:A,0)),0) -> 860940.8403 | O90: 1 | P90: 0 | R90: 4256618.864 | S90: 1 | T90: 0 | X90: 1695322.434 | Z90: 1700355.589 | AB90: 860940.8403 | AD90: 4256618.864 | AG90: =IF(ISERROR(VLOOKUP($B90,#REF!,13,0)),0,VLOOKUP($B90,#REF!,13,0)) -> 0 | AH90: =IF(ISERROR(VLOOKUP($B90,#REF!,14,0)),0,VLOOKUP($B90,#REF!,14,0)) -> 0 | AI90: =IF(ISERROR(VLOOKUP($B90,#REF!,13,0)),0,VLOOKUP($B90,#REF!,15,0)) -> 0 | AJ90: =IF(ISERROR(VLOOKUP($B90,#REF!,16,0)),0,VLOOKUP($B90,#REF!,16,0)) -> 0 | AK90: 0.002968848226
D91: 9 | E91: SYSTEM TOTAL | F91: =SUM(F89:F90) -> 7990907.277 | G91: =SUM(G89:G90) -> 2 | H91: =SUM(H89:H90) -> 0 | I91: =IF(F91<0,1,0) -> 0 | J91: =SUM(J89:J90) -> 8018551.439 | K91: =SUM(K89:K90) -> 2 | L91: =SUM(L89:L90) -> 0 | M91: =IF(J91<0,1,0) -> 0 | N91: =SUM(N89:N90) -> 3951832.382 | O91: =SUM(O89:O90) -> 2 | P91: =SUM(P89:P90) -> 0 | Q91: =IF(N91<0,1,0) -> 0 | R91: =SUM(R89:R90) -> 19961291.1 | S91: =SUM(S89:S90) -> 2 | T91: =SUM(T89:T90) -> 0 | U91: =IF(R91<0,1,0) -> 0 | Y91: =IF(I91=0,0,F91) -> 0 | AA91: =IF(M91=0,0,J91) -> 0 | AC91: =IF(Q91=0,0,N91) -> 0 | AE91: =IF(U91=0,0,R91) -> 0 | AG91: =IF(ISERROR(VLOOKUP($B91,#REF!,13,0)),0,VLOOKUP($B91,#REF!,13,0)) -> 0 | AH91: =IF(ISERROR(VLOOKUP($B91,#REF!,14,0)),0,VLOOKUP($B91,#REF!,14,0)) -> 0 | AI91: =IF(ISERROR(VLOOKUP($B91,#REF!,13,0)),0,VLOOKUP($B91,#REF!,15,0)) -> 0 | AJ91: =IF(ISERROR(VLOOKUP($B91,#REF!,16,0)),0,VLOOKUP($B91,#REF!,16,0)) -> 0 | AK91: 0.003459452242
A92: 106420483 | B92: 50357 | C92: GOLETA VALLEY COTTAGE HOSPITAL | D92: 3 | E92: COTTAGE HEALTH SYSTEM | F92: =IFERROR(INDEX('4. FY 2019-20'!AZ:AZ,MATCH(A92,'4. FY 2019-20'!A:A,0)),0) -> 3431443.645 | G92: =IF(F92>0,1,0) -> 1 | H92: =IF(F92<0,1,0) -> 0 | J92: =IFERROR(INDEX('5. FY 2020-21'!AZ:AZ,MATCH(A92,'5. FY 2020-21'!A:A,0)),0) -> 3411112.589 | K92: =IF(J92>0,1,0) -> 1 | L92: =IF(J92<0,1,0) -> 0 | N92: =IFERROR(INDEX('6. FY 2021-22'!AZ:AZ,MATCH(A92,'6. FY 2021-22'!A:A,0)),0) -> 1764242.849 | O92: =IF(N92>0,1,0) -> 1 | P92: =IF(N92<0,1,0) -> 0 | R92: =F92+J92+N92 -> 8606799.084 | S92: =IF(R92>0,1,0) -> 1 | T92: =IF(R92<0,1,0) -> 0 | X92: =F92 -> 3431443.645 | Z92: =J92 -> 3411112.589 | AB92: =N92 -> 1764242.849 | AD92: =R92 -> 8606799.084 | AG92: =IF(ISERROR(VLOOKUP($B92,#REF!,13,0)),0,VLOOKUP($B92,#REF!,13,0)) -> 0 | AH92: =IF(ISERROR(VLOOKUP($B92,#REF!,14,0)),0,VLOOKUP($B92,#REF!,14,0)) -> 0 | AI92: =IF(ISERROR(VLOOKUP($B92,#REF!,13,0)),0,VLOOKUP($B92,#REF!,15,0)) -> 0 | AJ92: =IF(ISERROR(VLOOKUP($B92,#REF!,16,0)),0,VLOOKUP($B92,#REF!,16,0)) -> 0 | AK92: -0.005924927935
A93: 106420514 | B93: 50396 | C93: SANTA BARBARA COTTAGE HOSPITAL | D93: 3 | E93: COTTAGE HEALTH SYSTEM | F93: =IFERROR(INDEX('4. FY 2019-20'!AZ:AZ,MATCH(A93,'4. FY 2019-20'!A:A,0)),0) -> 18697858.79 | G93: 1 | H93: 0 | J93: =IFERROR(INDEX('5. FY 2020-21'!AZ:AZ,MATCH(A93,'5. FY 2020-21'!A:A,0)),0) -> 19537212.15 | K93: 1 | L93: 0 | N93: =IFERROR(INDEX('6. FY 2021-22'!AZ:AZ,MATCH(A93,'6. FY 2021-22'!A:A,0)),0) -> 9991838.887 | O93: 1 | P93: 0 | R93: 48226909.82 | S93: 1 | T93: 0 | X93: 18697858.79 | Z93: 19537212.15 | AB93: 9991838.887 | AD93: 48226909.82 | AG93: =IF(ISERROR(VLOOKUP($B93,#REF!,13,0)),0,VLOOKUP($B93,#REF!,13,0)) -> 0 | AH93: =IF(ISERROR(VLOOKUP($B93,#REF!,14,0)),0,VLOOKUP($B93,#REF!,14,0)) -> 0 | AI93: =IF(ISERROR(VLOOKUP($B93,#REF!,13,0)),0,VLOOKUP($B93,#REF!,15,0)) -> 0 | AJ93: =IF(ISERROR(VLOOKUP($B93,#REF!,16,0)),0,VLOOKUP($B93,#REF!,16,0)) -> 0 | AK93: 0.04489034656
A94: 106420522 | B94: 50478 | C94: SANTA YNEZ VALLEY COTTAGE HOSPITAL | D94: 3 | E94: COTTAGE HEALTH SYSTEM | F94: =IFERROR(INDEX('4. FY 2019-20'!AZ:AZ,MATCH(A94,'4. FY 2019-20'!A:A,0)),0) -> 952395.3555 | G94: 1 | H94: 0 | J94: =IFERROR(INDEX('5. FY 2020-21'!AZ:AZ,MATCH(A94,'5. FY 2020-21'!A:A,0)),0) -> 943728.2281 | K94: 1 | L94: 0 | N94: =IFERROR(INDEX('6. FY 2021-22'!AZ:AZ,MATCH(A94,'6. FY 2021-22'!A:A,0)),0) -> 479754.0767 | O94: 1 | P94: 0 | R94: 2375877.66 | S94: 1 | T94: 0 | X94: 952395.3555 | Z94: 943728.2281 | AB94: 479754.0767 | AD94: 2375877.66 | AG94: =IF(ISERROR(VLOOKUP($B94,#REF!,13,0)),0,VLOOKUP($B94,#REF!,13,0)) -> 0 | AH94: =IF(ISERROR(VLOOKUP($B94,#REF!,14,0)),0,VLOOKUP($B94,#REF!,14,0)) -> 0 | AI94: =IF(ISERROR(VLOOKUP($B94,#REF!,13,0)),0,VLOOKUP($B94,#REF!,15,0)) -> 0 | AJ94: =IF(ISERROR(VLOOKUP($B94,#REF!,16,0)),0,VLOOKUP($B94,#REF!,16,0)) -> 0 | AK94: -0.009100346091
D95: 10 | E95: SYSTEM TOTAL | F95: =SUM(F92:F94) -> 23081697.79 | G95: =SUM(G92:G94) -> 3 | H95: =SUM(H92:H94) -> 0 | I95: =IF(F95<0,1,0) -> 0 | J95: =SUM(J92:J94) -> 23892052.97 | K95: =SUM(K92:K94) -> 3 | L95: =SUM(L92:L94) -> 0 | M95: =IF(J95<0,1,0) -> 0 | N95: =SUM(N92:N94) -> 12235835.81 | O95: =SUM(O92:O94) -> 3 | P95: =SUM(P92:P94) -> 0 | Q95: =IF(N95<0,1,0) -> 0 | R95: =SUM(R92:R94) -> 59209586.57 | S95: =SUM(S92:S94) -> 3 | T95: =SUM(T92:T94) -> 0 | U95: =IF(R95<0,1,0) -> 0 | Y95: =IF(I95=0,0,F95) -> 0 | AA95: =IF(M95=0,0,J95) -> 0 | AC95: =IF(Q95=0,0,N95) -> 0 | AE95: =IF(U95=0,0,R95) -> 0 | AG95: =IF(ISERROR(VLOOKUP($B95,#REF!,13,0)),0,VLOOKUP($B95,#REF!,13,0)) -> 0 | AH95: =IF(ISERROR(VLOOKUP($B95,#REF!,14,0)),0,VLOOKUP($B95,#REF!,14,0)) -> 0 | AI95: =IF(ISERROR(VLOOKUP($B95,#REF!,13,0)),0,VLOOKUP($B95,#REF!,15,0)) -> 0 | AJ95: =IF(ISERROR(VLOOKUP($B95,#REF!,16,0)),0,VLOOKUP($B95,#REF!,16,0)) -> 0 | AK95: 0.035108127
A96: 106430837 | B96: 50153 | C96: O'CONNOR HOSPITAL | D96: 3 | E96: DOCHS/VERITY | F96: =IFERROR(INDEX('4. FY 2019-20'!AZ:AZ,MATCH(A96,'4. FY 2019-20'!A:A,0)),0) -> 0 | G96: =IF(F96>0,1,0) -> 0 | H96: =IF(F96<0,1,0) -> 0 | J96: =IFERROR(INDEX('5. FY 2020-21'!AZ:AZ,MATCH(A96,'5. FY 2020-21'!A:A,0)),0) -> 0 | K96: =IF(J96>0,1,0) -> 0 | L96: =IF(J96<0,1,0) -> 0 | N96: =IFERROR(INDEX('6. FY 2021-22'!AZ:AZ,MATCH(A96,'6. FY 2021-22'!A:A,0)),0) -> 0 | O96: =IF(N96>0,1,0) -> 0 | P96: =IF(N96<0,1,0) -> 0 | R96: =F96+J96+N96 -> 0 | S96: =IF(R96>0,1,0) -> 0 | T96: =IF(R96<0,1,0) -> 0 | X96: =F96 -> 0 | Z96: =J96 -> 0 | AB96: =N96 -> 0 | AD96: =R96 -> 0 | AG96: =IF(ISERROR(VLOOKUP($B96,#REF!,13,0)),0,VLOOKUP($B96,#REF!,13,0)) -> 0 | AH96: =IF(ISERROR(VLOOKUP($B96,#REF!,14,0)),0,VLOOKUP($B96,#REF!,14,0)) -> 0 | AI96: =IF(ISERROR(VLOOKUP($B96,#REF!,13,0)),0,VLOOKUP($B96,#REF!,15,0)) -> 0 | AJ96: =IF(ISERROR(VLOOKUP($B96,#REF!,16,0)),0,VLOOKUP($B96,#REF!,16,0)) -> 0
A97: 106410817 | B97: 50289 | C97: SETON MEDICAL CENTER | D97: 3 | E97: DOCHS/VERITY | F97: =IFERROR(INDEX('4. FY 2019-20'!AZ:AZ,MATCH(A97,'4. FY 2019-20'!A:A,0)),0) -> 9047226.75 | G97: 1 | H97: 0 | J97: =IFERROR(INDEX('5. FY 2020-21'!AZ:AZ,MATCH(A97,'5. FY 2020-21'!A:A,0)),0) -> 8654319.45 | K97: 1 | L97: 0 | N97: =IFERROR(INDEX('6. FY 2021-22'!AZ:AZ,MATCH(A97,'6. FY 2021-22'!A:A,0)),0) -> 4380223.403 | O97: 1 | P97: 0 | R97: 22081769.6 | S97: 1 | T97: 0 | X97: 9047226.75 | Z97: 8654319.45 | AB97: 4380223.403 | AD97: 22081769.6 | AG97: =IF(ISERROR(VLOOKUP($B97,#REF!,13,0)),0,VLOOKUP($B97,#REF!,13,0)) -> 0 | AH97: =IF(ISERROR(VLOOKUP($B97,#REF!,14,0)),0,VLOOKUP($B97,#REF!,14,0)) -> 0 | AI97: =IF(ISERROR(VLOOKUP($B97,#REF!,13,0)),0,VLOOKUP($B97,#REF!,15,0)) -> 0 | AJ97: =IF(ISERROR(VLOOKUP($B97,#REF!,16,0)),0,VLOOKUP($B97,#REF!,16,0)) -> 0 | AK97: -0.04342847935
A98: 106190754 | B98: 50104 | C98: ST. FRANCIS MEDICAL CENTER | D98: 3 | E98: DOCHS/VERITY | F98: =IFERROR(INDEX('4. FY 2019-20'!AZ:AZ,MATCH(A98,'4. FY 2019-20'!A:A,0)),0) -> 78555648.4 | G98: 1 | H98: 0 | J98: =IFERROR(INDEX('5. FY 2020-21'!AZ:AZ,MATCH(A98,'5. FY 2020-21'!A:A,0)),0) -> 84933417.89 | K98: 1 | L98: 0 | N98: =IFERROR(INDEX('6. FY 2021-22'!AZ:AZ,MATCH(A98,'6. FY 2021-22'!A:A,0)),0) -> 42783860.87 | O98: 1 | P98: 0 | R98: 206272927.2 | S98: 1 | T98: 0 | X98: 78555648.4 | Z98: 84933417.89 | AB98: 42783860.87 | AD98: 206272927.2 | AG98: =IF(ISERROR(VLOOKUP($B98,#REF!,13,0)),0,VLOOKUP($B98,#REF!,13,0)) -> 0 | AH98: =IF(ISERROR(VLOOKUP($B98,#REF!,14,0)),0,VLOOKUP($B98,#REF!,14,0)) -> 0 | AI98: =IF(ISERROR(VLOOKUP($B98,#REF!,13,0)),0,VLOOKUP($B98,#REF!,15,0)) -> 0 | AJ98: =IF(ISERROR(VLOOKUP($B98,#REF!,16,0)),0,VLOOKUP($B98,#REF!,16,0)) -> 0 | AK98: 0.08118791732
A99: 106434138 | B99: 50688 | C99: ST. LOUISE REGIONAL HOSPITAL | D99: 3 | E99: DOCHS/VERITY | F99: =IFERROR(INDEX('4. FY 2019-20'!AZ:AZ,MATCH(A99,'4. FY 2019-20'!A:A,0)),0) -> 0 | G99: 0 | H99: 0 | J99: =IFERROR(INDEX('5. FY 2020-21'!AZ:AZ,MATCH(A99,'5. FY 2020-21'!A:A,0)),0) -> 0 | K99: 0 | L99: 0 | N99: =IFERROR(INDEX('6. FY 2021-22'!AZ:AZ,MATCH(A99,'6. FY 2021-22'!A:A,0)),0) -> 0 | O99: 0 | P99: 0 | R99: 0 | S99: 0 | T99: 0 | X99: 0 | Z99: 0 | AB99: 0 | AD99: 0 | AG99: =IF(ISERROR(VLOOKUP($B99,#REF!,13,0)),0,VLOOKUP($B99,#REF!,13,0)) -> 0 | AH99: =IF(ISERROR(VLOOKUP($B99,#REF!,14,0)),0,VLOOKUP($B99,#REF!,14,0)) -> 0 | AI99: =IF(ISERROR(VLOOKUP($B99,#REF!,13,0)),0,VLOOKUP($B99,#REF!,15,0)) -> 0 | AJ99: =IF(ISERROR(VLOOKUP($B99,#REF!,16,0)),0,VLOOKUP($B99,#REF!,16,0)) -> 0
A100: 106190762 | B100: 50502 | C100: ST. VINCENT MEDICAL CENTER | D100: 3 | E100: DOCHS/VERITY | F100: =IFERROR(INDEX('4. FY 2019-20'!AZ:AZ,MATCH(A100,'4. FY 2019-20'!A:A,0)),0) -> 646552.1932 | G100: 1 | H100: 0 | J100: =IFERROR(INDEX('5. FY 2020-21'!AZ:AZ,MATCH(A100,'5. FY 2020-21'!A:A,0)),0) -> 605949.374 | K100: 1 | L100: 0 | N100: =IFERROR(INDEX('6. FY 2021-22'!AZ:AZ,MATCH(A100,'6. FY 2021-22'!A:A,0)),0) -> 455655.8715 | O100: 1 | P100: 0 | R100: 1708157.439 | S100: 1 | T100: 0 | X100: 646552.1932 | Z100: 605949.374 | AB100: 455655.8715 | AD100: 1708157.439 | AG100: =IF(ISERROR(VLOOKUP($B100,#REF!,13,0)),0,VLOOKUP($B100,#REF!,13,0)) -> 0 | AH100: =IF(ISERROR(VLOOKUP($B100,#REF!,14,0)),0,VLOOKUP($B100,#REF!,14,0)) -> 0 | AI100: =IF(ISERROR(VLOOKUP($B100,#REF!,13,0)),0,VLOOKUP($B100,#REF!,15,0)) -> 0 | AJ100: =IF(ISERROR(VLOOKUP($B100,#REF!,16,0)),0,VLOOKUP($B100,#REF!,16,0)) -> 0 | AK100: -0.06279898147
D101: 11 | E101: SYSTEM TOTAL | F101: =SUM(F96:F100) -> 88249427.34 | G101: =SUM(G96:G100) -> 3 | H101: =SUM(H96:H100) -> 0 | I101: =IF(F101<0,1,0) -> 0 | J101: =SUM(J96:J100) -> 94193686.71 | K101: =SUM(K96:K100) -> 3 | L101: =SUM(L96:L100) -> 0 | M101: =IF(J101<0,1,0) -> 0 | N101: =SUM(N96:N100) -> 47619740.15 | O101: =SUM(O96:O100) -> 3 | P101: =SUM(P96:P100) -> 0 | Q101: =IF(N101<0,1,0) -> 0 | R101: =SUM(R96:R100) -> 230062854.2 | S101: =SUM(S96:S100) -> 3 | T101: =SUM(T96:T100) -> 0 | U101: =IF(R101<0,1,0) -> 0 | Y101: =IF(I101=0,0,F101) -> 0 | AA101: =IF(M101=0,0,J101) -> 0 | AC101: =IF(Q101=0,0,N101) -> 0 | AE101: =IF(U101=0,0,R101) -> 0 | AG101: =IF(ISERROR(VLOOKUP($B101,#REF!,13,0)),0,VLOOKUP($B101,#REF!,13,0)) -> 0 | AH101: =IF(ISERROR(VLOOKUP($B101,#REF!,14,0)),0,VLOOKUP($B101,#REF!,14,0)) -> 0 | AI101: =IF(ISERROR(VLOOKUP($B101,#REF!,13,0)),0,VLOOKUP($B101,#REF!,15,0)) -> 0 | AJ101: =IF(ISERROR(VLOOKUP($B101,#REF!,16,0)),0,VLOOKUP($B101,#REF!,16,0)) -> 0 | AK101: 0.06735748374
A102: 106430779 | B102: 50380 | C102: GOOD SAMARITAN HOSPITAL - SAN JOSE | D102: 3 | E102: HCA-THE HEALTHCARE COMPANY | F102: =IFERROR(INDEX('4. FY 2019-20'!AZ:AZ,MATCH(A102,'4. FY 2019-20'!A:A,0)),0) -> -8327584.294 | G102: =IF(F102>0,1,0) -> 0 | H102: =IF(F102<0,1,0) -> 1 | J102: =IFERROR(INDEX('5. FY 2020-21'!AZ:AZ,MATCH(A102,'5. FY 2020-21'!A:A,0)),0) -> -8513418.088 | K102: =IF(J102>0,1,0) -> 0 | L102: =IF(J102<0,1,0) -> 1 | N102: =IFERROR(INDEX('6. FY 2021-22'!AZ:AZ,MATCH(A102,'6. FY 2021-22'!A:A,0)),0) -> -4330847.879 | O102: =IF(N102>0,1,0) -> 0 | P102: =IF(N102<0,1,0) -> 1 | R102: =F102+J102+N102 -> -21171850.26 | S102: =IF(R102>0,1,0) -> 0 | T102: =IF(R102<0,1,0) -> 1 | X102: =F102 -> -8327584.294 | Z102: =J102 -> -8513418.088 | AB102: =N102 -> -4330847.879 | AD102: =R102 -> -21171850.26 | AG102: =IF(ISERROR(VLOOKUP($B102,#REF!,13,0)),0,VLOOKUP($B102,#REF!,13,0)) -> 0 | AH102: =IF(ISERROR(VLOOKUP($B102,#REF!,14,0)),0,VLOOKUP($B102,#REF!,14,0)) -> 0 | AI102: =IF(ISERROR(VLOOKUP($B102,#REF!,13,0)),0,VLOOKUP($B102,#REF!,15,0)) -> 0 | AJ102: =IF(ISERROR(VLOOKUP($B102,#REF!,16,0)),0,VLOOKUP($B102,#REF!,16,0)) -> 0 | AK102: 0.02231545031
A103: 106560492 | B103: 50549 | C103: LOS ROBLES HOSPITAL & MEDICAL CENTER | D103: 3 | E103: HCA-THE HEALTHCARE COMPANY | F103: =IFERROR(INDEX('4. FY 2019-20'!AZ:AZ,MATCH(A103,'4. FY 2019-20'!A:A,0)),0) -> -9401215.87 | G103: 0 | H103: 1 | J103: =IFERROR(INDEX('5. FY 2020-21'!AZ:AZ,MATCH(A103,'5. FY 2020-21'!A:A,0)),0) -> -9833639.806 | K103: 0 | L103: 1 | N103: =IFERROR(INDEX('6. FY 2021-22'!AZ:AZ,MATCH(A103,'6. FY 2021-22'!A:A,0)),0) -> -4719572.422 | O103: 0 | P103: 1 | R103: -23954428.1 | S103: 0 | T103: 1 | X103: -9401215.87 | Z103: -9833639.806 | AB103: -4719572.422 | AD103: -23954428.1 | AG103: =IF(ISERROR(VLOOKUP($B103,#REF!,13,0)),0,VLOOKUP($B103,#REF!,13,0)) -> 0 | AH103: =IF(ISERROR(VLOOKUP($B103,#REF!,14,0)),0,VLOOKUP($B103,#REF!,14,0)) -> 0 | AI103: =IF(ISERROR(VLOOKUP($B103,#REF!,13,0)),0,VLOOKUP($B103,#REF!,15,0)) -> 0 | AJ103: =IF(ISERROR(VLOOKUP($B103,#REF!,16,0)),0,VLOOKUP($B103,#REF!,16,0)) -> 0 | AK103: 0.04599659681
A104: 106430705 | B104: 50125 | C104: REGIONAL MEDICAL CENTER OF SAN JOSE | D104: 3 | E104: HCA-THE HEALTHCARE COMPANY | F104: =IFERROR(INDEX('4. FY 2019-20'!AZ:AZ,MATCH(A104,'4. FY 2019-20'!A:A,0)),0) -> 8155377.954 | G104: 1 | H104: 0 | J104: =IFERROR(INDEX('5. FY 2020-21'!AZ:AZ,MATCH(A104,'5. FY 2020-21'!A:A,0)),0) -> 8657888.933 | K104: 1 | L104: 0 | N104: =IFERROR(INDEX('6. FY 2021-22'!AZ:AZ,MATCH(A104,'6. FY 2021-22'!A:A,0)),0) -> 4223002.764 | O104: 1 | P104: 0 | R104: 21036269.65 | S104: 1 | T104: 0 | X104: 8155377.954 | Z104: 8657888.933 | AB104: 4223002.764 | AD104: 21036269.65 | AG104: =IF(ISERROR(VLOOKUP($B104,#REF!,13,0)),0,VLOOKUP($B104,#REF!,13,0)) -> 0 | AH104: =IF(ISERROR(VLOOKUP($B104,#REF!,14,0)),0,VLOOKUP($B104,#REF!,14,0)) -> 0 | AI104: =IF(ISERROR(VLOOKUP($B104,#REF!,13,0)),0,VLOOKUP($B104,#REF!,15,0)) -> 0 | AJ104: =IF(ISERROR(VLOOKUP($B104,#REF!,16,0)),0,VLOOKUP($B104,#REF!,16,0)) -> 0 | AK104: 0.06161712937
A105: 106331312 | B105: 50022 | C105: RIVERSIDE COMMUNITY HOSPITAL | D105: 3 | E105: HCA-THE HEALTHCARE COMPANY | F105: =IFERROR(INDEX('4. FY 2019-20'!AZ:AZ,MATCH(A105,'4. FY 2019-20'!A:A,0)),0) -> 45190002.44 | G105: 1 | H105: 0 | J105: =IFERROR(INDEX('5. FY 2020-21'!AZ:AZ,MATCH(A105,'5. FY 2020-21'!A:A,0)),0) -> 48165012.44 | K105: 1 | L105: 0 | N105: =IFERROR(INDEX('6. FY 2021-22'!AZ:AZ,MATCH(A105,'6. FY 2021-22'!A:A,0)),0) -> 24169460.09 | O105: 1 | P105: 0 | R105: 117524475 | S105: 1 | T105: 0 | X105: 45190002.44 | Z105: 48165012.44 | AB105: 24169460.09 | AD105: 117524475 | AG105: =IF(ISERROR(VLOOKUP($B105,#REF!,13,0)),0,VLOOKUP($B105,#REF!,13,0)) -> 0 | AH105: =IF(ISERROR(VLOOKUP($B105,#REF!,14,0)),0,VLOOKUP($B105,#REF!,14,0)) -> 0 | AI105: =IF(ISERROR(VLOOKUP($B105,#REF!,13,0)),0,VLOOKUP($B105,#REF!,15,0)) -> 0 | AJ105: =IF(ISERROR(VLOOKUP($B105,#REF!,16,0)),0,VLOOKUP($B105,#REF!,16,0)) -> 0 | AK105: 0.06583336681
A106: 106190859 | B106: 50481 | C106: WEST HILLS HOSPITAL & MEDICAL CENTER | D106: 3 | E106: HCA-THE HEALTHCARE COMPANY | F106: =IFERROR(INDEX('4. FY 2019-20'!AZ:AZ,MATCH(A106,'4. FY 2019-20'!A:A,0)),0) -> -4990315.232 | G106: 0 | H106: 1 | J106: =IFERROR(INDEX('5. FY 2020-21'!AZ:AZ,MATCH(A106,'5. FY 2020-21'!A:A,0)),0) -> -5212682.367 | K106: 0 | L106: 1 | N106: =IFERROR(INDEX('6. FY 2021-22'!AZ:AZ,MATCH(A106,'6. FY 2021-22'!A:A,0)),0) -> -2607766.93 | O106: 0 | P106: 1 | R106: -12810764.53 | S106: 0 | T106: 1 | X106: -4990315.232 | Z106: -5212682.367 | AB106: -2607766.93 | AD106: -12810764.53 | AG106: =IF(ISERROR(VLOOKUP($B106,#REF!,13,0)),0,VLOOKUP($B106,#REF!,13,0)) -> 0 | AH106: =IF(ISERROR(VLOOKUP($B106,#REF!,14,0)),0,VLOOKUP($B106,#REF!,14,0)) -> 0 | AI106: =IF(ISERROR(VLOOKUP($B106,#REF!,13,0)),0,VLOOKUP($B106,#REF!,15,0)) -> 0 | AJ106: =IF(ISERROR(VLOOKUP($B106,#REF!,16,0)),0,VLOOKUP($B106,#REF!,16,0)) -> 0 | AK106: 0.04455973727
D107: 12 | E107: SYSTEM TOTAL | F107: =SUM(F102:F106) -> 30626264.99 | G107: =SUM(G102:G106) -> 2 | H107: =SUM(H102:H106) -> 3 | I107: =IF(F107<0,1,0) -> 0 | J107: =SUM(J102:J106) -> 33263161.11 | K107: =SUM(K102:K106) -> 2 | L107: =SUM(L102:L106) -> 3 | M107: =IF(J107<0,1,0) -> 0 | N107: =SUM(N102:N106) -> 16734275.62 | O107: =SUM(O102:O106) -> 2 | P107: =SUM(P102:P106) -> 3 | Q107: =IF(N107<0,1,0) -> 0 | R107: =SUM(R102:R106) -> 80623701.73 | S107: =SUM(S102:S106) -> 2 | T107: =SUM(T102:T106) -> 3 | U107: =IF(R107<0,1,0) -> 0 | Y107: =IF(I107=0,0,F107) -> 0 | AA107: =IF(M107=0,0,J107) -> 0 | AC107: =IF(Q107=0,0,N107) -> 0 | AE107: =IF(U107=0,0,R107) -> 0 | AG107: =IF(ISERROR(VLOOKUP($B107,#REF!,13,0)),0,VLOOKUP($B107,#REF!,13,0)) -> 0 | AH107: =IF(ISERROR(VLOOKUP($B107,#REF!,14,0)),0,VLOOKUP($B107,#REF!,14,0)) -> 0 | AI107: =IF(ISERROR(VLOOKUP($B107,#REF!,13,0)),0,VLOOKUP($B107,#REF!,15,0)) -> 0 | AJ107: =IF(ISERROR(VLOOKUP($B107,#REF!,16,0)),0,VLOOKUP($B107,#REF!,16,0)) -> 0 | AK107: 0.08609917405
A108: 106301140 | B108: 50745 | C108: CHAPMAN MEDICAL CENTER | D108: 3 | E108: KPC HEALTHCARE, INC. | F108: =IFERROR(INDEX('4. FY 2019-20'!AZ:AZ,MATCH(A108,'4. FY 2019-20'!A:A,0)),0) -> 2559708.053 | G108: =IF(F108>0,1,0) -> 1 | H108: =IF(F108<0,1,0) -> 0 | J108: =IFERROR(INDEX('5. FY 2020-21'!AZ:AZ,MATCH(A108,'5. FY 2020-21'!A:A,0)),0) -> 2465320.292 | K108: =IF(J108>0,1,0) -> 1 | L108: =IF(J108<0,1,0) -> 0 | N108: =IFERROR(INDEX('6. FY 2021-22'!AZ:AZ,MATCH(A108,'6. FY 2021-22'!A:A,0)),0) -> 1254360.172 | O108: =IF(N108>0,1,0) -> 1 | P108: =IF(N108<0,1,0) -> 0 | R108: =F108+J108+N108 -> 6279388.517 | S108: =IF(R108>0,1,0) -> 1 | T108: =IF(R108<0,1,0) -> 0 | X108: =F108 -> 2559708.053 | Z108: =J108 -> 2465320.292 | AB108: =N108 -> 1254360.172 | AD108: =R108 -> 6279388.517 | AG108: =IF(ISERROR(VLOOKUP($B108,#REF!,13,0)),0,VLOOKUP($B108,#REF!,13,0)) -> 0 | AH108: =IF(ISERROR(VLOOKUP($B108,#REF!,14,0)),0,VLOOKUP($B108,#REF!,14,0)) -> 0 | AI108: =IF(ISERROR(VLOOKUP($B108,#REF!,13,0)),0,VLOOKUP($B108,#REF!,15,0)) -> 0 | AJ108: =IF(ISERROR(VLOOKUP($B108,#REF!,16,0)),0,VLOOKUP($B108,#REF!,16,0)) -> 0 | AK108: -0.03687442455
A109: 106301258 | B109: 50747 | C109: COASTAL COMMUNITIES HOSPITAL | D109: 3 | E109: KPC HEALTHCARE, INC. | F109: =IFERROR(INDEX('4. FY 2019-20'!AZ:AZ,MATCH(A109,'4. FY 2019-20'!A:A,0)),0) -> 15577106 | G109: 1 | H109: 0 | J109: =IFERROR(INDEX('5. FY 2020-21'!AZ:AZ,MATCH(A109,'5. FY 2020-21'!A:A,0)),0) -> 16514606.24 | K109: 1 | L109: 0 | N109: =IFERROR(INDEX('6. FY 2021-22'!AZ:AZ,MATCH(A109,'6. FY 2021-22'!A:A,0)),0) -> 8294031.431 | O109: 1 | P109: 0 | R109: 40385743.68 | S109: 1 | T109: 0 | X109: 15577106 | Z109: 16514606.24 | AB109: 8294031.431 | AD109: 40385743.68 | AG109: =IF(ISERROR(VLOOKUP($B109,#REF!,13,0)),0,VLOOKUP($B109,#REF!,13,0)) -> 0 | AH109: =IF(ISERROR(VLOOKUP($B109,#REF!,14,0)),0,VLOOKUP($B109,#REF!,14,0)) -> 0 | AI109: =IF(ISERROR(VLOOKUP($B109,#REF!,13,0)),0,VLOOKUP($B109,#REF!,15,0)) -> 0 | AJ109: =IF(ISERROR(VLOOKUP($B109,#REF!,16,0)),0,VLOOKUP($B109,#REF!,16,0)) -> 0 | AK109: 0.06018449356
A110: 106301188 | B110: 50744 | C110: WESTERN MEDICAL CENTER-ANAHEIM | D110: 3 | E110: KPC HEALTHCARE, INC. | F110: =IFERROR(INDEX('4. FY 2019-20'!AZ:AZ,MATCH(A110,'4. FY 2019-20'!A:A,0)),0) -> 18091269.8 | G110: 1 | H110: 0 | J110: =IFERROR(INDEX('5. FY 2020-21'!AZ:AZ,MATCH(A110,'5. FY 2020-21'!A:A,0)),0) -> 18692633.19 | K110: 1 | L110: 0 | N110: =IFERROR(INDEX('6. FY 2021-22'!AZ:AZ,MATCH(A110,'6. FY 2021-22'!A:A,0)),0) -> 9579419.715 | O110: 1 | P110: 0 | R110: 46363322.71 | S110: 1 | T110: 0 | X110: 18091269.8 | Z110: 18692633.19 | AB110: 9579419.715 | AD110: 46363322.71 | AG110: =IF(ISERROR(VLOOKUP($B110,#REF!,13,0)),0,VLOOKUP($B110,#REF!,13,0)) -> 0 | AH110: =IF(ISERROR(VLOOKUP($B110,#REF!,14,0)),0,VLOOKUP($B110,#REF!,14,0)) -> 0 | AI110: =IF(ISERROR(VLOOKUP($B110,#REF!,13,0)),0,VLOOKUP($B110,#REF!,15,0)) -> 0 | AJ110: =IF(ISERROR(VLOOKUP($B110,#REF!,16,0)),0,VLOOKUP($B110,#REF!,16,0)) -> 0 | AK110: 0.03324052947
A111: 106301566 | B111: 50746 | C111: WESTERN MEDICAL CENTER-SANTA ANA | D111: 3 | E111: KPC HEALTHCARE, INC. | F111: =IFERROR(INDEX('4. FY 2019-20'!AZ:AZ,MATCH(A111,'4. FY 2019-20'!A:A,0)),0) -> 17897982.77 | G111: 1 | H111: 0 | J111: =IFERROR(INDEX('5. FY 2020-21'!AZ:AZ,MATCH(A111,'5. FY 2020-21'!A:A,0)),0) -> 19960842.72 | K111: 1 | L111: 0 | N111: =IFERROR(INDEX('6. FY 2021-22'!AZ:AZ,MATCH(A111,'6. FY 2021-22'!A:A,0)),0) -> 9902126.92 | O111: 1 | P111: 0 | R111: 47760952.41 | S111: 1 | T111: 0 | X111: 17897982.77 | Z111: 19960842.72 | AB111: 9902126.92 | AD111: 47760952.41 | AG111: =IF(ISERROR(VLOOKUP($B111,#REF!,13,0)),0,VLOOKUP($B111,#REF!,13,0)) -> 0 | AH111: =IF(ISERROR(VLOOKUP($B111,#REF!,14,0)),0,VLOOKUP($B111,#REF!,14,0)) -> 0 | AI111: =IF(ISERROR(VLOOKUP($B111,#REF!,13,0)),0,VLOOKUP($B111,#REF!,15,0)) -> 0 | AJ111: =IF(ISERROR(VLOOKUP($B111,#REF!,16,0)),0,VLOOKUP($B111,#REF!,16,0)) -> 0 | AK111: 0.1152565615
D112: 13 | E112: SYSTEM TOTAL | F112: =SUM(F108:F111) -> 54126066.63 | G112: =SUM(G108:G111) -> 4 | H112: =SUM(H108:H111) -> 0 | I112: =IF(F112<0,1,0) -> 0 | J112: =SUM(J108:J111) -> 57633402.44 | K112: =SUM(K108:K111) -> 4 | L112: =SUM(L108:L111) -> 0 | M112: =IF(J112<0,1,0) -> 0 | N112: =SUM(N108:N111) -> 29029938.24 | O112: =SUM(O108:O111) -> 4 | P112: =SUM(P108:P111) -> 0 | Q112: =IF(N112<0,1,0) -> 0 | R112: =SUM(R108:R111) -> 140789407.3 | S112: =SUM(S108:S111) -> 4 | T112: =SUM(T108:T111) -> 0 | U112: =IF(R112<0,1,0) -> 0 | Y112: =IF(I112=0,0,F112) -> 0 | AA112: =IF(M112=0,0,J112) -> 0 | AC112: =IF(Q112=0,0,N112) -> 0 | AE112: =IF(U112=0,0,R112) -> 0 | AG112: =IF(ISERROR(VLOOKUP($B112,#REF!,13,0)),0,VLOOKUP($B112,#REF!,13,0)) -> 0 | AH112: =IF(ISERROR(VLOOKUP($B112,#REF!,14,0)),0,VLOOKUP($B112,#REF!,14,0)) -> 0 | AI112: =IF(ISERROR(VLOOKUP($B112,#REF!,13,0)),0,VLOOKUP($B112,#REF!,15,0)) -> 0 | AJ112: =IF(ISERROR(VLOOKUP($B112,#REF!,16,0)),0,VLOOKUP($B112,#REF!,16,0)) -> 0 | AK112: 0.06479938469
A113: 106071018 | B113: 50496 | C113: JOHN MUIR MEDICAL CTR-CONCORD CAMPUS | D113: 3 | E113: JOHN MUIR / MT. DIABLO HEALTH SYSTEM | F113: =IFERROR(INDEX('4. FY 2019-20'!AZ:AZ,MATCH(A113,'4. FY 2019-20'!A:A,0)),0) -> 5206397.914 | G113: =IF(F113>0,1,0) -> 1 | H113: =IF(F113<0,1,0) -> 0 | J113: =IFERROR(INDEX('5. FY 2020-21'!AZ:AZ,MATCH(A113,'5. FY 2020-21'!A:A,0)),0) -> 5223435.6 | K113: =IF(J113>0,1,0) -> 1 | L113: =IF(J113<0,1,0) -> 0 | N113: =IFERROR(INDEX('6. FY 2021-22'!AZ:AZ,MATCH(A113,'6. FY 2021-22'!A:A,0)),0) -> 2755711.9 | O113: =IF(N113>0,1,0) -> 1 | P113: =IF(N113<0,1,0) -> 0 | R113: =F113+J113+N113 -> 13185545.41 | S113: =IF(R113>0,1,0) -> 1 | T113: =IF(R113<0,1,0) -> 0 | X113: =F113 -> 5206397.914 | Z113: =J113 -> 5223435.6 | AB113: =N113 -> 2755711.9 | AD113: =R113 -> 13185545.41 | AG113: =IF(ISERROR(VLOOKUP($B113,#REF!,13,0)),0,VLOOKUP($B113,#REF!,13,0)) -> 0 | AH113: =IF(ISERROR(VLOOKUP($B113,#REF!,14,0)),0,VLOOKUP($B113,#REF!,14,0)) -> 0 | AI113: =IF(ISERROR(VLOOKUP($B113,#REF!,13,0)),0,VLOOKUP($B113,#REF!,15,0)) -> 0 | AJ113: =IF(ISERROR(VLOOKUP($B113,#REF!,16,0)),0,VLOOKUP($B113,#REF!,16,0)) -> 0 | AK113: 0.003272451777
A114: 106070988 | B114: 50180 | C114: JOHN MUIR MEDICAL CTR-WALNUT CREEK | D114: 3 | E114: JOHN MUIR / MT. DIABLO HEALTH SYSTEM | F114: =IFERROR(INDEX('4. FY 2019-20'!AZ:AZ,MATCH(A114,'4. FY 2019-20'!A:A,0)),0) -> -2702931.644 | G114: 0 | H114: 1 | J114: =IFERROR(INDEX('5. FY 2020-21'!AZ:AZ,MATCH(A114,'5. FY 2020-21'!A:A,0)),0) -> -2820770.264 | K114: 0 | L114: 1 | N114: =IFERROR(INDEX('6. FY 2021-22'!AZ:AZ,MATCH(A114,'6. FY 2021-22'!A:A,0)),0) -> -1360540.007 | O114: 0 | P114: 1 | R114: -6884241.915 | S114: 0 | T114: 1 | X114: -2702931.644 | Z114: -2820770.264 | AB114: -1360540.007 | AD114: -6884241.915 | AG114: =IF(ISERROR(VLOOKUP($B114,#REF!,13,0)),0,VLOOKUP($B114,#REF!,13,0)) -> 0 | AH114: =IF(ISERROR(VLOOKUP($B114,#REF!,14,0)),0,VLOOKUP($B114,#REF!,14,0)) -> 0 | AI114: =IF(ISERROR(VLOOKUP($B114,#REF!,13,0)),0,VLOOKUP($B114,#REF!,15,0)) -> 0 | AJ114: =IF(ISERROR(VLOOKUP($B114,#REF!,16,0)),0,VLOOKUP($B114,#REF!,16,0)) -> 0 | AK114: 0.04359659631
D115: 14 | E115: SYSTEM TOTAL | F115: =SUM(F113:F114) -> 2503466.269 | G115: =SUM(G113:G114) -> 1 | H115: =SUM(H113:H114) -> 1 | I115: =IF(F115<0,1,0) -> 0 | J115: =SUM(J113:J114) -> 2402665.336 | K115: =SUM(K113:K114) -> 1 | L115: =SUM(L113:L114) -> 1 | M115: =IF(J115<0,1,0) -> 0 | N115: =SUM(N113:N114) -> 1395171.893 | O115: =SUM(O113:O114) -> 1 | P115: =SUM(P113:P114) -> 1 | Q115: =IF(N115<0,1,0) -> 0 | R115: =SUM(R113:R114) -> 6301303.498 | S115: =SUM(S113:S114) -> 1 | T115: =SUM(T113:T114) -> 1 | U115: =IF(R115<0,1,0) -> 0 | Y115: =IF(I115=0,0,F115) -> 0 | AA115: =IF(M115=0,0,J115) -> 0 | AC115: =IF(Q115=0,0,N115) -> 0 | AE115: =IF(U115=0,0,R115) -> 0 | AG115: =IF(ISERROR(VLOOKUP($B115,#REF!,13,0)),0,VLOOKUP($B115,#REF!,13,0)) -> 0 | AH115: =IF(ISERROR(VLOOKUP($B115,#REF!,14,0)),0,VLOOKUP($B115,#REF!,14,0)) -> 0 | AI115: =IF(ISERROR(VLOOKUP($B115,#REF!,13,0)),0,VLOOKUP($B115,#REF!,15,0)) -> 0 | AJ115: =IF(ISERROR(VLOOKUP($B115,#REF!,16,0)),0,VLOOKUP($B115,#REF!,16,0)) -> 0 | AK115: -0.04026454635
A116: 106361246 | B116: 50327 | C116: LOMA LINDA UNIVERSITY MEDICAL CENTER | D116: 3 | E116: LOMA LINDA UNIVERSITY MEDICAL CENTER | F116: =IFERROR(INDEX('4. FY 2019-20'!AZ:AZ,MATCH(A116,'4. FY 2019-20'!A:A,0)),0) -> 63811508.75 | G116: =IF(F116>0,1,0) -> 1 | H116: =IF(F116<0,1,0) -> 0 | J116: =IFERROR(INDEX('5. FY 2020-21'!AZ:AZ,MATCH(A116,'5. FY 2020-21'!A:A,0)),0) -> 65097294.77 | K116: =IF(J116>0,1,0) -> 1 | L116: =IF(J116<0,1,0) -> 0 | N116: =IFERROR(INDEX('6. FY 2021-22'!AZ:AZ,MATCH(A116,'6. FY 2021-22'!A:A,0)),0) -> 32466653.74 | O116: =IF(N116>0,1,0) -> 1 | P116: =IF(N116<0,1,0) -> 0 | R116: =F116+J116+N116 -> 161375457.3 | S116: =IF(R116>0,1,0) -> 1 | T116: =IF(R116<0,1,0) -> 0 | X116: =F116 -> 63811508.75 | Z116: =J116 -> 65097294.77 | AB116: =N116 -> 32466653.74 | AD116: =R116 -> 161375457.3 | AG116: =IF(ISERROR(VLOOKUP($B116,#REF!,13,0)),0,VLOOKUP($B116,#REF!,13,0)) -> 0 | AH116: =IF(ISERROR(VLOOKUP($B116,#REF!,14,0)),0,VLOOKUP($B116,#REF!,14,0)) -> 0 | AI116: =IF(ISERROR(VLOOKUP($B116,#REF!,13,0)),0,VLOOKUP($B116,#REF!,15,0)) -> 0 | AJ116: =IF(ISERROR(VLOOKUP($B116,#REF!,16,0)),0,VLOOKUP($B116,#REF!,16,0)) -> 0 | AK116: 0.02014975127
A117: 106364502 | B117: 50778 | C117: LOMA LINDA UNIVERSITY CHILDREN'S HOSPITAL | D117: 3 | E117: LOMA LINDA UNIVERSITY MEDICAL CENTER | F117: =IFERROR(INDEX('4. FY 2019-20'!AZ:AZ,MATCH(A117,'4. FY 2019-20'!A:A,0)),0) -> 79958087.6 | G117: 1 | H117: 0 | J117: =IFERROR(INDEX('5. FY 2020-21'!AZ:AZ,MATCH(A117,'5. FY 2020-21'!A:A,0)),0) -> 87168297.52 | K117: 1 | L117: 0 | N117: =IFERROR(INDEX('6. FY 2021-22'!AZ:AZ,MATCH(A117,'6. FY 2021-22'!A:A,0)),0) -> 43167500.57 | O117: 1 | P117: 0 | R117: 210293885.7 | S117: 1 | T117: 0 | X117: 79958087.6 | Z117: 87168297.52 | AB117: 43167500.57 | AD117: 210293885.7 | AG117: =IF(ISERROR(VLOOKUP($B117,#REF!,13,0)),0,VLOOKUP($B117,#REF!,13,0)) -> 0 | AH117: =IF(ISERROR(VLOOKUP($B117,#REF!,14,0)),0,VLOOKUP($B117,#REF!,14,0)) -> 0 | AI117: =IF(ISERROR(VLOOKUP($B117,#REF!,13,0)),0,VLOOKUP($B117,#REF!,15,0)) -> 0 | AJ117: =IF(ISERROR(VLOOKUP($B117,#REF!,16,0)),0,VLOOKUP($B117,#REF!,16,0)) -> 0 | AK117: 0.09017486714
A118: 106334589 | B118: 50770 | C118: LOMA LINDA UNIVERSITY MEDICAL CENTER - MURRIETA | D118: 3 | E118: LOMA LINDA UNIVERSITY MEDICAL CENTER | F118: =IFERROR(INDEX('4. FY 2019-20'!AZ:AZ,MATCH(A118,'4. FY 2019-20'!A:A,0)),0) -> 3715385.196 | G118: 1 | H118: 0 | J118: =IFERROR(INDEX('5. FY 2020-21'!AZ:AZ,MATCH(A118,'5. FY 2020-21'!A:A,0)),0) -> 3743311.368 | K118: 1 | L118: 0 | N118: =IFERROR(INDEX('6. FY 2021-22'!AZ:AZ,MATCH(A118,'6. FY 2021-22'!A:A,0)),0) -> 1901929.915 | O118: 1 | P118: 0 | R118: 9360626.48 | S118: 1 | T118: 0 | X118: 3715385.196 | Z118: 3743311.368 | AB118: 1901929.915 | AD118: 9360626.48 | AG118: =IF(ISERROR(VLOOKUP($B118,#REF!,13,0)),0,VLOOKUP($B118,#REF!,13,0)) -> 0 | AH118: =IF(ISERROR(VLOOKUP($B118,#REF!,14,0)),0,VLOOKUP($B118,#REF!,14,0)) -> 0 | AI118: =IF(ISERROR(VLOOKUP($B118,#REF!,13,0)),0,VLOOKUP($B118,#REF!,15,0)) -> 0 | AJ118: =IF(ISERROR(VLOOKUP($B118,#REF!,16,0)),0,VLOOKUP($B118,#REF!,16,0)) -> 0 | AK118: 0.007516359825
D119: 33 | E119: SYSTEM TOTAL | F119: =SUM(F116:F118) -> 147484981.5 | G119: =SUM(G116:G118) -> 3 | H119: =SUM(H116:H118) -> 0 | I119: =IF(F119<0,1,0) -> 0 | J119: =SUM(J116:J118) -> 156008903.7 | K119: =SUM(K116:K118) -> 3 | L119: =SUM(L116:L118) -> 0 | M119: =IF(J119<0,1,0) -> 0 | N119: =SUM(N116:N118) -> 77536084.22 | O119: =SUM(O116:O118) -> 3 | P119: =SUM(P116:P118) -> 0 | Q119: =IF(N119<0,1,0) -> 0 | R119: =SUM(R116:R118) -> 381029969.4 | S119: =SUM(S116:S118) -> 3 | T119: =SUM(T116:T118) -> 0 | U119: =IF(R119<0,1,0) -> 0 | Y119: =IF(I119=0,0,F119) -> 0 | AA119: =IF(M119=0,0,J119) -> 0 | AC119: =IF(Q119=0,0,N119) -> 0 | AE119: =IF(U119=0,0,R119) -> 0 | AG119: =IF(ISERROR(VLOOKUP($B119,#REF!,13,0)),0,VLOOKUP($B119,#REF!,13,0)) -> 0 | AH119: =IF(ISERROR(VLOOKUP($B119,#REF!,14,0)),0,VLOOKUP($B119,#REF!,14,0)) -> 0 | AI119: =IF(ISERROR(VLOOKUP($B119,#REF!,13,0)),0,VLOOKUP($B119,#REF!,15,0)) -> 0 | AJ119: =IF(ISERROR(VLOOKUP($B119,#REF!,16,0)),0,VLOOKUP($B119,#REF!,16,0)) -> 0 | AK119: 0.05779518727
A120: 106190475 | B120: 50727 | C120: COMMUNITY HOSPITAL OF LONG BEACH | D120: 3 | E120: MEMORIAL HEALTH SERVICES | F120: =IFERROR(INDEX('4. FY 2019-20'!AZ:AZ,MATCH(A120,'4. FY 2019-20'!A:A,0)),0) -> 752106.4306 | G120: =IF(F120>0,1,0) -> 1 | H120: =IF(F120<0,1,0) -> 0 | J120: =IFERROR(INDEX('5. FY 2020-21'!AZ:AZ,MATCH(A120,'5. FY 2020-21'!A:A,0)),0) -> 578234.5692 | K120: =IF(J120>0,1,0) -> 1 | L120: =IF(J120<0,1,0) -> 0 | N120: =IFERROR(INDEX('6. FY 2021-22'!AZ:AZ,MATCH(A120,'6. FY 2021-22'!A:A,0)),0) -> 321065.5286 | O120: =IF(N120>0,1,0) -> 1 | P120: =IF(N120<0,1,0) -> 0 | R120: =F120+J120+N120 -> 1651406.528 | S120: =IF(R120>0,1,0) -> 1 | T120: =IF(R120<0,1,0) -> 0 | X120: =F120 -> 752106.4306 | Z120: =J120 -> 578234.5692 | AB120: =N120 -> 321065.5286 | AD120: =R120 -> 1651406.528 | AG120: =IF(ISERROR(VLOOKUP($B120,#REF!,13,0)),0,VLOOKUP($B120,#REF!,13,0)) -> 0 | AH120: =IF(ISERROR(VLOOKUP($B120,#REF!,14,0)),0,VLOOKUP($B120,#REF!,14,0)) -> 0 | AI120: =IF(ISERROR(VLOOKUP($B120,#REF!,13,0)),0,VLOOKUP($B120,#REF!,15,0)) -> 0 | AJ120: =IF(ISERROR(VLOOKUP($B120,#REF!,16,0)),0,VLOOKUP($B120,#REF!,16,0)) -> 0 | AK120: -0.2311798628
A121: 106196168 | B121: 53309 | C121: EARL & LORRAINE MILLER CHILDRENS HOSP | D121: 3 | E121: MEMORIAL HEALTH SERVICES | F121: =IFERROR(INDEX('4. FY 2019-20'!AZ:AZ,MATCH(A121,'4. FY 2019-20'!A:A,0)),0) -> 74010043.84 | G121: 1 | H121: 0 | J121: =IFERROR(INDEX('5. FY 2020-21'!AZ:AZ,MATCH(A121,'5. FY 2020-21'!A:A,0)),0) -> 79272603.17 | K121: 1 | L121: 0 | N121: =IFERROR(INDEX('6. FY 2021-22'!AZ:AZ,MATCH(A121,'6. FY 2021-22'!A:A,0)),0) -> 39402436.61 | O121: 1 | P121: 0 | R121: 192685083.6 | S121: 1 | T121: 0 | X121: 74010043.84 | Z121: 79272603.17 | AB121: 39402436.61 | AD121: 192685083.6 | AG121: =IF(ISERROR(VLOOKUP($B121,#REF!,13,0)),0,VLOOKUP($B121,#REF!,13,0)) -> 0 | AH121: =IF(ISERROR(VLOOKUP($B121,#REF!,14,0)),0,VLOOKUP($B121,#REF!,14,0)) -> 0 | AI121: =IF(ISERROR(VLOOKUP($B121,#REF!,13,0)),0,VLOOKUP($B121,#REF!,15,0)) -> 0 | AJ121: =IF(ISERROR(VLOOKUP($B121,#REF!,16,0)),0,VLOOKUP($B121,#REF!,16,0)) -> 0 | AK121: 0.07110601553
A122: 106190525 | B122: 50485 | C122: LONG BEACH MEMORIAL MEDICAL CENTER | D122: 3 | E122: MEMORIAL HEALTH SERVICES | F122: =IFERROR(INDEX('4. FY 2019-20'!AZ:AZ,MATCH(A122,'4. FY 2019-20'!A:A,0)),0) -> 33612106.45 | G122: 1 | H122: 0 | J122: =IFERROR(INDEX('5. FY 2020-21'!AZ:AZ,MATCH(A122,'5. FY 2020-21'!A:A,0)),0) -> 34987819.81 | K122: 1 | L122: 0 | N122: =IFERROR(INDEX('6. FY 2021-22'!AZ:AZ,MATCH(A122,'6. FY 2021-22'!A:A,0)),0) -> 17543667.95 | O122: 1 | P122: 0 | R122: 86143594.21 | S122: 1 | T122: 0 | X122: 33612106.45 | Z122: 34987819.81 | AB122: 17543667.95 | AD122: 86143594.21 | AG122: =IF(ISERROR(VLOOKUP($B122,#REF!,13,0)),0,VLOOKUP($B122,#REF!,13,0)) -> 0 | AH122: =IF(ISERROR(VLOOKUP($B122,#REF!,14,0)),0,VLOOKUP($B122,#REF!,14,0)) -> 0 | AI122: =IF(ISERROR(VLOOKUP($B122,#REF!,13,0)),0,VLOOKUP($B122,#REF!,15,0)) -> 0 | AJ122: =IF(ISERROR(VLOOKUP($B122,#REF!,16,0)),0,VLOOKUP($B122,#REF!,16,0)) -> 0 | AK122: 0.04092910291
A123: 106300225 | B123: 50678 | C123: ORANGE COAST MEMORIAL MEDICAL CENTER | D123: 3 | E123: MEMORIAL HEALTH SERVICES | F123: =IFERROR(INDEX('4. FY 2019-20'!AZ:AZ,MATCH(A123,'4. FY 2019-20'!A:A,0)),0) -> -3320277.158 | G123: 0 | H123: 1 | J123: =IFERROR(INDEX('5. FY 2020-21'!AZ:AZ,MATCH(A123,'5. FY 2020-21'!A:A,0)),0) -> -3594203.473 | K123: 0 | L123: 1 | N123: =IFERROR(INDEX('6. FY 2021-22'!AZ:AZ,MATCH(A123,'6. FY 2021-22'!A:A,0)),0) -> -1874316.92 | O123: 0 | P123: 1 | R123: -8788797.551 | S123: 0 | T123: 1 | X123: -3320277.158 | Z123: -3594203.473 | AB123: -1874316.92 | AD123: -8788797.551 | AG123: =IF(ISERROR(VLOOKUP($B123,#REF!,13,0)),0,VLOOKUP($B123,#REF!,13,0)) -> 0 | AH123: =IF(ISERROR(VLOOKUP($B123,#REF!,14,0)),0,VLOOKUP($B123,#REF!,14,0)) -> 0 | AI123: =IF(ISERROR(VLOOKUP($B123,#REF!,13,0)),0,VLOOKUP($B123,#REF!,15,0)) -> 0 | AJ123: =IF(ISERROR(VLOOKUP($B123,#REF!,16,0)),0,VLOOKUP($B123,#REF!,16,0)) -> 0 | AK123: 0.08250103906
A124: 106301317 | B124: 50603 | C124: SADDLEBACK MEMORIAL MEDICAL CENTER | D124: 3 | E124: MEMORIAL HEALTH SERVICES | F124: =IFERROR(INDEX('4. FY 2019-20'!AZ:AZ,MATCH(A124,'4. FY 2019-20'!A:A,0)),0) -> -9947269.485 | G124: 0 | H124: 1 | J124: =IFERROR(INDEX('5. FY 2020-21'!AZ:AZ,MATCH(A124,'5. FY 2020-21'!A:A,0)),0) -> -10511872.73 | K124: 0 | L124: 1 | N124: =IFERROR(INDEX('6. FY 2021-22'!AZ:AZ,MATCH(A124,'6. FY 2021-22'!A:A,0)),0) -> -5434082.94 | O124: 0 | P124: 1 | R124: -25893225.16 | S124: 0 | T124: 1 | X124: -9947269.485 | Z124: -10511872.73 | AB124: -5434082.94 | AD124: -25893225.16 | AG124: =IF(ISERROR(VLOOKUP($B124,#REF!,13,0)),0,VLOOKUP($B124,#REF!,13,0)) -> 0 | AH124: =IF(ISERROR(VLOOKUP($B124,#REF!,14,0)),0,VLOOKUP($B124,#REF!,14,0)) -> 0 | AI124: =IF(ISERROR(VLOOKUP($B124,#REF!,13,0)),0,VLOOKUP($B124,#REF!,15,0)) -> 0 | AJ124: =IF(ISERROR(VLOOKUP($B124,#REF!,16,0)),0,VLOOKUP($B124,#REF!,16,0)) -> 0 | AK124: 0.05675962095
D125: 15 | E125: SYSTEM TOTAL | F125: =SUM(F120:F124) -> 95106710.08 | G125: =SUM(G120:G124) -> 3 | H125: =SUM(H120:H124) -> 2 | I125: =IF(F125<0,1,0) -> 0 | J125: =SUM(J120:J124) -> 100732581.3 | K125: =SUM(K120:K124) -> 3 | L125: =SUM(L120:L124) -> 2 | M125: =IF(J125<0,1,0) -> 0 | N125: =SUM(N120:N124) -> 49958770.23 | O125: =SUM(O120:O124) -> 3 | P125: =SUM(P120:P124) -> 2 | Q125: =IF(N125<0,1,0) -> 0 | R125: =SUM(R120:R124) -> 245798061.7 | S125: =SUM(S120:S124) -> 3 | T125: =SUM(T120:T124) -> 2 | U125: =IF(R125<0,1,0) -> 0 | Y125: =IF(I125=0,0,F125) -> 0 | AA125: =IF(M125=0,0,J125) -> 0 | AC125: =IF(Q125=0,0,N125) -> 0 | AE125: =IF(U125=0,0,R125) -> 0 | AG125: =IF(ISERROR(VLOOKUP($B125,#REF!,13,0)),0,VLOOKUP($B125,#REF!,13,0)) -> 0 | AH125: =IF(ISERROR(VLOOKUP($B125,#REF!,14,0)),0,VLOOKUP($B125,#REF!,14,0)) -> 0 | AI125: =IF(ISERROR(VLOOKUP($B125,#REF!,13,0)),0,VLOOKUP($B125,#REF!,15,0)) -> 0 | AJ125: =IF(ISERROR(VLOOKUP($B125,#REF!,16,0)),0,VLOOKUP($B125,#REF!,16,0)) -> 0 | AK125: 0.05915325284
A126: 106190631 | B126: 50169 | C126: PRESBYTERIAN INTERCOMMUNITY HOSPITAL | D126: 3 | E126: PIH HEALTH | F126: =IFERROR(INDEX('4. FY 2019-20'!AZ:AZ,MATCH(A126,'4. FY 2019-20'!A:A,0)),0) -> 8998481.922 | G126: =IF(F126>0,1,0) -> 1 | H126: =IF(F126<0,1,0) -> 0 | J126: =IFERROR(INDEX('5. FY 2020-21'!AZ:AZ,MATCH(A126,'5. FY 2020-21'!A:A,0)),0) -> 10102405.03 | K126: =IF(J126>0,1,0) -> 1 | L126: =IF(J126<0,1,0) -> 0 | N126: =IFERROR(INDEX('6. FY 2021-22'!AZ:AZ,MATCH(A126,'6. FY 2021-22'!A:A,0)),0) -> 4897582.385 | O126: =IF(N126>0,1,0) -> 1 | P126: =IF(N126<0,1,0) -> 0 | R126: =F126+J126+N126 -> 23998469.33 | S126: =IF(R126>0,1,0) -> 1 | T126: =IF(R126<0,1,0) -> 0 | X126: =F126 -> 8998481.922 | Z126: =J126 -> 10102405.03 | AB126: =N126 -> 4897582.385 | AD126: =R126 -> 23998469.33 | AG126: =IF(ISERROR(VLOOKUP($B126,#REF!,13,0)),0,VLOOKUP($B126,#REF!,13,0)) -> 0 | AH126: =IF(ISERROR(VLOOKUP($B126,#REF!,14,0)),0,VLOOKUP($B126,#REF!,14,0)) -> 0 | AI126: =IF(ISERROR(VLOOKUP($B126,#REF!,13,0)),0,VLOOKUP($B126,#REF!,15,0)) -> 0 | AJ126: =IF(ISERROR(VLOOKUP($B126,#REF!,16,0)),0,VLOOKUP($B126,#REF!,16,0)) -> 0 | AK126: 0.1226788157
A127: 106190243 | B127: 50393 | C127: DOWNEY REGIONAL MEDICAL CENTER | D127: 3 | E127: PIH HEALTH | F127: =IFERROR(INDEX('4. FY 2019-20'!AZ:AZ,MATCH(A127,'4. FY 2019-20'!A:A,0)),0) -> 9744247.131 | G127: 1 | H127: 0 | J127: =IFERROR(INDEX('5. FY 2020-21'!AZ:AZ,MATCH(A127,'5. FY 2020-21'!A:A,0)),0) -> 10297891.45 | K127: 1 | L127: 0 | N127: =IFERROR(INDEX('6. FY 2021-22'!AZ:AZ,MATCH(A127,'6. FY 2021-22'!A:A,0)),0) -> 5138759.197 | O127: 1 | P127: 0 | R127: 25180897.78 | S127: 1 | T127: 0 | X127: 9744247.131 | Z127: 10297891.45 | AB127: 5138759.197 | AD127: 25180897.78 | AG127: =IF(ISERROR(VLOOKUP($B127,#REF!,13,0)),0,VLOOKUP($B127,#REF!,13,0)) -> 0 | AH127: =IF(ISERROR(VLOOKUP($B127,#REF!,14,0)),0,VLOOKUP($B127,#REF!,14,0)) -> 0 | AI127: =IF(ISERROR(VLOOKUP($B127,#REF!,13,0)),0,VLOOKUP($B127,#REF!,15,0)) -> 0 | AJ127: =IF(ISERROR(VLOOKUP($B127,#REF!,16,0)),0,VLOOKUP($B127,#REF!,16,0)) -> 0 | AK127: 0.05681755761
D128: 17 | E128: SYSTEM TOTAL | F128: =SUM(F126:F127) -> 18742729.05 | G128: =SUM(G126:G127) -> 2 | H128: =SUM(H126:H127) -> 0 | I128: =IF(F128<0,1,0) -> 0 | J128: =SUM(J126:J127) -> 20400296.48 | K128: =SUM(K126:K127) -> 2 | L128: =SUM(L126:L127) -> 0 | M128: =IF(J128<0,1,0) -> 0 | N128: =SUM(N126:N127) -> 10036341.58 | O128: =SUM(O126:O127) -> 2 | P128: =SUM(P126:P127) -> 0 | Q128: =IF(N128<0,1,0) -> 0 | R128: =SUM(R126:R127) -> 49179367.12 | S128: =SUM(S126:S127) -> 2 | T128: =SUM(T126:T127) -> 0 | U128: =IF(R128<0,1,0) -> 0 | Y128: =IF(I128=0,0,F128) -> 0 | AA128: =IF(M128=0,0,J128) -> 0 | AC128: =IF(Q128=0,0,N128) -> 0 | AE128: =IF(U128=0,0,R128) -> 0 | AG128: =IF(ISERROR(VLOOKUP($B128,#REF!,13,0)),0,VLOOKUP($B128,#REF!,13,0)) -> 0 | AH128: =IF(ISERROR(VLOOKUP($B128,#REF!,14,0)),0,VLOOKUP($B128,#REF!,14,0)) -> 0 | AI128: =IF(ISERROR(VLOOKUP($B128,#REF!,13,0)),0,VLOOKUP($B128,#REF!,15,0)) -> 0 | AJ128: =IF(ISERROR(VLOOKUP($B128,#REF!,16,0)),0,VLOOKUP($B128,#REF!,16,0)) -> 0 | AK128: 0.08843789096
A129: 106370652 | B129: 50757 | C129: ALVARADO HOSPITAL | D129: 3 | E129: PRIME HEALTHCARE | F129: =IFERROR(INDEX('4. FY 2019-20'!AZ:AZ,MATCH(A129,'4. FY 2019-20'!A:A,0)),0) -> 3636310.99 | G129: =IF(F129>0,1,0) -> 1 | H129: =IF(F129<0,1,0) -> 0 | J129: =IFERROR(INDEX('5. FY 2020-21'!AZ:AZ,MATCH(A129,'5. FY 2020-21'!A:A,0)),0) -> 3951977.991 | K129: =IF(J129>0,1,0) -> 1 | L129: =IF(J129<0,1,0) -> 0 | N129: =IFERROR(INDEX('6. FY 2021-22'!AZ:AZ,MATCH(A129,'6. FY 2021-22'!A:A,0)),0) -> 2020632.934 | O129: =IF(N129>0,1,0) -> 1 | P129: =IF(N129<0,1,0) -> 0 | R129: =F129+J129+N129 -> 9608921.915 | S129: =IF(R129>0,1,0) -> 1 | T129: =IF(R129<0,1,0) -> 0 | X129: =F129 -> 3636310.99 | Z129: =J129 -> 3951977.991 | AB129: =N129 -> 2020632.934 | AD129: =R129 -> 9608921.915 | AG129: =IF(ISERROR(VLOOKUP($B129,#REF!,13,0)),0,VLOOKUP($B129,#REF!,13,0)) -> 0 | AH129: =IF(ISERROR(VLOOKUP($B129,#REF!,14,0)),0,VLOOKUP($B129,#REF!,14,0)) -> 0 | AI129: =IF(ISERROR(VLOOKUP($B129,#REF!,13,0)),0,VLOOKUP($B129,#REF!,15,0)) -> 0 | AJ129: =IF(ISERROR(VLOOKUP($B129,#REF!,16,0)),0,VLOOKUP($B129,#REF!,16,0)) -> 0 | AK129: 0.08680968211
A130: 106190148 | B130: 50739 | C130: CENTINELA FREEMAN REG MED CTR-CENTINELA | D130: 3 | E130: PRIME HEALTHCARE | F130: =IFERROR(INDEX('4. FY 2019-20'!AZ:AZ,MATCH(A130,'4. FY 2019-20'!A:A,0)),0) -> 12512815.86 | G130: 1 | H130: 0 | J130: =IFERROR(INDEX('5. FY 2020-21'!AZ:AZ,MATCH(A130,'5. FY 2020-21'!A:A,0)),0) -> 13265078.81 | K130: 1 | L130: 0 | N130: =IFERROR(INDEX('6. FY 2021-22'!AZ:AZ,MATCH(A130,'6. FY 2021-22'!A:A,0)),0) -> 6861814.457 | O130: 1 | P130: 0 | R130: 32639709.12 | S130: 1 | T130: 0 | X130: 12512815.86 | Z130: 13265078.81 | AB130: 6861814.457 | AD130: 32639709.12 | AG130: =IF(ISERROR(VLOOKUP($B130,#REF!,13,0)),0,VLOOKUP($B130,#REF!,13,0)) -> 0 | AH130: =IF(ISERROR(VLOOKUP($B130,#REF!,14,0)),0,VLOOKUP($B130,#REF!,14,0)) -> 0 | AI130: =IF(ISERROR(VLOOKUP($B130,#REF!,13,0)),0,VLOOKUP($B130,#REF!,15,0)) -> 0 | AJ130: =IF(ISERROR(VLOOKUP($B130,#REF!,16,0)),0,VLOOKUP($B130,#REF!,16,0)) -> 0 | AK130: 0.06011939757
A131: 106361144 | B131: 50586 | C131: CHINO VALLEY MEDICAL CENTER | D131: 3 | E131: PRIME HEALTHCARE | F131: =IFERROR(INDEX('4. FY 2019-20'!AZ:AZ,MATCH(A131,'4. FY 2019-20'!A:A,0)),0) -> 5161194.244 | G131: 1 | H131: 0 | J131: =IFERROR(INDEX('5. FY 2020-21'!AZ:AZ,MATCH(A131,'5. FY 2020-21'!A:A,0)),0) -> 5505793.501 | K131: 1 | L131: 0 | N131: =IFERROR(INDEX('6. FY 2021-22'!AZ:AZ,MATCH(A131,'6. FY 2021-22'!A:A,0)),0) -> 2729340.24 | O131: 1 | P131: 0 | R131: 13396327.99 | S131: 1 | T131: 0 | X131: 5161194.244 | Z131: 5505793.501 | AB131: 2729340.24 | AD131: 13396327.99 | AG131: =IF(ISERROR(VLOOKUP($B131,#REF!,13,0)),0,VLOOKUP($B131,#REF!,13,0)) -> 0 | AH131: =IF(ISERROR(VLOOKUP($B131,#REF!,14,0)),0,VLOOKUP($B131,#REF!,14,0)) -> 0 | AI131: =IF(ISERROR(VLOOKUP($B131,#REF!,13,0)),0,VLOOKUP($B131,#REF!,15,0)) -> 0 | AJ131: =IF(ISERROR(VLOOKUP($B131,#REF!,16,0)),0,VLOOKUP($B131,#REF!,16,0)) -> 0 | AK131: 0.06676734907
A132: 106364144 | B132: 50709 | C132: DESERT VALLEY HOSPITAL | D132: 3 | E132: PRIME HEALTHCARE | F132: =IFERROR(INDEX('4. FY 2019-20'!AZ:AZ,MATCH(A132,'4. FY 2019-20'!A:A,0)),0) -> 11767150.12 | G132: 1 | H132: 0 | J132: =IFERROR(INDEX('5. FY 2020-21'!AZ:AZ,MATCH(A132,'5. FY 2020-21'!A:A,0)),0) -> 12230262.14 | K132: 1 | L132: 0 | N132: =IFERROR(INDEX('6. FY 2021-22'!AZ:AZ,MATCH(A132,'6. FY 2021-22'!A:A,0)),0) -> 6286974.706 | O132: 1 | P132: 0 | R132: 30284386.97 | S132: 1 | T132: 0 | X132: 11767150.12 | Z132: 12230262.14 | AB132: 6286974.706 | AD132: 30284386.97 | AG132: =IF(ISERROR(VLOOKUP($B132,#REF!,13,0)),0,VLOOKUP($B132,#REF!,13,0)) -> 0 | AH132: =IF(ISERROR(VLOOKUP($B132,#REF!,14,0)),0,VLOOKUP($B132,#REF!,14,0)) -> 0 | AI132: =IF(ISERROR(VLOOKUP($B132,#REF!,13,0)),0,VLOOKUP($B132,#REF!,15,0)) -> 0 | AJ132: =IF(ISERROR(VLOOKUP($B132,#REF!,16,0)),0,VLOOKUP($B132,#REF!,16,0)) -> 0 | AK132: 0.0393563449
A133: 106301283 | B133: 50230 | C133: GARDEN GROVE HOSP & MEDICAL CENTER | D133: 3 | E133: PRIME HEALTHCARE | F133: =IFERROR(INDEX('4. FY 2019-20'!AZ:AZ,MATCH(A133,'4. FY 2019-20'!A:A,0)),0) -> 8118151.05 | G133: 1 | H133: 0 | J133: =IFERROR(INDEX('5. FY 2020-21'!AZ:AZ,MATCH(A133,'5. FY 2020-21'!A:A,0)),0) -> 8714813.813 | K133: 1 | L133: 0 | N133: =IFERROR(INDEX('6. FY 2021-22'!AZ:AZ,MATCH(A133,'6. FY 2021-22'!A:A,0)),0) -> 4366880.789 | O133: 1 | P133: 0 | R133: 21199845.65 | S133: 1 | T133: 0 | X133: 8118151.05 | Z133: 8714813.813 | AB133: 4366880.789 | AD133: 21199845.65 | AG133: =IF(ISERROR(VLOOKUP($B133,#REF!,13,0)),0,VLOOKUP($B133,#REF!,13,0)) -> 0 | AH133: =IF(ISERROR(VLOOKUP($B133,#REF!,14,0)),0,VLOOKUP($B133,#REF!,14,0)) -> 0 | AI133: =IF(ISERROR(VLOOKUP($B133,#REF!,13,0)),0,VLOOKUP($B133,#REF!,15,0)) -> 0 | AJ133: =IF(ISERROR(VLOOKUP($B133,#REF!,16,0)),0,VLOOKUP($B133,#REF!,16,0)) -> 0 | AK133: 0.07349737139
A134: 106370759 | B134: 50024 | C134: PARADISE VALLEY HOSPITAL | D134: 3 | E134: PRIME HEALTHCARE | F134: =IFERROR(INDEX('4. FY 2019-20'!AZ:AZ,MATCH(A134,'4. FY 2019-20'!A:A,0)),0) -> 16302224.08 | G134: 1 | H134: 0 | J134: =IFERROR(INDEX('5. FY 2020-21'!AZ:AZ,MATCH(A134,'5. FY 2020-21'!A:A,0)),0) -> 16438637.61 | K134: 1 | L134: 0 | N134: =IFERROR(INDEX('6. FY 2021-22'!AZ:AZ,MATCH(A134,'6. FY 2021-22'!A:A,0)),0) -> 8590688.942 | O134: 1 | P134: 0 | R134: 41331550.63 | S134: 1 | T134: 0 | X134: 16302224.08 | Z134: 16438637.61 | AB134: 8590688.942 | AD134: 41331550.63 | AG134: =IF(ISERROR(VLOOKUP($B134,#REF!,13,0)),0,VLOOKUP($B134,#REF!,13,0)) -> 0 | AH134: =IF(ISERROR(VLOOKUP($B134,#REF!,14,0)),0,VLOOKUP($B134,#REF!,14,0)) -> 0 | AI134: =IF(ISERROR(VLOOKUP($B134,#REF!,13,0)),0,VLOOKUP($B134,#REF!,15,0)) -> 0 | AJ134: =IF(ISERROR(VLOOKUP($B134,#REF!,16,0)),0,VLOOKUP($B134,#REF!,16,0)) -> 0 | AK134: 0.008367786609
A135: 106190673 | B135: 50588 | C135: SAN DIMAS COMMUNITY HOSPITAL | D135: 3 | E135: PRIME HEALTHCARE | F135: =IFERROR(INDEX('4. FY 2019-20'!AZ:AZ,MATCH(A135,'4. FY 2019-20'!A:A,0)),0) -> -535795.8642 | G135: 0 | H135: 1 | J135: =IFERROR(INDEX('5. FY 2020-21'!AZ:AZ,MATCH(A135,'5. FY 2020-21'!A:A,0)),0) -> -567187.0792 | K135: 0 | L135: 1 | N135: =IFERROR(INDEX('6. FY 2021-22'!AZ:AZ,MATCH(A135,'6. FY 2021-22'!A:A,0)),0) -> -282741.4909 | O135: 0 | P135: 1 | R135: -1385724.434 | S135: 0 | T135: 1 | X135: -535795.8642 | Z135: -567187.0792 | AB135: -282741.4909 | AD135: -1385724.434 | AG135: =IF(ISERROR(VLOOKUP($B135,#REF!,13,0)),0,VLOOKUP($B135,#REF!,13,0)) -> 0 | AH135: =IF(ISERROR(VLOOKUP($B135,#REF!,14,0)),0,VLOOKUP($B135,#REF!,14,0)) -> 0 | AI135: =IF(ISERROR(VLOOKUP($B135,#REF!,13,0)),0,VLOOKUP($B135,#REF!,15,0)) -> 0 | AJ135: =IF(ISERROR(VLOOKUP($B135,#REF!,16,0)),0,VLOOKUP($B135,#REF!,16,0)) -> 0 | AK135: 0.05858801294
A136: 106450940 | B136: 50764 | C136: SHASTA REGIONAL MEDICAL CENTER | D136: 3 | E136: PRIME HEALTHCARE | F136: =IFERROR(INDEX('4. FY 2019-20'!AZ:AZ,MATCH(A136,'4. FY 2019-20'!A:A,0)),0) -> 2188892.015 | G136: 1 | H136: 0 | J136: =IFERROR(INDEX('5. FY 2020-21'!AZ:AZ,MATCH(A136,'5. FY 2020-21'!A:A,0)),0) -> 1805578.243 | K136: 1 | L136: 0 | N136: =IFERROR(INDEX('6. FY 2021-22'!AZ:AZ,MATCH(A136,'6. FY 2021-22'!A:A,0)),0) -> 1158625.516 | O136: 1 | P136: 0 | R136: 5153095.774 | S136: 1 | T136: 0 | X136: 2188892.015 | Z136: 1805578.243 | AB136: 1158625.516 | AD136: 5153095.774 | AG136: =IF(ISERROR(VLOOKUP($B136,#REF!,13,0)),0,VLOOKUP($B136,#REF!,13,0)) -> 0 | AH136: =IF(ISERROR(VLOOKUP($B136,#REF!,14,0)),0,VLOOKUP($B136,#REF!,14,0)) -> 0 | AI136: =IF(ISERROR(VLOOKUP($B136,#REF!,13,0)),0,VLOOKUP($B136,#REF!,15,0)) -> 0 | AJ136: =IF(ISERROR(VLOOKUP($B136,#REF!,16,0)),0,VLOOKUP($B136,#REF!,16,0)) -> 0 | AK136: -0.1751177169
A137: 106301379 | B137: 50426 | C137: WEST ANAHEIM MEDICAL CENTER | D137: 3 | E137: PRIME HEALTHCARE | F137: =IFERROR(INDEX('4. FY 2019-20'!AZ:AZ,MATCH(A137,'4. FY 2019-20'!A:A,0)),0) -> 818559.7431 | G137: 1 | H137: 0 | J137: =IFERROR(INDEX('5. FY 2020-21'!AZ:AZ,MATCH(A137,'5. FY 2020-21'!A:A,0)),0) -> 635024.185 | K137: 1 | L137: 0 | N137: =IFERROR(INDEX('6. FY 2021-22'!AZ:AZ,MATCH(A137,'6. FY 2021-22'!A:A,0)),0) -> 461020.6231 | O137: 1 | P137: 0 | R137: 1914604.551 | S137: 1 | T137: 0 | X137: 818559.7431 | Z137: 635024.185 | AB137: 461020.6231 | AD137: 1914604.551 | AG137: =IF(ISERROR(VLOOKUP($B137,#REF!,13,0)),0,VLOOKUP($B137,#REF!,13,0)) -> 0 | AH137: =IF(ISERROR(VLOOKUP($B137,#REF!,14,0)),0,VLOOKUP($B137,#REF!,14,0)) -> 0 | AI137: =IF(ISERROR(VLOOKUP($B137,#REF!,13,0)),0,VLOOKUP($B137,#REF!,15,0)) -> 0 | AJ137: =IF(ISERROR(VLOOKUP($B137,#REF!,16,0)),0,VLOOKUP($B137,#REF!,16,0)) -> 0 | AK137: -0.2242176696
D138: 18 | E138: SYSTEM TOTAL | F138: =SUM(F129:F137) -> 59969502.24 | G138: =SUM(G129:G137) -> 8 | H138: =SUM(H129:H137) -> 1 | I138: =IF(F138<0,1,0) -> 0 | J138: =SUM(J129:J137) -> 61979979.21 | K138: =SUM(K129:K137) -> 8 | L138: =SUM(L129:L137) -> 1 | M138: =IF(J138<0,1,0) -> 0 | N138: =SUM(N129:N137) -> 32193236.72 | O138: =SUM(O129:O137) -> 8 | P138: =SUM(P129:P137) -> 1 | Q138: =IF(N138<0,1,0) -> 0 | R138: =SUM(R129:R137) -> 154142718.2 | S138: =SUM(S129:S137) -> 8 | T138: =SUM(T129:T137) -> 1 | U138: =IF(R138<0,1,0) -> 0 | Y138: =IF(I138=0,0,F138) -> 0 | AA138: =IF(M138=0,0,J138) -> 0 | AC138: =IF(Q138=0,0,N138) -> 0 | AE138: =IF(U138=0,0,R138) -> 0 | AG138: =IF(ISERROR(VLOOKUP($B138,#REF!,13,0)),0,VLOOKUP($B138,#REF!,13,0)) -> 0 | AH138: =IF(ISERROR(VLOOKUP($B138,#REF!,14,0)),0,VLOOKUP($B138,#REF!,14,0)) -> 0 | AI138: =IF(ISERROR(VLOOKUP($B138,#REF!,13,0)),0,VLOOKUP($B138,#REF!,15,0)) -> 0 | AJ138: =IF(ISERROR(VLOOKUP($B138,#REF!,16,0)),0,VLOOKUP($B138,#REF!,16,0)) -> 0 | AK138: 0.03352499026
A139: 106190280 | B139: 50158 | C139: ENCINO TARZANA RGNL MC - ENCINO | D139: 3 | E139: PRIME HEALTHCARE FOUNDATION | F139: =IFERROR(INDEX('4. FY 2019-20'!AZ:AZ,MATCH(A139,'4. FY 2019-20'!A:A,0)),0) -> 1679413.579 | G139: =IF(F139>0,1,0) -> 1 | H139: =IF(F139<0,1,0) -> 0 | J139: =IFERROR(INDEX('5. FY 2020-21'!AZ:AZ,MATCH(A139,'5. FY 2020-21'!A:A,0)),0) -> 1567776.174 | K139: =IF(J139>0,1,0) -> 1 | L139: =IF(J139<0,1,0) -> 0 | N139: =IFERROR(INDEX('6. FY 2021-22'!AZ:AZ,MATCH(A139,'6. FY 2021-22'!A:A,0)),0) -> 830674.7605 | O139: =IF(N139>0,1,0) -> 1 | P139: =IF(N139<0,1,0) -> 0 | R139: =F139+J139+N139 -> 4077864.514 | S139: =IF(R139>0,1,0) -> 1 | T139: =IF(R139<0,1,0) -> 0 | X139: =F139 -> 1679413.579 | Z139: =J139 -> 1567776.174 | AB139: =N139 -> 830674.7605 | AD139: =R139 -> 4077864.514 | AG139: =IF(ISERROR(VLOOKUP($B139,#REF!,13,0)),0,VLOOKUP($B139,#REF!,13,0)) -> 0 | AH139: =IF(ISERROR(VLOOKUP($B139,#REF!,14,0)),0,VLOOKUP($B139,#REF!,14,0)) -> 0 | AI139: =IF(ISERROR(VLOOKUP($B139,#REF!,13,0)),0,VLOOKUP($B139,#REF!,15,0)) -> 0 | AJ139: =IF(ISERROR(VLOOKUP($B139,#REF!,16,0)),0,VLOOKUP($B139,#REF!,16,0)) -> 0 | AK139: -0.06647403953
A140: 106361166 | B140: 50758 | C140: MONTCLAIR HOSPITAL MEDICAL CENTER | D140: 3 | E140: PRIME HEALTHCARE FOUNDATION | F140: =IFERROR(INDEX('4. FY 2019-20'!AZ:AZ,MATCH(A140,'4. FY 2019-20'!A:A,0)),0) -> 7533743.901 | G140: 1 | H140: 0 | J140: =IFERROR(INDEX('5. FY 2020-21'!AZ:AZ,MATCH(A140,'5. FY 2020-21'!A:A,0)),0) -> 7744981.53 | K140: 1 | L140: 0 | N140: =IFERROR(INDEX('6. FY 2021-22'!AZ:AZ,MATCH(A140,'6. FY 2021-22'!A:A,0)),0) -> 3904794.194 | O140: 1 | P140: 0 | R140: 19183519.63 | S140: 1 | T140: 0 | X140: 7533743.901 | Z140: 7744981.53 | AB140: 3904794.194 | AD140: 19183519.63 | AG140: =IF(ISERROR(VLOOKUP($B140,#REF!,13,0)),0,VLOOKUP($B140,#REF!,13,0)) -> 0 | AH140: =IF(ISERROR(VLOOKUP($B140,#REF!,14,0)),0,VLOOKUP($B140,#REF!,14,0)) -> 0 | AI140: =IF(ISERROR(VLOOKUP($B140,#REF!,13,0)),0,VLOOKUP($B140,#REF!,15,0)) -> 0 | AJ140: =IF(ISERROR(VLOOKUP($B140,#REF!,16,0)),0,VLOOKUP($B140,#REF!,16,0)) -> 0 | AK140: 0.02803886512
A141: 106190328 | B141: 50205 | C141: GLENDORA COMMUNITY HOSPITAL | D141: 3 | E141: PRIME HEALTHCARE FOUNDATION | F141: =IFERROR(INDEX('4. FY 2019-20'!AZ:AZ,MATCH(A141,'4. FY 2019-20'!A:A,0)),0) -> -1936414.61 | G141: 0 | H141: 1 | J141: =IFERROR(INDEX('5. FY 2020-21'!AZ:AZ,MATCH(A141,'5. FY 2020-21'!A:A,0)),0) -> -2073402.522 | K141: 0 | L141: 1 | N141: =IFERROR(INDEX('6. FY 2021-22'!AZ:AZ,MATCH(A141,'6. FY 2021-22'!A:A,0)),0) -> -967815.5329 | O141: 0 | P141: 1 | R141: -4977632.665 | S141: 0 | T141: 1 | X141: -1936414.61 | Z141: -2073402.522 | AB141: -967815.5329 | AD141: -4977632.665 | AG141: =IF(ISERROR(VLOOKUP($B141,#REF!,13,0)),0,VLOOKUP($B141,#REF!,13,0)) -> 0 | AH141: =IF(ISERROR(VLOOKUP($B141,#REF!,14,0)),0,VLOOKUP($B141,#REF!,14,0)) -> 0 | AI141: =IF(ISERROR(VLOOKUP($B141,#REF!,13,0)),0,VLOOKUP($B141,#REF!,15,0)) -> 0 | AJ141: =IF(ISERROR(VLOOKUP($B141,#REF!,16,0)),0,VLOOKUP($B141,#REF!,16,0)) -> 0 | AK141: =(J141-F141)/F141 -> 0.07074306859
A142: 106301209 | B142: 50526 | C142: HUNTINGTON BEACH HOSPITAL | D142: 3 | E142: PRIME HEALTHCARE FOUNDATION | F142: =IFERROR(INDEX('4. FY 2019-20'!AZ:AZ,MATCH(A142,'4. FY 2019-20'!A:A,0)),0) -> -1060578.137 | G142: 0 | H142: 1 | J142: =IFERROR(INDEX('5. FY 2020-21'!AZ:AZ,MATCH(A142,'5. FY 2020-21'!A:A,0)),0) -> -1223081.093 | K142: 0 | L142: 1 | N142: =IFERROR(INDEX('6. FY 2021-22'!AZ:AZ,MATCH(A142,'6. FY 2021-22'!A:A,0)),0) -> -543083.4977 | O142: 0 | P142: 1 | R142: -2826742.728 | S142: 0 | T142: 1 | X142: -1060578.137 | Z142: -1223081.093 | AB142: -543083.4977 | AD142: -2826742.728 | AG142: =IF(ISERROR(VLOOKUP($B142,#REF!,13,0)),0,VLOOKUP($B142,#REF!,13,0)) -> 0 | AH142: =IF(ISERROR(VLOOKUP($B142,#REF!,14,0)),0,VLOOKUP($B142,#REF!,14,0)) -> 0 | AI142: =IF(ISERROR(VLOOKUP($B142,#REF!,13,0)),0,VLOOKUP($B142,#REF!,15,0)) -> 0 | AJ142: =IF(ISERROR(VLOOKUP($B142,#REF!,16,0)),0,VLOOKUP($B142,#REF!,16,0)) -> 0 | AK142: 0.1532211069
A143: 106301234 | B143: 50580 | C143: LA PALMA INTERCOMMUNITY HOSPITAL | D143: 3 | E143: PRIME HEALTHCARE FOUNDATION | F143: =IFERROR(INDEX('4. FY 2019-20'!AZ:AZ,MATCH(A143,'4. FY 2019-20'!A:A,0)),0) -> -1263990.462 | G143: 0 | H143: 1 | J143: =IFERROR(INDEX('5. FY 2020-21'!AZ:AZ,MATCH(A143,'5. FY 2020-21'!A:A,0)),0) -> -1226206.152 | K143: 0 | L143: 1 | N143: =IFERROR(INDEX('6. FY 2021-22'!AZ:AZ,MATCH(A143,'6. FY 2021-22'!A:A,0)),0) -> -570067.5519 | O143: 0 | P143: 1 | R143: -3060264.165 | S143: 0 | T143: 1 | X143: -1263990.462 | Z143: -1226206.152 | AB143: -570067.5519 | AD143: -3060264.165 | AG143: =IF(ISERROR(VLOOKUP($B143,#REF!,13,0)),0,VLOOKUP($B143,#REF!,13,0)) -> 0 | AH143: =IF(ISERROR(VLOOKUP($B143,#REF!,14,0)),0,VLOOKUP($B143,#REF!,14,0)) -> 0 | AI143: =IF(ISERROR(VLOOKUP($B143,#REF!,13,0)),0,VLOOKUP($B143,#REF!,15,0)) -> 0 | AJ143: =IF(ISERROR(VLOOKUP($B143,#REF!,16,0)),0,VLOOKUP($B143,#REF!,16,0)) -> 0 | AK143: -0.02989287629
A144: 106190708 | B144: 50755 | C144: SHERMAN OAKS HOSPITAL & HEALTH CENTER | D144: 3 | E144: PRIME HEALTHCARE FOUNDATION | F144: =IFERROR(INDEX('4. FY 2019-20'!AZ:AZ,MATCH(A144,'4. FY 2019-20'!A:A,0)),0) -> 310713.7109 | G144: 1 | H144: 0 | J144: =IFERROR(INDEX('5. FY 2020-21'!AZ:AZ,MATCH(A144,'5. FY 2020-21'!A:A,0)),0) -> 272910.8014 | K144: 1 | L144: 0 | N144: =IFERROR(INDEX('6. FY 2021-22'!AZ:AZ,MATCH(A144,'6. FY 2021-22'!A:A,0)),0) -> 240832.9272 | O144: 1 | P144: 0 | R144: 824457.4395 | S144: 1 | T144: 0 | X144: 310713.7109 | Z144: 272910.8014 | AB144: 240832.9272 | AD144: 824457.4395 | AG144: =IF(ISERROR(VLOOKUP($B144,#REF!,13,0)),0,VLOOKUP($B144,#REF!,13,0)) -> 0 | AH144: =IF(ISERROR(VLOOKUP($B144,#REF!,14,0)),0,VLOOKUP($B144,#REF!,14,0)) -> 0 | AI144: =IF(ISERROR(VLOOKUP($B144,#REF!,13,0)),0,VLOOKUP($B144,#REF!,15,0)) -> 0 | AJ144: =IF(ISERROR(VLOOKUP($B144,#REF!,16,0)),0,VLOOKUP($B144,#REF!,16,0)) -> 0 | AK144: -0.1216647612
D145: 19 | E145: SYSTEM TOTAL | F145: =SUM(F139:F144) -> 5262887.982 | G145: =SUM(G139:G144) -> 3 | H145: =SUM(H139:H144) -> 3 | I145: =IF(F145<0,1,0) -> 0 | J145: =SUM(J139:J144) -> 5062978.739 | K145: =SUM(K139:K144) -> 3 | L145: =SUM(L139:L144) -> 3 | M145: =IF(J145<0,1,0) -> 0 | N145: =SUM(N139:N144) -> 2895335.299 | O145: =SUM(O139:O144) -> 3 | P145: =SUM(P139:P144) -> 3 | Q145: =IF(N145<0,1,0) -> 0 | R145: =SUM(R139:R144) -> 13221202.02 | S145: =SUM(S139:S144) -> 3 | T145: =SUM(T139:T144) -> 3 | U145: =IF(R145<0,1,0) -> 0 | Y145: =IF(I145=0,0,F145) -> 0 | AA145: =IF(M145=0,0,J145) -> 0 | AC145: =IF(Q145=0,0,N145) -> 0 | AE145: =IF(U145=0,0,R145) -> 0 | AG145: =IF(ISERROR(VLOOKUP($B145,#REF!,13,0)),0,VLOOKUP($B145,#REF!,13,0)) -> 0 | AH145: =IF(ISERROR(VLOOKUP($B145,#REF!,14,0)),0,VLOOKUP($B145,#REF!,14,0)) -> 0 | AI145: =IF(ISERROR(VLOOKUP($B145,#REF!,13,0)),0,VLOOKUP($B145,#REF!,15,0)) -> 0 | AJ145: =IF(ISERROR(VLOOKUP($B145,#REF!,16,0)),0,VLOOKUP($B145,#REF!,16,0)) -> 0 | AK145: -0.03798470401
A146: 106190066 | B146: 50531 | C146: BELLFLOWER MEDICAL CENTER | D146: 3 | E146: PROSPECT MEDICAL HOLDINGS | F146: =IFERROR(INDEX('4. FY 2019-20'!AZ:AZ,MATCH(A146,'4. FY 2019-20'!A:A,0)),0) -> 0 | G146: =IF(F146>0,1,0) -> 0 | H146: =IF(F146<0,1,0) -> 0 | J146: =IFERROR(INDEX('5. FY 2020-21'!AZ:AZ,MATCH(A146,'5. FY 2020-21'!A:A,0)),0) -> 0 | K146: =IF(J146>0,1,0) -> 0 | L146: =IF(J146<0,1,0) -> 0 | N146: =IFERROR(INDEX('6. FY 2021-22'!AZ:AZ,MATCH(A146,'6. FY 2021-22'!A:A,0)),0) -> 0 | O146: =IF(N146>0,1,0) -> 0 | P146: =IF(N146<0,1,0) -> 0 | R146: =F146+J146+N146 -> 0 | S146: =IF(R146>0,1,0) -> 0 | T146: =IF(R146<0,1,0) -> 0 | X146: =F146 -> 0 | Z146: =J146 -> 0 | AB146: =N146 -> 0 | AD146: =R146 -> 0 | AG146: =IF(ISERROR(VLOOKUP($B146,#REF!,13,0)),0,VLOOKUP($B146,#REF!,13,0)) -> 0 | AH146: =IF(ISERROR(VLOOKUP($B146,#REF!,14,0)),0,VLOOKUP($B146,#REF!,14,0)) -> 0 | AI146: =IF(ISERROR(VLOOKUP($B146,#REF!,13,0)),0,VLOOKUP($B146,#REF!,15,0)) -> 0 | AJ146: =IF(ISERROR(VLOOKUP($B146,#REF!,16,0)),0,VLOOKUP($B146,#REF!,16,0)) -> 0
A147: 106301357 | B147: 50780 | C147: FOOTHILL REGIONAL MEDICAL CENTER | D147: 3 | E147: PROSPECT MEDICAL HOLDINGS | F147: =IFERROR(INDEX('4. FY 2019-20'!AZ:AZ,MATCH(A147,'4. FY 2019-20'!A:A,0)),0) -> 7373629.975 | G147: 1 | H147: 0 | J147: =IFERROR(INDEX('5. FY 2020-21'!AZ:AZ,MATCH(A147,'5. FY 2020-21'!A:A,0)),0) -> 7412908.447 | K147: 1 | L147: 0 | N147: =IFERROR(INDEX('6. FY 2021-22'!AZ:AZ,MATCH(A147,'6. FY 2021-22'!A:A,0)),0) -> 3771503.012 | O147: 1 | P147: 0 | R147: 18558041.43 | S147: 1 | T147: 0 | X147: 7373629.975 | Z147: 7412908.447 | AB147: 3771503.012 | AD147: 18558041.43 | AG147: =IF(ISERROR(VLOOKUP($B147,#REF!,13,0)),0,VLOOKUP($B147,#REF!,13,0)) -> 0 | AH147: =IF(ISERROR(VLOOKUP($B147,#REF!,14,0)),0,VLOOKUP($B147,#REF!,14,0)) -> 0 | AI147: =IF(ISERROR(VLOOKUP($B147,#REF!,13,0)),0,VLOOKUP($B147,#REF!,15,0)) -> 0 | AJ147: =IF(ISERROR(VLOOKUP($B147,#REF!,16,0)),0,VLOOKUP($B147,#REF!,16,0)) -> 0 | AK147: 0.005326884168
A148: 106190380 | B148: 50135 | C148: SOUTHERN CALIFORNIA HOSP AT HOLLYWOOD | D148: 3 | E148: PROSPECT MEDICAL HOLDINGS | F148: =IFERROR(INDEX('4. FY 2019-20'!AZ:AZ,MATCH(A148,'4. FY 2019-20'!A:A,0)),0) -> 24398377.46 | G148: 1 | H148: 0 | J148: =IFERROR(INDEX('5. FY 2020-21'!AZ:AZ,MATCH(A148,'5. FY 2020-21'!A:A,0)),0) -> 25023016.5 | K148: 1 | L148: 0 | N148: =IFERROR(INDEX('6. FY 2021-22'!AZ:AZ,MATCH(A148,'6. FY 2021-22'!A:A,0)),0) -> 13128549.49 | O148: 1 | P148: 0 | R148: 62549943.45 | S148: 1 | T148: 0 | X148: 24398377.46 | Z148: 25023016.5 | AB148: 13128549.49 | AD148: 62549943.45 | AG148: =IF(ISERROR(VLOOKUP($B148,#REF!,13,0)),0,VLOOKUP($B148,#REF!,13,0)) -> 0 | AH148: =IF(ISERROR(VLOOKUP($B148,#REF!,14,0)),0,VLOOKUP($B148,#REF!,14,0)) -> 0 | AI148: =IF(ISERROR(VLOOKUP($B148,#REF!,13,0)),0,VLOOKUP($B148,#REF!,15,0)) -> 0 | AJ148: =IF(ISERROR(VLOOKUP($B148,#REF!,16,0)),0,VLOOKUP($B148,#REF!,16,0)) -> 0 | AK148: 0.02560166278
A149: 106190198 | B149: 50663 | C149: LOS ANGELES COMMUNITY HOSPITAL | D149: 3 | E149: PROSPECT MEDICAL HOLDINGS | F149: =IFERROR(INDEX('4. FY 2019-20'!AZ:AZ,MATCH(A149,'4. FY 2019-20'!A:A,0)),0) -> 28623784.11 | G149: 1 | H149: 0 | J149: =IFERROR(INDEX('5. FY 2020-21'!AZ:AZ,MATCH(A149,'5. FY 2020-21'!A:A,0)),0) -> 30033517.07 | K149: 1 | L149: 0 | N149: =IFERROR(INDEX('6. FY 2021-22'!AZ:AZ,MATCH(A149,'6. FY 2021-22'!A:A,0)),0) -> 15342900.22 | O149: 1 | P149: 0 | R149: 74000201.4 | S149: 1 | T149: 0 | X149: 28623784.11 | Z149: 30033517.07 | AB149: 15342900.22 | AD149: 74000201.4 | AG149: =IF(ISERROR(VLOOKUP($B149,#REF!,13,0)),0,VLOOKUP($B149,#REF!,13,0)) -> 0 | AH149: =IF(ISERROR(VLOOKUP($B149,#REF!,14,0)),0,VLOOKUP($B149,#REF!,14,0)) -> 0 | AI149: =IF(ISERROR(VLOOKUP($B149,#REF!,13,0)),0,VLOOKUP($B149,#REF!,15,0)) -> 0 | AJ149: =IF(ISERROR(VLOOKUP($B149,#REF!,16,0)),0,VLOOKUP($B149,#REF!,16,0)) -> 0 | AK149: 0.04925040477
D150: 20 | E150: SYSTEM TOTAL | F150: =SUM(F146:F149) -> 60395791.55 | G150: =SUM(G146:G149) -> 3 | H150: =SUM(H146:H149) -> 0 | I150: =IF(F150<0,1,0) -> 0 | J150: =SUM(J146:J149) -> 62469442.01 | K150: =SUM(K146:K149) -> 3 | L150: =SUM(L146:L149) -> 0 | M150: =IF(J150<0,1,0) -> 0 | N150: =SUM(N146:N149) -> 32242952.72 | O150: =SUM(O146:O149) -> 3 | P150: =SUM(P146:P149) -> 0 | Q150: =IF(N150<0,1,0) -> 0 | R150: =SUM(R146:R149) -> 155108186.3 | S150: =SUM(S146:S149) -> 3 | T150: =SUM(T146:T149) -> 0 | U150: =IF(R150<0,1,0) -> 0 | Y150: =IF(I150=0,0,F150) -> 0 | AA150: =IF(M150=0,0,J150) -> 0 | AC150: =IF(Q150=0,0,N150) -> 0 | AE150: =IF(U150=0,0,R150) -> 0 | AG150: =IF(ISERROR(VLOOKUP($B150,#REF!,13,0)),0,VLOOKUP($B150,#REF!,13,0)) -> 0 | AH150: =IF(ISERROR(VLOOKUP($B150,#REF!,14,0)),0,VLOOKUP($B150,#REF!,14,0)) -> 0 | AI150: =IF(ISERROR(VLOOKUP($B150,#REF!,13,0)),0,VLOOKUP($B150,#REF!,15,0)) -> 0 | AJ150: =IF(ISERROR(VLOOKUP($B150,#REF!,16,0)),0,VLOOKUP($B150,#REF!,16,0)) -> 0 | AK150: 0.03433435353
A151: 106190680 | B151: 50078 | C151: LITTLE CO OF MARY-SAN PEDRO HOSPITAL | D151: 3 | E151: PROVIDENCE ST JOSEPH HEALTH SYSTEM | F151: =IFERROR(INDEX('4. FY 2019-20'!AZ:AZ,MATCH(A151,'4. FY 2019-20'!A:A,0)),0) -> 16824832.51 | G151: =IF(F151>0,1,0) -> 1 | H151: =IF(F151<0,1,0) -> 0 | J151: =IFERROR(INDEX('5. FY 2020-21'!AZ:AZ,MATCH(A151,'5. FY 2020-21'!A:A,0)),0) -> 17040306.5 | K151: =IF(J151>0,1,0) -> 1 | L151: =IF(J151<0,1,0) -> 0 | N151: =IFERROR(INDEX('6. FY 2021-22'!AZ:AZ,MATCH(A151,'6. FY 2021-22'!A:A,0)),0) -> 8529659.302 | O151: =IF(N151>0,1,0) -> 1 | P151: =IF(N151<0,1,0) -> 0 | R151: =F151+J151+N151 -> 42394798.31 | S151: =IF(R151>0,1,0) -> 1 | T151: =IF(R151<0,1,0) -> 0 | X151: =F151 -> 16824832.51 | Z151: =J151 -> 17040306.5 | AB151: =N151 -> 8529659.302 | AD151: =R151 -> 42394798.31 | AG151: =IF(ISERROR(VLOOKUP($B151,#REF!,13,0)),0,VLOOKUP($B151,#REF!,13,0)) -> 0 | AH151: =IF(ISERROR(VLOOKUP($B151,#REF!,14,0)),0,VLOOKUP($B151,#REF!,14,0)) -> 0 | AI151: =IF(ISERROR(VLOOKUP($B151,#REF!,13,0)),0,VLOOKUP($B151,#REF!,15,0)) -> 0 | AJ151: =IF(ISERROR(VLOOKUP($B151,#REF!,16,0)),0,VLOOKUP($B151,#REF!,16,0)) -> 0 | AK151: 0.01280690296
A152: 106190470 | B152: 50353 | C152: LITTLE COMPANY OF MARY HOSPITAL | D152: 3 | E152: PROVIDENCE ST JOSEPH HEALTH SYSTEM | F152: =IFERROR(INDEX('4. FY 2019-20'!AZ:AZ,MATCH(A152,'4. FY 2019-20'!A:A,0)),0) -> 9113713.246 | G152: 1 | H152: 0 | J152: =IFERROR(INDEX('5. FY 2020-21'!AZ:AZ,MATCH(A152,'5. FY 2020-21'!A:A,0)),0) -> 10162383.29 | K152: 1 | L152: 0 | N152: =IFERROR(INDEX('6. FY 2021-22'!AZ:AZ,MATCH(A152,'6. FY 2021-22'!A:A,0)),0) -> 4920602.289 | O152: 1 | P152: 0 | R152: 24196698.82 | S152: 1 | T152: 0 | X152: 9113713.246 | Z152: 10162383.29 | AB152: 4920602.289 | AD152: 24196698.82 | AG152: =IF(ISERROR(VLOOKUP($B152,#REF!,13,0)),0,VLOOKUP($B152,#REF!,13,0)) -> 0 | AH152: =IF(ISERROR(VLOOKUP($B152,#REF!,14,0)),0,VLOOKUP($B152,#REF!,14,0)) -> 0 | AI152: =IF(ISERROR(VLOOKUP($B152,#REF!,13,0)),0,VLOOKUP($B152,#REF!,15,0)) -> 0 | AJ152: =IF(ISERROR(VLOOKUP($B152,#REF!,16,0)),0,VLOOKUP($B152,#REF!,16,0)) -> 0 | AK152: 0.1150650692
A153: 106190385 | B153: 50278 | C153: PROVIDENCE HOLY CROSS MEDICAL CENTER | D153: 3 | E153: PROVIDENCE ST JOSEPH HEALTH SYSTEM | F153: =IFERROR(INDEX('4. FY 2019-20'!AZ:AZ,MATCH(A153,'4. FY 2019-20'!A:A,0)),0) -> 42132990.36 | G153: 1 | H153: 0 | J153: =IFERROR(INDEX('5. FY 2020-21'!AZ:AZ,MATCH(A153,'5. FY 2020-21'!A:A,0)),0) -> 44458528.61 | K153: 1 | L153: 0 | N153: =IFERROR(INDEX('6. FY 2021-22'!AZ:AZ,MATCH(A153,'6. FY 2021-22'!A:A,0)),0) -> 22261519.88 | O153: 1 | P153: 0 | R153: 108853038.9 | S153: 1 | T153: 0 | X153: 42132990.36 | Z153: 44458528.61 | AB153: 22261519.88 | AD153: 108853038.9 | AG153: =IF(ISERROR(VLOOKUP($B153,#REF!,13,0)),0,VLOOKUP($B153,#REF!,13,0)) -> 0 | AH153: =IF(ISERROR(VLOOKUP($B153,#REF!,14,0)),0,VLOOKUP($B153,#REF!,14,0)) -> 0 | AI153: =IF(ISERROR(VLOOKUP($B153,#REF!,13,0)),0,VLOOKUP($B153,#REF!,15,0)) -> 0 | AJ153: =IF(ISERROR(VLOOKUP($B153,#REF!,16,0)),0,VLOOKUP($B153,#REF!,16,0)) -> 0 | AK153: 0.05519518636
A154: 106190758 | B154: 50235 | C154: PROVIDENCE SAINT JOSEPH MEDICAL CENTER | D154: 3 | E154: PROVIDENCE ST JOSEPH HEALTH SYSTEM | F154: =IFERROR(INDEX('4. FY 2019-20'!AZ:AZ,MATCH(A154,'4. FY 2019-20'!A:A,0)),0) -> 10156540.14 | G154: 1 | H154: 0 | J154: =IFERROR(INDEX('5. FY 2020-21'!AZ:AZ,MATCH(A154,'5. FY 2020-21'!A:A,0)),0) -> 11091504.19 | K154: 1 | L154: 0 | N154: =IFERROR(INDEX('6. FY 2021-22'!AZ:AZ,MATCH(A154,'6. FY 2021-22'!A:A,0)),0) -> 5626799.705 | O154: 1 | P154: 0 | R154: 26874844.04 | S154: 1 | T154: 0 | X154: 10156540.14 | Z154: 11091504.19 | AB154: 5626799.705 | AD154: 26874844.04 | AG154: =IF(ISERROR(VLOOKUP($B154,#REF!,13,0)),0,VLOOKUP($B154,#REF!,13,0)) -> 0 | AH154: =IF(ISERROR(VLOOKUP($B154,#REF!,14,0)),0,VLOOKUP($B154,#REF!,14,0)) -> 0 | AI154: =IF(ISERROR(VLOOKUP($B154,#REF!,13,0)),0,VLOOKUP($B154,#REF!,15,0)) -> 0 | AJ154: =IF(ISERROR(VLOOKUP($B154,#REF!,16,0)),0,VLOOKUP($B154,#REF!,16,0)) -> 0 | AK154: 0.09205536842
A155: 106190517 | B155: 50761 | C155: PROVIDENCE TARZANA MEDICAL CENTER | D155: 3 | E155: PROVIDENCE ST JOSEPH HEALTH SYSTEM | F155: =IFERROR(INDEX('4. FY 2019-20'!AZ:AZ,MATCH(A155,'4. FY 2019-20'!A:A,0)),0) -> 5313108.707 | G155: 1 | H155: 0 | J155: =IFERROR(INDEX('5. FY 2020-21'!AZ:AZ,MATCH(A155,'5. FY 2020-21'!A:A,0)),0) -> 5836369.412 | K155: 1 | L155: 0 | N155: =IFERROR(INDEX('6. FY 2021-22'!AZ:AZ,MATCH(A155,'6. FY 2021-22'!A:A,0)),0) -> 2981497.016 | O155: 1 | P155: 0 | R155: 14130975.14 | S155: 1 | T155: 0 | X155: 5313108.707 | Z155: 5836369.412 | AB155: 2981497.016 | AD155: 14130975.14 | AG155: =IF(ISERROR(VLOOKUP($B155,#REF!,13,0)),0,VLOOKUP($B155,#REF!,13,0)) -> 0 | AH155: =IF(ISERROR(VLOOKUP($B155,#REF!,14,0)),0,VLOOKUP($B155,#REF!,14,0)) -> 0 | AI155: =IF(ISERROR(VLOOKUP($B155,#REF!,13,0)),0,VLOOKUP($B155,#REF!,15,0)) -> 0 | AJ155: =IF(ISERROR(VLOOKUP($B155,#REF!,16,0)),0,VLOOKUP($B155,#REF!,16,0)) -> 0 | AK155: 0.09848484834
A156: 106190756 | B156: 50290 | C156: ST. JOHN'S HOSPITAL AND HEALTH CENTER | D156: 3 | E156: PROVIDENCE ST JOSEPH HEALTH SYSTEM | F156: =IFERROR(INDEX('4. FY 2019-20'!AZ:AZ,MATCH(A156,'4. FY 2019-20'!A:A,0)),0) -> -12344079.35 | G156: 0 | H156: 1 | J156: =IFERROR(INDEX('5. FY 2020-21'!AZ:AZ,MATCH(A156,'5. FY 2020-21'!A:A,0)),0) -> -12990330.02 | K156: 0 | L156: 1 | N156: =IFERROR(INDEX('6. FY 2021-22'!AZ:AZ,MATCH(A156,'6. FY 2021-22'!A:A,0)),0) -> -6447980.972 | O156: 0 | P156: 1 | R156: -31782390.35 | S156: 0 | T156: 1 | X156: -12344079.35 | Z156: -12990330.02 | AB156: -6447980.972 | AD156: -31782390.35 | AG156: =IF(ISERROR(VLOOKUP($B156,#REF!,13,0)),0,VLOOKUP($B156,#REF!,13,0)) -> 0 | AH156: =IF(ISERROR(VLOOKUP($B156,#REF!,14,0)),0,VLOOKUP($B156,#REF!,14,0)) -> 0 | AI156: =IF(ISERROR(VLOOKUP($B156,#REF!,13,0)),0,VLOOKUP($B156,#REF!,15,0)) -> 0 | AJ156: =IF(ISERROR(VLOOKUP($B156,#REF!,16,0)),0,VLOOKUP($B156,#REF!,16,0)) -> 0 | AK156: 0.05235308808
A157: 106301205 | B157: 50224 | C157: HOAG MEMORIAL HOSPITAL PRESBYTERIAN | D157: 3 | E157: PROVIDENCE ST JOSEPH HEALTH SYSTEM | F157: =IFERROR(INDEX('4. FY 2019-20'!AZ:AZ,MATCH(A157,'4. FY 2019-20'!A:A,0)),0) -> -6600427.602 | G157: 0 | H157: 1 | J157: =IFERROR(INDEX('5. FY 2020-21'!AZ:AZ,MATCH(A157,'5. FY 2020-21'!A:A,0)),0) -> -7078747.551 | K157: 0 | L157: 1 | N157: =IFERROR(INDEX('6. FY 2021-22'!AZ:AZ,MATCH(A157,'6. FY 2021-22'!A:A,0)),0) -> -3552456.953 | O157: 0 | P157: 1 | R157: -17231632.11 | S157: 0 | T157: 1 | X157: -6600427.602 | Z157: -7078747.551 | AB157: -3552456.953 | AD157: -17231632.11 | AG157: =IF(ISERROR(VLOOKUP($B157,#REF!,13,0)),0,VLOOKUP($B157,#REF!,13,0)) -> 0 | AH157: =IF(ISERROR(VLOOKUP($B157,#REF!,14,0)),0,VLOOKUP($B157,#REF!,14,0)) -> 0 | AI157: =IF(ISERROR(VLOOKUP($B157,#REF!,13,0)),0,VLOOKUP($B157,#REF!,15,0)) -> 0 | AJ157: =IF(ISERROR(VLOOKUP($B157,#REF!,16,0)),0,VLOOKUP($B157,#REF!,16,0)) -> 0 | AK157: 0.07246802436
A158: 106301262 | B158: 50567 | C158: MISSION HOSPITAL REGIONAL MEDICAL CENTER | D158: 3 | E158: PROVIDENCE ST JOSEPH HEALTH SYSTEM | F158: =IFERROR(INDEX('4. FY 2019-20'!AZ:AZ,MATCH(A158,'4. FY 2019-20'!A:A,0)),0) -> 4780212.731 | G158: 1 | H158: 0 | J158: =IFERROR(INDEX('5. FY 2020-21'!AZ:AZ,MATCH(A158,'5. FY 2020-21'!A:A,0)),0) -> 5008691.069 | K158: 1 | L158: 0 | N158: =IFERROR(INDEX('6. FY 2021-22'!AZ:AZ,MATCH(A158,'6. FY 2021-22'!A:A,0)),0) -> 2488260.019 | O158: 1 | P158: 0 | R158: 12277163.82 | S158: 1 | T158: 0 | X158: 4780212.731 | Z158: 5008691.069 | AB158: 2488260.019 | AD158: 12277163.82 | AG158: =IF(ISERROR(VLOOKUP($B158,#REF!,13,0)),0,VLOOKUP($B158,#REF!,13,0)) -> 0 | AH158: =IF(ISERROR(VLOOKUP($B158,#REF!,14,0)),0,VLOOKUP($B158,#REF!,14,0)) -> 0 | AI158: =IF(ISERROR(VLOOKUP($B158,#REF!,13,0)),0,VLOOKUP($B158,#REF!,15,0)) -> 0 | AJ158: =IF(ISERROR(VLOOKUP($B158,#REF!,16,0)),0,VLOOKUP($B158,#REF!,16,0)) -> 0 | AK158: 0.04779668835
A159: 106491001 | B159: 50136 | C159: PETALUMA VALLEY HOSPITAL | D159: 3 | E159: PROVIDENCE ST JOSEPH HEALTH SYSTEM | F159: =IFERROR(INDEX('4. FY 2019-20'!AZ:AZ,MATCH(A159,'4. FY 2019-20'!A:A,0)),0) -> 4989396.624 | G159: 1 | H159: 0 | J159: =IFERROR(INDEX('5. FY 2020-21'!AZ:AZ,MATCH(A159,'5. FY 2020-21'!A:A,0)),0) -> 5057368.146 | K159: 1 | L159: 0 | N159: =IFERROR(INDEX('6. FY 2021-22'!AZ:AZ,MATCH(A159,'6. FY 2021-22'!A:A,0)),0) -> 2600340.403 | O159: 1 | P159: 0 | R159: 12647105.17 | S159: 1 | T159: 0 | X159: 4989396.624 | Z159: 5057368.146 | AB159: 2600340.403 | AD159: 12647105.17 | AG159: =IF(ISERROR(VLOOKUP($B159,#REF!,13,0)),0,VLOOKUP($B159,#REF!,13,0)) -> 0 | AH159: =IF(ISERROR(VLOOKUP($B159,#REF!,14,0)),0,VLOOKUP($B159,#REF!,14,0)) -> 0 | AI159: =IF(ISERROR(VLOOKUP($B159,#REF!,13,0)),0,VLOOKUP($B159,#REF!,15,0)) -> 0 | AJ159: =IF(ISERROR(VLOOKUP($B159,#REF!,16,0)),0,VLOOKUP($B159,#REF!,16,0)) -> 0 | AK159: 0.01362319491
A160: 106281047 | B160: 50009 | C160: QUEEN OF THE VALLEY HOSP | D160: 3 | E160: PROVIDENCE ST JOSEPH HEALTH SYSTEM | F160: =IFERROR(INDEX('4. FY 2019-20'!AZ:AZ,MATCH(A160,'4. FY 2019-20'!A:A,0)),0) -> 3190930.118 | G160: 1 | H160: 0 | J160: =IFERROR(INDEX('5. FY 2020-21'!AZ:AZ,MATCH(A160,'5. FY 2020-21'!A:A,0)),0) -> 3260869.318 | K160: 1 | L160: 0 | N160: =IFERROR(INDEX('6. FY 2021-22'!AZ:AZ,MATCH(A160,'6. FY 2021-22'!A:A,0)),0) -> 1740239.203 | O160: 1 | P160: 0 | R160: 8192038.639 | S160: 1 | T160: 0 | X160: 3190930.118 | Z160: 3260869.318 | AB160: 1740239.203 | AD160: 8192038.639 | AG160: =IF(ISERROR(VLOOKUP($B160,#REF!,13,0)),0,VLOOKUP($B160,#REF!,13,0)) -> 0 | AH160: =IF(ISERROR(VLOOKUP($B160,#REF!,14,0)),0,VLOOKUP($B160,#REF!,14,0)) -> 0 | AI160: =IF(ISERROR(VLOOKUP($B160,#REF!,13,0)),0,VLOOKUP($B160,#REF!,15,0)) -> 0 | AJ160: =IF(ISERROR(VLOOKUP($B160,#REF!,16,0)),0,VLOOKUP($B160,#REF!,16,0)) -> 0 | AK160: 0.02191812345
A161: 106121051 | B161: 51318 | C161: REDWOOD MEMORIAL HOSPITAL | D161: 3 | E161: PROVIDENCE ST JOSEPH HEALTH SYSTEM | F161: =IFERROR(INDEX('4. FY 2019-20'!AZ:AZ,MATCH(A161,'4. FY 2019-20'!A:A,0)),0) -> 5698143.735 | G161: 1 | H161: 0 | J161: =IFERROR(INDEX('5. FY 2020-21'!AZ:AZ,MATCH(A161,'5. FY 2020-21'!A:A,0)),0) -> 5764003.949 | K161: 1 | L161: 0 | N161: =IFERROR(INDEX('6. FY 2021-22'!AZ:AZ,MATCH(A161,'6. FY 2021-22'!A:A,0)),0) -> 2924141.835 | O161: 1 | P161: 0 | R161: 14386289.52 | S161: 1 | T161: 0 | X161: 5698143.735 | Z161: 5764003.949 | AB161: 2924141.835 | AD161: 14386289.52 | AG161: =IF(ISERROR(VLOOKUP($B161,#REF!,13,0)),0,VLOOKUP($B161,#REF!,13,0)) -> 0 | AH161: =IF(ISERROR(VLOOKUP($B161,#REF!,14,0)),0,VLOOKUP($B161,#REF!,14,0)) -> 0 | AI161: =IF(ISERROR(VLOOKUP($B161,#REF!,13,0)),0,VLOOKUP($B161,#REF!,15,0)) -> 0 | AJ161: =IF(ISERROR(VLOOKUP($B161,#REF!,16,0)),0,VLOOKUP($B161,#REF!,16,0)) -> 0 | AK161: 0.0115581877
A162: 106491064 | B162: 50174 | C162: SANTA ROSA MEMORIAL HOSPITAL | D162: 3 | E162: PROVIDENCE ST JOSEPH HEALTH SYSTEM | F162: =IFERROR(INDEX('4. FY 2019-20'!AZ:AZ,MATCH(A162,'4. FY 2019-20'!A:A,0)),0) -> 18647640.95 | G162: 1 | H162: 0 | J162: =IFERROR(INDEX('5. FY 2020-21'!AZ:AZ,MATCH(A162,'5. FY 2020-21'!A:A,0)),0) -> 19312110.55 | K162: 1 | L162: 0 | N162: =IFERROR(INDEX('6. FY 2021-22'!AZ:AZ,MATCH(A162,'6. FY 2021-22'!A:A,0)),0) -> 10058785.75 | O162: 1 | P162: 0 | R162: 48018537.25 | S162: 1 | T162: 0 | X162: 18647640.95 | Z162: 19312110.55 | AB162: 10058785.75 | AD162: 48018537.25 | AG162: =IF(ISERROR(VLOOKUP($B162,#REF!,13,0)),0,VLOOKUP($B162,#REF!,13,0)) -> 0 | AH162: =IF(ISERROR(VLOOKUP($B162,#REF!,14,0)),0,VLOOKUP($B162,#REF!,14,0)) -> 0 | AI162: =IF(ISERROR(VLOOKUP($B162,#REF!,13,0)),0,VLOOKUP($B162,#REF!,15,0)) -> 0 | AJ162: =IF(ISERROR(VLOOKUP($B162,#REF!,16,0)),0,VLOOKUP($B162,#REF!,16,0)) -> 0 | AK162: 0.03563290388
A163: 106121080 | B163: 50006 | C163: ST. JOSEPH HOSPITAL - EUREKA | D163: 3 | E163: PROVIDENCE ST JOSEPH HEALTH SYSTEM | F163: =IFERROR(INDEX('4. FY 2019-20'!AZ:AZ,MATCH(A163,'4. FY 2019-20'!A:A,0)),0) -> 13573565.17 | G163: 1 | H163: 0 | J163: =IFERROR(INDEX('5. FY 2020-21'!AZ:AZ,MATCH(A163,'5. FY 2020-21'!A:A,0)),0) -> 13544329.1 | K163: 1 | L163: 0 | N163: =IFERROR(INDEX('6. FY 2021-22'!AZ:AZ,MATCH(A163,'6. FY 2021-22'!A:A,0)),0) -> 7075533.597 | O163: 1 | P163: 0 | R163: 34193427.87 | S163: 1 | T163: 0 | X163: 13573565.17 | Z163: 13544329.1 | AB163: 7075533.597 | AD163: 34193427.87 | AG163: =IF(ISERROR(VLOOKUP($B163,#REF!,13,0)),0,VLOOKUP($B163,#REF!,13,0)) -> 0 | AH163: =IF(ISERROR(VLOOKUP($B163,#REF!,14,0)),0,VLOOKUP($B163,#REF!,14,0)) -> 0 | AI163: =IF(ISERROR(VLOOKUP($B163,#REF!,13,0)),0,VLOOKUP($B163,#REF!,15,0)) -> 0 | AJ163: =IF(ISERROR(VLOOKUP($B163,#REF!,16,0)),0,VLOOKUP($B163,#REF!,16,0)) -> 0 | AK163: -0.002153897089
A164: 106301340 | B164: 50069 | C164: ST. JOSEPH HOSPITAL - ORANGE | D164: 3 | E164: PROVIDENCE ST JOSEPH HEALTH SYSTEM | F164: =IFERROR(INDEX('4. FY 2019-20'!AZ:AZ,MATCH(A164,'4. FY 2019-20'!A:A,0)),0) -> 22434513.4 | G164: 1 | H164: 0 | J164: =IFERROR(INDEX('5. FY 2020-21'!AZ:AZ,MATCH(A164,'5. FY 2020-21'!A:A,0)),0) -> 23359053.69 | K164: 1 | L164: 0 | N164: =IFERROR(INDEX('6. FY 2021-22'!AZ:AZ,MATCH(A164,'6. FY 2021-22'!A:A,0)),0) -> 11638002.53 | O164: 1 | P164: 0 | R164: 57431569.62 | S164: 1 | T164: 0 | X164: 22434513.4 | Z164: 23359053.69 | AB164: 11638002.53 | AD164: 57431569.62 | AG164: =IF(ISERROR(VLOOKUP($B164,#REF!,13,0)),0,VLOOKUP($B164,#REF!,13,0)) -> 0 | AH164: =IF(ISERROR(VLOOKUP($B164,#REF!,14,0)),0,VLOOKUP($B164,#REF!,14,0)) -> 0 | AI164: =IF(ISERROR(VLOOKUP($B164,#REF!,13,0)),0,VLOOKUP($B164,#REF!,15,0)) -> 0 | AJ164: =IF(ISERROR(VLOOKUP($B164,#REF!,16,0)),0,VLOOKUP($B164,#REF!,16,0)) -> 0 | AK164: 0.04121062394
A165: 106301342 | B165: 50168 | C165: ST. JUDE MEDICAL CENTER | D165: 3 | E165: PROVIDENCE ST JOSEPH HEALTH SYSTEM | F165: =IFERROR(INDEX('4. FY 2019-20'!AZ:AZ,MATCH(A165,'4. FY 2019-20'!A:A,0)),0) -> -1250589.44 | G165: 0 | H165: 1 | J165: =IFERROR(INDEX('5. FY 2020-21'!AZ:AZ,MATCH(A165,'5. FY 2020-21'!A:A,0)),0) -> -1535910.746 | K165: 0 | L165: 1 | N165: =IFERROR(INDEX('6. FY 2021-22'!AZ:AZ,MATCH(A165,'6. FY 2021-22'!A:A,0)),0) -> -849340.5226 | O165: 0 | P165: 1 | R165: -3635840.708 | S165: 0 | T165: 1 | X165: -1250589.44 | Z165: -1535910.746 | AB165: -849340.5226 | AD165: -3635840.708 | AG165: =IF(ISERROR(VLOOKUP($B165,#REF!,13,0)),0,VLOOKUP($B165,#REF!,13,0)) -> 0 | AH165: =IF(ISERROR(VLOOKUP($B165,#REF!,14,0)),0,VLOOKUP($B165,#REF!,14,0)) -> 0 | AI165: =IF(ISERROR(VLOOKUP($B165,#REF!,13,0)),0,VLOOKUP($B165,#REF!,15,0)) -> 0 | AJ165: =IF(ISERROR(VLOOKUP($B165,#REF!,16,0)),0,VLOOKUP($B165,#REF!,16,0)) -> 0 | AK165: 0.228149461
A166: 106361343 | B166: 50300 | C166: ST. MARY MEDICAL CENTER | D166: 3 | E166: PROVIDENCE ST JOSEPH HEALTH SYSTEM | F166: =IFERROR(INDEX('4. FY 2019-20'!AZ:AZ,MATCH(A166,'4. FY 2019-20'!A:A,0)),0) -> 48915102.35 | G166: 1 | H166: 0 | J166: =IFERROR(INDEX('5. FY 2020-21'!AZ:AZ,MATCH(A166,'5. FY 2020-21'!A:A,0)),0) -> 51153952.36 | K166: 1 | L166: 0 | N166: =IFERROR(INDEX('6. FY 2021-22'!AZ:AZ,MATCH(A166,'6. FY 2021-22'!A:A,0)),0) -> 25820616.82 | O166: 1 | P166: 0 | R166: 125889671.5 | S166: 1 | T166: 0 | X166: 48915102.35 | Z166: 51153952.36 | AB166: 25820616.82 | AD166: 125889671.5 | AG166: =IF(ISERROR(VLOOKUP($B166,#REF!,13,0)),0,VLOOKUP($B166,#REF!,13,0)) -> 0 | AH166: =IF(ISERROR(VLOOKUP($B166,#REF!,14,0)),0,VLOOKUP($B166,#REF!,14,0)) -> 0 | AI166: =IF(ISERROR(VLOOKUP($B166,#REF!,13,0)),0,VLOOKUP($B166,#REF!,15,0)) -> 0 | AJ166: =IF(ISERROR(VLOOKUP($B166,#REF!,16,0)),0,VLOOKUP($B166,#REF!,16,0)) -> 0 | AK166: 0.04577011815
A167: 106304460 | B167: 50769 | C167: HOAG ORTHOPEDIC INSTITUTE, LLC | D167: 3 | E167: PROVIDENCE ST JOSEPH HEALTH SYSTEM | F167: =IFERROR(INDEX('4. FY 2019-20'!AZ:AZ,MATCH(A167,'4. FY 2019-20'!A:A,0)),0) -> 0 | G167: 0 | H167: 0 | J167: =IFERROR(INDEX('5. FY 2020-21'!AZ:AZ,MATCH(A167,'5. FY 2020-21'!A:A,0)),0) -> 0 | K167: 0 | L167: 0 | N167: =IFERROR(INDEX('6. FY 2021-22'!AZ:AZ,MATCH(A167,'6. FY 2021-22'!A:A,0)),0) -> 0 | O167: 0 | P167: 0 | R167: 0 | S167: 0 | T167: 0 | X167: 0 | Z167: 0 | AB167: 0 | AD167: 0 | AG167: =IF(ISERROR(VLOOKUP($B167,#REF!,13,0)),0,VLOOKUP($B167,#REF!,13,0)) -> 0 | AH167: =IF(ISERROR(VLOOKUP($B167,#REF!,14,0)),0,VLOOKUP($B167,#REF!,14,0)) -> 0 | AI167: =IF(ISERROR(VLOOKUP($B167,#REF!,13,0)),0,VLOOKUP($B167,#REF!,15,0)) -> 0 | AJ167: =IF(ISERROR(VLOOKUP($B167,#REF!,16,0)),0,VLOOKUP($B167,#REF!,16,0)) -> 0
D168: 21 | E168: SYSTEM TOTAL | F168: =SUM(F151:F167) -> 185575593.6 | G168: =SUM(G151:G167) -> 13 | H168: =SUM(H151:H167) -> 3 | I168: =IF(F168<0,1,0) -> 0 | J168: =SUM(J151:J167) -> 193444481.9 | K168: =SUM(K151:K167) -> 13 | L168: =SUM(L151:L167) -> 3 | M168: =IF(J168<0,1,0) -> 0 | N168: =SUM(N151:N167) -> 97816219.9 | O168: =SUM(O151:O167) -> 13 | P168: =SUM(P151:P167) -> 3 | Q168: =IF(N168<0,1,0) -> 0 | R168: =SUM(R151:R167) -> 476836295.4 | S168: =SUM(S151:S167) -> 13 | T168: =SUM(T151:T167) -> 3 | U168: =IF(R168<0,1,0) -> 0 | Y168: =IF(I168=0,0,F168) -> 0 | AA168: =IF(M168=0,0,J168) -> 0 | AC168: =IF(Q168=0,0,N168) -> 0 | AE168: =IF(U168=0,0,R168) -> 0 | AG168: =IF(ISERROR(VLOOKUP($B168,#REF!,13,0)),0,VLOOKUP($B168,#REF!,13,0)) -> 0 | AH168: =IF(ISERROR(VLOOKUP($B168,#REF!,14,0)),0,VLOOKUP($B168,#REF!,14,0)) -> 0 | AI168: =IF(ISERROR(VLOOKUP($B168,#REF!,13,0)),0,VLOOKUP($B168,#REF!,15,0)) -> 0 | AJ168: =IF(ISERROR(VLOOKUP($B168,#REF!,16,0)),0,VLOOKUP($B168,#REF!,16,0)) -> 0 | AK168: 0.04240260308
A169: 106371256 | B169: 50424 | C169: SCRIPPS GREEN HOSPITAL | D169: 3 | E169: SCRIPPS HEALTH | F169: =IFERROR(INDEX('4. FY 2019-20'!AZ:AZ,MATCH(A169,'4. FY 2019-20'!A:A,0)),0) -> 0 | G169: =IF(F169>0,1,0) -> 0 | H169: =IF(F169<0,1,0) -> 0 | J169: =IFERROR(INDEX('5. FY 2020-21'!AZ:AZ,MATCH(A169,'5. FY 2020-21'!A:A,0)),0) -> 0 | K169: =IF(J169>0,1,0) -> 0 | L169: =IF(J169<0,1,0) -> 0 | N169: =IFERROR(INDEX('6. FY 2021-22'!AZ:AZ,MATCH(A169,'6. FY 2021-22'!A:A,0)),0) -> 0 | O169: =IF(N169>0,1,0) -> 0 | P169: =IF(N169<0,1,0) -> 0 | R169: =F169+J169+N169 -> 0 | S169: =IF(R169>0,1,0) -> 0 | T169: =IF(R169<0,1,0) -> 0 | X169: =F169 -> 0 | Z169: =J169 -> 0 | AB169: =N169 -> 0 | AD169: =R169 -> 0 | AG169: =IF(ISERROR(VLOOKUP($B169,#REF!,13,0)),0,VLOOKUP($B169,#REF!,13,0)) -> 0 | AH169: =IF(ISERROR(VLOOKUP($B169,#REF!,14,0)),0,VLOOKUP($B169,#REF!,14,0)) -> 0 | AI169: =IF(ISERROR(VLOOKUP($B169,#REF!,13,0)),0,VLOOKUP($B169,#REF!,15,0)) -> 0 | AJ169: =IF(ISERROR(VLOOKUP($B169,#REF!,16,0)),0,VLOOKUP($B169,#REF!,16,0)) -> 0
A170: 106371394 | B170: 50503 | C170: SCRIPPS MEMORIAL HOSPITAL - ENCINITAS | D170: 3 | E170: SCRIPPS HEALTH | F170: =IFERROR(INDEX('4. FY 2019-20'!AZ:AZ,MATCH(A170,'4. FY 2019-20'!A:A,0)),0) -> -3540114.819 | G170: 0 | H170: 1 | J170: =IFERROR(INDEX('5. FY 2020-21'!AZ:AZ,MATCH(A170,'5. FY 2020-21'!A:A,0)),0) -> -3643325.128 | K170: 0 | L170: 1 | N170: =IFERROR(INDEX('6. FY 2021-22'!AZ:AZ,MATCH(A170,'6. FY 2021-22'!A:A,0)),0) -> -1836658.32 | O170: 0 | P170: 1 | R170: -9020098.267 | S170: 0 | T170: 1 | X170: -3540114.819 | Z170: -3643325.128 | AB170: -1836658.32 | AD170: -9020098.267 | AG170: =IF(ISERROR(VLOOKUP($B170,#REF!,13,0)),0,VLOOKUP($B170,#REF!,13,0)) -> 0 | AH170: =IF(ISERROR(VLOOKUP($B170,#REF!,14,0)),0,VLOOKUP($B170,#REF!,14,0)) -> 0 | AI170: =IF(ISERROR(VLOOKUP($B170,#REF!,13,0)),0,VLOOKUP($B170,#REF!,15,0)) -> 0 | AJ170: =IF(ISERROR(VLOOKUP($B170,#REF!,16,0)),0,VLOOKUP($B170,#REF!,16,0)) -> 0 | AK170: 0.02915450872
A171: 106370771 | B171: 50324 | C171: SCRIPPS MEMORIAL HOSPITAL - LA JOLLA | D171: 3 | E171: SCRIPPS HEALTH | F171: =IFERROR(INDEX('4. FY 2019-20'!AZ:AZ,MATCH(A171,'4. FY 2019-20'!A:A,0)),0) -> -5663743.925 | G171: 0 | H171: 1 | J171: =IFERROR(INDEX('5. FY 2020-21'!AZ:AZ,MATCH(A171,'5. FY 2020-21'!A:A,0)),0) -> -5813306.515 | K171: 0 | L171: 1 | N171: =IFERROR(INDEX('6. FY 2021-22'!AZ:AZ,MATCH(A171,'6. FY 2021-22'!A:A,0)),0) -> -3035173.966 | O171: 0 | P171: 1 | R171: -14512224.41 | S171: 0 | T171: 1 | X171: -5663743.925 | Z171: -5813306.515 | AB171: -3035173.966 | AD171: -14512224.41 | AG171: =IF(ISERROR(VLOOKUP($B171,#REF!,13,0)),0,VLOOKUP($B171,#REF!,13,0)) -> 0 | AH171: =IF(ISERROR(VLOOKUP($B171,#REF!,14,0)),0,VLOOKUP($B171,#REF!,14,0)) -> 0 | AI171: =IF(ISERROR(VLOOKUP($B171,#REF!,13,0)),0,VLOOKUP($B171,#REF!,15,0)) -> 0 | AJ171: =IF(ISERROR(VLOOKUP($B171,#REF!,16,0)),0,VLOOKUP($B171,#REF!,16,0)) -> 0 | AK171: 0.02640701829
A172: 106370744 | B172: 50077 | C172: SCRIPPS MERCY HOSPITAL | D172: 3 | E172: SCRIPPS HEALTH | F172: =IFERROR(INDEX('4. FY 2019-20'!AZ:AZ,MATCH(A172,'4. FY 2019-20'!A:A,0)),0) -> 50718226.48 | G172: 1 | H172: 0 | J172: =IFERROR(INDEX('5. FY 2020-21'!AZ:AZ,MATCH(A172,'5. FY 2020-21'!A:A,0)),0) -> 55398439.25 | K172: 1 | L172: 0 | N172: =IFERROR(INDEX('6. FY 2021-22'!AZ:AZ,MATCH(A172,'6. FY 2021-22'!A:A,0)),0) -> 27740774.01 | O172: 1 | P172: 0 | R172: 133857439.7 | S172: 1 | T172: 0 | X172: 50718226.48 | Z172: 55398439.25 | AB172: 27740774.01 | AD172: 133857439.7 | AG172: =IF(ISERROR(VLOOKUP($B172,#REF!,13,0)),0,VLOOKUP($B172,#REF!,13,0)) -> 0 | AH172: =IF(ISERROR(VLOOKUP($B172,#REF!,14,0)),0,VLOOKUP($B172,#REF!,14,0)) -> 0 | AI172: =IF(ISERROR(VLOOKUP($B172,#REF!,13,0)),0,VLOOKUP($B172,#REF!,15,0)) -> 0 | AJ172: =IF(ISERROR(VLOOKUP($B172,#REF!,16,0)),0,VLOOKUP($B172,#REF!,16,0)) -> 0 | AK172: 0.09227871515
D173: 22 | E173: SYSTEM TOTAL | F173: =SUM(F169:F172) -> 41514367.73 | G173: =SUM(G169:G172) -> 1 | H173: =SUM(H169:H172) -> 2 | I173: =IF(F173<0,1,0) -> 0 | J173: =SUM(J169:J172) -> 45941807.61 | K173: =SUM(K169:K172) -> 1 | L173: =SUM(L169:L172) -> 2 | M173: =IF(J173<0,1,0) -> 0 | N173: =SUM(N169:N172) -> 22868941.73 | O173: =SUM(O169:O172) -> 1 | P173: =SUM(P169:P172) -> 2 | Q173: =IF(N173<0,1,0) -> 0 | R173: =SUM(R169:R172) -> 110325117.1 | S173: =SUM(S169:S172) -> 1 | T173: =SUM(T169:T172) -> 2 | U173: =IF(R173<0,1,0) -> 0 | Y173: =IF(I173=0,0,F173) -> 0 | AA173: =IF(M173=0,0,J173) -> 0 | AC173: =IF(Q173=0,0,N173) -> 0 | AE173: =IF(U173=0,0,R173) -> 0 | AG173: =IF(ISERROR(VLOOKUP($B173,#REF!,13,0)),0,VLOOKUP($B173,#REF!,13,0)) -> 0 | AH173: =IF(ISERROR(VLOOKUP($B173,#REF!,14,0)),0,VLOOKUP($B173,#REF!,14,0)) -> 0 | AI173: =IF(ISERROR(VLOOKUP($B173,#REF!,13,0)),0,VLOOKUP($B173,#REF!,15,0)) -> 0 | AJ173: =IF(ISERROR(VLOOKUP($B173,#REF!,16,0)),0,VLOOKUP($B173,#REF!,16,0)) -> 0 | AK173: 0.1066483754
A174: 106370875 | B174: 50222 | C174: SHARP CHULA VISTA MEDICAL CENTER | D174: 3 | E174: SHARP HEALTHCARE | F174: =IFERROR(INDEX('4. FY 2019-20'!AZ:AZ,MATCH(A174,'4. FY 2019-20'!A:A,0)),0) -> 26404328.72 | G174: =IF(F174>0,1,0) -> 1 | H174: =IF(F174<0,1,0) -> 0 | J174: =IFERROR(INDEX('5. FY 2020-21'!AZ:AZ,MATCH(A174,'5. FY 2020-21'!A:A,0)),0) -> 28152861.49 | K174: =IF(J174>0,1,0) -> 1 | L174: =IF(J174<0,1,0) -> 0 | N174: =IFERROR(INDEX('6. FY 2021-22'!AZ:AZ,MATCH(A174,'6. FY 2021-22'!A:A,0)),0) -> 14175694.89 | O174: =IF(N174>0,1,0) -> 1 | P174: =IF(N174<0,1,0) -> 0 | R174: =F174+J174+N174 -> 68732885.1 | S174: =IF(R174>0,1,0) -> 1 | T174: =IF(R174<0,1,0) -> 0 | X174: =F174 -> 26404328.72 | Z174: =J174 -> 28152861.49 | AB174: =N174 -> 14175694.89 | AD174: =R174 -> 68732885.1 | AG174: =IF(ISERROR(VLOOKUP($B174,#REF!,13,0)),0,VLOOKUP($B174,#REF!,13,0)) -> 0 | AH174: =IF(ISERROR(VLOOKUP($B174,#REF!,14,0)),0,VLOOKUP($B174,#REF!,14,0)) -> 0 | AI174: =IF(ISERROR(VLOOKUP($B174,#REF!,13,0)),0,VLOOKUP($B174,#REF!,15,0)) -> 0 | AJ174: =IF(ISERROR(VLOOKUP($B174,#REF!,16,0)),0,VLOOKUP($B174,#REF!,16,0)) -> 0 | AK174: 0.06622144368
A175: 106370689 | B175: 50234 | C175: SHARP CORONADO HOSPITAL & HEALTHCARE CTR | D175: 3 | E175: SHARP HEALTHCARE | F175: =IFERROR(INDEX('4. FY 2019-20'!AZ:AZ,MATCH(A175,'4. FY 2019-20'!A:A,0)),0) -> 11362048.27 | G175: 1 | H175: 0 | J175: =IFERROR(INDEX('5. FY 2020-21'!AZ:AZ,MATCH(A175,'5. FY 2020-21'!A:A,0)),0) -> 11478195.39 | K175: 1 | L175: 0 | N175: =IFERROR(INDEX('6. FY 2021-22'!AZ:AZ,MATCH(A175,'6. FY 2021-22'!A:A,0)),0) -> 5757567.846 | O175: 1 | P175: 0 | R175: 28597811.51 | S175: 1 | T175: 0 | X175: 11362048.27 | Z175: 11478195.39 | AB175: 5757567.846 | AD175: 28597811.51 | AG175: =IF(ISERROR(VLOOKUP($B175,#REF!,13,0)),0,VLOOKUP($B175,#REF!,13,0)) -> 0 | AH175: =IF(ISERROR(VLOOKUP($B175,#REF!,14,0)),0,VLOOKUP($B175,#REF!,14,0)) -> 0 | AI175: =IF(ISERROR(VLOOKUP($B175,#REF!,13,0)),0,VLOOKUP($B175,#REF!,15,0)) -> 0 | AJ175: =IF(ISERROR(VLOOKUP($B175,#REF!,16,0)),0,VLOOKUP($B175,#REF!,16,0)) -> 0 | AK175: 0.01022237569
A176: 106370714 | B176: 50026 | C176: SHARP GROSSMONT HOSPITAL | D176: 3 | E176: SHARP HEALTHCARE | F176: =IFERROR(INDEX('4. FY 2019-20'!AZ:AZ,MATCH(A176,'4. FY 2019-20'!A:A,0)),0) -> 43902010.63 | G176: 1 | H176: 0 | J176: =IFERROR(INDEX('5. FY 2020-21'!AZ:AZ,MATCH(A176,'5. FY 2020-21'!A:A,0)),0) -> 46318487.22 | K176: 1 | L176: 0 | N176: =IFERROR(INDEX('6. FY 2021-22'!AZ:AZ,MATCH(A176,'6. FY 2021-22'!A:A,0)),0) -> 23555543.59 | O176: 1 | P176: 0 | R176: 113776041.4 | S176: 1 | T176: 0 | X176: 43902010.63 | Z176: 46318487.22 | AB176: 23555543.59 | AD176: 113776041.4 | AG176: =IF(ISERROR(VLOOKUP($B176,#REF!,13,0)),0,VLOOKUP($B176,#REF!,13,0)) -> 0 | AH176: =IF(ISERROR(VLOOKUP($B176,#REF!,14,0)),0,VLOOKUP($B176,#REF!,14,0)) -> 0 | AI176: =IF(ISERROR(VLOOKUP($B176,#REF!,13,0)),0,VLOOKUP($B176,#REF!,15,0)) -> 0 | AJ176: =IF(ISERROR(VLOOKUP($B176,#REF!,16,0)),0,VLOOKUP($B176,#REF!,16,0)) -> 0 | AK176: 0.05504250403
A177: 106370694 | B177: 50100 | C177: SHARP MEMORIAL HOSPITAL | D177: 3 | E177: SHARP HEALTHCARE | F177: =IFERROR(INDEX('4. FY 2019-20'!AZ:AZ,MATCH(A177,'4. FY 2019-20'!A:A,0)),0) -> 36439877.99 | G177: 1 | H177: 0 | J177: =IFERROR(INDEX('5. FY 2020-21'!AZ:AZ,MATCH(A177,'5. FY 2020-21'!A:A,0)),0) -> 40208511.97 | K177: 1 | L177: 0 | N177: =IFERROR(INDEX('6. FY 2021-22'!AZ:AZ,MATCH(A177,'6. FY 2021-22'!A:A,0)),0) -> 19570177.59 | O177: 1 | P177: 0 | R177: 96218567.54 | S177: 1 | T177: 0 | X177: 36439877.99 | Z177: 40208511.97 | AB177: 19570177.59 | AD177: 96218567.54 | AG177: =IF(ISERROR(VLOOKUP($B177,#REF!,13,0)),0,VLOOKUP($B177,#REF!,13,0)) -> 0 | AH177: =IF(ISERROR(VLOOKUP($B177,#REF!,14,0)),0,VLOOKUP($B177,#REF!,14,0)) -> 0 | AI177: =IF(ISERROR(VLOOKUP($B177,#REF!,13,0)),0,VLOOKUP($B177,#REF!,15,0)) -> 0 | AJ177: =IF(ISERROR(VLOOKUP($B177,#REF!,16,0)),0,VLOOKUP($B177,#REF!,16,0)) -> 0 | AK177: 0.1034205982
D178: 23 | E178: SYSTEM TOTAL | F178: =SUM(F174:F177) -> 118108265.6 | G178: =SUM(G174:G177) -> 4 | H178: =SUM(H174:H177) -> 0 | I178: =IF(F178<0,1,0) -> 0 | J178: =SUM(J174:J177) -> 126158056.1 | K178: =SUM(K174:K177) -> 4 | L178: =SUM(L174:L177) -> 0 | M178: =IF(J178<0,1,0) -> 0 | N178: =SUM(N174:N177) -> 63058983.91 | O178: =SUM(O174:O177) -> 4 | P178: =SUM(P174:P177) -> 0 | Q178: =IF(N178<0,1,0) -> 0 | R178: =SUM(R174:R177) -> 307325305.6 | S178: =SUM(S174:S177) -> 4 | T178: =SUM(T174:T177) -> 0 | U178: =IF(R178<0,1,0) -> 0 | Y178: =IF(I178=0,0,F178) -> 0 | AA178: =IF(M178=0,0,J178) -> 0 | AC178: =IF(Q178=0,0,N178) -> 0 | AE178: =IF(U178=0,0,R178) -> 0 | AG178: =IF(ISERROR(VLOOKUP($B178,#REF!,13,0)),0,VLOOKUP($B178,#REF!,13,0)) -> 0 | AH178: =IF(ISERROR(VLOOKUP($B178,#REF!,14,0)),0,VLOOKUP($B178,#REF!,14,0)) -> 0 | AI178: =IF(ISERROR(VLOOKUP($B178,#REF!,13,0)),0,VLOOKUP($B178,#REF!,15,0)) -> 0 | AJ178: =IF(ISERROR(VLOOKUP($B178,#REF!,16,0)),0,VLOOKUP($B178,#REF!,16,0)) -> 0 | AK178: 0.06815602981
A179: 106430905 | B179: 50441 | C179: STANFORD UNIVERSITY HOSPITAL | D179: 3 | E179: STANFORD HEALTHCARE | F179: =IFERROR(INDEX('4. FY 2019-20'!AZ:AZ,MATCH(A179,'4. FY 2019-20'!A:A,0)),0) -> 30811801.18 | G179: =IF(F179>0,1,0) -> 1 | H179: =IF(F179<0,1,0) -> 0 | J179: =IFERROR(INDEX('5. FY 2020-21'!AZ:AZ,MATCH(A179,'5. FY 2020-21'!A:A,0)),0) -> 30558164.67 | K179: =IF(J179>0,1,0) -> 1 | L179: =IF(J179<0,1,0) -> 0 | N179: =IFERROR(INDEX('6. FY 2021-22'!AZ:AZ,MATCH(A179,'6. FY 2021-22'!A:A,0)),0) -> 15496764.64 | O179: =IF(N179>0,1,0) -> 1 | P179: =IF(N179<0,1,0) -> 0 | R179: =F179+J179+N179 -> 76866730.5 | S179: =IF(R179>0,1,0) -> 1 | T179: =IF(R179<0,1,0) -> 0 | X179: =F179 -> 30811801.18 | Z179: =J179 -> 30558164.67 | AB179: =N179 -> 15496764.64 | AD179: =R179 -> 76866730.5 | AG179: =IF(ISERROR(VLOOKUP($B179,#REF!,13,0)),0,VLOOKUP($B179,#REF!,13,0)) -> 0 | AH179: =IF(ISERROR(VLOOKUP($B179,#REF!,14,0)),0,VLOOKUP($B179,#REF!,14,0)) -> 0 | AI179: =IF(ISERROR(VLOOKUP($B179,#REF!,13,0)),0,VLOOKUP($B179,#REF!,15,0)) -> 0 | AJ179: =IF(ISERROR(VLOOKUP($B179,#REF!,16,0)),0,VLOOKUP($B179,#REF!,16,0)) -> 0 | AK179: -0.008231797606
A180: 106014050 | B180: 50283 | C180: STANFORD HEALTHCARE - VALLEYCARE | D180: 3 | E180: STANFORD HEALTHCARE | F180: =IFERROR(INDEX('4. FY 2019-20'!AZ:AZ,MATCH(A180,'4. FY 2019-20'!A:A,0)),0) -> -4175476.603 | G180: 0 | H180: 1 | J180: =IFERROR(INDEX('5. FY 2020-21'!AZ:AZ,MATCH(A180,'5. FY 2020-21'!A:A,0)),0) -> -4409341.045 | K180: 0 | L180: 1 | N180: =IFERROR(INDEX('6. FY 2021-22'!AZ:AZ,MATCH(A180,'6. FY 2021-22'!A:A,0)),0) -> -2250324.516 | O180: 0 | P180: 1 | R180: -10835142.16 | S180: 0 | T180: 1 | X180: -4175476.603 | Z180: -4409341.045 | AB180: -2250324.516 | AD180: -10835142.16 | AG180: =IF(ISERROR(VLOOKUP($B180,#REF!,13,0)),0,VLOOKUP($B180,#REF!,13,0)) -> 0 | AH180: =IF(ISERROR(VLOOKUP($B180,#REF!,14,0)),0,VLOOKUP($B180,#REF!,14,0)) -> 0 | AI180: =IF(ISERROR(VLOOKUP($B180,#REF!,13,0)),0,VLOOKUP($B180,#REF!,15,0)) -> 0 | AJ180: =IF(ISERROR(VLOOKUP($B180,#REF!,16,0)),0,VLOOKUP($B180,#REF!,16,0)) -> 0 | AK180: 0.0560090414
D181: 34 | E181: SYSTEM TOTAL | F181: =SUM(F179:F180) -> 26636324.58 | G181: =SUM(G179:G180) -> 1 | H181: =SUM(H179:H180) -> 1 | I181: =IF(F181<0,1,0) -> 0 | J181: =SUM(J179:J180) -> 26148823.63 | K181: =SUM(K179:K180) -> 1 | L181: =SUM(L179:L180) -> 1 | M181: =IF(J181<0,1,0) -> 0 | N181: =SUM(N179:N180) -> 13246440.13 | O181: =SUM(O179:O180) -> 1 | P181: =SUM(P179:P180) -> 1 | Q181: =IF(N181<0,1,0) -> 0 | R181: =SUM(R179:R180) -> 66031588.34 | S181: =SUM(S179:S180) -> 1 | T181: =SUM(T179:T180) -> 1 | U181: =IF(R181<0,1,0) -> 0 | Y181: =IF(I181=0,0,F181) -> 0 | AA181: =IF(M181=0,0,J181) -> 0 | AC181: =IF(Q181=0,0,N181) -> 0 | AE181: =IF(U181=0,0,R181) -> 0 | AG181: =IF(ISERROR(VLOOKUP($B181,#REF!,13,0)),0,VLOOKUP($B181,#REF!,13,0)) -> 0 | AH181: =IF(ISERROR(VLOOKUP($B181,#REF!,14,0)),0,VLOOKUP($B181,#REF!,14,0)) -> 0 | AI181: =IF(ISERROR(VLOOKUP($B181,#REF!,13,0)),0,VLOOKUP($B181,#REF!,15,0)) -> 0 | AJ181: =IF(ISERROR(VLOOKUP($B181,#REF!,16,0)),0,VLOOKUP($B181,#REF!,16,0)) -> 0 | AK181: -0.0183021104
A182: 106010739 | B182: 50305 | C182: ALTA BATES SUMMIT MED CTR-ALTA BATES CAM | D182: 3 | E182: SUTTER HEALTH | F182: =IFERROR(INDEX('4. FY 2019-20'!AZ:AZ,MATCH(A182,'4. FY 2019-20'!A:A,0)),0) -> 26541069.92 | G182: =IF(F182>0,1,0) -> 1 | H182: =IF(F182<0,1,0) -> 0 | J182: =IFERROR(INDEX('5. FY 2020-21'!AZ:AZ,MATCH(A182,'5. FY 2020-21'!A:A,0)),0) -> 29538338.34 | K182: =IF(J182>0,1,0) -> 1 | L182: =IF(J182<0,1,0) -> 0 | N182: =IFERROR(INDEX('6. FY 2021-22'!AZ:AZ,MATCH(A182,'6. FY 2021-22'!A:A,0)),0) -> 14774845.22 | O182: =IF(N182>0,1,0) -> 1 | P182: =IF(N182<0,1,0) -> 0 | R182: =F182+J182+N182 -> 70854253.47 | S182: =IF(R182>0,1,0) -> 1 | T182: =IF(R182<0,1,0) -> 0 | X182: =F182 -> 26541069.92 | Z182: =J182 -> 29538338.34 | AB182: =N182 -> 14774845.22 | AD182: =R182 -> 70854253.47 | AG182: =IF(ISERROR(VLOOKUP($B182,#REF!,13,0)),0,VLOOKUP($B182,#REF!,13,0)) -> 0 | AH182: =IF(ISERROR(VLOOKUP($B182,#REF!,14,0)),0,VLOOKUP($B182,#REF!,14,0)) -> 0 | AI182: =IF(ISERROR(VLOOKUP($B182,#REF!,13,0)),0,VLOOKUP($B182,#REF!,15,0)) -> 0 | AJ182: =IF(ISERROR(VLOOKUP($B182,#REF!,16,0)),0,VLOOKUP($B182,#REF!,16,0)) -> 0 | AK182: 0.1129294498
A183: 106010937 | B183: 50043 | C183: ALTA BATES SUMMIT MED CTR-SUMMIT-HAWTHOR | D183: 3 | E183: SUTTER HEALTH | F183: =IFERROR(INDEX('4. FY 2019-20'!AZ:AZ,MATCH(A183,'4. FY 2019-20'!A:A,0)),0) -> 5005604.678 | G183: 1 | H183: 0 | J183: =IFERROR(INDEX('5. FY 2020-21'!AZ:AZ,MATCH(A183,'5. FY 2020-21'!A:A,0)),0) -> 5268645.564 | K183: 1 | L183: 0 | N183: =IFERROR(INDEX('6. FY 2021-22'!AZ:AZ,MATCH(A183,'6. FY 2021-22'!A:A,0)),0) -> 2908152.863 | O183: 1 | P183: 0 | R183: 13182403.11 | S183: 1 | T183: 0 | X183: 5005604.678 | Z183: 5268645.564 | AB183: 2908152.863 | AD183: 13182403.11 | AG183: =IF(ISERROR(VLOOKUP($B183,#REF!,13,0)),0,VLOOKUP($B183,#REF!,13,0)) -> 0 | AH183: =IF(ISERROR(VLOOKUP($B183,#REF!,14,0)),0,VLOOKUP($B183,#REF!,14,0)) -> 0 | AI183: =IF(ISERROR(VLOOKUP($B183,#REF!,13,0)),0,VLOOKUP($B183,#REF!,15,0)) -> 0 | AJ183: =IF(ISERROR(VLOOKUP($B183,#REF!,16,0)),0,VLOOKUP($B183,#REF!,16,0)) -> 0 | AK183: 0.05254927278
A184: 106380929 | B184: 50047 | C184: CALIFORNIA PACIFIC MEDICAL CENTER | D184: 3 | E184: SUTTER HEALTH | F184: =IFERROR(INDEX('4. FY 2019-20'!AZ:AZ,MATCH(A184,'4. FY 2019-20'!A:A,0)),0) -> -3902319.722 | G184: 0 | H184: 1 | J184: =IFERROR(INDEX('5. FY 2020-21'!AZ:AZ,MATCH(A184,'5. FY 2020-21'!A:A,0)),0) -> -3623215.866 | K184: 0 | L184: 1 | N184: =IFERROR(INDEX('6. FY 2021-22'!AZ:AZ,MATCH(A184,'6. FY 2021-22'!A:A,0)),0) -> -1850754.342 | O184: 0 | P184: 1 | R184: -9376289.93 | S184: 0 | T184: 1 | X184: -3902319.722 | Z184: -3623215.866 | AB184: -1850754.342 | AD184: -9376289.93 | AG184: =IF(ISERROR(VLOOKUP($B184,#REF!,13,0)),0,VLOOKUP($B184,#REF!,13,0)) -> 0 | AH184: =IF(ISERROR(VLOOKUP($B184,#REF!,14,0)),0,VLOOKUP($B184,#REF!,14,0)) -> 0 | AI184: =IF(ISERROR(VLOOKUP($B184,#REF!,13,0)),0,VLOOKUP($B184,#REF!,15,0)) -> 0 | AJ184: =IF(ISERROR(VLOOKUP($B184,#REF!,16,0)),0,VLOOKUP($B184,#REF!,16,0)) -> 0 | AK184: -0.07152254968
A185: 106014233 | B185: 50488 | C185: EDEN MEDICAL CENTER | D185: 3 | E185: SUTTER HEALTH | F185: =IFERROR(INDEX('4. FY 2019-20'!AZ:AZ,MATCH(A185,'4. FY 2019-20'!A:A,0)),0) -> 11762948.27 | G185: 1 | H185: 0 | J185: =IFERROR(INDEX('5. FY 2020-21'!AZ:AZ,MATCH(A185,'5. FY 2020-21'!A:A,0)),0) -> 12327510.45 | K185: 1 | L185: 0 | N185: =IFERROR(INDEX('6. FY 2021-22'!AZ:AZ,MATCH(A185,'6. FY 2021-22'!A:A,0)),0) -> 6248694.256 | O185: 1 | P185: 0 | R185: 30339152.98 | S185: 1 | T185: 0 | X185: 11762948.27 | Z185: 12327510.45 | AB185: 6248694.256 | AD185: 30339152.98 | AG185: =IF(ISERROR(VLOOKUP($B185,#REF!,13,0)),0,VLOOKUP($B185,#REF!,13,0)) -> 0 | AH185: =IF(ISERROR(VLOOKUP($B185,#REF!,14,0)),0,VLOOKUP($B185,#REF!,14,0)) -> 0 | AI185: =IF(ISERROR(VLOOKUP($B185,#REF!,13,0)),0,VLOOKUP($B185,#REF!,15,0)) -> 0 | AJ185: =IF(ISERROR(VLOOKUP($B185,#REF!,16,0)),0,VLOOKUP($B185,#REF!,16,0)) -> 0 | AK185: 0.04799495616
A186: 106240924 | B186: 50528 | C186: MEMORIAL HOSPITAL LOS BANOS | D186: 3 | E186: SUTTER HEALTH | F186: =IFERROR(INDEX('4. FY 2019-20'!AZ:AZ,MATCH(A186,'4. FY 2019-20'!A:A,0)),0) -> 11572989.06 | G186: 1 | H186: 0 | J186: =IFERROR(INDEX('5. FY 2020-21'!AZ:AZ,MATCH(A186,'5. FY 2020-21'!A:A,0)),0) -> 11818111.15 | K186: 1 | L186: 0 | N186: =IFERROR(INDEX('6. FY 2021-22'!AZ:AZ,MATCH(A186,'6. FY 2021-22'!A:A,0)),0) -> 5991310.673 | O186: 1 | P186: 0 | R186: 29382410.89 | S186: 1 | T186: 0 | X186: 11572989.06 | Z186: 11818111.15 | AB186: 5991310.673 | AD186: 29382410.89 | AG186: =IF(ISERROR(VLOOKUP($B186,#REF!,13,0)),0,VLOOKUP($B186,#REF!,13,0)) -> 0 | AH186: =IF(ISERROR(VLOOKUP($B186,#REF!,14,0)),0,VLOOKUP($B186,#REF!,14,0)) -> 0 | AI186: =IF(ISERROR(VLOOKUP($B186,#REF!,13,0)),0,VLOOKUP($B186,#REF!,15,0)) -> 0 | AJ186: =IF(ISERROR(VLOOKUP($B186,#REF!,16,0)),0,VLOOKUP($B186,#REF!,16,0)) -> 0 | AK186: 0.02118053382
A187: 106500939 | B187: 50557 | C187: MEMORIAL HOSPITAL MODESTO | D187: 3 | E187: SUTTER HEALTH | F187: =IFERROR(INDEX('4. FY 2019-20'!AZ:AZ,MATCH(A187,'4. FY 2019-20'!A:A,0)),0) -> 12823306.31 | G187: 1 | H187: 0 | J187: =IFERROR(INDEX('5. FY 2020-21'!AZ:AZ,MATCH(A187,'5. FY 2020-21'!A:A,0)),0) -> 13376402.15 | K187: 1 | L187: 0 | N187: =IFERROR(INDEX('6. FY 2021-22'!AZ:AZ,MATCH(A187,'6. FY 2021-22'!A:A,0)),0) -> 6879104.173 | O187: 1 | P187: 0 | R187: 33078812.64 | S187: 1 | T187: 0 | X187: 12823306.31 | Z187: 13376402.15 | AB187: 6879104.173 | AD187: 33078812.64 | AG187: =IF(ISERROR(VLOOKUP($B187,#REF!,13,0)),0,VLOOKUP($B187,#REF!,13,0)) -> 0 | AH187: =IF(ISERROR(VLOOKUP($B187,#REF!,14,0)),0,VLOOKUP($B187,#REF!,14,0)) -> 0 | AI187: =IF(ISERROR(VLOOKUP($B187,#REF!,13,0)),0,VLOOKUP($B187,#REF!,15,0)) -> 0 | AJ187: =IF(ISERROR(VLOOKUP($B187,#REF!,16,0)),0,VLOOKUP($B187,#REF!,16,0)) -> 0 | AK187: 0.04313207673
A188: 106414018 | B188: 50754 | C188: MENLO PARK SURGICAL HOSPITAL | D188: 3 | E188: SUTTER HEALTH | F188: =IFERROR(INDEX('4. FY 2019-20'!AZ:AZ,MATCH(A188,'4. FY 2019-20'!A:A,0)),0) -> -78446.81615 | G188: 0 | H188: 1 | J188: =IFERROR(INDEX('5. FY 2020-21'!AZ:AZ,MATCH(A188,'5. FY 2020-21'!A:A,0)),0) -> -83076.9939 | K188: 0 | L188: 1 | N188: =IFERROR(INDEX('6. FY 2021-22'!AZ:AZ,MATCH(A188,'6. FY 2021-22'!A:A,0)),0) -> -42861.97886 | O188: 0 | P188: 1 | R188: -204385.7889 | S188: 0 | T188: 1 | X188: -78446.81615 | Z188: -83076.9939 | AB188: -42861.97886 | AD188: -204385.7889 | AG188: =IF(ISERROR(VLOOKUP($B188,#REF!,13,0)),0,VLOOKUP($B188,#REF!,13,0)) -> 0 | AH188: =IF(ISERROR(VLOOKUP($B188,#REF!,14,0)),0,VLOOKUP($B188,#REF!,14,0)) -> 0 | AI188: =IF(ISERROR(VLOOKUP($B188,#REF!,13,0)),0,VLOOKUP($B188,#REF!,15,0)) -> 0 | AJ188: =IF(ISERROR(VLOOKUP($B188,#REF!,16,0)),0,VLOOKUP($B188,#REF!,16,0)) -> 0 | AK188: 0.05902314424
A189: 106214034 | B189: 50131 | C189: NOVATO COMMUNITY HOSPITAL | D189: 3 | E189: SUTTER HEALTH | F189: =IFERROR(INDEX('4. FY 2019-20'!AZ:AZ,MATCH(A189,'4. FY 2019-20'!A:A,0)),0) -> 1335717.886 | G189: 1 | H189: 0 | J189: =IFERROR(INDEX('5. FY 2020-21'!AZ:AZ,MATCH(A189,'5. FY 2020-21'!A:A,0)),0) -> 1296769.442 | K189: 1 | L189: 0 | N189: =IFERROR(INDEX('6. FY 2021-22'!AZ:AZ,MATCH(A189,'6. FY 2021-22'!A:A,0)),0) -> 696702.5994 | O189: 1 | P189: 0 | R189: 3329189.928 | S189: 1 | T189: 0 | X189: 1335717.886 | Z189: 1296769.442 | AB189: 696702.5994 | AD189: 3329189.928 | AG189: =IF(ISERROR(VLOOKUP($B189,#REF!,13,0)),0,VLOOKUP($B189,#REF!,13,0)) -> 0 | AH189: =IF(ISERROR(VLOOKUP($B189,#REF!,14,0)),0,VLOOKUP($B189,#REF!,14,0)) -> 0 | AI189: =IF(ISERROR(VLOOKUP($B189,#REF!,13,0)),0,VLOOKUP($B189,#REF!,15,0)) -> 0 | AJ189: =IF(ISERROR(VLOOKUP($B189,#REF!,16,0)),0,VLOOKUP($B189,#REF!,16,0)) -> 0 | AK189: -0.02915918422
A190: 106410852 | B190: 50007 | C190: PENINSULA MEDICAL CENTER | D190: 3 | E190: SUTTER HEALTH | F190: =IFERROR(INDEX('4. FY 2019-20'!AZ:AZ,MATCH(A190,'4. FY 2019-20'!A:A,0)),0) -> -3531831.864 | G190: 0 | H190: 1 | J190: =IFERROR(INDEX('5. FY 2020-21'!AZ:AZ,MATCH(A190,'5. FY 2020-21'!A:A,0)),0) -> -3946296.313 | K190: 0 | L190: 1 | N190: =IFERROR(INDEX('6. FY 2021-22'!AZ:AZ,MATCH(A190,'6. FY 2021-22'!A:A,0)),0) -> -1945886.7 | O190: 0 | P190: 1 | R190: -9424014.877 | S190: 0 | T190: 1 | X190: -3531831.864 | Z190: -3946296.313 | AB190: -1945886.7 | AD190: -9424014.877 | AG190: =IF(ISERROR(VLOOKUP($B190,#REF!,13,0)),0,VLOOKUP($B190,#REF!,13,0)) -> 0 | AH190: =IF(ISERROR(VLOOKUP($B190,#REF!,14,0)),0,VLOOKUP($B190,#REF!,14,0)) -> 0 | AI190: =IF(ISERROR(VLOOKUP($B190,#REF!,13,0)),0,VLOOKUP($B190,#REF!,15,0)) -> 0 | AJ190: =IF(ISERROR(VLOOKUP($B190,#REF!,16,0)),0,VLOOKUP($B190,#REF!,16,0)) -> 0 | AK190: 0.1173511267
A191: 106380964 | B191: 50055 | C191: ST. LUKE'S HOSPITAL | D191: 3 | E191: SUTTER HEALTH | F191: =IFERROR(INDEX('4. FY 2019-20'!AZ:AZ,MATCH(A191,'4. FY 2019-20'!A:A,0)),0) -> 4025984.116 | G191: 1 | H191: 0 | J191: =IFERROR(INDEX('5. FY 2020-21'!AZ:AZ,MATCH(A191,'5. FY 2020-21'!A:A,0)),0) -> 4511804.202 | K191: 1 | L191: 0 | N191: =IFERROR(INDEX('6. FY 2021-22'!AZ:AZ,MATCH(A191,'6. FY 2021-22'!A:A,0)),0) -> 2209137.217 | O191: 1 | P191: 0 | R191: 10746925.54 | S191: 1 | T191: 0 | X191: 4025984.116 | Z191: 4511804.202 | AB191: 2209137.217 | AD191: 10746925.54 | AG191: =IF(ISERROR(VLOOKUP($B191,#REF!,13,0)),0,VLOOKUP($B191,#REF!,13,0)) -> 0 | AH191: =IF(ISERROR(VLOOKUP($B191,#REF!,14,0)),0,VLOOKUP($B191,#REF!,14,0)) -> 0 | AI191: =IF(ISERROR(VLOOKUP($B191,#REF!,13,0)),0,VLOOKUP($B191,#REF!,15,0)) -> 0 | AJ191: =IF(ISERROR(VLOOKUP($B191,#REF!,16,0)),0,VLOOKUP($B191,#REF!,16,0)) -> 0 | AK191: 0.1206711384
A192: 106034002 | B192: 50014 | C192: SUTTER AMADOR HOSPITAL | D192: 3 | E192: SUTTER HEALTH | F192: =IFERROR(INDEX('4. FY 2019-20'!AZ:AZ,MATCH(A192,'4. FY 2019-20'!A:A,0)),0) -> 5814241.118 | G192: 1 | H192: 0 | J192: =IFERROR(INDEX('5. FY 2020-21'!AZ:AZ,MATCH(A192,'5. FY 2020-21'!A:A,0)),0) -> 5965460.065 | K192: 1 | L192: 0 | N192: =IFERROR(INDEX('6. FY 2021-22'!AZ:AZ,MATCH(A192,'6. FY 2021-22'!A:A,0)),0) -> 3022368.589 | O192: 1 | P192: 0 | R192: 14802069.77 | S192: 1 | T192: 0 | X192: 5814241.118 | Z192: 5965460.065 | AB192: 3022368.589 | AD192: 14802069.77 | AG192: =IF(ISERROR(VLOOKUP($B192,#REF!,13,0)),0,VLOOKUP($B192,#REF!,13,0)) -> 0 | AH192: =IF(ISERROR(VLOOKUP($B192,#REF!,14,0)),0,VLOOKUP($B192,#REF!,14,0)) -> 0 | AI192: =IF(ISERROR(VLOOKUP($B192,#REF!,13,0)),0,VLOOKUP($B192,#REF!,15,0)) -> 0 | AJ192: =IF(ISERROR(VLOOKUP($B192,#REF!,16,0)),0,VLOOKUP($B192,#REF!,16,0)) -> 0 | AK192: 0.02600837212
A193: 106310791 | B193: 50498 | C193: SUTTER AUBURN FAITH HOSPITAL | D193: 3 | E193: SUTTER HEALTH | F193: =IFERROR(INDEX('4. FY 2019-20'!AZ:AZ,MATCH(A193,'4. FY 2019-20'!A:A,0)),0) -> 1663263.474 | G193: 1 | H193: 0 | J193: =IFERROR(INDEX('5. FY 2020-21'!AZ:AZ,MATCH(A193,'5. FY 2020-21'!A:A,0)),0) -> 1597385.611 | K193: 1 | L193: 0 | N193: =IFERROR(INDEX('6. FY 2021-22'!AZ:AZ,MATCH(A193,'6. FY 2021-22'!A:A,0)),0) -> 844158.9852 | O193: 1 | P193: 0 | R193: 4104808.07 | S193: 1 | T193: 0 | X193: 1663263.474 | Z193: 1597385.611 | AB193: 844158.9852 | AD193: 4104808.07 | AG193: =IF(ISERROR(VLOOKUP($B193,#REF!,13,0)),0,VLOOKUP($B193,#REF!,13,0)) -> 0 | AH193: =IF(ISERROR(VLOOKUP($B193,#REF!,14,0)),0,VLOOKUP($B193,#REF!,14,0)) -> 0 | AI193: =IF(ISERROR(VLOOKUP($B193,#REF!,13,0)),0,VLOOKUP($B193,#REF!,15,0)) -> 0 | AJ193: =IF(ISERROR(VLOOKUP($B193,#REF!,16,0)),0,VLOOKUP($B193,#REF!,16,0)) -> 0 | AK193: -0.03960759317
A194: 106084001 | B194: 50417 | C194: SUTTER COAST HOSPITAL | D194: 3 | E194: SUTTER HEALTH | F194: =IFERROR(INDEX('4. FY 2019-20'!AZ:AZ,MATCH(A194,'4. FY 2019-20'!A:A,0)),0) -> 7550225.329 | G194: 1 | H194: 0 | J194: =IFERROR(INDEX('5. FY 2020-21'!AZ:AZ,MATCH(A194,'5. FY 2020-21'!A:A,0)),0) -> 7710764.029 | K194: 1 | L194: 0 | N194: =IFERROR(INDEX('6. FY 2021-22'!AZ:AZ,MATCH(A194,'6. FY 2021-22'!A:A,0)),0) -> 3934886.728 | O194: 1 | P194: 0 | R194: 19195876.09 | S194: 1 | T194: 0 | X194: 7550225.329 | Z194: 7710764.029 | AB194: 3934886.728 | AD194: 19195876.09 | AG194: =IF(ISERROR(VLOOKUP($B194,#REF!,13,0)),0,VLOOKUP($B194,#REF!,13,0)) -> 0 | AH194: =IF(ISERROR(VLOOKUP($B194,#REF!,14,0)),0,VLOOKUP($B194,#REF!,14,0)) -> 0 | AI194: =IF(ISERROR(VLOOKUP($B194,#REF!,13,0)),0,VLOOKUP($B194,#REF!,15,0)) -> 0 | AJ194: =IF(ISERROR(VLOOKUP($B194,#REF!,16,0)),0,VLOOKUP($B194,#REF!,16,0)) -> 0 | AK194: 0.0212627694
A195: 106574010 | B195: 50537 | C195: SUTTER DAVIS HOSPITAL | D195: 3 | E195: SUTTER HEALTH | F195: =IFERROR(INDEX('4. FY 2019-20'!AZ:AZ,MATCH(A195,'4. FY 2019-20'!A:A,0)),0) -> 5287984.187 | G195: 1 | H195: 0 | J195: =IFERROR(INDEX('5. FY 2020-21'!AZ:AZ,MATCH(A195,'5. FY 2020-21'!A:A,0)),0) -> 5603672.532 | K195: 1 | L195: 0 | N195: =IFERROR(INDEX('6. FY 2021-22'!AZ:AZ,MATCH(A195,'6. FY 2021-22'!A:A,0)),0) -> 2825460.758 | O195: 1 | P195: 0 | R195: 13717117.48 | S195: 1 | T195: 0 | X195: 5287984.187 | Z195: 5603672.532 | AB195: 2825460.758 | AD195: 13717117.48 | AG195: =IF(ISERROR(VLOOKUP($B195,#REF!,13,0)),0,VLOOKUP($B195,#REF!,13,0)) -> 0 | AH195: =IF(ISERROR(VLOOKUP($B195,#REF!,14,0)),0,VLOOKUP($B195,#REF!,14,0)) -> 0 | AI195: =IF(ISERROR(VLOOKUP($B195,#REF!,13,0)),0,VLOOKUP($B195,#REF!,15,0)) -> 0 | AJ195: =IF(ISERROR(VLOOKUP($B195,#REF!,16,0)),0,VLOOKUP($B195,#REF!,16,0)) -> 0 | AK195: 0.05969918478
A196: 106070934 | B196: 50523 | C196: SUTTER DELTA MEDICAL CENTER | D196: 3 | E196: SUTTER HEALTH | F196: =IFERROR(INDEX('4. FY 2019-20'!AZ:AZ,MATCH(A196,'4. FY 2019-20'!A:A,0)),0) -> 12801771.91 | G196: 1 | H196: 0 | J196: =IFERROR(INDEX('5. FY 2020-21'!AZ:AZ,MATCH(A196,'5. FY 2020-21'!A:A,0)),0) -> 13215900.22 | K196: 1 | L196: 0 | N196: =IFERROR(INDEX('6. FY 2021-22'!AZ:AZ,MATCH(A196,'6. FY 2021-22'!A:A,0)),0) -> 6732227.117 | O196: 1 | P196: 0 | R196: 32749899.25 | S196: 1 | T196: 0 | X196: 12801771.91 | Z196: 13215900.22 | AB196: 6732227.117 | AD196: 32749899.25 | AG196: =IF(ISERROR(VLOOKUP($B196,#REF!,13,0)),0,VLOOKUP($B196,#REF!,13,0)) -> 0 | AH196: =IF(ISERROR(VLOOKUP($B196,#REF!,14,0)),0,VLOOKUP($B196,#REF!,14,0)) -> 0 | AI196: =IF(ISERROR(VLOOKUP($B196,#REF!,13,0)),0,VLOOKUP($B196,#REF!,15,0)) -> 0 | AJ196: =IF(ISERROR(VLOOKUP($B196,#REF!,16,0)),0,VLOOKUP($B196,#REF!,16,0)) -> 0 | AK196: 0.03234929648
A197: 106171395 | B197: 51329 | C197: SUTTER LAKESIDE HOSPITAL | D197: 3 | E197: SUTTER HEALTH | F197: =IFERROR(INDEX('4. FY 2019-20'!AZ:AZ,MATCH(A197,'4. FY 2019-20'!A:A,0)),0) -> 7354028.704 | G197: 1 | H197: 0 | J197: =IFERROR(INDEX('5. FY 2020-21'!AZ:AZ,MATCH(A197,'5. FY 2020-21'!A:A,0)),0) -> 7530703.951 | K197: 1 | L197: 0 | N197: =IFERROR(INDEX('6. FY 2021-22'!AZ:AZ,MATCH(A197,'6. FY 2021-22'!A:A,0)),0) -> 3835950.537 | O197: 1 | P197: 0 | R197: 18720683.19 | S197: 1 | T197: 0 | X197: 7354028.704 | Z197: 7530703.951 | AB197: 3835950.537 | AD197: 18720683.19 | AG197: =IF(ISERROR(VLOOKUP($B197,#REF!,13,0)),0,VLOOKUP($B197,#REF!,13,0)) -> 0 | AH197: =IF(ISERROR(VLOOKUP($B197,#REF!,14,0)),0,VLOOKUP($B197,#REF!,14,0)) -> 0 | AI197: =IF(ISERROR(VLOOKUP($B197,#REF!,13,0)),0,VLOOKUP($B197,#REF!,15,0)) -> 0 | AJ197: =IF(ISERROR(VLOOKUP($B197,#REF!,16,0)),0,VLOOKUP($B197,#REF!,16,0)) -> 0 | AK197: 0.02402428029
A198: 106444012 | B198: 50714 | C198: SUTTER MATERNITY & SURGERY CENTER | D198: 3 | E198: SUTTER HEALTH | F198: =IFERROR(INDEX('4. FY 2019-20'!AZ:AZ,MATCH(A198,'4. FY 2019-20'!A:A,0)),0) -> 416931.4202 | G198: 1 | H198: 0 | J198: =IFERROR(INDEX('5. FY 2020-21'!AZ:AZ,MATCH(A198,'5. FY 2020-21'!A:A,0)),0) -> 483635.8292 | K198: 1 | L198: 0 | N198: =IFERROR(INDEX('6. FY 2021-22'!AZ:AZ,MATCH(A198,'6. FY 2021-22'!A:A,0)),0) -> 223683.418 | O198: 1 | P198: 0 | R198: 1124250.667 | S198: 1 | T198: 0 | X198: 416931.4202 | Z198: 483635.8292 | AB198: 223683.418 | AD198: 1124250.667 | AG198: =IF(ISERROR(VLOOKUP($B198,#REF!,13,0)),0,VLOOKUP($B198,#REF!,13,0)) -> 0 | AH198: =IF(ISERROR(VLOOKUP($B198,#REF!,14,0)),0,VLOOKUP($B198,#REF!,14,0)) -> 0 | AI198: =IF(ISERROR(VLOOKUP($B198,#REF!,13,0)),0,VLOOKUP($B198,#REF!,15,0)) -> 0 | AJ198: =IF(ISERROR(VLOOKUP($B198,#REF!,16,0)),0,VLOOKUP($B198,#REF!,16,0)) -> 0 | AK198: 0.1599889232
A199: 106341051 | B199: 50108 | C199: SUTTER MEDICAL CENTER - SACRAMENTO | D199: 3 | E199: SUTTER HEALTH | F199: =IFERROR(INDEX('4. FY 2019-20'!AZ:AZ,MATCH(A199,'4. FY 2019-20'!A:A,0)),0) -> 65924738.24 | G199: 1 | H199: 0 | J199: =IFERROR(INDEX('5. FY 2020-21'!AZ:AZ,MATCH(A199,'5. FY 2020-21'!A:A,0)),0) -> 70658347.38 | K199: 1 | L199: 0 | N199: =IFERROR(INDEX('6. FY 2021-22'!AZ:AZ,MATCH(A199,'6. FY 2021-22'!A:A,0)),0) -> 35618951.06 | O199: 1 | P199: 0 | R199: 172202036.7 | S199: 1 | T199: 0 | X199: 65924738.24 | Z199: 70658347.38 | AB199: 35618951.06 | AD199: 172202036.7 | AG199: =IF(ISERROR(VLOOKUP($B199,#REF!,13,0)),0,VLOOKUP($B199,#REF!,13,0)) -> 0 | AH199: =IF(ISERROR(VLOOKUP($B199,#REF!,14,0)),0,VLOOKUP($B199,#REF!,14,0)) -> 0 | AI199: =IF(ISERROR(VLOOKUP($B199,#REF!,13,0)),0,VLOOKUP($B199,#REF!,15,0)) -> 0 | AJ199: =IF(ISERROR(VLOOKUP($B199,#REF!,16,0)),0,VLOOKUP($B199,#REF!,16,0)) -> 0 | AK199: 0.07180322994
A200: 106494106 | B200: 50291 | C200: SUTTER MEDICAL CENTER OF SANTA ROSA | D200: 3 | E200: SUTTER HEALTH | F200: =IFERROR(INDEX('4. FY 2019-20'!AZ:AZ,MATCH(A200,'4. FY 2019-20'!A:A,0)),0) -> 14990484.64 | G200: 1 | H200: 0 | J200: =IFERROR(INDEX('5. FY 2020-21'!AZ:AZ,MATCH(A200,'5. FY 2020-21'!A:A,0)),0) -> 16053718.07 | K200: 1 | L200: 0 | N200: =IFERROR(INDEX('6. FY 2021-22'!AZ:AZ,MATCH(A200,'6. FY 2021-22'!A:A,0)),0) -> 8161780.826 | O200: 1 | P200: 0 | R200: 39205983.54 | S200: 1 | T200: 0 | X200: 14990484.64 | Z200: 16053718.07 | AB200: 8161780.826 | AD200: 39205983.54 | AG200: =IF(ISERROR(VLOOKUP($B200,#REF!,13,0)),0,VLOOKUP($B200,#REF!,13,0)) -> 0 | AH200: =IF(ISERROR(VLOOKUP($B200,#REF!,14,0)),0,VLOOKUP($B200,#REF!,14,0)) -> 0 | AI200: =IF(ISERROR(VLOOKUP($B200,#REF!,13,0)),0,VLOOKUP($B200,#REF!,15,0)) -> 0 | AJ200: =IF(ISERROR(VLOOKUP($B200,#REF!,16,0)),0,VLOOKUP($B200,#REF!,16,0)) -> 0 | AK200: 0.07092722148
... 131 more rows

Sheet Managed Care MASTER (CHA Only)
A2: 2019-2021 Hospital Fee Program (VI)
A3: Managed Care Supplemental Payments
A4: Final Draft Model (CHA Version 9/30/2019)
A6: **Please note--Managed care directed payments are estimated amounts. These revenue estimates are based off the actual experience of the Phase 1 (SFY 2017-18) directed payment results that were calculated by DHCS. Pursuant to federal requirements, managed care directed payment can only be paid to network providers, and as proposed to CMS currently, the directed payments structure for SFY 2019-20, SFY 2020-21, and SFY 2021-22, will reflect the same IP and OP/ER utilization based pooled structure that existed in SFY 2017-18 and SFY 2018-19.
F11: 4. SFY 2019-20 | O11: 5. SFY 2020-21 | X11: 6. SFY 2021-22
A12: OSHPD ID | B12: OSHPD ID - SHORT | C12: MEDICARE ID | D12: HOSPITAL TYPE | E12: HOSPITAL NAME | F12: PASS THROUGH IP MANAGED CARE PAYMENTS | G12: PASS THROUGH OP MANAGED CARE PAYMENTS | H12: PASS THROUGH CARVE-OUT SERVICES MANAGED CARE PAYMENTS | I12: PASS THROUGH SUBACUTE MANAGED CARE PAYMENTS | J12: TOTAL PASSTHROUGH PAYMENTS | K12: DIRECTED PAYMENTS Inpatient Pool 70% | L12: DIRECTED PAYMENTS Outpatient/ER Pool 30% | M12: TOTAL DIRECTED PAYMENTS** | N12: TOTAL MANAGED CARE PAYMENTS | O12: PASS THROUGH IP MANAGED CARE PAYMENTS | P12: PASS THROUGH OP MANAGED CARE PAYMENTS | Q12: PASS THROUGH CARVE-OUT SERVICES MANAGED CARE PAYMENTS | R12: PASS THROUGH SUBACUTE MANAGED CARE PAYMENTS | S12: TOTAL PASSTHROUGH PAYMENTS | T12: DIRECTED PAYMENTS Inpatient Pool 70% | U12: DIRECTED PAYMENTS Outpatient/ER Pool 30% | V12: TOTAL DIRECTED PAYMENTS** | W12: TOTAL MANAGED CARE PAYMENTS | X12: PASS THROUGH IP MANAGED CARE PAYMENTS | Y12: PASS THROUGH OP MANAGED CARE PAYMENTS | Z12: PASS THROUGH CARVE-OUT SERVICES MANAGED CARE PAYMENTS | AA12: PASS THROUGH SUBACUTE MANAGED CARE PAYMENTS | AB12: TOTAL PASSTHROUGH PAYMENTS | AC12: DIRECTED PAYMENTS Inpatient Pool 70% | AD12: DIRECTED PAYMENTS Outpatient/ER Pool 30% | AE12: TOTAL DIRECTED PAYMENTS** | AF12: TOTAL MANAGED CARE PAYMENTS
F13: ='4. FY 2019-20'!AQ16 -> 537314918.6 | G13: ='4. FY 2019-20'!AR16 -> 531866433.1 | H13: ='4. FY 2019-20'!AS16 -> 664950044 | I13: ='4. FY 2019-20'!AT16 -> 65868604.38 | J13: =SUM(F13:I13) -> 1800000000 | K13: ='4. FY 2019-20'!AU16 -> 2271258842 | L13: ='4. FY 2019-20'!AV16 -> 973396646.4 | M13: =SUM(K13:L13) -> 3244655488 | N13: ='[3]4. FY 2019-20'!AW15 -> TOTAL MANAGED CARE PAYMENTS | O13: ='5. FY 2020-21'!AQ16 -> 571721961.7 | P13: ='5. FY 2020-21'!AR16 -> 476452231 | Q13: ='5. FY 2020-21'!AS16 -> 685957202.9 | R13: ='5. FY 2020-21'!AT16 -> 65868604.38 | S13: =SUM(O13:R13) -> 1800000000 | T13: ='5. FY 2020-21'!AU16 -> 2343012646 | U13: ='5. FY 2020-21'!AV16 -> 1004148277 | V13: =SUM(T13:U13) -> 3347160923 | W13: ='[3]5. FY 2020-21'!AW15 -> TOTAL MANAGED CARE PAYMENTS | X13: ='6. FY 2021-22'!AQ16 -> 275525805.4 | Y13: ='6. FY 2021-22'!AR16 -> 237613704.5 | Z13: ='6. FY 2021-22'!AS16 -> 353926187.8 | AA13: ='6. FY 2021-22'!AT16 -> 32934302.19 | AB13: =SUM(X13:AA13) -> 900000000 | AC13: ='6. FY 2021-22'!AU16 -> 1208899812 | AD13: ='6. FY 2021-22'!AV16 -> 518099919.6 | AE13: =SUM(AC13:AD13) -> 1726999732 | AF13: ='[3]6. FY 2021-22'!AW15 -> TOTAL MANAGED CARE PAYMENTS
E14: ="HOSPITAL COUNT: "&COUNTA(E15:E415) -> HOSPITAL COUNT: 401 | F14: =SUM(F15:F415) -> 537314918.6 | G14: =SUM(G15:G415) -> 531866433.1 | H14: 664950044 | I14: 65868604.38 | J14: =SUM(F14:I14) -> 1800000000 | K14: 2271258842 | L14: 973396646.4 | M14: =SUM(K14:L14) -> 3244655488 | N14: =SUM(N15:N415) -> 5044655488 | O14: =SUM(O15:O415) -> 571721961.7 | P14: =SUM(P15:P415) -> 476452231 | Q14: =SUM(Q15:Q415) -> 685957202.9 | R14: =SUM(R15:R415) -> 65868604.38 | S14: =SUM(O14:R14) -> 1800000000 | T14: =SUM(T15:T415) -> 2343012646 | U14: =SUM(U15:U415) -> 1004148277 | V14: =SUM(T14:U14) -> 3347160923 | W14: =SUM(W15:W415) -> 5147160923 | X14: =SUM(X15:X415) -> 275525805.4 | Y14: =SUM(Y15:Y415) -> 237613704.5 | Z14: =SUM(Z15:Z415) -> 353926187.8 | AA14: =SUM(AA15:AA415) -> 32934302.19 | AB14: =SUM(X14:AA14) -> 900000000 | AC14: =SUM(AC15:AC415) -> 1208899812 | AD14: =SUM(AD15:AD415) -> 518099919.6 | AE14: =SUM(AC14:AD14) -> 1726999732 | AF14: =SUM(AF15:AF415) -> 2626999732
A15: 106154044 | B15: 154044 | C15: 54155 | D15: 3 | E15: BAKERSFIELD BEHAVIORAL HEALTHCARE HOSPITAL | F15: =IFERROR('3. VARIABLE INPUT'!$C$46*INDEX('15. SFY 18-19 FINAL MUR'!AW:AW,MATCH(A15,'15. SFY 18-19 FINAL MUR'!A:A,0))*('4. FY 2019-20'!$BB18/'4. FY 2019-20'!$BE18),0) -> 0 | G15: =IFERROR('3. VARIABLE INPUT'!$C$47*INDEX('13. 2016 OSHPD MEDI-CAL MC OP'!L:L,MATCH(A15,'13. 2016 OSHPD MEDI-CAL MC OP'!A:A,0))*('4. FY 2019-20'!$BB18/'4. FY 2019-20'!$BE18),0) -> 0 | H15: =IFERROR('3. VARIABLE INPUT'!$C$48*INDEX('14. CY2016 MEDI-CAL FFS DAYS'!Y:Y,MATCH(A15,'14. CY2016 MEDI-CAL FFS DAYS'!A:A,0))*('4. FY 2019-20'!$BB18/'4. FY 2019-20'!$BE18),0) -> 0 | I15: =IFERROR(INDEX('MC PT SA (CHA Only)'!K:K,MATCH(A15,'MC PT SA (CHA Only)'!A:A,0))*('4. FY 2019-20'!$BB18/'4. FY 2019-20'!$BE18),0) -> 0 | J15: =SUM(F15:I15) -> 0 | K15: =IFERROR('3. VARIABLE INPUT'!$C$50*INDEX('SFY 17-18 Directed Payments'!H:H,MATCH(A15,'SFY 17-18 Directed Payments'!B:B,0))*('4. FY 2019-20'!$BB18/'4. FY 2019-20'!$BE18),0) -> 0 | L15: =IFERROR('3. VARIABLE INPUT'!$C$51*INDEX('SFY 17-18 Directed Payments'!I:I,MATCH(A15,'SFY 17-18 Directed Payments'!B:B,0))*('4. FY 2019-20'!$BB18/'4. FY 2019-20'!$BE18),0) -> 0 | M15: =SUM(K15:L15) -> 0 | N15: =SUM(J15,M15) -> 0 | O15: =IFERROR('3. VARIABLE INPUT'!$G$46*INDEX('15. SFY 18-19 FINAL MUR'!AW:AW,MATCH(A15,'15. SFY 18-19 FINAL MUR'!A:A,0))*('5. FY 2020-21'!$BB18/'5. FY 2020-21'!$BE18),0) -> 0 | P15: =IFERROR('3. VARIABLE INPUT'!$G$47*INDEX('13. 2016 OSHPD MEDI-CAL MC OP'!L:L,MATCH(A15,'13. 2016 OSHPD MEDI-CAL MC OP'!A:A,0))*('5. FY 2020-21'!$BB18/'5. FY 2020-21'!$BE18),0) -> 0 | Q15: =IFERROR('3. VARIABLE INPUT'!$G$48*INDEX('14. CY2016 MEDI-CAL FFS DAYS'!Y:Y,MATCH(A15,'14. CY2016 MEDI-CAL FFS DAYS'!A:A,0))*('5. FY 2020-21'!$BB18/'5. FY 2020-21'!$BE18),0) -> 0 | R15: =IFERROR(INDEX('MC PT SA (CHA Only)'!K:K,MATCH(A15,'MC PT SA (CHA Only)'!A:A,0))*('5. FY 2020-21'!$BB18/'5. FY 2020-21'!$BE18),0) -> 0 | S15: =SUM(O15:R15) -> 0 | T15: =IFERROR('3. VARIABLE INPUT'!$G$50*INDEX('SFY 17-18 Directed Payments'!H:H,MATCH(A15,'SFY 17-18 Directed Payments'!B:B,0))*('5. FY 2020-21'!$BB18/'5. FY 2020-21'!$BE18),0) -> 0 | U15: =IFERROR('3. VARIABLE INPUT'!$G$51*INDEX('SFY 17-18 Directed Payments'!I:I,MATCH(A15,'SFY 17-18 Directed Payments'!B:B,0))*('5. FY 2020-21'!$BB18/'5. FY 2020-21'!$BE18),0) -> 0 | V15: =SUM(T15:U15) -> 0 | W15: =SUM(S15,V15) -> 0 | X15: =IFERROR('3. VARIABLE INPUT'!$K$46*INDEX('15. SFY 18-19 FINAL MUR'!AW:AW,MATCH(A15,'15. SFY 18-19 FINAL MUR'!A:A,0))*('6. FY 2021-22'!$BB18/'6. FY 2021-22'!$BE18),0)/2 -> 0 | Y15: =IFERROR('3. VARIABLE INPUT'!$K$47*INDEX('13. 2016 OSHPD MEDI-CAL MC OP'!L:L,MATCH(A15,'13. 2016 OSHPD MEDI-CAL MC OP'!A:A,0))*('6. FY 2021-22'!$BB18/'6. FY 2021-22'!$BE18),0)/2 -> 0 | Z15: =IFERROR('3. VARIABLE INPUT'!$K$48*INDEX('14. CY2016 MEDI-CAL FFS DAYS'!Y:Y,MATCH(A15,'14. CY2016 MEDI-CAL FFS DAYS'!A:A,0))*('6. FY 2021-22'!$BB18/'6. FY 2021-22'!$BE18),0)/2 -> 0 | AA15: =IFERROR(INDEX('MC PT SA (CHA Only)'!K:K,MATCH(A15,'MC PT SA (CHA Only)'!A:A,0))*('6. FY 2021-22'!$BB18/'6. FY 2021-22'!$BE18),0)/2 -> 0 | AB15: =SUM(X15:AA15) -> 0 | AC15: =IFERROR('3. VARIABLE INPUT'!$K$50*INDEX('SFY 17-18 Directed Payments'!H:H,MATCH(A15,'SFY 17-18 Directed Payments'!B:B,0))*('6. FY 2021-22'!$BB18/'6. FY 2021-22'!$BE18),0)/2 -> 0 | AD15: =IFERROR('3. VARIABLE INPUT'!$K$51*INDEX('SFY 17-18 Directed Payments'!I:I,MATCH(A15,'SFY 17-18 Directed Payments'!B:B,0))*('6. FY 2021-22'!$BB18/'6. FY 2021-22'!$BE18),0)/2 -> 0 | AE15: =SUM(AC15:AD15) -> 0 | AF15: =SUM(AB15,AE15) -> 0
A16: 106504079 | B16: 504079 | C16: 53040 | D16: 3 | E16: HEALTHSOUTH REHABILITATION HOSPITAL OF MODESTO | F16: =IFERROR('3. VARIABLE INPUT'!$C$46*INDEX('15. SFY 18-19 FINAL MUR'!AW:AW,MATCH(A16,'15. SFY 18-19 FINAL MUR'!A:A,0))*('4. FY 2019-20'!$BB19/'4. FY 2019-20'!$BE19),0) -> 0 | G16: =IFERROR('3. VARIABLE INPUT'!$C$47*INDEX('13. 2016 OSHPD MEDI-CAL MC OP'!L:L,MATCH(A16,'13. 2016 OSHPD MEDI-CAL MC OP'!A:A,0))*('4. FY 2019-20'!$BB19/'4. FY 2019-20'!$BE19),0) -> 0 | H16: =IFERROR('3. VARIABLE INPUT'!$C$48*INDEX('14. CY2016 MEDI-CAL FFS DAYS'!Y:Y,MATCH(A16,'14. CY2016 MEDI-CAL FFS DAYS'!A:A,0))*('4. FY 2019-20'!$BB19/'4. FY 2019-20'!$BE19),0) -> 0 | I16: =IFERROR(INDEX('MC PT SA (CHA Only)'!K:K,MATCH(A16,'MC PT SA (CHA Only)'!A:A,0))*('4. FY 2019-20'!$BB19/'4. FY 2019-20'!$BE19),0) -> 0 | J16: =SUM(F16:I16) -> 0 | K16: =IFERROR('3. VARIABLE INPUT'!$C$50*INDEX('SFY 17-18 Directed Payments'!H:H,MATCH(A16,'SFY 17-18 Directed Payments'!B:B,0))*('4. FY 2019-20'!$BB19/'4. FY 2019-20'!$BE19),0) -> 0 | L16: =IFERROR('3. VARIABLE INPUT'!$C$51*INDEX('SFY 17-18 Directed Payments'!I:I,MATCH(A16,'SFY 17-18 Directed Payments'!B:B,0))*('4. FY 2019-20'!$BB19/'4. FY 2019-20'!$BE19),0) -> 0 | M16: =SUM(K16:L16) -> 0 | N16: =SUM(J16,M16) -> 0 | O16: =IFERROR('3. VARIABLE INPUT'!$G$46*INDEX('15. SFY 18-19 FINAL MUR'!AW:AW,MATCH(A16,'15. SFY 18-19 FINAL MUR'!A:A,0))*('5. FY 2020-21'!$BB19/'5. FY 2020-21'!$BE19),0) -> 0 | P16: =IFERROR('3. VARIABLE INPUT'!$G$47*INDEX('13. 2016 OSHPD MEDI-CAL MC OP'!L:L,MATCH(A16,'13. 2016 OSHPD MEDI-CAL MC OP'!A:A,0))*('5. FY 2020-21'!$BB19/'5. FY 2020-21'!$BE19),0) -> 0 | Q16: =IFERROR('3. VARIABLE INPUT'!$G$48*INDEX('14. CY2016 MEDI-CAL FFS DAYS'!Y:Y,MATCH(A16,'14. CY2016 MEDI-CAL FFS DAYS'!A:A,0))*('5. FY 2020-21'!$BB19/'5. FY 2020-21'!$BE19),0) -> 0 | R16: =IFERROR(INDEX('MC PT SA (CHA Only)'!K:K,MATCH(A16,'MC PT SA (CHA Only)'!A:A,0))*('5. FY 2020-21'!$BB19/'5. FY 2020-21'!$BE19),0) -> 0 | S16: =SUM(O16:R16) -> 0 | T16: =IFERROR('3. VARIABLE INPUT'!$G$50*INDEX('SFY 17-18 Directed Payments'!H:H,MATCH(A16,'SFY 17-18 Directed Payments'!B:B,0))*('5. FY 2020-21'!$BB19/'5. FY 2020-21'!$BE19),0) -> 0 | U16: =IFERROR('3. VARIABLE INPUT'!$G$51*INDEX('SFY 17-18 Directed Payments'!I:I,MATCH(A16,'SFY 17-18 Directed Payments'!B:B,0))*('5. FY 2020-21'!$BB19/'5. FY 2020-21'!$BE19),0) -> 0 | V16: =SUM(T16:U16) -> 0 | W16: 0 | X16: =IFERROR('3. VARIABLE INPUT'!$K$46*INDEX('15. SFY 18-19 FINAL MUR'!AW:AW,MATCH(A16,'15. SFY 18-19 FINAL MUR'!A:A,0))*('6. FY 2021-22'!$BB19/'6. FY 2021-22'!$BE19),0)/2 -> 0 | Y16: =IFERROR('3. VARIABLE INPUT'!$K$47*INDEX('13. 2016 OSHPD MEDI-CAL MC OP'!L:L,MATCH(A16,'13. 2016 OSHPD MEDI-CAL MC OP'!A:A,0))*('6. FY 2021-22'!$BB19/'6. FY 2021-22'!$BE19),0)/2 -> 0 | Z16: =IFERROR('3. VARIABLE INPUT'!$K$48*INDEX('14. CY2016 MEDI-CAL FFS DAYS'!Y:Y,MATCH(A16,'14. CY2016 MEDI-CAL FFS DAYS'!A:A,0))*('6. FY 2021-22'!$BB19/'6. FY 2021-22'!$BE19),0)/2 -> 0 | AA16: =IFERROR(INDEX('MC PT SA (CHA Only)'!K:K,MATCH(A16,'MC PT SA (CHA Only)'!A:A,0))*('6. FY 2021-22'!$BB19/'6. FY 2021-22'!$BE19),0)/2 -> 0 | AB16: =SUM(X16:AA16) -> 0 | AC16: =IFERROR('3. VARIABLE INPUT'!$K$50*INDEX('SFY 17-18 Directed Payments'!H:H,MATCH(A16,'SFY 17-18 Directed Payments'!B:B,0))*('6. FY 2021-22'!$BB19/'6. FY 2021-22'!$BE19),0)/2 -> 0 | AD16: =IFERROR('3. VARIABLE INPUT'!$K$51*INDEX('SFY 17-18 Directed Payments'!I:I,MATCH(A16,'SFY 17-18 Directed Payments'!B:B,0))*('6. FY 2021-22'!$BB19/'6. FY 2021-22'!$BE19),0)/2 -> 0 | AE16: =SUM(AC16:AD16) -> 0 | AF16: 0
A17: 106190552 | B17: 190552 | C17: 50552 | D17: 3 | E17: MOTION PICTURE AND TELEVISION HOSPITAL | F17: =IFERROR('3. VARIABLE INPUT'!$C$46*INDEX('15. SFY 18-19 FINAL MUR'!AW:AW,MATCH(A17,'15. SFY 18-19 FINAL MUR'!A:A,0))*('4. FY 2019-20'!$BB20/'4. FY 2019-20'!$BE20),0) -> 0 | G17: =IFERROR('3. VARIABLE INPUT'!$C$47*INDEX('13. 2016 OSHPD MEDI-CAL MC OP'!L:L,MATCH(A17,'13. 2016 OSHPD MEDI-CAL MC OP'!A:A,0))*('4. FY 2019-20'!$BB20/'4. FY 2019-20'!$BE20),0) -> 0 | H17: =IFERROR('3. VARIABLE INPUT'!$C$48*INDEX('14. CY2016 MEDI-CAL FFS DAYS'!Y:Y,MATCH(A17,'14. CY2016 MEDI-CAL FFS DAYS'!A:A,0))*('4. FY 2019-20'!$BB20/'4. FY 2019-20'!$BE20),0) -> 0 | I17: =IFERROR(INDEX('MC PT SA (CHA Only)'!K:K,MATCH(A17,'MC PT SA (CHA Only)'!A:A,0))*('4. FY 2019-20'!$BB20/'4. FY 2019-20'!$BE20),0) -> 0 | J17: 0 | K17: =IFERROR('3. VARIABLE INPUT'!$C$50*INDEX('SFY 17-18 Directed Payments'!H:H,MATCH(A17,'SFY 17-18 Directed Payments'!B:B,0))*('4. FY 2019-20'!$BB20/'4. FY 2019-20'!$BE20),0) -> 0 | L17: =IFERROR('3. VARIABLE INPUT'!$C$51*INDEX('SFY 17-18 Directed Payments'!I:I,MATCH(A17,'SFY 17-18 Directed Payments'!B:B,0))*('4. FY 2019-20'!$BB20/'4. FY 2019-20'!$BE20),0) -> 0 | M17: 0 | N17: 0 | O17: =IFERROR('3. VARIABLE INPUT'!$G$46*INDEX('15. SFY 18-19 FINAL MUR'!AW:AW,MATCH(A17,'15. SFY 18-19 FINAL MUR'!A:A,0))*('5. FY 2020-21'!$BB20/'5. FY 2020-21'!$BE20),0) -> 0 | P17: =IFERROR('3. VARIABLE INPUT'!$G$47*INDEX('13. 2016 OSHPD MEDI-CAL MC OP'!L:L,MATCH(A17,'13. 2016 OSHPD MEDI-CAL MC OP'!A:A,0))*('5. FY 2020-21'!$BB20/'5. FY 2020-21'!$BE20),0) -> 0 | Q17: =IFERROR('3. VARIABLE INPUT'!$G$48*INDEX('14. CY2016 MEDI-CAL FFS DAYS'!Y:Y,MATCH(A17,'14. CY2016 MEDI-CAL FFS DAYS'!A:A,0))*('5. FY 2020-21'!$BB20/'5. FY 2020-21'!$BE20),0) -> 0 | R17: =IFERROR(INDEX('MC PT SA (CHA Only)'!K:K,MATCH(A17,'MC PT SA (CHA Only)'!A:A,0))*('5. FY 2020-21'!$BB20/'5. FY 2020-21'!$BE20),0) -> 0 | S17: 0 | T17: =IFERROR('3. VARIABLE INPUT'!$G$50*INDEX('SFY 17-18 Directed Payments'!H:H,MATCH(A17,'SFY 17-18 Directed Payments'!B:B,0))*('5. FY 2020-21'!$BB20/'5. FY 2020-21'!$BE20),0) -> 0 | U17: =IFERROR('3. VARIABLE INPUT'!$G$51*INDEX('SFY 17-18 Directed Payments'!I:I,MATCH(A17,'SFY 17-18 Directed Payments'!B:B,0))*('5. FY 2020-21'!$BB20/'5. FY 2020-21'!$BE20),0) -> 0 | V17: 0 | W17: 0 | X17: =IFERROR('3. VARIABLE INPUT'!$K$46*INDEX('15. SFY 18-19 FINAL MUR'!AW:AW,MATCH(A17,'15. SFY 18-19 FINAL MUR'!A:A,0))*('6. FY 2021-22'!$BB20/'6. FY 2021-22'!$BE20),0)/2 -> 0 | Y17: =IFERROR('3. VARIABLE INPUT'!$K$47*INDEX('13. 2016 OSHPD MEDI-CAL MC OP'!L:L,MATCH(A17,'13. 2016 OSHPD MEDI-CAL MC OP'!A:A,0))*('6. FY 2021-22'!$BB20/'6. FY 2021-22'!$BE20),0)/2 -> 0 | Z17: =IFERROR('3. VARIABLE INPUT'!$K$48*INDEX('14. CY2016 MEDI-CAL FFS DAYS'!Y:Y,MATCH(A17,'14. CY2016 MEDI-CAL FFS DAYS'!A:A,0))*('6. FY 2021-22'!$BB20/'6. FY 2021-22'!$BE20),0)/2 -> 0 | AA17: =IFERROR(INDEX('MC PT SA (CHA Only)'!K:K,MATCH(A17,'MC PT SA (CHA Only)'!A:A,0))*('6. FY 2021-22'!$BB20/'6. FY 2021-22'!$BE20),0)/2 -> 0 | AB17: 0 | AC17: =IFERROR('3. VARIABLE INPUT'!$K$50*INDEX('SFY 17-18 Directed Payments'!H:H,MATCH(A17,'SFY 17-18 Directed Payments'!B:B,0))*('6. FY 2021-22'!$BB20/'6. FY 2021-22'!$BE20),0)/2 -> 0 | AD17: =IFERROR('3. VARIABLE INPUT'!$K$51*INDEX('SFY 17-18 Directed Payments'!I:I,MATCH(A17,'SFY 17-18 Directed Payments'!B:B,0))*('6. FY 2021-22'!$BB20/'6. FY 2021-22'!$BE20),0)/2 -> 0 | AE17: 0 | AF17: 0
A18: 106434032 | B18: 434032 | C18: 54154 | D18: 3 | E18: SAN JOSE BEHAVIORAL HEALTH | F18: =IFERROR('3. VARIABLE INPUT'!$C$46*INDEX('15. SFY 18-19 FINAL MUR'!AW:AW,MATCH(A18,'15. SFY 18-19 FINAL MUR'!A:A,0))*('4. FY 2019-20'!$BB21/'4. FY 2019-20'!$BE21),0) -> 0 | G18: =IFERROR('3. VARIABLE INPUT'!$C$47*INDEX('13. 2016 OSHPD MEDI-CAL MC OP'!L:L,MATCH(A18,'13. 2016 OSHPD MEDI-CAL MC OP'!A:A,0))*('4. FY 2019-20'!$BB21/'4. FY 2019-20'!$BE21),0) -> 0 | H18: =IFERROR('3. VARIABLE INPUT'!$C$48*INDEX('14. CY2016 MEDI-CAL FFS DAYS'!Y:Y,MATCH(A18,'14. CY2016 MEDI-CAL FFS DAYS'!A:A,0))*('4. FY 2019-20'!$BB21/'4. FY 2019-20'!$BE21),0) -> 0 | I18: =IFERROR(INDEX('MC PT SA (CHA Only)'!K:K,MATCH(A18,'MC PT SA (CHA Only)'!A:A,0))*('4. FY 2019-20'!$BB21/'4. FY 2019-20'!$BE21),0) -> 0 | J18: 0 | K18: =IFERROR('3. VARIABLE INPUT'!$C$50*INDEX('SFY 17-18 Directed Payments'!H:H,MATCH(A18,'SFY 17-18 Directed Payments'!B:B,0))*('4. FY 2019-20'!$BB21/'4. FY 2019-20'!$BE21),0) -> 0 | L18: =IFERROR('3. VARIABLE INPUT'!$C$51*INDEX('SFY 17-18 Directed Payments'!I:I,MATCH(A18,'SFY 17-18 Directed Payments'!B:B,0))*('4. FY 2019-20'!$BB21/'4. FY 2019-20'!$BE21),0) -> 0 | M18: 0 | N18: 0 | O18: =IFERROR('3. VARIABLE INPUT'!$G$46*INDEX('15. SFY 18-19 FINAL MUR'!AW:AW,MATCH(A18,'15. SFY 18-19 FINAL MUR'!A:A,0))*('5. FY 2020-21'!$BB21/'5. FY 2020-21'!$BE21),0) -> 0 | P18: =IFERROR('3. VARIABLE INPUT'!$G$47*INDEX('13. 2016 OSHPD MEDI-CAL MC OP'!L:L,MATCH(A18,'13. 2016 OSHPD MEDI-CAL MC OP'!A:A,0))*('5. FY 2020-21'!$BB21/'5. FY 2020-21'!$BE21),0) -> 0 | Q18: =IFERROR('3. VARIABLE INPUT'!$G$48*INDEX('14. CY2016 MEDI-CAL FFS DAYS'!Y:Y,MATCH(A18,'14. CY2016 MEDI-CAL FFS DAYS'!A:A,0))*('5. FY 2020-21'!$BB21/'5. FY 2020-21'!$BE21),0) -> 0 | R18: =IFERROR(INDEX('MC PT SA (CHA Only)'!K:K,MATCH(A18,'MC PT SA (CHA Only)'!A:A,0))*('5. FY 2020-21'!$BB21/'5. FY 2020-21'!$BE21),0) -> 0 | S18: 0 | T18: =IFERROR('3. VARIABLE INPUT'!$G$50*INDEX('SFY 17-18 Directed Payments'!H:H,MATCH(A18,'SFY 17-18 Directed Payments'!B:B,0))*('5. FY 2020-21'!$BB21/'5. FY 2020-21'!$BE21),0) -> 0 | U18: =IFERROR('3. VARIABLE INPUT'!$G$51*INDEX('SFY 17-18 Directed Payments'!I:I,MATCH(A18,'SFY 17-18 Directed Payments'!B:B,0))*('5. FY 2020-21'!$BB21/'5. FY 2020-21'!$BE21),0) -> 0 | V18: 0 | W18: 0 | X18: =IFERROR('3. VARIABLE INPUT'!$K$46*INDEX('15. SFY 18-19 FINAL MUR'!AW:AW,MATCH(A18,'15. SFY 18-19 FINAL MUR'!A:A,0))*('6. FY 2021-22'!$BB21/'6. FY 2021-22'!$BE21),0)/2 -> 0 | Y18: =IFERROR('3. VARIABLE INPUT'!$K$47*INDEX('13. 2016 OSHPD MEDI-CAL MC OP'!L:L,MATCH(A18,'13. 2016 OSHPD MEDI-CAL MC OP'!A:A,0))*('6. FY 2021-22'!$BB21/'6. FY 2021-22'!$BE21),0)/2 -> 0 | Z18: =IFERROR('3. VARIABLE INPUT'!$K$48*INDEX('14. CY2016 MEDI-CAL FFS DAYS'!Y:Y,MATCH(A18,'14. CY2016 MEDI-CAL FFS DAYS'!A:A,0))*('6. FY 2021-22'!$BB21/'6. FY 2021-22'!$BE21),0)/2 -> 0 | AA18: =IFERROR(INDEX('MC PT SA (CHA Only)'!K:K,MATCH(A18,'MC PT SA (CHA Only)'!A:A,0))*('6. FY 2021-22'!$BB21/'6. FY 2021-22'!$BE21),0)/2 -> 0 | AB18: 0 | AC18: =IFERROR('3. VARIABLE INPUT'!$K$50*INDEX('SFY 17-18 Directed Payments'!H:H,MATCH(A18,'SFY 17-18 Directed Payments'!B:B,0))*('6. FY 2021-22'!$BB21/'6. FY 2021-22'!$BE21),0)/2 -> 0 | AD18: =IFERROR('3. VARIABLE INPUT'!$K$51*INDEX('SFY 17-18 Directed Payments'!I:I,MATCH(A18,'SFY 17-18 Directed Payments'!B:B,0))*('6. FY 2021-22'!$BB21/'6. FY 2021-22'!$BE21),0)/2 -> 0 | AE18: 0 | AF18: 0
A19: 106494106 | B19: 494106 | C19: 50291 | D19: 3 | E19: SUTTER SANTA ROSA REGIONAL HOSPITAL | F19: =IFERROR('3. VARIABLE INPUT'!$C$46*INDEX('15. SFY 18-19 FINAL MUR'!AW:AW,MATCH(A19,'15. SFY 18-19 FINAL MUR'!A:A,0))*('4. FY 2019-20'!$BB22/'4. FY 2019-20'!$BE22),0) -> 1510286.59 | G19: =IFERROR('3. VARIABLE INPUT'!$C$47*INDEX('13. 2016 OSHPD MEDI-CAL MC OP'!L:L,MATCH(A19,'13. 2016 OSHPD MEDI-CAL MC OP'!A:A,0))*('4. FY 2019-20'!$BB22/'4. FY 2019-20'!$BE22),0) -> 1275140.856 | H19: =IFERROR('3. VARIABLE INPUT'!$C$48*INDEX('14. CY2016 MEDI-CAL FFS DAYS'!Y:Y,MATCH(A19,'14. CY2016 MEDI-CAL FFS DAYS'!A:A,0))*('4. FY 2019-20'!$BB22/'4. FY 2019-20'!$BE22),0) -> 4202875.758 | I19: =IFERROR(INDEX('MC PT SA (CHA Only)'!K:K,MATCH(A19,'MC PT SA (CHA Only)'!A:A,0))*('4. FY 2019-20'!$BB22/'4. FY 2019-20'!$BE22),0) -> 0 | J19: 6988303.204 | K19: =IFERROR('3. VARIABLE INPUT'!$C$50*INDEX('SFY 17-18 Directed Payments'!H:H,MATCH(A19,'SFY 17-18 Directed Payments'!B:B,0))*('4. FY 2019-20'!$BB22/'4. FY 2019-20'!$BE22),0) -> 6911283.871 | L19: =IFERROR('3. VARIABLE INPUT'!$C$51*INDEX('SFY 17-18 Directed Payments'!I:I,MATCH(A19,'SFY 17-18 Directed Payments'!B:B,0))*('4. FY 2019-20'!$BB22/'4. FY 2019-20'!$BE22),0) -> 2709908.237 | M19: 9621192.108 | N19: 16609495.31 | O19: =IFERROR('3. VARIABLE INPUT'!$G$46*INDEX('15. SFY 18-19 FINAL MUR'!AW:AW,MATCH(A19,'15. SFY 18-19 FINAL MUR'!A:A,0))*('5. FY 2020-21'!$BB22/'5. FY 2020-21'!$BE22),0) -> 1606998.024 | P19: =IFERROR('3. VARIABLE INPUT'!$G$47*INDEX('13. 2016 OSHPD MEDI-CAL MC OP'!L:L,MATCH(A19,'13. 2016 OSHPD MEDI-CAL MC OP'!A:A,0))*('5. FY 2020-21'!$BB22/'5. FY 2020-21'!$BE22),0) -> 1142286.236 | Q19: =IFERROR('3. VARIABLE INPUT'!$G$48*INDEX('14. CY2016 MEDI-CAL FFS DAYS'!Y:Y,MATCH(A19,'14. CY2016 MEDI-CAL FFS DAYS'!A:A,0))*('5. FY 2020-21'!$BB22/'5. FY 2020-21'!$BE22),0) -> 4335653.37 | R19: =IFERROR(INDEX('MC PT SA (CHA Only)'!K:K,MATCH(A19,'MC PT SA (CHA Only)'!A:A,0))*('5. FY 2020-21'!$BB22/'5. FY 2020-21'!$BE22),0) -> 0 | S19: 7084937.629 | T19: =IFERROR('3. VARIABLE INPUT'!$G$50*INDEX('SFY 17-18 Directed Payments'!H:H,MATCH(A19,'SFY 17-18 Directed Payments'!B:B,0))*('5. FY 2020-21'!$BB22/'5. FY 2020-21'!$BE22),0) -> 7129625.745 | U19: =IFERROR('3. VARIABLE INPUT'!$G$51*INDEX('SFY 17-18 Directed Payments'!I:I,MATCH(A19,'SFY 17-18 Directed Payments'!B:B,0))*('5. FY 2020-21'!$BB22/'5. FY 2020-21'!$BE22),0) -> 2795519.891 | V19: 9925145.636 | W19: 17010083.27 | X19: =IFERROR('3. VARIABLE INPUT'!$K$46*INDEX('15. SFY 18-19 FINAL MUR'!AW:AW,MATCH(A19,'15. SFY 18-19 FINAL MUR'!A:A,0))*('6. FY 2021-22'!$BB22/'6. FY 2021-22'!$BE22),0)/2 -> 774448.8657 | Y19: =IFERROR('3. VARIABLE INPUT'!$K$47*INDEX('13. 2016 OSHPD MEDI-CAL MC OP'!L:L,MATCH(A19,'13. 2016 OSHPD MEDI-CAL MC OP'!A:A,0))*('6. FY 2021-22'!$BB22/'6. FY 2021-22'!$BE22),0)/2 -> 569674.8728 | Z19: =IFERROR('3. VARIABLE INPUT'!$K$48*INDEX('14. CY2016 MEDI-CAL FFS DAYS'!Y:Y,MATCH(A19,'14. CY2016 MEDI-CAL FFS DAYS'!A:A,0))*('6. FY 2021-22'!$BB22/'6. FY 2021-22'!$BE22),0)/2 -> 2237021.876 | AA19: =IFERROR(INDEX('MC PT SA (CHA Only)'!K:K,MATCH(A19,'MC PT SA (CHA Only)'!A:A,0))*('6. FY 2021-22'!$BB22/'6. FY 2021-22'!$BE22),0)/2 -> 0 | AB19: 3581145.615 | AC19: =IFERROR('3. VARIABLE INPUT'!$K$50*INDEX('SFY 17-18 Directed Payments'!H:H,MATCH(A19,'SFY 17-18 Directed Payments'!B:B,0))*('6. FY 2021-22'!$BB22/'6. FY 2021-22'!$BE22),0)/2 -> 3678598.68 | AD19: =IFERROR('3. VARIABLE INPUT'!$K$51*INDEX('SFY 17-18 Directed Payments'!I:I,MATCH(A19,'SFY 17-18 Directed Payments'!B:B,0))*('6. FY 2021-22'!$BB22/'6. FY 2021-22'!$BE22),0)/2 -> 1442375.259 | AE19: 5120973.938 | AF19: 8702119.553
A20: 106334457 | B20: 334457 | D20: 3 | E20: TELECARE RIVERSIDE COUNTY PSYCHIATRIC HEALTH FACILITY | F20: =IFERROR('3. VARIABLE INPUT'!$C$46*INDEX('15. SFY 18-19 FINAL MUR'!AW:AW,MATCH(A20,'15. SFY 18-19 FINAL MUR'!A:A,0))*('4. FY 2019-20'!$BB23/'4. FY 2019-20'!$BE23),0) -> 0 | G20: =IFERROR('3. VARIABLE INPUT'!$C$47*INDEX('13. 2016 OSHPD MEDI-CAL MC OP'!L:L,MATCH(A20,'13. 2016 OSHPD MEDI-CAL MC OP'!A:A,0))*('4. FY 2019-20'!$BB23/'4. FY 2019-20'!$BE23),0) -> 0 | H20: =IFERROR('3. VARIABLE INPUT'!$C$48*INDEX('14. CY2016 MEDI-CAL FFS DAYS'!Y:Y,MATCH(A20,'14. CY2016 MEDI-CAL FFS DAYS'!A:A,0))*('4. FY 2019-20'!$BB23/'4. FY 2019-20'!$BE23),0) -> 0 | I20: =IFERROR(INDEX('MC PT SA (CHA Only)'!K:K,MATCH(A20,'MC PT SA (CHA Only)'!A:A,0))*('4. FY 2019-20'!$BB23/'4. FY 2019-20'!$BE23),0) -> 0 | J20: 0 | K20: =IFERROR('3. VARIABLE INPUT'!$C$50*INDEX('SFY 17-18 Directed Payments'!H:H,MATCH(A20,'SFY 17-18 Directed Payments'!B:B,0))*('4. FY 2019-20'!$BB23/'4. FY 2019-20'!$BE23),0) -> 0 | L20: =IFERROR('3. VARIABLE INPUT'!$C$51*INDEX('SFY 17-18 Directed Payments'!I:I,MATCH(A20,'SFY 17-18 Directed Payments'!B:B,0))*('4. FY 2019-20'!$BB23/'4. FY 2019-20'!$BE23),0) -> 0 | M20: 0 | N20: 0 | O20: =IFERROR('3. VARIABLE INPUT'!$G$46*INDEX('15. SFY 18-19 FINAL MUR'!AW:AW,MATCH(A20,'15. SFY 18-19 FINAL MUR'!A:A,0))*('5. FY 2020-21'!$BB23/'5. FY 2020-21'!$BE23),0) -> 0 | P20: =IFERROR('3. VARIABLE INPUT'!$G$47*INDEX('13. 2016 OSHPD MEDI-CAL MC OP'!L:L,MATCH(A20,'13. 2016 OSHPD MEDI-CAL MC OP'!A:A,0))*('5. FY 2020-21'!$BB23/'5. FY 2020-21'!$BE23),0) -> 0 | Q20: =IFERROR('3. VARIABLE INPUT'!$G$48*INDEX('14. CY2016 MEDI-CAL FFS DAYS'!Y:Y,MATCH(A20,'14. CY2016 MEDI-CAL FFS DAYS'!A:A,0))*('5. FY 2020-21'!$BB23/'5. FY 2020-21'!$BE23),0) -> 0 | R20: =IFERROR(INDEX('MC PT SA (CHA Only)'!K:K,MATCH(A20,'MC PT SA (CHA Only)'!A:A,0))*('5. FY 2020-21'!$BB23/'5. FY 2020-21'!$BE23),0) -> 0 | S20: 0 | T20: =IFERROR('3. VARIABLE INPUT'!$G$50*INDEX('SFY 17-18 Directed Payments'!H:H,MATCH(A20,'SFY 17-18 Directed Payments'!B:B,0))*('5. FY 2020-21'!$BB23/'5. FY 2020-21'!$BE23),0) -> 0 | U20: =IFERROR('3. VARIABLE INPUT'!$G$51*INDEX('SFY 17-18 Directed Payments'!I:I,MATCH(A20,'SFY 17-18 Directed Payments'!B:B,0))*('5. FY 2020-21'!$BB23/'5. FY 2020-21'!$BE23),0) -> 0 | V20: 0 | W20: 0 | X20: =IFERROR('3. VARIABLE INPUT'!$K$46*INDEX('15. SFY 18-19 FINAL MUR'!AW:AW,MATCH(A20,'15. SFY 18-19 FINAL MUR'!A:A,0))*('6. FY 2021-22'!$BB23/'6. FY 2021-22'!$BE23),0)/2 -> 0 | Y20: =IFERROR('3. VARIABLE INPUT'!$K$47*INDEX('13. 2016 OSHPD MEDI-CAL MC OP'!L:L,MATCH(A20,'13. 2016 OSHPD MEDI-CAL MC OP'!A:A,0))*('6. FY 2021-22'!$BB23/'6. FY 2021-22'!$BE23),0)/2 -> 0 | Z20: =IFERROR('3. VARIABLE INPUT'!$K$48*INDEX('14. CY2016 MEDI-CAL FFS DAYS'!Y:Y,MATCH(A20,'14. CY2016 MEDI-CAL FFS DAYS'!A:A,0))*('6. FY 2021-22'!$BB23/'6. FY 2021-22'!$BE23),0)/2 -> 0 | AA20: =IFERROR(INDEX('MC PT SA (CHA Only)'!K:K,MATCH(A20,'MC PT SA (CHA Only)'!A:A,0))*('6. FY 2021-22'!$BB23/'6. FY 2021-22'!$BE23),0)/2 -> 0 | AB20: 0 | AC20: =IFERROR('3. VARIABLE INPUT'!$K$50*INDEX('SFY 17-18 Directed Payments'!H:H,MATCH(A20,'SFY 17-18 Directed Payments'!B:B,0))*('6. FY 2021-22'!$BB23/'6. FY 2021-22'!$BE23),0)/2 -> 0 | AD20: =IFERROR('3. VARIABLE INPUT'!$K$51*INDEX('SFY 17-18 Directed Payments'!I:I,MATCH(A20,'SFY 17-18 Directed Payments'!B:B,0))*('6. FY 2021-22'!$BB23/'6. FY 2021-22'!$BE23),0)/2 -> 0 | AE20: 0 | AF20: 0
A21: 106444029 | B21: 444029 | C21: 54152 | D21: 3 | E21: TELECARE SANTA CRUZ - PHF | F21: =IFERROR('3. VARIABLE INPUT'!$C$46*INDEX('15. SFY 18-19 FINAL MUR'!AW:AW,MATCH(A21,'15. SFY 18-19 FINAL MUR'!A:A,0))*('4. FY 2019-20'!$BB24/'4. FY 2019-20'!$BE24),0) -> 0 | G21: =IFERROR('3. VARIABLE INPUT'!$C$47*INDEX('13. 2016 OSHPD MEDI-CAL MC OP'!L:L,MATCH(A21,'13. 2016 OSHPD MEDI-CAL MC OP'!A:A,0))*('4. FY 2019-20'!$BB24/'4. FY 2019-20'!$BE24),0) -> 0 | H21: =IFERROR('3. VARIABLE INPUT'!$C$48*INDEX('14. CY2016 MEDI-CAL FFS DAYS'!Y:Y,MATCH(A21,'14. CY2016 MEDI-CAL FFS DAYS'!A:A,0))*('4. FY 2019-20'!$BB24/'4. FY 2019-20'!$BE24),0) -> 0 | I21: =IFERROR(INDEX('MC PT SA (CHA Only)'!K:K,MATCH(A21,'MC PT SA (CHA Only)'!A:A,0))*('4. FY 2019-20'!$BB24/'4. FY 2019-20'!$BE24),0) -> 0 | J21: 0 | K21: =IFERROR('3. VARIABLE INPUT'!$C$50*INDEX('SFY 17-18 Directed Payments'!H:H,MATCH(A21,'SFY 17-18 Directed Payments'!B:B,0))*('4. FY 2019-20'!$BB24/'4. FY 2019-20'!$BE24),0) -> 0 | L21: =IFERROR('3. VARIABLE INPUT'!$C$51*INDEX('SFY 17-18 Directed Payments'!I:I,MATCH(A21,'SFY 17-18 Directed Payments'!B:B,0))*('4. FY 2019-20'!$BB24/'4. FY 2019-20'!$BE24),0) -> 0 | M21: 0 | N21: 0 | O21: =IFERROR('3. VARIABLE INPUT'!$G$46*INDEX('15. SFY 18-19 FINAL MUR'!AW:AW,MATCH(A21,'15. SFY 18-19 FINAL MUR'!A:A,0))*('5. FY 2020-21'!$BB24/'5. FY 2020-21'!$BE24),0) -> 0 | P21: =IFERROR('3. VARIABLE INPUT'!$G$47*INDEX('13. 2016 OSHPD MEDI-CAL MC OP'!L:L,MATCH(A21,'13. 2016 OSHPD MEDI-CAL MC OP'!A:A,0))*('5. FY 2020-21'!$BB24/'5. FY 2020-21'!$BE24),0) -> 0 | Q21: =IFERROR('3. VARIABLE INPUT'!$G$48*INDEX('14. CY2016 MEDI-CAL FFS DAYS'!Y:Y,MATCH(A21,'14. CY2016 MEDI-CAL FFS DAYS'!A:A,0))*('5. FY 2020-21'!$BB24/'5. FY 2020-21'!$BE24),0) -> 0 | R21: =IFERROR(INDEX('MC PT SA (CHA Only)'!K:K,MATCH(A21,'MC PT SA (CHA Only)'!A:A,0))*('5. FY 2020-21'!$BB24/'5. FY 2020-21'!$BE24),0) -> 0 | S21: 0 | T21: =IFERROR('3. VARIABLE INPUT'!$G$50*INDEX('SFY 17-18 Directed Payments'!H:H,MATCH(A21,'SFY 17-18 Directed Payments'!B:B,0))*('5. FY 2020-21'!$BB24/'5. FY 2020-21'!$BE24),0) -> 0 | U21: =IFERROR('3. VARIABLE INPUT'!$G$51*INDEX('SFY 17-18 Directed Payments'!I:I,MATCH(A21,'SFY 17-18 Directed Payments'!B:B,0))*('5. FY 2020-21'!$BB24/'5. FY 2020-21'!$BE24),0) -> 0 | V21: 0 | W21: 0 | X21: =IFERROR('3. VARIABLE INPUT'!$K$46*INDEX('15. SFY 18-19 FINAL MUR'!AW:AW,MATCH(A21,'15. SFY 18-19 FINAL MUR'!A:A,0))*('6. FY 2021-22'!$BB24/'6. FY 2021-22'!$BE24),0)/2 -> 0 | Y21: =IFERROR('3. VARIABLE INPUT'!$K$47*INDEX('13. 2016 OSHPD MEDI-CAL MC OP'!L:L,MATCH(A21,'13. 2016 OSHPD MEDI-CAL MC OP'!A:A,0))*('6. FY 2021-22'!$BB24/'6. FY 2021-22'!$BE24),0)/2 -> 0 | Z21: =IFERROR('3. VARIABLE INPUT'!$K$48*INDEX('14. CY2016 MEDI-CAL FFS DAYS'!Y:Y,MATCH(A21,'14. CY2016 MEDI-CAL FFS DAYS'!A:A,0))*('6. FY 2021-22'!$BB24/'6. FY 2021-22'!$BE24),0)/2 -> 0 | AA21: =IFERROR(INDEX('MC PT SA (CHA Only)'!K:K,MATCH(A21,'MC PT SA (CHA Only)'!A:A,0))*('6. FY 2021-22'!$BB24/'6. FY 2021-22'!$BE24),0)/2 -> 0 | AB21: 0 | AC21: =IFERROR('3. VARIABLE INPUT'!$K$50*INDEX('SFY 17-18 Directed Payments'!H:H,MATCH(A21,'SFY 17-18 Directed Payments'!B:B,0))*('6. FY 2021-22'!$BB24/'6. FY 2021-22'!$BE24),0)/2 -> 0 | AD21: =IFERROR('3. VARIABLE INPUT'!$K$51*INDEX('SFY 17-18 Directed Payments'!I:I,MATCH(A21,'SFY 17-18 Directed Payments'!B:B,0))*('6. FY 2021-22'!$BB24/'6. FY 2021-22'!$BE24),0)/2 -> 0 | AE21: 0 | AF21: 0
A22: 106364451 | B22: 364451 | C22: 53038 | D22: 3 | E22: TOTALLY KIDS REHABILITATION HOSPITAL | F22: =IFERROR('3. VARIABLE INPUT'!$C$46*INDEX('15. SFY 18-19 FINAL MUR'!AW:AW,MATCH(A22,'15. SFY 18-19 FINAL MUR'!A:A,0))*('4. FY 2019-20'!$BB25/'4. FY 2019-20'!$BE25),0) -> 0 | G22: =IFERROR('3. VARIABLE INPUT'!$C$47*INDEX('13. 2016 OSHPD MEDI-CAL MC OP'!L:L,MATCH(A22,'13. 2016 OSHPD MEDI-CAL MC OP'!A:A,0))*('4. FY 2019-20'!$BB25/'4. FY 2019-20'!$BE25),0) -> 0 | H22: =IFERROR('3. VARIABLE INPUT'!$C$48*INDEX('14. CY2016 MEDI-CAL FFS DAYS'!Y:Y,MATCH(A22,'14. CY2016 MEDI-CAL FFS DAYS'!A:A,0))*('4. FY 2019-20'!$BB25/'4. FY 2019-20'!$BE25),0) -> 0 | I22: =IFERROR(INDEX('MC PT SA (CHA Only)'!K:K,MATCH(A22,'MC PT SA (CHA Only)'!A:A,0))*('4. FY 2019-20'!$BB25/'4. FY 2019-20'!$BE25),0) -> 0 | J22: 0 | K22: =IFERROR('3. VARIABLE INPUT'!$C$50*INDEX('SFY 17-18 Directed Payments'!H:H,MATCH(A22,'SFY 17-18 Directed Payments'!B:B,0))*('4. FY 2019-20'!$BB25/'4. FY 2019-20'!$BE25),0) -> 0 | L22: =IFERROR('3. VARIABLE INPUT'!$C$51*INDEX('SFY 17-18 Directed Payments'!I:I,MATCH(A22,'SFY 17-18 Directed Payments'!B:B,0))*('4. FY 2019-20'!$BB25/'4. FY 2019-20'!$BE25),0) -> 0 | M22: 0 | N22: 0 | O22: =IFERROR('3. VARIABLE INPUT'!$G$46*INDEX('15. SFY 18-19 FINAL MUR'!AW:AW,MATCH(A22,'15. SFY 18-19 FINAL MUR'!A:A,0))*('5. FY 2020-21'!$BB25/'5. FY 2020-21'!$BE25),0) -> 0 | P22: =IFERROR('3. VARIABLE INPUT'!$G$47*INDEX('13. 2016 OSHPD MEDI-CAL MC OP'!L:L,MATCH(A22,'13. 2016 OSHPD MEDI-CAL MC OP'!A:A,0))*('5. FY 2020-21'!$BB25/'5. FY 2020-21'!$BE25),0) -> 0 | Q22: =IFERROR('3. VARIABLE INPUT'!$G$48*INDEX('14. CY2016 MEDI-CAL FFS DAYS'!Y:Y,MATCH(A22,'14. CY2016 MEDI-CAL FFS DAYS'!A:A,0))*('5. FY 2020-21'!$BB25/'5. FY 2020-21'!$BE25),0) -> 0 | R22: =IFERROR(INDEX('MC PT SA (CHA Only)'!K:K,MATCH(A22,'MC PT SA (CHA Only)'!A:A,0))*('5. FY 2020-21'!$BB25/'5. FY 2020-21'!$BE25),0) -> 0 | S22: 0 | T22: =IFERROR('3. VARIABLE INPUT'!$G$50*INDEX('SFY 17-18 Directed Payments'!H:H,MATCH(A22,'SFY 17-18 Directed Payments'!B:B,0))*('5. FY 2020-21'!$BB25/'5. FY 2020-21'!$BE25),0) -> 0 | U22: =IFERROR('3. VARIABLE INPUT'!$G$51*INDEX('SFY 17-18 Directed Payments'!I:I,MATCH(A22,'SFY 17-18 Directed Payments'!B:B,0))*('5. FY 2020-21'!$BB25/'5. FY 2020-21'!$BE25),0) -> 0 | V22: 0 | W22: 0 | X22: =IFERROR('3. VARIABLE INPUT'!$K$46*INDEX('15. SFY 18-19 FINAL MUR'!AW:AW,MATCH(A22,'15. SFY 18-19 FINAL MUR'!A:A,0))*('6. FY 2021-22'!$BB25/'6. FY 2021-22'!$BE25),0)/2 -> 0 | Y22: =IFERROR('3. VARIABLE INPUT'!$K$47*INDEX('13. 2016 OSHPD MEDI-CAL MC OP'!L:L,MATCH(A22,'13. 2016 OSHPD MEDI-CAL MC OP'!A:A,0))*('6. FY 2021-22'!$BB25/'6. FY 2021-22'!$BE25),0)/2 -> 0 | Z22: =IFERROR('3. VARIABLE INPUT'!$K$48*INDEX('14. CY2016 MEDI-CAL FFS DAYS'!Y:Y,MATCH(A22,'14. CY2016 MEDI-CAL FFS DAYS'!A:A,0))*('6. FY 2021-22'!$BB25/'6. FY 2021-22'!$BE25),0)/2 -> 0 | AA22: =IFERROR(INDEX('MC PT SA (CHA Only)'!K:K,MATCH(A22,'MC PT SA (CHA Only)'!A:A,0))*('6. FY 2021-22'!$BB25/'6. FY 2021-22'!$BE25),0)/2 -> 0 | AB22: 0 | AC22: =IFERROR('3. VARIABLE INPUT'!$K$50*INDEX('SFY 17-18 Directed Payments'!H:H,MATCH(A22,'SFY 17-18 Directed Payments'!B:B,0))*('6. FY 2021-22'!$BB25/'6. FY 2021-22'!$BE25),0)/2 -> 0 | AD22: =IFERROR('3. VARIABLE INPUT'!$K$51*INDEX('SFY 17-18 Directed Payments'!I:I,MATCH(A22,'SFY 17-18 Directed Payments'!B:B,0))*('6. FY 2021-22'!$BB25/'6. FY 2021-22'!$BE25),0)/2 -> 0 | AE22: 0 | AF22: 0
A23: 106150788 | B23: 150788 | C23: 50455 | D23: 3 | E23: ADVENTIST HEALTH BAKERSFIELD | F23: =IFERROR('3. VARIABLE INPUT'!$C$46*INDEX('15. SFY 18-19 FINAL MUR'!AW:AW,MATCH(A23,'15. SFY 18-19 FINAL MUR'!A:A,0))*('4. FY 2019-20'!$BB26/'4. FY 2019-20'!$BE26),0) -> 4231293.47 | G23: =IFERROR('3. VARIABLE INPUT'!$C$47*INDEX('13. 2016 OSHPD MEDI-CAL MC OP'!L:L,MATCH(A23,'13. 2016 OSHPD MEDI-CAL MC OP'!A:A,0))*('4. FY 2019-20'!$BB26/'4. FY 2019-20'!$BE26),0) -> 2863514.789 | H23: =IFERROR('3. VARIABLE INPUT'!$C$48*INDEX('14. CY2016 MEDI-CAL FFS DAYS'!Y:Y,MATCH(A23,'14. CY2016 MEDI-CAL FFS DAYS'!A:A,0))*('4. FY 2019-20'!$BB26/'4. FY 2019-20'!$BE26),0) -> 475512.4324 | I23: =IFERROR(INDEX('MC PT SA (CHA Only)'!K:K,MATCH(A23,'MC PT SA (CHA Only)'!A:A,0))*('4. FY 2019-20'!$BB26/'4. FY 2019-20'!$BE26),0) -> 0 | J23: 7570320.692 | K23: =IFERROR('3. VARIABLE INPUT'!$C$50*INDEX('SFY 17-18 Directed Payments'!H:H,MATCH(A23,'SFY 17-18 Directed Payments'!B:B,0))*('4. FY 2019-20'!$BB26/'4. FY 2019-20'!$BE26),0) -> 21669780.85 | L23: =IFERROR('3. VARIABLE INPUT'!$C$51*INDEX('SFY 17-18 Directed Payments'!I:I,MATCH(A23,'SFY 17-18 Directed Payments'!B:B,0))*('4. FY 2019-20'!$BB26/'4. FY 2019-20'!$BE26),0) -> 7447703.085 | M23: 29117483.93 | N23: 36687804.62 | O23: =IFERROR('3. VARIABLE INPUT'!$G$46*INDEX('15. SFY 18-19 FINAL MUR'!AW:AW,MATCH(A23,'15. SFY 18-19 FINAL MUR'!A:A,0))*('5. FY 2020-21'!$BB26/'5. FY 2020-21'!$BE26),0) -> 4502244.996 | P23: =IFERROR('3. VARIABLE INPUT'!$G$47*INDEX('13. 2016 OSHPD MEDI-CAL MC OP'!L:L,MATCH(A23,'13. 2016 OSHPD MEDI-CAL MC OP'!A:A,0))*('5. FY 2020-21'!$BB26/'5. FY 2020-21'!$BE26),0) -> 2565170.36 | Q23: =IFERROR('3. VARIABLE INPUT'!$G$48*INDEX('14. CY2016 MEDI-CAL FFS DAYS'!Y:Y,MATCH(A23,'14. CY2016 MEDI-CAL FFS DAYS'!A:A,0))*('5. FY 2020-21'!$BB26/'5. FY 2020-21'!$BE26),0) -> 490534.862 | R23: =IFERROR(INDEX('MC PT SA (CHA Only)'!K:K,MATCH(A23,'MC PT SA (CHA Only)'!A:A,0))*('5. FY 2020-21'!$BB26/'5. FY 2020-21'!$BE26),0) -> 0 | S23: 7557950.218 | T23: =IFERROR('3. VARIABLE INPUT'!$G$50*INDEX('SFY 17-18 Directed Payments'!H:H,MATCH(A23,'SFY 17-18 Directed Payments'!B:B,0))*('5. FY 2020-21'!$BB26/'5. FY 2020-21'!$BE26),0) -> 22354374.42 | U23: =IFERROR('3. VARIABLE INPUT'!$G$51*INDEX('SFY 17-18 Directed Payments'!I:I,MATCH(A23,'SFY 17-18 Directed Payments'!B:B,0))*('5. FY 2020-21'!$BB26/'5. FY 2020-21'!$BE26),0) -> 7682991.561 | V23: 30037365.99 | W23: 37595316.2 | X23: =IFERROR('3. VARIABLE INPUT'!$K$46*INDEX('15. SFY 18-19 FINAL MUR'!AW:AW,MATCH(A23,'15. SFY 18-19 FINAL MUR'!A:A,0))*('6. FY 2021-22'!$BB26/'6. FY 2021-22'!$BE26),0)/2 -> 2169734.175 | Y23: =IFERROR('3. VARIABLE INPUT'!$K$47*INDEX('13. 2016 OSHPD MEDI-CAL MC OP'!L:L,MATCH(A23,'13. 2016 OSHPD MEDI-CAL MC OP'!A:A,0))*('6. FY 2021-22'!$BB26/'6. FY 2021-22'!$BE26),0)/2 -> 1279288.022 | Z23: =IFERROR('3. VARIABLE INPUT'!$K$48*INDEX('14. CY2016 MEDI-CAL FFS DAYS'!Y:Y,MATCH(A23,'14. CY2016 MEDI-CAL FFS DAYS'!A:A,0))*('6. FY 2021-22'!$BB26/'6. FY 2021-22'!$BE26),0)/2 -> 253096.1596 | AA23: =IFERROR(INDEX('MC PT SA (CHA Only)'!K:K,MATCH(A23,'MC PT SA (CHA Only)'!A:A,0))*('6. FY 2021-22'!$BB26/'6. FY 2021-22'!$BE26),0)/2 -> 0 | AB23: 3702118.356 | AC23: =IFERROR('3. VARIABLE INPUT'!$K$50*INDEX('SFY 17-18 Directed Payments'!H:H,MATCH(A23,'SFY 17-18 Directed Payments'!B:B,0))*('6. FY 2021-22'!$BB26/'6. FY 2021-22'!$BE26),0)/2 -> 11533953.56 | AD23: =IFERROR('3. VARIABLE INPUT'!$K$51*INDEX('SFY 17-18 Directed Payments'!I:I,MATCH(A23,'SFY 17-18 Directed Payments'!B:B,0))*('6. FY 2021-22'!$BB26/'6. FY 2021-22'!$BE26),0)/2 -> 3964113.071 | AE23: 15498066.63 | AF23: 19200184.99
A24: 106171049 | B24: 171049 | C24: 51317 | D24: 3 | E24: ADVENTIST HEALTH CLEARLAKE | F24: =IFERROR('3. VARIABLE INPUT'!$C$46*INDEX('15. SFY 18-19 FINAL MUR'!AW:AW,MATCH(A24,'15. SFY 18-19 FINAL MUR'!A:A,0))*('4. FY 2019-20'!$BB27/'4. FY 2019-20'!$BE27),0) -> 426049.85 | G24: =IFERROR('3. VARIABLE INPUT'!$C$47*INDEX('13. 2016 OSHPD MEDI-CAL MC OP'!L:L,MATCH(A24,'13. 2016 OSHPD MEDI-CAL MC OP'!A:A,0))*('4. FY 2019-20'!$BB27/'4. FY 2019-20'!$BE27),0) -> 1534703.273 | H24: =IFERROR('3. VARIABLE INPUT'!$C$48*INDEX('14. CY2016 MEDI-CAL FFS DAYS'!Y:Y,MATCH(A24,'14. CY2016 MEDI-CAL FFS DAYS'!A:A,0))*('4. FY 2019-20'!$BB27/'4. FY 2019-20'!$BE27),0) -> 2515.938796 | I24: =IFERROR(INDEX('MC PT SA (CHA Only)'!K:K,MATCH(A24,'MC PT SA (CHA Only)'!A:A,0))*('4. FY 2019-20'!$BB27/'4. FY 2019-20'!$BE27),0) -> 0 | J24: 1963269.062 | K24: =IFERROR('3. VARIABLE INPUT'!$C$50*INDEX('SFY 17-18 Directed Payments'!H:H,MATCH(A24,'SFY 17-18 Directed Payments'!B:B,0))*('4. FY 2019-20'!$BB27/'4. FY 2019-20'!$BE27),0) -> 1899533.791 | L24: =IFERROR('3. VARIABLE INPUT'!$C$51*INDEX('SFY 17-18 Directed Payments'!I:I,MATCH(A24,'SFY 17-18 Directed Payments'!B:B,0))*('4. FY 2019-20'!$BB27/'4. FY 2019-20'!$BE27),0) -> 4807141.568 | M24: 6706675.359 | N24: 8669944.42 | O24: =IFERROR('3. VARIABLE INPUT'!$G$46*INDEX('15. SFY 18-19 FINAL MUR'!AW:AW,MATCH(A24,'15. SFY 18-19 FINAL MUR'!A:A,0))*('5. FY 2020-21'!$BB27/'5. FY 2020-21'!$BE27),0) -> 453332.0174 | P24: =IFERROR('3. VARIABLE INPUT'!$G$47*INDEX('13. 2016 OSHPD MEDI-CAL MC OP'!L:L,MATCH(A24,'13. 2016 OSHPD MEDI-CAL MC OP'!A:A,0))*('5. FY 2020-21'!$BB27/'5. FY 2020-21'!$BE27),0) -> 1374805.313 | Q24: =IFERROR('3. VARIABLE INPUT'!$G$48*INDEX('14. CY2016 MEDI-CAL FFS DAYS'!Y:Y,MATCH(A24,'14. CY2016 MEDI-CAL FFS DAYS'!A:A,0))*('5. FY 2020-21'!$BB27/'5. FY 2020-21'!$BE27),0) -> 2595.42255 | R24: =IFERROR(INDEX('MC PT SA (CHA Only)'!K:K,MATCH(A24,'MC PT SA (CHA Only)'!A:A,0))*('5. FY 2020-21'!$BB27/'5. FY 2020-21'!$BE27),0) -> 0 | S24: 1830732.753 | T24: =IFERROR('3. VARIABLE INPUT'!$G$50*INDEX('SFY 17-18 Directed Payments'!H:H,MATCH(A24,'SFY 17-18 Directed Payments'!B:B,0))*('5. FY 2020-21'!$BB27/'5. FY 2020-21'!$BE27),0) -> 1959544.025 | U24: =IFERROR('3. VARIABLE INPUT'!$G$51*INDEX('SFY 17-18 Directed Payments'!I:I,MATCH(A24,'SFY 17-18 Directed Payments'!B:B,0))*('5. FY 2020-21'!$BB27/'5. FY 2020-21'!$BE27),0) -> 4959009.198 | V24: 6918553.223 | W24: 8749285.977 | X24: =IFERROR('3. VARIABLE INPUT'!$K$46*INDEX('15. SFY 18-19 FINAL MUR'!AW:AW,MATCH(A24,'15. SFY 18-19 FINAL MUR'!A:A,0))*('6. FY 2021-22'!$BB27/'6. FY 2021-22'!$BE27),0)/2 -> 218471.0009 | Y24: =IFERROR('3. VARIABLE INPUT'!$K$47*INDEX('13. 2016 OSHPD MEDI-CAL MC OP'!L:L,MATCH(A24,'13. 2016 OSHPD MEDI-CAL MC OP'!A:A,0))*('6. FY 2021-22'!$BB27/'6. FY 2021-22'!$BE27),0)/2 -> 685635.5418 | Z24: =IFERROR('3. VARIABLE INPUT'!$K$48*INDEX('14. CY2016 MEDI-CAL FFS DAYS'!Y:Y,MATCH(A24,'14. CY2016 MEDI-CAL FFS DAYS'!A:A,0))*('6. FY 2021-22'!$BB27/'6. FY 2021-22'!$BE27),0)/2 -> 1339.13312 | AA24: =IFERROR(INDEX('MC PT SA (CHA Only)'!K:K,MATCH(A24,'MC PT SA (CHA Only)'!A:A,0))*('6. FY 2021-22'!$BB27/'6. FY 2021-22'!$BE27),0)/2 -> 0 | AB24: 905445.6758 | AC24: =IFERROR('3. VARIABLE INPUT'!$K$50*INDEX('SFY 17-18 Directed Payments'!H:H,MATCH(A24,'SFY 17-18 Directed Payments'!B:B,0))*('6. FY 2021-22'!$BB27/'6. FY 2021-22'!$BE27),0)/2 -> 1011045.505 | AD24: =IFERROR('3. VARIABLE INPUT'!$K$51*INDEX('SFY 17-18 Directed Payments'!I:I,MATCH(A24,'SFY 17-18 Directed Payments'!B:B,0))*('6. FY 2021-22'!$BB27/'6. FY 2021-22'!$BE27),0)/2 -> 2558648.285 | AE24: 3569693.79 | AF24: 4475139.466
A25: 106040875 | B25: 40875 | C25: 50225 | D25: 3 | E25: ADVENTIST HEALTH FEATHER RIVER | F25: =IFERROR('3. VARIABLE INPUT'!$C$46*INDEX('15. SFY 18-19 FINAL MUR'!AW:AW,MATCH(A25,'15. SFY 18-19 FINAL MUR'!A:A,0))*('4. FY 2019-20'!$BB28/'4. FY 2019-20'!$BE28),0) -> 0 | G25: =IFERROR('3. VARIABLE INPUT'!$C$47*INDEX('13. 2016 OSHPD MEDI-CAL MC OP'!L:L,MATCH(A25,'13. 2016 OSHPD MEDI-CAL MC OP'!A:A,0))*('4. FY 2019-20'!$BB28/'4. FY 2019-20'!$BE28),0) -> 0 | H25: =IFERROR('3. VARIABLE INPUT'!$C$48*INDEX('14. CY2016 MEDI-CAL FFS DAYS'!Y:Y,MATCH(A25,'14. CY2016 MEDI-CAL FFS DAYS'!A:A,0))*('4. FY 2019-20'!$BB28/'4. FY 2019-20'!$BE28),0) -> 0 | I25: =IFERROR(INDEX('MC PT SA (CHA Only)'!K:K,MATCH(A25,'MC PT SA (CHA Only)'!A:A,0))*('4. FY 2019-20'!$BB28/'4. FY 2019-20'!$BE28),0) -> 0 | J25: 0 | K25: =IFERROR('3. VARIABLE INPUT'!$C$50*INDEX('SFY 17-18 Directed Payments'!H:H,MATCH(A25,'SFY 17-18 Directed Payments'!B:B,0))*('4. FY 2019-20'!$BB28/'4. FY 2019-20'!$BE28),0) -> 0 | L25: =IFERROR('3. VARIABLE INPUT'!$C$51*INDEX('SFY 17-18 Directed Payments'!I:I,MATCH(A25,'SFY 17-18 Directed Payments'!B:B,0))*('4. FY 2019-20'!$BB28/'4. FY 2019-20'!$BE28),0) -> 0 | M25: 0 | N25: 0 | O25: =IFERROR('3. VARIABLE INPUT'!$G$46*INDEX('15. SFY 18-19 FINAL MUR'!AW:AW,MATCH(A25,'15. SFY 18-19 FINAL MUR'!A:A,0))*('5. FY 2020-21'!$BB28/'5. FY 2020-21'!$BE28),0) -> 0 | P25: =IFERROR('3. VARIABLE INPUT'!$G$47*INDEX('13. 2016 OSHPD MEDI-CAL MC OP'!L:L,MATCH(A25,'13. 2016 OSHPD MEDI-CAL MC OP'!A:A,0))*('5. FY 2020-21'!$BB28/'5. FY 2020-21'!$BE28),0) -> 0 | Q25: =IFERROR('3. VARIABLE INPUT'!$G$48*INDEX('14. CY2016 MEDI-CAL FFS DAYS'!Y:Y,MATCH(A25,'14. CY2016 MEDI-CAL FFS DAYS'!A:A,0))*('5. FY 2020-21'!$BB28/'5. FY 2020-21'!$BE28),0) -> 0 | R25: =IFERROR(INDEX('MC PT SA (CHA Only)'!K:K,MATCH(A25,'MC PT SA (CHA Only)'!A:A,0))*('5. FY 2020-21'!$BB28/'5. FY 2020-21'!$BE28),0) -> 0 | S25: 0 | T25: =IFERROR('3. VARIABLE INPUT'!$G$50*INDEX('SFY 17-18 Directed Payments'!H:H,MATCH(A25,'SFY 17-18 Directed Payments'!B:B,0))*('5. FY 2020-21'!$BB28/'5. FY 2020-21'!$BE28),0) -> 0 | U25: =IFERROR('3. VARIABLE INPUT'!$G$51*INDEX('SFY 17-18 Directed Payments'!I:I,MATCH(A25,'SFY 17-18 Directed Payments'!B:B,0))*('5. FY 2020-21'!$BB28/'5. FY 2020-21'!$BE28),0) -> 0 | V25: 0 | W25: 0 | X25: =IFERROR('3. VARIABLE INPUT'!$K$46*INDEX('15. SFY 18-19 FINAL MUR'!AW:AW,MATCH(A25,'15. SFY 18-19 FINAL MUR'!A:A,0))*('6. FY 2021-22'!$BB28/'6. FY 2021-22'!$BE28),0)/2 -> 0 | Y25: =IFERROR('3. VARIABLE INPUT'!$K$47*INDEX('13. 2016 OSHPD MEDI-CAL MC OP'!L:L,MATCH(A25,'13. 2016 OSHPD MEDI-CAL MC OP'!A:A,0))*('6. FY 2021-22'!$BB28/'6. FY 2021-22'!$BE28),0)/2 -> 0 | Z25: =IFERROR('3. VARIABLE INPUT'!$K$48*INDEX('14. CY2016 MEDI-CAL FFS DAYS'!Y:Y,MATCH(A25,'14. CY2016 MEDI-CAL FFS DAYS'!A:A,0))*('6. FY 2021-22'!$BB28/'6. FY 2021-22'!$BE28),0)/2 -> 0 | AA25: =IFERROR(INDEX('MC PT SA (CHA Only)'!K:K,MATCH(A25,'MC PT SA (CHA Only)'!A:A,0))*('6. FY 2021-22'!$BB28/'6. FY 2021-22'!$BE28),0)/2 -> 0 | AB25: 0 | AC25: =IFERROR('3. VARIABLE INPUT'!$K$50*INDEX('SFY 17-18 Directed Payments'!H:H,MATCH(A25,'SFY 17-18 Directed Payments'!B:B,0))*('6. FY 2021-22'!$BB28/'6. FY 2021-22'!$BE28),0)/2 -> 0 | AD25: =IFERROR('3. VARIABLE INPUT'!$K$51*INDEX('SFY 17-18 Directed Payments'!I:I,MATCH(A25,'SFY 17-18 Directed Payments'!B:B,0))*('6. FY 2021-22'!$BB28/'6. FY 2021-22'!$BE28),0)/2 -> 0 | AE25: 0 | AF25: 0
A26: 106190323 | B26: 190323 | C26: 50239 | D26: 3 | E26: ADVENTIST HEALTH GLENDALE | F26: =IFERROR('3. VARIABLE INPUT'!$C$46*INDEX('15. SFY 18-19 FINAL MUR'!AW:AW,MATCH(A26,'15. SFY 18-19 FINAL MUR'!A:A,0))*('4. FY 2019-20'!$BB29/'4. FY 2019-20'!$BE29),0) -> 3831442.25 | G26: =IFERROR('3. VARIABLE INPUT'!$C$47*INDEX('13. 2016 OSHPD MEDI-CAL MC OP'!L:L,MATCH(A26,'13. 2016 OSHPD MEDI-CAL MC OP'!A:A,0))*('4. FY 2019-20'!$BB29/'4. FY 2019-20'!$BE29),0) -> 3800623.022 | H26: =IFERROR('3. VARIABLE INPUT'!$C$48*INDEX('14. CY2016 MEDI-CAL FFS DAYS'!Y:Y,MATCH(A26,'14. CY2016 MEDI-CAL FFS DAYS'!A:A,0))*('4. FY 2019-20'!$BB29/'4. FY 2019-20'!$BE29),0) -> 5920003.986 | I26: =IFERROR(INDEX('MC PT SA (CHA Only)'!K:K,MATCH(A26,'MC PT SA (CHA Only)'!A:A,0))*('4. FY 2019-20'!$BB29/'4. FY 2019-20'!$BE29),0) -> 0 | J26: 13552069.26 | K26: =IFERROR('3. VARIABLE INPUT'!$C$50*INDEX('SFY 17-18 Directed Payments'!H:H,MATCH(A26,'SFY 17-18 Directed Payments'!B:B,0))*('4. FY 2019-20'!$BB29/'4. FY 2019-20'!$BE29),0) -> 14977383.65 | L26: =IFERROR('3. VARIABLE INPUT'!$C$51*INDEX('SFY 17-18 Directed Payments'!I:I,MATCH(A26,'SFY 17-18 Directed Payments'!B:B,0))*('4. FY 2019-20'!$BB29/'4. FY 2019-20'!$BE29),0) -> 4148684.362 | M26: 19126068.01 | N26: 32678137.27 | O26: =IFERROR('3. VARIABLE INPUT'!$G$46*INDEX('15. SFY 18-19 FINAL MUR'!AW:AW,MATCH(A26,'15. SFY 18-19 FINAL MUR'!A:A,0))*('5. FY 2020-21'!$BB29/'5. FY 2020-21'!$BE29),0) -> 4076789.242 | P26: =IFERROR('3. VARIABLE INPUT'!$G$47*INDEX('13. 2016 OSHPD MEDI-CAL MC OP'!L:L,MATCH(A26,'13. 2016 OSHPD MEDI-CAL MC OP'!A:A,0))*('5. FY 2020-21'!$BB29/'5. FY 2020-21'!$BE29),0) -> 3404642.981 | Q26: =IFERROR('3. VARIABLE INPUT'!$G$48*INDEX('14. CY2016 MEDI-CAL FFS DAYS'!Y:Y,MATCH(A26,'14. CY2016 MEDI-CAL FFS DAYS'!A:A,0))*('5. FY 2020-21'!$BB29/'5. FY 2020-21'!$BE29),0) -> 6107029.261 | R26: =IFERROR(INDEX('MC PT SA (CHA Only)'!K:K,MATCH(A26,'MC PT SA (CHA Only)'!A:A,0))*('5. FY 2020-21'!$BB29/'5. FY 2020-21'!$BE29),0) -> 0 | S26: 13588461.48 | T26: =IFERROR('3. VARIABLE INPUT'!$G$50*INDEX('SFY 17-18 Directed Payments'!H:H,MATCH(A26,'SFY 17-18 Directed Payments'!B:B,0))*('5. FY 2020-21'!$BB29/'5. FY 2020-21'!$BE29),0) -> 15450550.44 | U26: =IFERROR('3. VARIABLE INPUT'!$G$51*INDEX('SFY 17-18 Directed Payments'!I:I,MATCH(A26,'SFY 17-18 Directed Payments'!B:B,0))*('5. FY 2020-21'!$BB29/'5. FY 2020-21'!$BE29),0) -> 4279749.955 | V26: 19730300.4 | W26: 33318761.88 | X26: =IFERROR('3. VARIABLE INPUT'!$K$46*INDEX('15. SFY 18-19 FINAL MUR'!AW:AW,MATCH(A26,'15. SFY 18-19 FINAL MUR'!A:A,0))*('6. FY 2021-22'!$BB29/'6. FY 2021-22'!$BE29),0)/2 -> 1964697.378 | Y26: =IFERROR('3. VARIABLE INPUT'!$K$47*INDEX('13. 2016 OSHPD MEDI-CAL MC OP'!L:L,MATCH(A26,'13. 2016 OSHPD MEDI-CAL MC OP'!A:A,0))*('6. FY 2021-22'!$BB29/'6. FY 2021-22'!$BE29),0)/2 -> 1697945.31 | Z26: =IFERROR('3. VARIABLE INPUT'!$K$48*INDEX('14. CY2016 MEDI-CAL FFS DAYS'!Y:Y,MATCH(A26,'14. CY2016 MEDI-CAL FFS DAYS'!A:A,0))*('6. FY 2021-22'!$BB29/'6. FY 2021-22'!$BE29),0)/2 -> 3150980.23 | AA26: =IFERROR(INDEX('MC PT SA (CHA Only)'!K:K,MATCH(A26,'MC PT SA (CHA Only)'!A:A,0))*('6. FY 2021-22'!$BB29/'6. FY 2021-22'!$BE29),0)/2 -> 0 | AB26: 6813622.919 | AC26: =IFERROR('3. VARIABLE INPUT'!$K$50*INDEX('SFY 17-18 Directed Payments'!H:H,MATCH(A26,'SFY 17-18 Directed Payments'!B:B,0))*('6. FY 2021-22'!$BB29/'6. FY 2021-22'!$BE29),0)/2 -> 7971859.461 | AD26: =IFERROR('3. VARIABLE INPUT'!$K$51*INDEX('SFY 17-18 Directed Payments'!I:I,MATCH(A26,'SFY 17-18 Directed Payments'!B:B,0))*('6. FY 2021-22'!$BB29/'6. FY 2021-22'!$BE29),0)/2 -> 2208177.974 | AE26: 10180037.43 | AF26: 16993660.35
A27: 106164029 | B27: 164029 | C27: 50121 | D27: 3 | E27: ADVENTIST HEALTH HANFORD | F27: =IFERROR('3. VARIABLE INPUT'!$C$46*INDEX('15. SFY 18-19 FINAL MUR'!AW:AW,MATCH(A27,'15. SFY 18-19 FINAL MUR'!A:A,0))*('4. FY 2019-20'!$BB30/'4. FY 2019-20'!$BE30),0) -> 2784356.026 | G27: =IFERROR('3. VARIABLE INPUT'!$C$47*INDEX('13. 2016 OSHPD MEDI-CAL MC OP'!L:L,MATCH(A27,'13. 2016 OSHPD MEDI-CAL MC OP'!A:A,0))*('4. FY 2019-20'!$BB30/'4. FY 2019-20'!$BE30),0) -> 12308070.4 | H27: =IFERROR('3. VARIABLE INPUT'!$C$48*INDEX('14. CY2016 MEDI-CAL FFS DAYS'!Y:Y,MATCH(A27,'14. CY2016 MEDI-CAL FFS DAYS'!A:A,0))*('4. FY 2019-20'!$BB30/'4. FY 2019-20'!$BE30),0) -> 15095.63277 | I27: =IFERROR(INDEX('MC PT SA (CHA Only)'!K:K,MATCH(A27,'MC PT SA (CHA Only)'!A:A,0))*('4. FY 2019-20'!$BB30/'4. FY 2019-20'!$BE30),0) -> 0 | J27: 15107522.06 | K27: =IFERROR('3. VARIABLE INPUT'!$C$50*INDEX('SFY 17-18 Directed Payments'!H:H,MATCH(A27,'SFY 17-18 Directed Payments'!B:B,0))*('4. FY 2019-20'!$BB30/'4. FY 2019-20'!$BE30),0) -> 14074161.62 | L27: =IFERROR('3. VARIABLE INPUT'!$C$51*INDEX('SFY 17-18 Directed Payments'!I:I,MATCH(A27,'SFY 17-18 Directed Payments'!B:B,0))*('4. FY 2019-20'!$BB30/'4. FY 2019-20'!$BE30),0) -> 14877227.9 | M27: 28951389.53 | N27: 44058911.59 | O27: =IFERROR('3. VARIABLE INPUT'!$G$46*INDEX('15. SFY 18-19 FINAL MUR'!AW:AW,MATCH(A27,'15. SFY 18-19 FINAL MUR'!A:A,0))*('5. FY 2020-21'!$BB30/'5. FY 2020-21'!$BE30),0) -> 2962652.691 | P27: =IFERROR('3. VARIABLE INPUT'!$G$47*INDEX('13. 2016 OSHPD MEDI-CAL MC OP'!L:L,MATCH(A27,'13. 2016 OSHPD MEDI-CAL MC OP'!A:A,0))*('5. FY 2020-21'!$BB30/'5. FY 2020-21'!$BE30),0) -> 11025714.8 | Q27: =IFERROR('3. VARIABLE INPUT'!$G$48*INDEX('14. CY2016 MEDI-CAL FFS DAYS'!Y:Y,MATCH(A27,'14. CY2016 MEDI-CAL FFS DAYS'!A:A,0))*('5. FY 2020-21'!$BB30/'5. FY 2020-21'!$BE30),0) -> 15572.5353 | R27: =IFERROR(INDEX('MC PT SA (CHA Only)'!K:K,MATCH(A27,'MC PT SA (CHA Only)'!A:A,0))*('5. FY 2020-21'!$BB30/'5. FY 2020-21'!$BE30),0) -> 0 | S27: 14003940.02 | T27: =IFERROR('3. VARIABLE INPUT'!$G$50*INDEX('SFY 17-18 Directed Payments'!H:H,MATCH(A27,'SFY 17-18 Directed Payments'!B:B,0))*('5. FY 2020-21'!$BB30/'5. FY 2020-21'!$BE30),0) -> 14518793.75 | U27: =IFERROR('3. VARIABLE INPUT'!$G$51*INDEX('SFY 17-18 Directed Payments'!I:I,MATCH(A27,'SFY 17-18 Directed Payments'!B:B,0))*('5. FY 2020-21'!$BB30/'5. FY 2020-21'!$BE30),0) -> 15347230.57 | V27: 29866024.31 | W27: 43869964.34 | X27: =IFERROR('3. VARIABLE INPUT'!$K$46*INDEX('15. SFY 18-19 FINAL MUR'!AW:AW,MATCH(A27,'15. SFY 18-19 FINAL MUR'!A:A,0))*('6. FY 2021-22'!$BB30/'6. FY 2021-22'!$BE30),0)/2 -> 1427769.656 | Y27: =IFERROR('3. VARIABLE INPUT'!$K$47*INDEX('13. 2016 OSHPD MEDI-CAL MC OP'!L:L,MATCH(A27,'13. 2016 OSHPD MEDI-CAL MC OP'!A:A,0))*('6. FY 2021-22'!$BB30/'6. FY 2021-22'!$BE30),0)/2 -> 5498685.425 | Z27: =IFERROR('3. VARIABLE INPUT'!$K$48*INDEX('14. CY2016 MEDI-CAL FFS DAYS'!Y:Y,MATCH(A27,'14. CY2016 MEDI-CAL FFS DAYS'!A:A,0))*('6. FY 2021-22'!$BB30/'6. FY 2021-22'!$BE30),0)/2 -> 8034.798718 | AA27: =IFERROR(INDEX('MC PT SA (CHA Only)'!K:K,MATCH(A27,'MC PT SA (CHA Only)'!A:A,0))*('6. FY 2021-22'!$BB30/'6. FY 2021-22'!$BE30),0)/2 -> 0 | AB27: 6934489.88 | AC27: =IFERROR('3. VARIABLE INPUT'!$K$50*INDEX('SFY 17-18 Directed Payments'!H:H,MATCH(A27,'SFY 17-18 Directed Payments'!B:B,0))*('6. FY 2021-22'!$BB30/'6. FY 2021-22'!$BE30),0)/2 -> 7491110.671 | AD27: =IFERROR('3. VARIABLE INPUT'!$K$51*INDEX('SFY 17-18 Directed Payments'!I:I,MATCH(A27,'SFY 17-18 Directed Payments'!B:B,0))*('6. FY 2021-22'!$BB30/'6. FY 2021-22'!$BE30),0)/2 -> 7918550.582 | AE27: 15409661.25 | AF27: 22344151.13
A28: 106230949 | B28: 234038 | C28: 51310 | D28: 3 | E28: ADVENTIST HEALTH HOWARD MEMORIAL | F28: =IFERROR('3. VARIABLE INPUT'!$C$46*INDEX('15. SFY 18-19 FINAL MUR'!AW:AW,MATCH(A28,'15. SFY 18-19 FINAL MUR'!A:A,0))*('4. FY 2019-20'!$BB31/'4. FY 2019-20'!$BE31),0) -> 254899.7843 | G28: =IFERROR('3. VARIABLE INPUT'!$C$47*INDEX('13. 2016 OSHPD MEDI-CAL MC OP'!L:L,MATCH(A28,'13. 2016 OSHPD MEDI-CAL MC OP'!A:A,0))*('4. FY 2019-20'!$BB31/'4. FY 2019-20'!$BE31),0) -> 1478719.222 | H28: =IFERROR('3. VARIABLE INPUT'!$C$48*INDEX('14. CY2016 MEDI-CAL FFS DAYS'!Y:Y,MATCH(A28,'14. CY2016 MEDI-CAL FFS DAYS'!A:A,0))*('4. FY 2019-20'!$BB31/'4. FY 2019-20'!$BE31),0) -> 11321.72458 | I28: =IFERROR(INDEX('MC PT SA (CHA Only)'!K:K,MATCH(A28,'MC PT SA (CHA Only)'!A:A,0))*('4. FY 2019-20'!$BB31/'4. FY 2019-20'!$BE31),0) -> 0 | J28: 1744940.731 | K28: =IFERROR('3. VARIABLE INPUT'!$C$50*INDEX('SFY 17-18 Directed Payments'!H:H,MATCH(A28,'SFY 17-18 Directed Payments'!B:B,0))*('4. FY 2019-20'!$BB31/'4. FY 2019-20'!$BE31),0) -> 1195070.928 | L28: =IFERROR('3. VARIABLE INPUT'!$C$51*INDEX('SFY 17-18 Directed Payments'!I:I,MATCH(A28,'SFY 17-18 Directed Payments'!B:B,0))*('4. FY 2019-20'!$BB31/'4. FY 2019-20'!$BE31),0) -> 2134599.768 | M28: 3329670.696 | N28: 5074611.427 | O28: =IFERROR('3. VARIABLE INPUT'!$G$46*INDEX('15. SFY 18-19 FINAL MUR'!AW:AW,MATCH(A28,'15. SFY 18-19 FINAL MUR'!A:A,0))*('5. FY 2020-21'!$BB31/'5. FY 2020-21'!$BE31),0) -> 271222.331 | P28: =IFERROR('3. VARIABLE INPUT'!$G$47*INDEX('13. 2016 OSHPD MEDI-CAL MC OP'!L:L,MATCH(A28,'13. 2016 OSHPD MEDI-CAL MC OP'!A:A,0))*('5. FY 2020-21'!$BB31/'5. FY 2020-21'!$BE31),0) -> 1324654.14 | Q28: =IFERROR('3. VARIABLE INPUT'!$G$48*INDEX('14. CY2016 MEDI-CAL FFS DAYS'!Y:Y,MATCH(A28,'14. CY2016 MEDI-CAL FFS DAYS'!A:A,0))*('5. FY 2020-21'!$BB31/'5. FY 2020-21'!$BE31),0) -> 11679.40148 | R28: =IFERROR(INDEX('MC PT SA (CHA Only)'!K:K,MATCH(A28,'MC PT SA (CHA Only)'!A:A,0))*('5. FY 2020-21'!$BB31/'5. FY 2020-21'!$BE31),0) -> 0 | S28: 1607555.872 | T28: =IFERROR('3. VARIABLE INPUT'!$G$50*INDEX('SFY 17-18 Directed Payments'!H:H,MATCH(A28,'SFY 17-18 Directed Payments'!B:B,0))*('5. FY 2020-21'!$BB31/'5. FY 2020-21'!$BE31),0) -> 1232825.711 | U28: =IFERROR('3. VARIABLE INPUT'!$G$51*INDEX('SFY 17-18 Directed Payments'!I:I,MATCH(A28,'SFY 17-18 Directed Payments'!B:B,0))*('5. FY 2020-21'!$BB31/'5. FY 2020-21'!$BE31),0) -> 2202036.227 | V28: 3434861.938 | W28: 5042417.811 | X28: =IFERROR('3. VARIABLE INPUT'!$K$46*INDEX('15. SFY 18-19 FINAL MUR'!AW:AW,MATCH(A28,'15. SFY 18-19 FINAL MUR'!A:A,0))*('6. FY 2021-22'!$BB31/'6. FY 2021-22'!$BE31),0)/2 -> 130708.2047 | Y28: =IFERROR('3. VARIABLE INPUT'!$K$47*INDEX('13. 2016 OSHPD MEDI-CAL MC OP'!L:L,MATCH(A28,'13. 2016 OSHPD MEDI-CAL MC OP'!A:A,0))*('6. FY 2021-22'!$BB31/'6. FY 2021-22'!$BE31),0)/2 -> 660624.4171 | Z28: =IFERROR('3. VARIABLE INPUT'!$K$48*INDEX('14. CY2016 MEDI-CAL FFS DAYS'!Y:Y,MATCH(A28,'14. CY2016 MEDI-CAL FFS DAYS'!A:A,0))*('6. FY 2021-22'!$BB31/'6. FY 2021-22'!$BE31),0)/2 -> 6026.099038 | AA28: =IFERROR(INDEX('MC PT SA (CHA Only)'!K:K,MATCH(A28,'MC PT SA (CHA Only)'!A:A,0))*('6. FY 2021-22'!$BB31/'6. FY 2021-22'!$BE31),0)/2 -> 0 | AB28: 797358.7208 | AC28: =IFERROR('3. VARIABLE INPUT'!$K$50*INDEX('SFY 17-18 Directed Payments'!H:H,MATCH(A28,'SFY 17-18 Directed Payments'!B:B,0))*('6. FY 2021-22'!$BB31/'6. FY 2021-22'!$BE31),0)/2 -> 636088.2318 | AD28: =IFERROR('3. VARIABLE INPUT'!$K$51*INDEX('SFY 17-18 Directed Payments'!I:I,MATCH(A28,'SFY 17-18 Directed Payments'!B:B,0))*('6. FY 2021-22'!$BB31/'6. FY 2021-22'!$BE31),0)/2 -> 1136161.679 | AE28: 1772249.911 | AF28: 2569608.632
A29: 106390923 | B29: 390923 | C29: 50336 | D29: 3 | E29: ADVENTIST HEALTH LODI MEMORIAL | F29: =IFERROR('3. VARIABLE INPUT'!$C$46*INDEX('15. SFY 18-19 FINAL MUR'!AW:AW,MATCH(A29,'15. SFY 18-19 FINAL MUR'!A:A,0))*('4. FY 2019-20'!$BB32/'4. FY 2019-20'!$BE32),0) -> 1655667.512 | G29: =IFERROR('3. VARIABLE INPUT'!$C$47*INDEX('13. 2016 OSHPD MEDI-CAL MC OP'!L:L,MATCH(A29,'13. 2016 OSHPD MEDI-CAL MC OP'!A:A,0))*('4. FY 2019-20'!$BB32/'4. FY 2019-20'!$BE32),0) -> 3103367.118 | H29: =IFERROR('3. VARIABLE INPUT'!$C$48*INDEX('14. CY2016 MEDI-CAL FFS DAYS'!Y:Y,MATCH(A29,'14. CY2016 MEDI-CAL FFS DAYS'!A:A,0))*('4. FY 2019-20'!$BB32/'4. FY 2019-20'!$BE32),0) -> 499413.8509 | I29: =IFERROR(INDEX('MC PT SA (CHA Only)'!K:K,MATCH(A29,'MC PT SA (CHA Only)'!A:A,0))*('4. FY 2019-20'!$BB32/'4. FY 2019-20'!$BE32),0) -> 0 | J29: 5258448.481 | K29: =IFERROR('3. VARIABLE INPUT'!$C$50*INDEX('SFY 17-18 Directed Payments'!H:H,MATCH(A29,'SFY 17-18 Directed Payments'!B:B,0))*('4. FY 2019-20'!$BB32/'4. FY 2019-20'!$BE32),0) -> 9004544.949 | L29: =IFERROR('3. VARIABLE INPUT'!$C$51*INDEX('SFY 17-18 Directed Payments'!I:I,MATCH(A29,'SFY 17-18 Directed Payments'!B:B,0))*('4. FY 2019-20'!$BB32/'4. FY 2019-20'!$BE32),0) -> 6728315.023 | M29: 15732859.97 | N29: 20991308.45 | O29: =IFERROR('3. VARIABLE INPUT'!$G$46*INDEX('15. SFY 18-19 FINAL MUR'!AW:AW,MATCH(A29,'15. SFY 18-19 FINAL MUR'!A:A,0))*('5. FY 2020-21'!$BB32/'5. FY 2020-21'!$BE32),0) -> 1761688.435 | P29: =IFERROR('3. VARIABLE INPUT'!$G$47*INDEX('13. 2016 OSHPD MEDI-CAL MC OP'!L:L,MATCH(A29,'13. 2016 OSHPD MEDI-CAL MC OP'!A:A,0))*('5. FY 2020-21'!$BB32/'5. FY 2020-21'!$BE32),0) -> 2780032.909 | Q29: =IFERROR('3. VARIABLE INPUT'!$G$48*INDEX('14. CY2016 MEDI-CAL FFS DAYS'!Y:Y,MATCH(A29,'14. CY2016 MEDI-CAL FFS DAYS'!A:A,0))*('5. FY 2020-21'!$BB32/'5. FY 2020-21'!$BE32),0) -> 515191.3762 | R29: =IFERROR(INDEX('MC PT SA (CHA Only)'!K:K,MATCH(A29,'MC PT SA (CHA Only)'!A:A,0))*('5. FY 2020-21'!$BB32/'5. FY 2020-21'!$BE32),0) -> 0 | S29: 5056912.72 | T29: =IFERROR('3. VARIABLE INPUT'!$G$50*INDEX('SFY 17-18 Directed Payments'!H:H,MATCH(A29,'SFY 17-18 Directed Payments'!B:B,0))*('5. FY 2020-21'!$BB32/'5. FY 2020-21'!$BE32),0) -> 9289017.307 | U29: =IFERROR('3. VARIABLE INPUT'!$G$51*INDEX('SFY 17-18 Directed Payments'!I:I,MATCH(A29,'SFY 17-18 Directed Payments'!B:B,0))*('5. FY 2020-21'!$BB32/'5. FY 2020-21'!$BE32),0) -> 6940876.529 | V29: 16229893.84 | W29: 21286806.56 | X29: =IFERROR('3. VARIABLE INPUT'!$K$46*INDEX('15. SFY 18-19 FINAL MUR'!AW:AW,MATCH(A29,'15. SFY 18-19 FINAL MUR'!A:A,0))*('6. FY 2021-22'!$BB32/'6. FY 2021-22'!$BE32),0)/2 -> 848997.6902 | Y29: =IFERROR('3. VARIABLE INPUT'!$K$47*INDEX('13. 2016 OSHPD MEDI-CAL MC OP'!L:L,MATCH(A29,'13. 2016 OSHPD MEDI-CAL MC OP'!A:A,0))*('6. FY 2021-22'!$BB32/'6. FY 2021-22'!$BE32),0)/2 -> 1386443.121 | Z29: =IFERROR('3. VARIABLE INPUT'!$K$48*INDEX('14. CY2016 MEDI-CAL FFS DAYS'!Y:Y,MATCH(A29,'14. CY2016 MEDI-CAL FFS DAYS'!A:A,0))*('6. FY 2021-22'!$BB32/'6. FY 2021-22'!$BE32),0)/2 -> 265817.9242 | AA29: =IFERROR(INDEX('MC PT SA (CHA Only)'!K:K,MATCH(A29,'MC PT SA (CHA Only)'!A:A,0))*('6. FY 2021-22'!$BB32/'6. FY 2021-22'!$BE32),0)/2 -> 0 | AB29: 2501258.736 | AC29: =IFERROR('3. VARIABLE INPUT'!$K$50*INDEX('SFY 17-18 Directed Payments'!H:H,MATCH(A29,'SFY 17-18 Directed Payments'!B:B,0))*('6. FY 2021-22'!$BB32/'6. FY 2021-22'!$BE32),0)/2 -> 4792757.435 | AD29: =IFERROR('3. VARIABLE INPUT'!$K$51*INDEX('SFY 17-18 Directed Payments'!I:I,MATCH(A29,'SFY 17-18 Directed Payments'!B:B,0))*('6. FY 2021-22'!$BB32/'6. FY 2021-22'!$BE32),0)/2 -> 3581211.714 | AE29: 8373969.149 | AF29: 10875227.88
A30: 106100797 | B30: 100797 | C30: 50192 | D30: 3 | E30: ADVENTIST HEALTH REEDLEY | F30: =IFERROR('3. VARIABLE INPUT'!$C$46*INDEX('15. SFY 18-19 FINAL MUR'!AW:AW,MATCH(A30,'15. SFY 18-19 FINAL MUR'!A:A,0))*('4. FY 2019-20'!$BB33/'4. FY 2019-20'!$BE33),0) -> 794119.1257 | G30: =IFERROR('3. VARIABLE INPUT'!$C$47*INDEX('13. 2016 OSHPD MEDI-CAL MC OP'!L:L,MATCH(A30,'13. 2016 OSHPD MEDI-CAL MC OP'!A:A,0))*('4. FY 2019-20'!$BB33/'4. FY 2019-20'!$BE33),0) -> 3546612.742 | H30: =IFERROR('3. VARIABLE INPUT'!$C$48*INDEX('14. CY2016 MEDI-CAL FFS DAYS'!Y:Y,MATCH(A30,'14. CY2016 MEDI-CAL FFS DAYS'!A:A,0))*('4. FY 2019-20'!$BB33/'4. FY 2019-20'!$BE33),0) -> 3773.908193 | I30: =IFERROR(INDEX('MC PT SA (CHA Only)'!K:K,MATCH(A30,'MC PT SA (CHA Only)'!A:A,0))*('4. FY 2019-20'!$BB33/'4. FY 2019-20'!$BE33),0) -> 0 | J30: 4344505.776 | K30: =IFERROR('3. VARIABLE INPUT'!$C$50*INDEX('SFY 17-18 Directed Payments'!H:H,MATCH(A30,'SFY 17-18 Directed Payments'!B:B,0))*('4. FY 2019-20'!$BB33/'4. FY 2019-20'!$BE33),0) -> 3502186.803 | L30: =IFERROR('3. VARIABLE INPUT'!$C$51*INDEX('SFY 17-18 Directed Payments'!I:I,MATCH(A30,'SFY 17-18 Directed Payments'!B:B,0))*('4. FY 2019-20'!$BB33/'4. FY 2019-20'!$BE33),0) -> 6442512.278 | M30: 9944699.082 | N30: 14289204.86 | O30: =IFERROR('3. VARIABLE INPUT'!$G$46*INDEX('15. SFY 18-19 FINAL MUR'!AW:AW,MATCH(A30,'15. SFY 18-19 FINAL MUR'!A:A,0))*('5. FY 2020-21'!$BB33/'5. FY 2020-21'!$BE33),0) -> 844970.6656 | P30: =IFERROR('3. VARIABLE INPUT'!$G$47*INDEX('13. 2016 OSHPD MEDI-CAL MC OP'!L:L,MATCH(A30,'13. 2016 OSHPD MEDI-CAL MC OP'!A:A,0))*('5. FY 2020-21'!$BB33/'5. FY 2020-21'!$BE33),0) -> 3177097.573 | Q30: =IFERROR('3. VARIABLE INPUT'!$G$48*INDEX('14. CY2016 MEDI-CAL FFS DAYS'!Y:Y,MATCH(A30,'14. CY2016 MEDI-CAL FFS DAYS'!A:A,0))*('5. FY 2020-21'!$BB33/'5. FY 2020-21'!$BE33),0) -> 3893.133825 | R30: =IFERROR(INDEX('MC PT SA (CHA Only)'!K:K,MATCH(A30,'MC PT SA (CHA Only)'!A:A,0))*('5. FY 2020-21'!$BB33/'5. FY 2020-21'!$BE33),0) -> 0 | S30: 4025961.372 | T30: =IFERROR('3. VARIABLE INPUT'!$G$50*INDEX('SFY 17-18 Directed Payments'!H:H,MATCH(A30,'SFY 17-18 Directed Payments'!B:B,0))*('5. FY 2020-21'!$BB33/'5. FY 2020-21'!$BE33),0) -> 3612828.19 | U30: =IFERROR('3. VARIABLE INPUT'!$G$51*INDEX('SFY 17-18 Directed Payments'!I:I,MATCH(A30,'SFY 17-18 Directed Payments'!B:B,0))*('5. FY 2020-21'!$BB33/'5. FY 2020-21'!$BE33),0) -> 6646044.68 | V30: 10258872.87 | W30: 14284834.24 | X30: =IFERROR('3. VARIABLE INPUT'!$K$46*INDEX('15. SFY 18-19 FINAL MUR'!AW:AW,MATCH(A30,'15. SFY 18-19 FINAL MUR'!A:A,0))*('6. FY 2021-22'!$BB33/'6. FY 2021-22'!$BE33),0)/2 -> 407210.5653 | Y30: =IFERROR('3. VARIABLE INPUT'!$K$47*INDEX('13. 2016 OSHPD MEDI-CAL MC OP'!L:L,MATCH(A30,'13. 2016 OSHPD MEDI-CAL MC OP'!A:A,0))*('6. FY 2021-22'!$BB33/'6. FY 2021-22'!$BE33),0)/2 -> 1584465.083 | Z30: =IFERROR('3. VARIABLE INPUT'!$K$48*INDEX('14. CY2016 MEDI-CAL FFS DAYS'!Y:Y,MATCH(A30,'14. CY2016 MEDI-CAL FFS DAYS'!A:A,0))*('6. FY 2021-22'!$BB33/'6. FY 2021-22'!$BE33),0)/2 -> 2008.699679 | AA30: =IFERROR(INDEX('MC PT SA (CHA Only)'!K:K,MATCH(A30,'MC PT SA (CHA Only)'!A:A,0))*('6. FY 2021-22'!$BB33/'6. FY 2021-22'!$BE33),0)/2 -> 0 | AB30: 1993684.348 | AC30: =IFERROR('3. VARIABLE INPUT'!$K$50*INDEX('SFY 17-18 Directed Payments'!H:H,MATCH(A30,'SFY 17-18 Directed Payments'!B:B,0))*('6. FY 2021-22'!$BB33/'6. FY 2021-22'!$BE33),0)/2 -> 1864073.302 | AD30: =IFERROR('3. VARIABLE INPUT'!$K$51*INDEX('SFY 17-18 Directed Payments'!I:I,MATCH(A30,'SFY 17-18 Directed Payments'!B:B,0))*('6. FY 2021-22'!$BB33/'6. FY 2021-22'!$BE33),0)/2 -> 3429090.398 | AE30: 5293163.7 | AF30: 7286848.049
A31: 106560525 | B31: 560525 | C31: 50236 | D31: 3 | E31: ADVENTIST HEALTH SIMI VALLEY | F31: =IFERROR('3. VARIABLE INPUT'!$C$46*INDEX('15. SFY 18-19 FINAL MUR'!AW:AW,MATCH(A31,'15. SFY 18-19 FINAL MUR'!A:A,0))*('4. FY 2019-20'!$BB34/'4. FY 2019-20'!$BE34),0) -> 815163.9268 | G31: =IFERROR('3. VARIABLE INPUT'!$C$47*INDEX('13. 2016 OSHPD MEDI-CAL MC OP'!L:L,MATCH(A31,'13. 2016 OSHPD MEDI-CAL MC OP'!A:A,0))*('4. FY 2019-20'!$BB34/'4. FY 2019-20'!$BE34),0) -> 1421439.673 | H31: =IFERROR('3. VARIABLE INPUT'!$C$48*INDEX('14. CY2016 MEDI-CAL FFS DAYS'!Y:Y,MATCH(A31,'14. CY2016 MEDI-CAL FFS DAYS'!A:A,0))*('4. FY 2019-20'!$BB34/'4. FY 2019-20'!$BE34),0) -> 1257.969398 | I31: =IFERROR(INDEX('MC PT SA (CHA Only)'!K:K,MATCH(A31,'MC PT SA (CHA Only)'!A:A,0))*('4. FY 2019-20'!$BB34/'4. FY 2019-20'!$BE34),0) -> 0 | J31: 2237861.569 | K31: =IFERROR('3. VARIABLE INPUT'!$C$50*INDEX('SFY 17-18 Directed Payments'!H:H,MATCH(A31,'SFY 17-18 Directed Payments'!B:B,0))*('4. FY 2019-20'!$BB34/'4. FY 2019-20'!$BE34),0) -> 4073304.91 | L31: =IFERROR('3. VARIABLE INPUT'!$C$51*INDEX('SFY 17-18 Directed Payments'!I:I,MATCH(A31,'SFY 17-18 Directed Payments'!B:B,0))*('4. FY 2019-20'!$BB34/'4. FY 2019-20'!$BE34),0) -> 2412323.283 | M31: 6485628.193 | N31: 8723489.762 | O31: =IFERROR('3. VARIABLE INPUT'!$G$46*INDEX('15. SFY 18-19 FINAL MUR'!AW:AW,MATCH(A31,'15. SFY 18-19 FINAL MUR'!A:A,0))*('5. FY 2020-21'!$BB34/'5. FY 2020-21'!$BE34),0) -> 867363.0737 | P31: =IFERROR('3. VARIABLE INPUT'!$G$47*INDEX('13. 2016 OSHPD MEDI-CAL MC OP'!L:L,MATCH(A31,'13. 2016 OSHPD MEDI-CAL MC OP'!A:A,0))*('5. FY 2020-21'!$BB34/'5. FY 2020-21'!$BE34),0) -> 1273342.443 | Q31: =IFERROR('3. VARIABLE INPUT'!$G$48*INDEX('14. CY2016 MEDI-CAL FFS DAYS'!Y:Y,MATCH(A31,'14. CY2016 MEDI-CAL FFS DAYS'!A:A,0))*('5. FY 2020-21'!$BB34/'5. FY 2020-21'!$BE34),0) -> 1297.711275 | R31: =IFERROR(INDEX('MC PT SA (CHA Only)'!K:K,MATCH(A31,'MC PT SA (CHA Only)'!A:A,0))*('5. FY 2020-21'!$BB34/'5. FY 2020-21'!$BE34),0) -> 0 | S31: 2142003.228 | T31: =IFERROR('3. VARIABLE INPUT'!$G$50*INDEX('SFY 17-18 Directed Payments'!H:H,MATCH(A31,'SFY 17-18 Directed Payments'!B:B,0))*('5. FY 2020-21'!$BB34/'5. FY 2020-21'!$BE34),0) -> 4201989.109 | U31: =IFERROR('3. VARIABLE INPUT'!$G$51*INDEX('SFY 17-18 Directed Payments'!I:I,MATCH(A31,'SFY 17-18 Directed Payments'!B:B,0))*('5. FY 2020-21'!$BB34/'5. FY 2020-21'!$BE34),0) -> 2488533.607 | V31: 6690522.716 | W31: 8832525.944 | X31: =IFERROR('3. VARIABLE INPUT'!$K$46*INDEX('15. SFY 18-19 FINAL MUR'!AW:AW,MATCH(A31,'15. SFY 18-19 FINAL MUR'!A:A,0))*('6. FY 2021-22'!$BB34/'6. FY 2021-22'!$BE34),0)/2 -> 418001.9756 | Y31: =IFERROR('3. VARIABLE INPUT'!$K$47*INDEX('13. 2016 OSHPD MEDI-CAL MC OP'!L:L,MATCH(A31,'13. 2016 OSHPD MEDI-CAL MC OP'!A:A,0))*('6. FY 2021-22'!$BB34/'6. FY 2021-22'!$BE34),0)/2 -> 635034.5226 | Z31: =IFERROR('3. VARIABLE INPUT'!$K$48*INDEX('14. CY2016 MEDI-CAL FFS DAYS'!Y:Y,MATCH(A31,'14. CY2016 MEDI-CAL FFS DAYS'!A:A,0))*('6. FY 2021-22'!$BB34/'6. FY 2021-22'!$BE34),0)/2 -> 669.5665598 | AA31: =IFERROR(INDEX('MC PT SA (CHA Only)'!K:K,MATCH(A31,'MC PT SA (CHA Only)'!A:A,0))*('6. FY 2021-22'!$BB34/'6. FY 2021-22'!$BE34),0)/2 -> 0 | AB31: 1053706.065 | AC31: =IFERROR('3. VARIABLE INPUT'!$K$50*INDEX('SFY 17-18 Directed Payments'!H:H,MATCH(A31,'SFY 17-18 Directed Payments'!B:B,0))*('6. FY 2021-22'!$BB34/'6. FY 2021-22'!$BE34),0)/2 -> 2168056.521 | AD31: =IFERROR('3. VARIABLE INPUT'!$K$51*INDEX('SFY 17-18 Directed Payments'!I:I,MATCH(A31,'SFY 17-18 Directed Payments'!B:B,0))*('6. FY 2021-22'!$BB34/'6. FY 2021-22'!$BE34),0)/2 -> 1283982.746 | AE31: 3452039.266 | AF31: 4505745.331
A32: 106554011 | B32: 554011 | C32: 50335 | D32: 3 | E32: ADVENTIST HEALTH SONORA - GREENLEY | F32: =IFERROR('3. VARIABLE INPUT'!$C$46*INDEX('15. SFY 18-19 FINAL MUR'!AW:AW,MATCH(A32,'15. SFY 18-19 FINAL MUR'!A:A,0))*('4. FY 2019-20'!$BB35/'4. FY 2019-20'!$BE35),0) -> 661837.5191 | G32: =IFERROR('3. VARIABLE INPUT'!$C$47*INDEX('13. 2016 OSHPD MEDI-CAL MC OP'!L:L,MATCH(A32,'13. 2016 OSHPD MEDI-CAL MC OP'!A:A,0))*('4. FY 2019-20'!$BB35/'4. FY 2019-20'!$BE35),0) -> 2422119.877 | H32: =IFERROR('3. VARIABLE INPUT'!$C$48*INDEX('14. CY2016 MEDI-CAL FFS DAYS'!Y:Y,MATCH(A32,'14. CY2016 MEDI-CAL FFS DAYS'!A:A,0))*('4. FY 2019-20'!$BB35/'4. FY 2019-20'!$BE35),0) -> 20127.51036 | I32: =IFERROR(INDEX('MC PT SA (CHA Only)'!K:K,MATCH(A32,'MC PT SA (CHA Only)'!A:A,0))*('4. FY 2019-20'!$BB35/'4. FY 2019-20'!$BE35),0) -> 0 | J32: 3104084.907 | K32: =IFERROR('3. VARIABLE INPUT'!$C$50*INDEX('SFY 17-18 Directed Payments'!H:H,MATCH(A32,'SFY 17-18 Directed Payments'!B:B,0))*('4. FY 2019-20'!$BB35/'4. FY 2019-20'!$BE35),0) -> 3612888.11 | L32: =IFERROR('3. VARIABLE INPUT'!$C$51*INDEX('SFY 17-18 Directed Payments'!I:I,MATCH(A32,'SFY 17-18 Directed Payments'!B:B,0))*('4. FY 2019-20'!$BB35/'4. FY 2019-20'!$BE35),0) -> 6544175.916 | M32: 10157064.03 | N32: 13261148.93 | O32: =IFERROR('3. VARIABLE INPUT'!$G$46*INDEX('15. SFY 18-19 FINAL MUR'!AW:AW,MATCH(A32,'15. SFY 18-19 FINAL MUR'!A:A,0))*('5. FY 2020-21'!$BB35/'5. FY 2020-21'!$BE35),0) -> 704218.386 | P32: =IFERROR('3. VARIABLE INPUT'!$G$47*INDEX('13. 2016 OSHPD MEDI-CAL MC OP'!L:L,MATCH(A32,'13. 2016 OSHPD MEDI-CAL MC OP'!A:A,0))*('5. FY 2020-21'!$BB35/'5. FY 2020-21'!$BE35),0) -> 2169763.586 | Q32: =IFERROR('3. VARIABLE INPUT'!$G$48*INDEX('14. CY2016 MEDI-CAL FFS DAYS'!Y:Y,MATCH(A32,'14. CY2016 MEDI-CAL FFS DAYS'!A:A,0))*('5. FY 2020-21'!$BB35/'5. FY 2020-21'!$BE35),0) -> 20763.3804 | R32: =IFERROR(INDEX('MC PT SA (CHA Only)'!K:K,MATCH(A32,'MC PT SA (CHA Only)'!A:A,0))*('5. FY 2020-21'!$BB35/'5. FY 2020-21'!$BE35),0) -> 0 | S32: 2894745.353 | T32: =IFERROR('3. VARIABLE INPUT'!$G$50*INDEX('SFY 17-18 Directed Payments'!H:H,MATCH(A32,'SFY 17-18 Directed Payments'!B:B,0))*('5. FY 2020-21'!$BB35/'5. FY 2020-21'!$BE35),0) -> 3727026.782 | U32: =IFERROR('3. VARIABLE INPUT'!$G$51*INDEX('SFY 17-18 Directed Payments'!I:I,MATCH(A32,'SFY 17-18 Directed Payments'!B:B,0))*('5. FY 2020-21'!$BB35/'5. FY 2020-21'!$BE35),0) -> 6750920.084 | V32: 10477946.87 | W32: 13372692.22 | X32: =IFERROR('3. VARIABLE INPUT'!$K$46*INDEX('15. SFY 18-19 FINAL MUR'!AW:AW,MATCH(A32,'15. SFY 18-19 FINAL MUR'!A:A,0))*('6. FY 2021-22'!$BB35/'6. FY 2021-22'!$BE35),0)/2 -> 339378.8432 | Y32: =IFERROR('3. VARIABLE INPUT'!$K$47*INDEX('13. 2016 OSHPD MEDI-CAL MC OP'!L:L,MATCH(A32,'13. 2016 OSHPD MEDI-CAL MC OP'!A:A,0))*('6. FY 2021-22'!$BB35/'6. FY 2021-22'!$BE35),0)/2 -> 1082092.873 | Z32: =IFERROR('3. VARIABLE INPUT'!$K$48*INDEX('14. CY2016 MEDI-CAL FFS DAYS'!Y:Y,MATCH(A32,'14. CY2016 MEDI-CAL FFS DAYS'!A:A,0))*('6. FY 2021-22'!$BB35/'6. FY 2021-22'!$BE35),0)/2 -> 10713.06496 | AA32: =IFERROR(INDEX('MC PT SA (CHA Only)'!K:K,MATCH(A32,'MC PT SA (CHA Only)'!A:A,0))*('6. FY 2021-22'!$BB35/'6. FY 2021-22'!$BE35),0)/2 -> 0 | AB32: 1432184.782 | AC32: =IFERROR('3. VARIABLE INPUT'!$K$50*INDEX('SFY 17-18 Directed Payments'!H:H,MATCH(A32,'SFY 17-18 Directed Payments'!B:B,0))*('6. FY 2021-22'!$BB35/'6. FY 2021-22'!$BE35),0)/2 -> 1922995.16 | AD32: =IFERROR('3. VARIABLE INPUT'!$K$51*INDEX('SFY 17-18 Directed Payments'!I:I,MATCH(A32,'SFY 17-18 Directed Payments'!B:B,0))*('6. FY 2021-22'!$BB35/'6. FY 2021-22'!$BE35),0)/2 -> 3483201.867 | AE32: 5406197.027 | AF32: 6838381.808
A33: 106281078 | B33: 281078 | C33: 50013 | D33: 3 | E33: ADVENTIST HEALTH ST. HELENA | F33: =IFERROR('3. VARIABLE INPUT'!$C$46*INDEX('15. SFY 18-19 FINAL MUR'!AW:AW,MATCH(A33,'15. SFY 18-19 FINAL MUR'!A:A,0))*('4. FY 2019-20'!$BB36/'4. FY 2019-20'!$BE36),0) -> 1236059.948 | G33: =IFERROR('3. VARIABLE INPUT'!$C$47*INDEX('13. 2016 OSHPD MEDI-CAL MC OP'!L:L,MATCH(A33,'13. 2016 OSHPD MEDI-CAL MC OP'!A:A,0))*('4. FY 2019-20'!$BB36/'4. FY 2019-20'!$BE36),0) -> 1012987.442 | H33: =IFERROR('3. VARIABLE INPUT'!$C$48*INDEX('14. CY2016 MEDI-CAL FFS DAYS'!Y:Y,MATCH(A33,'14. CY2016 MEDI-CAL FFS DAYS'!A:A,0))*('4. FY 2019-20'!$BB36/'4. FY 2019-20'!$BE36),0) -> 3899705.133 | I33: =IFERROR(INDEX('MC PT SA (CHA Only)'!K:K,MATCH(A33,'MC PT SA (CHA Only)'!A:A,0))*('4. FY 2019-20'!$BB36/'4. FY 2019-20'!$BE36),0) -> 0 | J33: 6148752.523 | K33: =IFERROR('3. VARIABLE INPUT'!$C$50*INDEX('SFY 17-18 Directed Payments'!H:H,MATCH(A33,'SFY 17-18 Directed Payments'!B:B,0))*('4. FY 2019-20'!$BB36/'4. FY 2019-20'!$BE36),0) -> 3160019.127 | L33: =IFERROR('3. VARIABLE INPUT'!$C$51*INDEX('SFY 17-18 Directed Payments'!I:I,MATCH(A33,'SFY 17-18 Directed Payments'!B:B,0))*('4. FY 2019-20'!$BB36/'4. FY 2019-20'!$BE36),0) -> 906893.5143 | M33: 4066912.642 | N33: 10215665.16 | O33: =IFERROR('3. VARIABLE INPUT'!$G$46*INDEX('15. SFY 18-19 FINAL MUR'!AW:AW,MATCH(A33,'15. SFY 18-19 FINAL MUR'!A:A,0))*('5. FY 2020-21'!$BB36/'5. FY 2020-21'!$BE36),0) -> 1315211.236 | P33: =IFERROR('3. VARIABLE INPUT'!$G$47*INDEX('13. 2016 OSHPD MEDI-CAL MC OP'!L:L,MATCH(A33,'13. 2016 OSHPD MEDI-CAL MC OP'!A:A,0))*('5. FY 2020-21'!$BB36/'5. FY 2020-21'!$BE36),0) -> 907446.1119 | Q33: =IFERROR('3. VARIABLE INPUT'!$G$48*INDEX('14. CY2016 MEDI-CAL FFS DAYS'!Y:Y,MATCH(A33,'14. CY2016 MEDI-CAL FFS DAYS'!A:A,0))*('5. FY 2020-21'!$BB36/'5. FY 2020-21'!$BE36),0) -> 4022904.953 | R33: =IFERROR(INDEX('MC PT SA (CHA Only)'!K:K,MATCH(A33,'MC PT SA (CHA Only)'!A:A,0))*('5. FY 2020-21'!$BB36/'5. FY 2020-21'!$BE36),0) -> 0 | S33: 6245562.301 | T33: =IFERROR('3. VARIABLE INPUT'!$G$50*INDEX('SFY 17-18 Directed Payments'!H:H,MATCH(A33,'SFY 17-18 Directed Payments'!B:B,0))*('5. FY 2020-21'!$BB36/'5. FY 2020-21'!$BE36),0) -> 3259850.723 | U33: =IFERROR('3. VARIABLE INPUT'!$G$51*INDEX('SFY 17-18 Directed Payments'!I:I,MATCH(A33,'SFY 17-18 Directed Payments'!B:B,0))*('5. FY 2020-21'!$BB36/'5. FY 2020-21'!$BE36),0) -> 935544.1722 | V33: 4195394.895 | W33: 10440957.2 | X33: =IFERROR('3. VARIABLE INPUT'!$K$46*INDEX('15. SFY 18-19 FINAL MUR'!AW:AW,MATCH(A33,'15. SFY 18-19 FINAL MUR'!A:A,0))*('6. FY 2021-22'!$BB36/'6. FY 2021-22'!$BE36),0)/2 -> 633830.1822 | Y33: =IFERROR('3. VARIABLE INPUT'!$K$47*INDEX('13. 2016 OSHPD MEDI-CAL MC OP'!L:L,MATCH(A33,'13. 2016 OSHPD MEDI-CAL MC OP'!A:A,0))*('6. FY 2021-22'!$BB36/'6. FY 2021-22'!$BE36),0)/2 -> 452556.6642 | Z33: =IFERROR('3. VARIABLE INPUT'!$K$48*INDEX('14. CY2016 MEDI-CAL FFS DAYS'!Y:Y,MATCH(A33,'14. CY2016 MEDI-CAL FFS DAYS'!A:A,0))*('6. FY 2021-22'!$BB36/'6. FY 2021-22'!$BE36),0)/2 -> 2075656.335 | AA33: =IFERROR(INDEX('MC PT SA (CHA Only)'!K:K,MATCH(A33,'MC PT SA (CHA Only)'!A:A,0))*('6. FY 2021-22'!$BB36/'6. FY 2021-22'!$BE36),0)/2 -> 0 | AB33: 3162043.182 | AC33: =IFERROR('3. VARIABLE INPUT'!$K$50*INDEX('SFY 17-18 Directed Payments'!H:H,MATCH(A33,'SFY 17-18 Directed Payments'!B:B,0))*('6. FY 2021-22'!$BB36/'6. FY 2021-22'!$BE36),0)/2 -> 1681951.198 | AD33: =IFERROR('3. VARIABLE INPUT'!$K$51*INDEX('SFY 17-18 Directed Payments'!I:I,MATCH(A33,'SFY 17-18 Directed Payments'!B:B,0))*('6. FY 2021-22'!$BB36/'6. FY 2021-22'!$BE36),0)/2 -> 482702.9748 | AE33: 2164654.173 | AF33: 5326697.355
A34: 106150808 | B34: 150808 | C34: 51301 | D34: 3 | E34: ADVENTIST HEALTH TEHACHAPI VALLEY | F34: =IFERROR('3. VARIABLE INPUT'!$C$46*INDEX('15. SFY 18-19 FINAL MUR'!AW:AW,MATCH(A34,'15. SFY 18-19 FINAL MUR'!A:A,0))*('4. FY 2019-20'!$BB37/'4. FY 2019-20'!$BE37),0) -> 9233.943322 | G34: =IFERROR('3. VARIABLE INPUT'!$C$47*INDEX('13. 2016 OSHPD MEDI-CAL MC OP'!L:L,MATCH(A34,'13. 2016 OSHPD MEDI-CAL MC OP'!A:A,0))*('4. FY 2019-20'!$BB37/'4. FY 2019-20'!$BE37),0) -> 1020945.505 | H34: =IFERROR('3. VARIABLE INPUT'!$C$48*INDEX('14. CY2016 MEDI-CAL FFS DAYS'!Y:Y,MATCH(A34,'14. CY2016 MEDI-CAL FFS DAYS'!A:A,0))*('4. FY 2019-20'!$BB37/'4. FY 2019-20'!$BE37),0) -> 0 | I34: =IFERROR(INDEX('MC PT SA (CHA Only)'!K:K,MATCH(A34,'MC PT SA (CHA Only)'!A:A,0))*('4. FY 2019-20'!$BB37/'4. FY 2019-20'!$BE37),0) -> 0 | J34: 1030179.449 | K34: =IFERROR('3. VARIABLE INPUT'!$C$50*INDEX('SFY 17-18 Directed Payments'!H:H,MATCH(A34,'SFY 17-18 Directed Payments'!B:B,0))*('4. FY 2019-20'!$BB37/'4. FY 2019-20'!$BE37),0) -> 35223.14314 | L34: =IFERROR('3. VARIABLE INPUT'!$C$51*INDEX('SFY 17-18 Directed Payments'!I:I,MATCH(A34,'SFY 17-18 Directed Payments'!B:B,0))*('4. FY 2019-20'!$BB37/'4. FY 2019-20'!$BE37),0) -> 1693271.855 | M34: 1728494.998 | N34: 2758674.447 | O34: =IFERROR('3. VARIABLE INPUT'!$G$46*INDEX('15. SFY 18-19 FINAL MUR'!AW:AW,MATCH(A34,'15. SFY 18-19 FINAL MUR'!A:A,0))*('5. FY 2020-21'!$BB37/'5. FY 2020-21'!$BE37),0) -> 9825.240297 | P34: =IFERROR('3. VARIABLE INPUT'!$G$47*INDEX('13. 2016 OSHPD MEDI-CAL MC OP'!L:L,MATCH(A34,'13. 2016 OSHPD MEDI-CAL MC OP'!A:A,0))*('5. FY 2020-21'!$BB37/'5. FY 2020-21'!$BE37),0) -> 914575.0391 | Q34: =IFERROR('3. VARIABLE INPUT'!$G$48*INDEX('14. CY2016 MEDI-CAL FFS DAYS'!Y:Y,MATCH(A34,'14. CY2016 MEDI-CAL FFS DAYS'!A:A,0))*('5. FY 2020-21'!$BB37/'5. FY 2020-21'!$BE37),0) -> 0 | R34: =IFERROR(INDEX('MC PT SA (CHA Only)'!K:K,MATCH(A34,'MC PT SA (CHA Only)'!A:A,0))*('5. FY 2020-21'!$BB37/'5. FY 2020-21'!$BE37),0) -> 0 | S34: 924400.2794 | T34: =IFERROR('3. VARIABLE INPUT'!$G$50*INDEX('SFY 17-18 Directed Payments'!H:H,MATCH(A34,'SFY 17-18 Directed Payments'!B:B,0))*('5. FY 2020-21'!$BB37/'5. FY 2020-21'!$BE37),0) -> 36335.9157 | U34: =IFERROR('3. VARIABLE INPUT'!$G$51*INDEX('SFY 17-18 Directed Payments'!I:I,MATCH(A34,'SFY 17-18 Directed Payments'!B:B,0))*('5. FY 2020-21'!$BB37/'5. FY 2020-21'!$BE37),0) -> 1746765.845 | V34: 1783101.761 | W34: 2707502.04 | X34: =IFERROR('3. VARIABLE INPUT'!$K$46*INDEX('15. SFY 18-19 FINAL MUR'!AW:AW,MATCH(A34,'15. SFY 18-19 FINAL MUR'!A:A,0))*('6. FY 2021-22'!$BB37/'6. FY 2021-22'!$BE37),0)/2 -> 4735.006573 | Y34: =IFERROR('3. VARIABLE INPUT'!$K$47*INDEX('13. 2016 OSHPD MEDI-CAL MC OP'!L:L,MATCH(A34,'13. 2016 OSHPD MEDI-CAL MC OP'!A:A,0))*('6. FY 2021-22'!$BB37/'6. FY 2021-22'!$BE37),0)/2 -> 456111.9646 | Z34: =IFERROR('3. VARIABLE INPUT'!$K$48*INDEX('14. CY2016 MEDI-CAL FFS DAYS'!Y:Y,MATCH(A34,'14. CY2016 MEDI-CAL FFS DAYS'!A:A,0))*('6. FY 2021-22'!$BB37/'6. FY 2021-22'!$BE37),0)/2 -> 0 | AA34: =IFERROR(INDEX('MC PT SA (CHA Only)'!K:K,MATCH(A34,'MC PT SA (CHA Only)'!A:A,0))*('6. FY 2021-22'!$BB37/'6. FY 2021-22'!$BE37),0)/2 -> 0 | AB34: 460846.9711 | AC34: =IFERROR('3. VARIABLE INPUT'!$K$50*INDEX('SFY 17-18 Directed Payments'!H:H,MATCH(A34,'SFY 17-18 Directed Payments'!B:B,0))*('6. FY 2021-22'!$BB37/'6. FY 2021-22'!$BE37),0)/2 -> 18747.86367 | AD34: =IFERROR('3. VARIABLE INPUT'!$K$51*INDEX('SFY 17-18 Directed Payments'!I:I,MATCH(A34,'SFY 17-18 Directed Payments'!B:B,0))*('6. FY 2021-22'!$BB37/'6. FY 2021-22'!$BE37),0)/2 -> 901260.5654 | AE34: 920008.4291 | AF34: 1380855.4
A35: 106231396 | B35: 231396 | C35: 50301 | D35: 3 | E35: ADVENTIST HEALTH UKIAH VALLEY | F35: =IFERROR('3. VARIABLE INPUT'!$C$46*INDEX('15. SFY 18-19 FINAL MUR'!AW:AW,MATCH(A35,'15. SFY 18-19 FINAL MUR'!A:A,0))*('4. FY 2019-20'!$BB38/'4. FY 2019-20'!$BE38),0) -> 807433.1835 | G35: =IFERROR('3. VARIABLE INPUT'!$C$47*INDEX('13. 2016 OSHPD MEDI-CAL MC OP'!L:L,MATCH(A35,'13. 2016 OSHPD MEDI-CAL MC OP'!A:A,0))*('4. FY 2019-20'!$BB38/'4. FY 2019-20'!$BE38),0) -> 3606483.289 | H35: =IFERROR('3. VARIABLE INPUT'!$C$48*INDEX('14. CY2016 MEDI-CAL FFS DAYS'!Y:Y,MATCH(A35,'14. CY2016 MEDI-CAL FFS DAYS'!A:A,0))*('4. FY 2019-20'!$BB38/'4. FY 2019-20'!$BE38),0) -> 28933.29615 | I35: =IFERROR(INDEX('MC PT SA (CHA Only)'!K:K,MATCH(A35,'MC PT SA (CHA Only)'!A:A,0))*('4. FY 2019-20'!$BB38/'4. FY 2019-20'!$BE38),0) -> 0 | J35: 4442849.769 | K35: =IFERROR('3. VARIABLE INPUT'!$C$50*INDEX('SFY 17-18 Directed Payments'!H:H,MATCH(A35,'SFY 17-18 Directed Payments'!B:B,0))*('4. FY 2019-20'!$BB38/'4. FY 2019-20'!$BE38),0) -> 3786487.887 | L35: =IFERROR('3. VARIABLE INPUT'!$C$51*INDEX('SFY 17-18 Directed Payments'!I:I,MATCH(A35,'SFY 17-18 Directed Payments'!B:B,0))*('4. FY 2019-20'!$BB38/'4. FY 2019-20'!$BE38),0) -> 2257471.383 | M35: 6043959.271 | N35: 10486809.04 | O35: =IFERROR('3. VARIABLE INPUT'!$G$46*INDEX('15. SFY 18-19 FINAL MUR'!AW:AW,MATCH(A35,'15. SFY 18-19 FINAL MUR'!A:A,0))*('5. FY 2020-21'!$BB38/'5. FY 2020-21'!$BE38),0) -> 859137.2911 | P35: =IFERROR('3. VARIABLE INPUT'!$G$47*INDEX('13. 2016 OSHPD MEDI-CAL MC OP'!L:L,MATCH(A35,'13. 2016 OSHPD MEDI-CAL MC OP'!A:A,0))*('5. FY 2020-21'!$BB38/'5. FY 2020-21'!$BE38),0) -> 3230730.316 | Q35: =IFERROR('3. VARIABLE INPUT'!$G$48*INDEX('14. CY2016 MEDI-CAL FFS DAYS'!Y:Y,MATCH(A35,'14. CY2016 MEDI-CAL FFS DAYS'!A:A,0))*('5. FY 2020-21'!$BB38/'5. FY 2020-21'!$BE38),0) -> 29847.35933 | R35: =IFERROR(INDEX('MC PT SA (CHA Only)'!K:K,MATCH(A35,'MC PT SA (CHA Only)'!A:A,0))*('5. FY 2020-21'!$BB38/'5. FY 2020-21'!$BE38),0) -> 0 | S35: 4119714.966 | T35: =IFERROR('3. VARIABLE INPUT'!$G$50*INDEX('SFY 17-18 Directed Payments'!H:H,MATCH(A35,'SFY 17-18 Directed Payments'!B:B,0))*('5. FY 2020-21'!$BB38/'5. FY 2020-21'!$BE38),0) -> 3906110.938 | U35: =IFERROR('3. VARIABLE INPUT'!$G$51*INDEX('SFY 17-18 Directed Payments'!I:I,MATCH(A35,'SFY 17-18 Directed Payments'!B:B,0))*('5. FY 2020-21'!$BB38/'5. FY 2020-21'!$BE38),0) -> 2328789.613 | V35: 6234900.551 | W35: 10354615.52 | X35: =IFERROR('3. VARIABLE INPUT'!$K$46*INDEX('15. SFY 18-19 FINAL MUR'!AW:AW,MATCH(A35,'15. SFY 18-19 FINAL MUR'!A:A,0))*('6. FY 2021-22'!$BB38/'6. FY 2021-22'!$BE38),0)/2 -> 414037.784 | Y35: =IFERROR('3. VARIABLE INPUT'!$K$47*INDEX('13. 2016 OSHPD MEDI-CAL MC OP'!L:L,MATCH(A35,'13. 2016 OSHPD MEDI-CAL MC OP'!A:A,0))*('6. FY 2021-22'!$BB38/'6. FY 2021-22'!$BE38),0)/2 -> 1611212.518 | Z35: =IFERROR('3. VARIABLE INPUT'!$K$48*INDEX('14. CY2016 MEDI-CAL FFS DAYS'!Y:Y,MATCH(A35,'14. CY2016 MEDI-CAL FFS DAYS'!A:A,0))*('6. FY 2021-22'!$BB38/'6. FY 2021-22'!$BE38),0)/2 -> 15400.03088 | AA35: =IFERROR(INDEX('MC PT SA (CHA Only)'!K:K,MATCH(A35,'MC PT SA (CHA Only)'!A:A,0))*('6. FY 2021-22'!$BB38/'6. FY 2021-22'!$BE38),0)/2 -> 0 | AB35: 2040650.333 | AC35: =IFERROR('3. VARIABLE INPUT'!$K$50*INDEX('SFY 17-18 Directed Payments'!H:H,MATCH(A35,'SFY 17-18 Directed Payments'!B:B,0))*('6. FY 2021-22'!$BB38/'6. FY 2021-22'!$BE38),0)/2 -> 2015395.345 | AD35: =IFERROR('3. VARIABLE INPUT'!$K$51*INDEX('SFY 17-18 Directed Payments'!I:I,MATCH(A35,'SFY 17-18 Directed Payments'!B:B,0))*('6. FY 2021-22'!$BB38/'6. FY 2021-22'!$BE38),0)/2 -> 1201561.302 | AE35: 3216956.647 | AF35: 5257606.98
A36: 106481015 | B36: 481015 | C36: 54074 | D36: 3 | E36: ADVENTIST HEALTH VALLEJO | F36: =IFERROR('3. VARIABLE INPUT'!$C$46*INDEX('15. SFY 18-19 FINAL MUR'!AW:AW,MATCH(A36,'15. SFY 18-19 FINAL MUR'!A:A,0))*('4. FY 2019-20'!$BB39/'4. FY 2019-20'!$BE39),0) -> 0 | G36: =IFERROR('3. VARIABLE INPUT'!$C$47*INDEX('13. 2016 OSHPD MEDI-CAL MC OP'!L:L,MATCH(A36,'13. 2016 OSHPD MEDI-CAL MC OP'!A:A,0))*('4. FY 2019-20'!$BB39/'4. FY 2019-20'!$BE39),0) -> 0 | H36: =IFERROR('3. VARIABLE INPUT'!$C$48*INDEX('14. CY2016 MEDI-CAL FFS DAYS'!Y:Y,MATCH(A36,'14. CY2016 MEDI-CAL FFS DAYS'!A:A,0))*('4. FY 2019-20'!$BB39/'4. FY 2019-20'!$BE39),0) -> 0 | I36: =IFERROR(INDEX('MC PT SA (CHA Only)'!K:K,MATCH(A36,'MC PT SA (CHA Only)'!A:A,0))*('4. FY 2019-20'!$BB39/'4. FY 2019-20'!$BE39),0) -> 0 | J36: 0 | K36: =IFERROR('3. VARIABLE INPUT'!$C$50*INDEX('SFY 17-18 Directed Payments'!H:H,MATCH(A36,'SFY 17-18 Directed Payments'!B:B,0))*('4. FY 2019-20'!$BB39/'4. FY 2019-20'!$BE39),0) -> 0 | L36: =IFERROR('3. VARIABLE INPUT'!$C$51*INDEX('SFY 17-18 Directed Payments'!I:I,MATCH(A36,'SFY 17-18 Directed Payments'!B:B,0))*('4. FY 2019-20'!$BB39/'4. FY 2019-20'!$BE39),0) -> 0 | M36: 0 | N36: 0 | O36: =IFERROR('3. VARIABLE INPUT'!$G$46*INDEX('15. SFY 18-19 FINAL MUR'!AW:AW,MATCH(A36,'15. SFY 18-19 FINAL MUR'!A:A,0))*('5. FY 2020-21'!$BB39/'5. FY 2020-21'!$BE39),0) -> 0 | P36: =IFERROR('3. VARIABLE INPUT'!$G$47*INDEX('13. 2016 OSHPD MEDI-CAL MC OP'!L:L,MATCH(A36,'13. 2016 OSHPD MEDI-CAL MC OP'!A:A,0))*('5. FY 2020-21'!$BB39/'5. FY 2020-21'!$BE39),0) -> 0 | Q36: =IFERROR('3. VARIABLE INPUT'!$G$48*INDEX('14. CY2016 MEDI-CAL FFS DAYS'!Y:Y,MATCH(A36,'14. CY2016 MEDI-CAL FFS DAYS'!A:A,0))*('5. FY 2020-21'!$BB39/'5. FY 2020-21'!$BE39),0) -> 0 | R36: =IFERROR(INDEX('MC PT SA (CHA Only)'!K:K,MATCH(A36,'MC PT SA (CHA Only)'!A:A,0))*('5. FY 2020-21'!$BB39/'5. FY 2020-21'!$BE39),0) -> 0 | S36: 0 | T36: =IFERROR('3. VARIABLE INPUT'!$G$50*INDEX('SFY 17-18 Directed Payments'!H:H,MATCH(A36,'SFY 17-18 Directed Payments'!B:B,0))*('5. FY 2020-21'!$BB39/'5. FY 2020-21'!$BE39),0) -> 0 | U36: =IFERROR('3. VARIABLE INPUT'!$G$51*INDEX('SFY 17-18 Directed Payments'!I:I,MATCH(A36,'SFY 17-18 Directed Payments'!B:B,0))*('5. FY 2020-21'!$BB39/'5. FY 2020-21'!$BE39),0) -> 0 | V36: 0 | W36: 0 | X36: =IFERROR('3. VARIABLE INPUT'!$K$46*INDEX('15. SFY 18-19 FINAL MUR'!AW:AW,MATCH(A36,'15. SFY 18-19 FINAL MUR'!A:A,0))*('6. FY 2021-22'!$BB39/'6. FY 2021-22'!$BE39),0)/2 -> 0 | Y36: =IFERROR('3. VARIABLE INPUT'!$K$47*INDEX('13. 2016 OSHPD MEDI-CAL MC OP'!L:L,MATCH(A36,'13. 2016 OSHPD MEDI-CAL MC OP'!A:A,0))*('6. FY 2021-22'!$BB39/'6. FY 2021-22'!$BE39),0)/2 -> 0 | Z36: =IFERROR('3. VARIABLE INPUT'!$K$48*INDEX('14. CY2016 MEDI-CAL FFS DAYS'!Y:Y,MATCH(A36,'14. CY2016 MEDI-CAL FFS DAYS'!A:A,0))*('6. FY 2021-22'!$BB39/'6. FY 2021-22'!$BE39),0)/2 -> 0 | AA36: =IFERROR(INDEX('MC PT SA (CHA Only)'!K:K,MATCH(A36,'MC PT SA (CHA Only)'!A:A,0))*('6. FY 2021-22'!$BB39/'6. FY 2021-22'!$BE39),0)/2 -> 0 | AB36: 0 | AC36: =IFERROR('3. VARIABLE INPUT'!$K$50*INDEX('SFY 17-18 Directed Payments'!H:H,MATCH(A36,'SFY 17-18 Directed Payments'!B:B,0))*('6. FY 2021-22'!$BB39/'6. FY 2021-22'!$BE39),0)/2 -> 0 | AD36: =IFERROR('3. VARIABLE INPUT'!$K$51*INDEX('SFY 17-18 Directed Payments'!I:I,MATCH(A36,'SFY 17-18 Directed Payments'!B:B,0))*('6. FY 2021-22'!$BB39/'6. FY 2021-22'!$BE39),0)/2 -> 0 | AE36: 0 | AF36: 0
A37: 106190878 | B37: 190878 | C37: 50103 | D37: 3 | E37: ADVENTIST HEALTH WHITE MEMORIAL | F37: =IFERROR('3. VARIABLE INPUT'!$C$46*INDEX('15. SFY 18-19 FINAL MUR'!AW:AW,MATCH(A37,'15. SFY 18-19 FINAL MUR'!A:A,0))*('4. FY 2019-20'!$BB40/'4. FY 2019-20'!$BE40),0) -> 6609570.733 | G37: =IFERROR('3. VARIABLE INPUT'!$C$47*INDEX('13. 2016 OSHPD MEDI-CAL MC OP'!L:L,MATCH(A37,'13. 2016 OSHPD MEDI-CAL MC OP'!A:A,0))*('4. FY 2019-20'!$BB40/'4. FY 2019-20'!$BE40),0) -> 4478724.052 | H37: =IFERROR('3. VARIABLE INPUT'!$C$48*INDEX('14. CY2016 MEDI-CAL FFS DAYS'!Y:Y,MATCH(A37,'14. CY2016 MEDI-CAL FFS DAYS'!A:A,0))*('4. FY 2019-20'!$BB40/'4. FY 2019-20'!$BE40),0) -> 8142835.912 | I37: =IFERROR(INDEX('MC PT SA (CHA Only)'!K:K,MATCH(A37,'MC PT SA (CHA Only)'!A:A,0))*('4. FY 2019-20'!$BB40/'4. FY 2019-20'!$BE40),0) -> 0 | J37: 19231130.7 | K37: =IFERROR('3. VARIABLE INPUT'!$C$50*INDEX('SFY 17-18 Directed Payments'!H:H,MATCH(A37,'SFY 17-18 Directed Payments'!B:B,0))*('4. FY 2019-20'!$BB40/'4. FY 2019-20'!$BE40),0) -> 27396057.54 | L37: =IFERROR('3. VARIABLE INPUT'!$C$51*INDEX('SFY 17-18 Directed Payments'!I:I,MATCH(A37,'SFY 17-18 Directed Payments'!B:B,0))*('4. FY 2019-20'!$BB40/'4. FY 2019-20'!$BE40),0) -> 7696476.028 | M37: 35092533.57 | N37: 54323664.27 | O37: =IFERROR('3. VARIABLE INPUT'!$G$46*INDEX('15. SFY 18-19 FINAL MUR'!AW:AW,MATCH(A37,'15. SFY 18-19 FINAL MUR'!A:A,0))*('5. FY 2020-21'!$BB40/'5. FY 2020-21'!$BE40),0) -> 7032815.607 | P37: =IFERROR('3. VARIABLE INPUT'!$G$47*INDEX('13. 2016 OSHPD MEDI-CAL MC OP'!L:L,MATCH(A37,'13. 2016 OSHPD MEDI-CAL MC OP'!A:A,0))*('5. FY 2020-21'!$BB40/'5. FY 2020-21'!$BE40),0) -> 4012093.89 | Q37: =IFERROR('3. VARIABLE INPUT'!$G$48*INDEX('14. CY2016 MEDI-CAL FFS DAYS'!Y:Y,MATCH(A37,'14. CY2016 MEDI-CAL FFS DAYS'!A:A,0))*('5. FY 2020-21'!$BB40/'5. FY 2020-21'!$BE40),0) -> 8400085.084 | R37: =IFERROR(INDEX('MC PT SA (CHA Only)'!K:K,MATCH(A37,'MC PT SA (CHA Only)'!A:A,0))*('5. FY 2020-21'!$BB40/'5. FY 2020-21'!$BE40),0) -> 0 | S37: 19444994.58 | T37: =IFERROR('3. VARIABLE INPUT'!$G$50*INDEX('SFY 17-18 Directed Payments'!H:H,MATCH(A37,'SFY 17-18 Directed Payments'!B:B,0))*('5. FY 2020-21'!$BB40/'5. FY 2020-21'!$BE40),0) -> 28261556.15 | U37: =IFERROR('3. VARIABLE INPUT'!$G$51*INDEX('SFY 17-18 Directed Payments'!I:I,MATCH(A37,'SFY 17-18 Directed Payments'!B:B,0))*('5. FY 2020-21'!$BB40/'5. FY 2020-21'!$BE40),0) -> 7939623.76 | V37: 36201179.91 | W37: 55646174.49 | X37: =IFERROR('3. VARIABLE INPUT'!$K$46*INDEX('15. SFY 18-19 FINAL MUR'!AW:AW,MATCH(A37,'15. SFY 18-19 FINAL MUR'!A:A,0))*('6. FY 2021-22'!$BB40/'6. FY 2021-22'!$BE40),0)/2 -> 3389273.658 | Y37: =IFERROR('3. VARIABLE INPUT'!$K$47*INDEX('13. 2016 OSHPD MEDI-CAL MC OP'!L:L,MATCH(A37,'13. 2016 OSHPD MEDI-CAL MC OP'!A:A,0))*('6. FY 2021-22'!$BB40/'6. FY 2021-22'!$BE40),0)/2 -> 2000889.974 | Z37: =IFERROR('3. VARIABLE INPUT'!$K$48*INDEX('14. CY2016 MEDI-CAL FFS DAYS'!Y:Y,MATCH(A37,'14. CY2016 MEDI-CAL FFS DAYS'!A:A,0))*('6. FY 2021-22'!$BB40/'6. FY 2021-22'!$BE40),0)/2 -> 4334104.342 | AA37: =IFERROR(INDEX('MC PT SA (CHA Only)'!K:K,MATCH(A37,'MC PT SA (CHA Only)'!A:A,0))*('6. FY 2021-22'!$BB40/'6. FY 2021-22'!$BE40),0)/2 -> 0 | AB37: 9724267.974 | AC37: =IFERROR('3. VARIABLE INPUT'!$K$50*INDEX('SFY 17-18 Directed Payments'!H:H,MATCH(A37,'SFY 17-18 Directed Payments'!B:B,0))*('6. FY 2021-22'!$BB40/'6. FY 2021-22'!$BE40),0)/2 -> 14581820.54 | AD37: =IFERROR('3. VARIABLE INPUT'!$K$51*INDEX('SFY 17-18 Directed Payments'!I:I,MATCH(A37,'SFY 17-18 Directed Payments'!B:B,0))*('6. FY 2021-22'!$BB40/'6. FY 2021-22'!$BE40),0)/2 -> 4096524.912 | AE37: 18678345.45 | AF37: 28402613.43
A38: 106301098 | B38: 301098 | C38: 50226 | D38: 3 | E38: AHMC ANAHEIM REGIONAL MEDICAL CENTER | F38: =IFERROR('3. VARIABLE INPUT'!$C$46*INDEX('15. SFY 18-19 FINAL MUR'!AW:AW,MATCH(A38,'15. SFY 18-19 FINAL MUR'!A:A,0))*('4. FY 2019-20'!$BB41/'4. FY 2019-20'!$BE41),0) -> 2455799.438 | G38: =IFERROR('3. VARIABLE INPUT'!$C$47*INDEX('13. 2016 OSHPD MEDI-CAL MC OP'!L:L,MATCH(A38,'13. 2016 OSHPD MEDI-CAL MC OP'!A:A,0))*('4. FY 2019-20'!$BB41/'4. FY 2019-20'!$BE41),0) -> 1615024.192 | H38: =IFERROR('3. VARIABLE INPUT'!$C$48*INDEX('14. CY2016 MEDI-CAL FFS DAYS'!Y:Y,MATCH(A38,'14. CY2016 MEDI-CAL FFS DAYS'!A:A,0))*('4. FY 2019-20'!$BB41/'4. FY 2019-20'!$BE41),0) -> 1065500.08 | I38: =IFERROR(INDEX('MC PT SA (CHA Only)'!K:K,MATCH(A38,'MC PT SA (CHA Only)'!A:A,0))*('4. FY 2019-20'!$BB41/'4. FY 2019-20'!$BE41),0) -> 0 | J38: 5136323.71 | K38: =IFERROR('3. VARIABLE INPUT'!$C$50*INDEX('SFY 17-18 Directed Payments'!H:H,MATCH(A38,'SFY 17-18 Directed Payments'!B:B,0))*('4. FY 2019-20'!$BB41/'4. FY 2019-20'!$BE41),0) -> 14738369.46 | L38: =IFERROR('3. VARIABLE INPUT'!$C$51*INDEX('SFY 17-18 Directed Payments'!I:I,MATCH(A38,'SFY 17-18 Directed Payments'!B:B,0))*('4. FY 2019-20'!$BB41/'4. FY 2019-20'!$BE41),0) -> 3386207.075 | M38: 18124576.54 | N38: 23260900.25 | O38: =IFERROR('3. VARIABLE INPUT'!$G$46*INDEX('15. SFY 18-19 FINAL MUR'!AW:AW,MATCH(A38,'15. SFY 18-19 FINAL MUR'!A:A,0))*('5. FY 2020-21'!$BB41/'5. FY 2020-21'!$BE41),0) -> 2613056.931 | P38: =IFERROR('3. VARIABLE INPUT'!$G$47*INDEX('13. 2016 OSHPD MEDI-CAL MC OP'!L:L,MATCH(A38,'13. 2016 OSHPD MEDI-CAL MC OP'!A:A,0))*('5. FY 2020-21'!$BB41/'5. FY 2020-21'!$BE41),0) -> 1446757.741 | Q38: =IFERROR('3. VARIABLE INPUT'!$G$48*INDEX('14. CY2016 MEDI-CAL FFS DAYS'!Y:Y,MATCH(A38,'14. CY2016 MEDI-CAL FFS DAYS'!A:A,0))*('5. FY 2020-21'!$BB41/'5. FY 2020-21'!$BE41),0) -> 1099161.45 | R38: =IFERROR(INDEX('MC PT SA (CHA Only)'!K:K,MATCH(A38,'MC PT SA (CHA Only)'!A:A,0))*('5. FY 2020-21'!$BB41/'5. FY 2020-21'!$BE41),0) -> 0 | S38: 5158976.122 | T38: =IFERROR('3. VARIABLE INPUT'!$G$50*INDEX('SFY 17-18 Directed Payments'!H:H,MATCH(A38,'SFY 17-18 Directed Payments'!B:B,0))*('5. FY 2020-21'!$BB41/'5. FY 2020-21'!$BE41),0) -> 15203985.3 | U38: =IFERROR('3. VARIABLE INPUT'!$G$51*INDEX('SFY 17-18 Directed Payments'!I:I,MATCH(A38,'SFY 17-18 Directed Payments'!B:B,0))*('5. FY 2020-21'!$BB41/'5. FY 2020-21'!$BE41),0) -> 3493184.42 | V38: 18697169.72 | W38: 23856145.84 | X38: =IFERROR('3. VARIABLE INPUT'!$K$46*INDEX('15. SFY 18-19 FINAL MUR'!AW:AW,MATCH(A38,'15. SFY 18-19 FINAL MUR'!A:A,0))*('6. FY 2021-22'!$BB41/'6. FY 2021-22'!$BE41),0)/2 -> 1259291.516 | Y38: =IFERROR('3. VARIABLE INPUT'!$K$47*INDEX('13. 2016 OSHPD MEDI-CAL MC OP'!L:L,MATCH(A38,'13. 2016 OSHPD MEDI-CAL MC OP'!A:A,0))*('6. FY 2021-22'!$BB41/'6. FY 2021-22'!$BE41),0)/2 -> 721519.2711 | Z38: =IFERROR('3. VARIABLE INPUT'!$K$48*INDEX('14. CY2016 MEDI-CAL FFS DAYS'!Y:Y,MATCH(A38,'14. CY2016 MEDI-CAL FFS DAYS'!A:A,0))*('6. FY 2021-22'!$BB41/'6. FY 2021-22'!$BE41),0)/2 -> 567122.8761 | AA38: =IFERROR(INDEX('MC PT SA (CHA Only)'!K:K,MATCH(A38,'MC PT SA (CHA Only)'!A:A,0))*('6. FY 2021-22'!$BB41/'6. FY 2021-22'!$BE41),0)/2 -> 0 | AB38: 2547933.663 | AC38: =IFERROR('3. VARIABLE INPUT'!$K$50*INDEX('SFY 17-18 Directed Payments'!H:H,MATCH(A38,'SFY 17-18 Directed Payments'!B:B,0))*('6. FY 2021-22'!$BB41/'6. FY 2021-22'!$BE41),0)/2 -> 7844641.815 | AD38: =IFERROR('3. VARIABLE INPUT'!$K$51*INDEX('SFY 17-18 Directed Payments'!I:I,MATCH(A38,'SFY 17-18 Directed Payments'!B:B,0))*('6. FY 2021-22'!$BB41/'6. FY 2021-22'!$BE41),0)/2 -> 1802341.954 | AE38: 9646983.768 | AF38: 12194917.43
A39: 106190017 | B39: 190017 | C39: 50281 | D39: 3 | E39: ALHAMBRA HOSPITAL MEDICAL CENTER | F39: =IFERROR('3. VARIABLE INPUT'!$C$46*INDEX('15. SFY 18-19 FINAL MUR'!AW:AW,MATCH(A39,'15. SFY 18-19 FINAL MUR'!A:A,0))*('4. FY 2019-20'!$BB42/'4. FY 2019-20'!$BE42),0) -> 1341283.953 | G39: =IFERROR('3. VARIABLE INPUT'!$C$47*INDEX('13. 2016 OSHPD MEDI-CAL MC OP'!L:L,MATCH(A39,'13. 2016 OSHPD MEDI-CAL MC OP'!A:A,0))*('4. FY 2019-20'!$BB42/'4. FY 2019-20'!$BE42),0) -> 797101.8385 | H39: =IFERROR('3. VARIABLE INPUT'!$C$48*INDEX('14. CY2016 MEDI-CAL FFS DAYS'!Y:Y,MATCH(A39,'14. CY2016 MEDI-CAL FFS DAYS'!A:A,0))*('4. FY 2019-20'!$BB42/'4. FY 2019-20'!$BE42),0) -> 0 | I39: =IFERROR(INDEX('MC PT SA (CHA Only)'!K:K,MATCH(A39,'MC PT SA (CHA Only)'!A:A,0))*('4. FY 2019-20'!$BB42/'4. FY 2019-20'!$BE42),0) -> 2232816 | J39: 4371201.792 | K39: =IFERROR('3. VARIABLE INPUT'!$C$50*INDEX('SFY 17-18 Directed Payments'!H:H,MATCH(A39,'SFY 17-18 Directed Payments'!B:B,0))*('4. FY 2019-20'!$BB42/'4. FY 2019-20'!$BE42),0) -> 7170425.567 | L39: =IFERROR('3. VARIABLE INPUT'!$C$51*INDEX('SFY 17-18 Directed Payments'!I:I,MATCH(A39,'SFY 17-18 Directed Payments'!B:B,0))*('4. FY 2019-20'!$BB42/'4. FY 2019-20'!$BE42),0) -> 1272142.016 | M39: 8442567.583 | N39: 12813769.37 | O39: =IFERROR('3. VARIABLE INPUT'!$G$46*INDEX('15. SFY 18-19 FINAL MUR'!AW:AW,MATCH(A39,'15. SFY 18-19 FINAL MUR'!A:A,0))*('5. FY 2020-21'!$BB42/'5. FY 2020-21'!$BE42),0) -> 1427173.277 | P39: =IFERROR('3. VARIABLE INPUT'!$G$47*INDEX('13. 2016 OSHPD MEDI-CAL MC OP'!L:L,MATCH(A39,'13. 2016 OSHPD MEDI-CAL MC OP'!A:A,0))*('5. FY 2020-21'!$BB42/'5. FY 2020-21'!$BE42),0) -> 714053.2391 | Q39: =IFERROR('3. VARIABLE INPUT'!$G$48*INDEX('14. CY2016 MEDI-CAL FFS DAYS'!Y:Y,MATCH(A39,'14. CY2016 MEDI-CAL FFS DAYS'!A:A,0))*('5. FY 2020-21'!$BB42/'5. FY 2020-21'!$BE42),0) -> 0 | R39: =IFERROR(INDEX('MC PT SA (CHA Only)'!K:K,MATCH(A39,'MC PT SA (CHA Only)'!A:A,0))*('5. FY 2020-21'!$BB42/'5. FY 2020-21'!$BE42),0) -> 2232816 | S39: 4374042.516 | T39: =IFERROR('3. VARIABLE INPUT'!$G$50*INDEX('SFY 17-18 Directed Payments'!H:H,MATCH(A39,'SFY 17-18 Directed Payments'!B:B,0))*('5. FY 2020-21'!$BB42/'5. FY 2020-21'!$BE42),0) -> 7396954.268 | U39: =IFERROR('3. VARIABLE INPUT'!$G$51*INDEX('SFY 17-18 Directed Payments'!I:I,MATCH(A39,'SFY 17-18 Directed Payments'!B:B,0))*('5. FY 2020-21'!$BB42/'5. FY 2020-21'!$BE42),0) -> 1312331.636 | V39: 8709285.904 | W39: 13083328.42 | X39: =IFERROR('3. VARIABLE INPUT'!$K$46*INDEX('15. SFY 18-19 FINAL MUR'!AW:AW,MATCH(A39,'15. SFY 18-19 FINAL MUR'!A:A,0))*('6. FY 2021-22'!$BB42/'6. FY 2021-22'!$BE42),0)/2 -> 687787.2338 | Y39: =IFERROR('3. VARIABLE INPUT'!$K$47*INDEX('13. 2016 OSHPD MEDI-CAL MC OP'!L:L,MATCH(A39,'13. 2016 OSHPD MEDI-CAL MC OP'!A:A,0))*('6. FY 2021-22'!$BB42/'6. FY 2021-22'!$BE42),0)/2 -> 356108.8066 | Z39: =IFERROR('3. VARIABLE INPUT'!$K$48*INDEX('14. CY2016 MEDI-CAL FFS DAYS'!Y:Y,MATCH(A39,'14. CY2016 MEDI-CAL FFS DAYS'!A:A,0))*('6. FY 2021-22'!$BB42/'6. FY 2021-22'!$BE42),0)/2 -> 0 | AA39: =IFERROR(INDEX('MC PT SA (CHA Only)'!K:K,MATCH(A39,'MC PT SA (CHA Only)'!A:A,0))*('6. FY 2021-22'!$BB42/'6. FY 2021-22'!$BE42),0)/2 -> 1116408 | AB39: 2160304.04 | AC39: =IFERROR('3. VARIABLE INPUT'!$K$50*INDEX('SFY 17-18 Directed Payments'!H:H,MATCH(A39,'SFY 17-18 Directed Payments'!B:B,0))*('6. FY 2021-22'!$BB42/'6. FY 2021-22'!$BE42),0)/2 -> 3816529.391 | AD39: =IFERROR('3. VARIABLE INPUT'!$K$51*INDEX('SFY 17-18 Directed Payments'!I:I,MATCH(A39,'SFY 17-18 Directed Payments'!B:B,0))*('6. FY 2021-22'!$BB42/'6. FY 2021-22'!$BE42),0)/2 -> 677110.0749 | AE39: 4493639.466 | AF39: 6653943.506
A40: 106010739 | B40: 10739 | C40: 50305 | D40: 3 | E40: ALTA BATES SUMMIT MEDICAL CENTER - ALTA BATES CAMPUS | F40: =IFERROR('3. VARIABLE INPUT'!$C$46*INDEX('15. SFY 18-19 FINAL MUR'!AW:AW,MATCH(A40,'15. SFY 18-19 FINAL MUR'!A:A,0))*('4. FY 2019-20'!$BB43/'4. FY 2019-20'!$BE43),0) -> 4108890.036 | G40: =IFERROR('3. VARIABLE INPUT'!$C$47*INDEX('13. 2016 OSHPD MEDI-CAL MC OP'!L:L,MATCH(A40,'13. 2016 OSHPD MEDI-CAL MC OP'!A:A,0))*('4. FY 2019-20'!$BB43/'4. FY 2019-20'!$BE43),0) -> 1255985.983 | H40: =IFERROR('3. VARIABLE INPUT'!$C$48*INDEX('14. CY2016 MEDI-CAL FFS DAYS'!Y:Y,MATCH(A40,'14. CY2016 MEDI-CAL FFS DAYS'!A:A,0))*('4. FY 2019-20'!$BB43/'4. FY 2019-20'!$BE43),0) -> 3933670.307 | I40: =IFERROR(INDEX('MC PT SA (CHA Only)'!K:K,MATCH(A40,'MC PT SA (CHA Only)'!A:A,0))*('4. FY 2019-20'!$BB43/'4. FY 2019-20'!$BE43),0) -> 0 | J40: 9298546.325 | K40: =IFERROR('3. VARIABLE INPUT'!$C$50*INDEX('SFY 17-18 Directed Payments'!H:H,MATCH(A40,'SFY 17-18 Directed Payments'!B:B,0))*('4. FY 2019-20'!$BB43/'4. FY 2019-20'!$BE43),0) -> 16607711.99 | L40: =IFERROR('3. VARIABLE INPUT'!$C$51*INDEX('SFY 17-18 Directed Payments'!I:I,MATCH(A40,'SFY 17-18 Directed Payments'!B:B,0))*('4. FY 2019-20'!$BB43/'4. FY 2019-20'!$BE43),0) -> 4541200.263 | M40: 21148912.25 | N40: 30447458.58 | O40: =IFERROR('3. VARIABLE INPUT'!$G$46*INDEX('15. SFY 18-19 FINAL MUR'!AW:AW,MATCH(A40,'15. SFY 18-19 FINAL MUR'!A:A,0))*('5. FY 2020-21'!$BB43/'5. FY 2020-21'!$BE43),0) -> 4372003.438 | P40: =IFERROR('3. VARIABLE INPUT'!$G$47*INDEX('13. 2016 OSHPD MEDI-CAL MC OP'!L:L,MATCH(A40,'13. 2016 OSHPD MEDI-CAL MC OP'!A:A,0))*('5. FY 2020-21'!$BB43/'5. FY 2020-21'!$BE43),0) -> 1125127.074 | Q40: =IFERROR('3. VARIABLE INPUT'!$G$48*INDEX('14. CY2016 MEDI-CAL FFS DAYS'!Y:Y,MATCH(A40,'14. CY2016 MEDI-CAL FFS DAYS'!A:A,0))*('5. FY 2020-21'!$BB43/'5. FY 2020-21'!$BE43),0) -> 4057943.157 | R40: =IFERROR(INDEX('MC PT SA (CHA Only)'!K:K,MATCH(A40,'MC PT SA (CHA Only)'!A:A,0))*('5. FY 2020-21'!$BB43/'5. FY 2020-21'!$BE43),0) -> 0 | S40: 9555073.669 | T40: =IFERROR('3. VARIABLE INPUT'!$G$50*INDEX('SFY 17-18 Directed Payments'!H:H,MATCH(A40,'SFY 17-18 Directed Payments'!B:B,0))*('5. FY 2020-21'!$BB43/'5. FY 2020-21'!$BE43),0) -> 17132384.25 | U40: =IFERROR('3. VARIABLE INPUT'!$G$51*INDEX('SFY 17-18 Directed Payments'!I:I,MATCH(A40,'SFY 17-18 Directed Payments'!B:B,0))*('5. FY 2020-21'!$BB43/'5. FY 2020-21'!$BE43),0) -> 4684666.252 | V40: 21817050.51 | W40: 31372124.18 | X40: =IFERROR('3. VARIABLE INPUT'!$K$46*INDEX('15. SFY 18-19 FINAL MUR'!AW:AW,MATCH(A40,'15. SFY 18-19 FINAL MUR'!A:A,0))*('6. FY 2021-22'!$BB43/'6. FY 2021-22'!$BE43),0)/2 -> 2106967.808 | Y40: =IFERROR('3. VARIABLE INPUT'!$K$47*INDEX('13. 2016 OSHPD MEDI-CAL MC OP'!L:L,MATCH(A40,'13. 2016 OSHPD MEDI-CAL MC OP'!A:A,0))*('6. FY 2021-22'!$BB43/'6. FY 2021-22'!$BE43),0)/2 -> 561117.3475 | Z40: =IFERROR('3. VARIABLE INPUT'!$K$48*INDEX('14. CY2016 MEDI-CAL FFS DAYS'!Y:Y,MATCH(A40,'14. CY2016 MEDI-CAL FFS DAYS'!A:A,0))*('6. FY 2021-22'!$BB43/'6. FY 2021-22'!$BE43),0)/2 -> 2093734.632 | AA40: =IFERROR(INDEX('MC PT SA (CHA Only)'!K:K,MATCH(A40,'MC PT SA (CHA Only)'!A:A,0))*('6. FY 2021-22'!$BB43/'6. FY 2021-22'!$BE43),0)/2 -> 0 | AB40: 4761819.788 | AC40: =IFERROR('3. VARIABLE INPUT'!$K$50*INDEX('SFY 17-18 Directed Payments'!H:H,MATCH(A40,'SFY 17-18 Directed Payments'!B:B,0))*('6. FY 2021-22'!$BB43/'6. FY 2021-22'!$BE43),0)/2 -> 8839617.722 | AD40: =IFERROR('3. VARIABLE INPUT'!$K$51*INDEX('SFY 17-18 Directed Payments'!I:I,MATCH(A40,'SFY 17-18 Directed Payments'!B:B,0))*('6. FY 2021-22'!$BB43/'6. FY 2021-22'!$BE43),0)/2 -> 2417098.415 | AE40: 11256716.14 | AF40: 16018535.93
A41: 106010937 | B41: 10937 | C41: 50043 | D41: 3 | E41: ALTA BATES SUMMIT MEDICAL CENTER - SUMMIT HAWTHORNE | F41: =IFERROR('3. VARIABLE INPUT'!$C$46*INDEX('15. SFY 18-19 FINAL MUR'!AW:AW,MATCH(A41,'15. SFY 18-19 FINAL MUR'!A:A,0))*('4. FY 2019-20'!$BB44/'4. FY 2019-20'!$BE44),0) -> 3111838.9 | G41: =IFERROR('3. VARIABLE INPUT'!$C$47*INDEX('13. 2016 OSHPD MEDI-CAL MC OP'!L:L,MATCH(A41,'13. 2016 OSHPD MEDI-CAL MC OP'!A:A,0))*('4. FY 2019-20'!$BB44/'4. FY 2019-20'!$BE44),0) -> 1613543.622 | H41: =IFERROR('3. VARIABLE INPUT'!$C$48*INDEX('14. CY2016 MEDI-CAL FFS DAYS'!Y:Y,MATCH(A41,'14. CY2016 MEDI-CAL FFS DAYS'!A:A,0))*('4. FY 2019-20'!$BB44/'4. FY 2019-20'!$BE44),0) -> 0 | I41: =IFERROR(INDEX('MC PT SA (CHA Only)'!K:K,MATCH(A41,'MC PT SA (CHA Only)'!A:A,0))*('4. FY 2019-20'!$BB44/'4. FY 2019-20'!$BE44),0) -> 0 | J41: 4725382.521 | K41: =IFERROR('3. VARIABLE INPUT'!$C$50*INDEX('SFY 17-18 Directed Payments'!H:H,MATCH(A41,'SFY 17-18 Directed Payments'!B:B,0))*('4. FY 2019-20'!$BB44/'4. FY 2019-20'!$BE44),0) -> 15883121.62 | L41: =IFERROR('3. VARIABLE INPUT'!$C$51*INDEX('SFY 17-18 Directed Payments'!I:I,MATCH(A41,'SFY 17-18 Directed Payments'!B:B,0))*('4. FY 2019-20'!$BB44/'4. FY 2019-20'!$BE44),0) -> 4686626.394 | M41: 20569748.01 | N41: 25295130.53 | O41: =IFERROR('3. VARIABLE INPUT'!$G$46*INDEX('15. SFY 18-19 FINAL MUR'!AW:AW,MATCH(A41,'15. SFY 18-19 FINAL MUR'!A:A,0))*('5. FY 2020-21'!$BB44/'5. FY 2020-21'!$BE44),0) -> 3311105.98 | P41: =IFERROR('3. VARIABLE INPUT'!$G$47*INDEX('13. 2016 OSHPD MEDI-CAL MC OP'!L:L,MATCH(A41,'13. 2016 OSHPD MEDI-CAL MC OP'!A:A,0))*('5. FY 2020-21'!$BB44/'5. FY 2020-21'!$BE44),0) -> 1445431.429 | Q41: =IFERROR('3. VARIABLE INPUT'!$G$48*INDEX('14. CY2016 MEDI-CAL FFS DAYS'!Y:Y,MATCH(A41,'14. CY2016 MEDI-CAL FFS DAYS'!A:A,0))*('5. FY 2020-21'!$BB44/'5. FY 2020-21'!$BE44),0) -> 0 | R41: =IFERROR(INDEX('MC PT SA (CHA Only)'!K:K,MATCH(A41,'MC PT SA (CHA Only)'!A:A,0))*('5. FY 2020-21'!$BB44/'5. FY 2020-21'!$BE44),0) -> 0 | S41: 4756537.409 | T41: =IFERROR('3. VARIABLE INPUT'!$G$50*INDEX('SFY 17-18 Directed Payments'!H:H,MATCH(A41,'SFY 17-18 Directed Payments'!B:B,0))*('5. FY 2020-21'!$BB44/'5. FY 2020-21'!$BE44),0) -> 16384902.56 | U41: =IFERROR('3. VARIABLE INPUT'!$G$51*INDEX('SFY 17-18 Directed Payments'!I:I,MATCH(A41,'SFY 17-18 Directed Payments'!B:B,0))*('5. FY 2020-21'!$BB44/'5. FY 2020-21'!$BE44),0) -> 4834686.698 | V41: 21219589.26 | W41: 25976126.67 | X41: =IFERROR('3. VARIABLE INPUT'!$K$46*INDEX('15. SFY 18-19 FINAL MUR'!AW:AW,MATCH(A41,'15. SFY 18-19 FINAL MUR'!A:A,0))*('6. FY 2021-22'!$BB44/'6. FY 2021-22'!$BE44),0)/2 -> 1595697.215 | Y41: =IFERROR('3. VARIABLE INPUT'!$K$47*INDEX('13. 2016 OSHPD MEDI-CAL MC OP'!L:L,MATCH(A41,'13. 2016 OSHPD MEDI-CAL MC OP'!A:A,0))*('6. FY 2021-22'!$BB44/'6. FY 2021-22'!$BE44),0)/2 -> 720857.8198 | Z41: =IFERROR('3. VARIABLE INPUT'!$K$48*INDEX('14. CY2016 MEDI-CAL FFS DAYS'!Y:Y,MATCH(A41,'14. CY2016 MEDI-CAL FFS DAYS'!A:A,0))*('6. FY 2021-22'!$BB44/'6. FY 2021-22'!$BE44),0)/2 -> 0 | AA41: =IFERROR(INDEX('MC PT SA (CHA Only)'!K:K,MATCH(A41,'MC PT SA (CHA Only)'!A:A,0))*('6. FY 2021-22'!$BB44/'6. FY 2021-22'!$BE44),0)/2 -> 0 | AB41: 2316555.035 | AC41: =IFERROR('3. VARIABLE INPUT'!$K$50*INDEX('SFY 17-18 Directed Payments'!H:H,MATCH(A41,'SFY 17-18 Directed Payments'!B:B,0))*('6. FY 2021-22'!$BB44/'6. FY 2021-22'!$BE44),0)/2 -> 8453947.384 | AD41: =IFERROR('3. VARIABLE INPUT'!$K$51*INDEX('SFY 17-18 Directed Payments'!I:I,MATCH(A41,'SFY 17-18 Directed Payments'!B:B,0))*('6. FY 2021-22'!$BB44/'6. FY 2021-22'!$BE44),0)/2 -> 2494502.901 | AE41: 10948450.28 | AF41: 13265005.32
A42: 106370652 | B42: 370652 | C42: 50757 | D42: 3 | E42: ALVARADO HOSPITAL | F42: =IFERROR('3. VARIABLE INPUT'!$C$46*INDEX('15. SFY 18-19 FINAL MUR'!AW:AW,MATCH(A42,'15. SFY 18-19 FINAL MUR'!A:A,0))*('4. FY 2019-20'!$BB45/'4. FY 2019-20'!$BE45),0) -> 1141787.829 | G42: =IFERROR('3. VARIABLE INPUT'!$C$47*INDEX('13. 2016 OSHPD MEDI-CAL MC OP'!L:L,MATCH(A42,'13. 2016 OSHPD MEDI-CAL MC OP'!A:A,0))*('4. FY 2019-20'!$BB45/'4. FY 2019-20'!$BE45),0) -> 1017891.83 | H42: =IFERROR('3. VARIABLE INPUT'!$C$48*INDEX('14. CY2016 MEDI-CAL FFS DAYS'!Y:Y,MATCH(A42,'14. CY2016 MEDI-CAL FFS DAYS'!A:A,0))*('4. FY 2019-20'!$BB45/'4. FY 2019-20'!$BE45),0) -> 0 | I42: =IFERROR(INDEX('MC PT SA (CHA Only)'!K:K,MATCH(A42,'MC PT SA (CHA Only)'!A:A,0))*('4. FY 2019-20'!$BB45/'4. FY 2019-20'!$BE45),0) -> 0 | J42: 2159679.659 | K42: =IFERROR('3. VARIABLE INPUT'!$C$50*INDEX('SFY 17-18 Directed Payments'!H:H,MATCH(A42,'SFY 17-18 Directed Payments'!B:B,0))*('4. FY 2019-20'!$BB45/'4. FY 2019-20'!$BE45),0) -> 5374045.267 | L42: =IFERROR('3. VARIABLE INPUT'!$C$51*INDEX('SFY 17-18 Directed Payments'!I:I,MATCH(A42,'SFY 17-18 Directed Payments'!B:B,0))*('4. FY 2019-20'!$BB45/'4. FY 2019-20'!$BE45),0) -> 1343171.909 | M42: 6717217.176 | N42: 8876896.835 | O42: =IFERROR('3. VARIABLE INPUT'!$G$46*INDEX('15. SFY 18-19 FINAL MUR'!AW:AW,MATCH(A42,'15. SFY 18-19 FINAL MUR'!A:A,0))*('5. FY 2020-21'!$BB45/'5. FY 2020-21'!$BE45),0) -> 1214902.387 | P42: =IFERROR('3. VARIABLE INPUT'!$G$47*INDEX('13. 2016 OSHPD MEDI-CAL MC OP'!L:L,MATCH(A42,'13. 2016 OSHPD MEDI-CAL MC OP'!A:A,0))*('5. FY 2020-21'!$BB45/'5. FY 2020-21'!$BE45),0) -> 911839.5205 | Q42: =IFERROR('3. VARIABLE INPUT'!$G$48*INDEX('14. CY2016 MEDI-CAL FFS DAYS'!Y:Y,MATCH(A42,'14. CY2016 MEDI-CAL FFS DAYS'!A:A,0))*('5. FY 2020-21'!$BB45/'5. FY 2020-21'!$BE45),0) -> 0 | R42: =IFERROR(INDEX('MC PT SA (CHA Only)'!K:K,MATCH(A42,'MC PT SA (CHA Only)'!A:A,0))*('5. FY 2020-21'!$BB45/'5. FY 2020-21'!$BE45),0) -> 0 | S42: 2126741.908 | T42: =IFERROR('3. VARIABLE INPUT'!$G$50*INDEX('SFY 17-18 Directed Payments'!H:H,MATCH(A42,'SFY 17-18 Directed Payments'!B:B,0))*('5. FY 2020-21'!$BB45/'5. FY 2020-21'!$BE45),0) -> 5543822.567 | U42: =IFERROR('3. VARIABLE INPUT'!$G$51*INDEX('SFY 17-18 Directed Payments'!I:I,MATCH(A42,'SFY 17-18 Directed Payments'!B:B,0))*('5. FY 2020-21'!$BB45/'5. FY 2020-21'!$BE45),0) -> 1385605.511 | V42: 6929428.078 | W42: 9056169.986 | X42: =IFERROR('3. VARIABLE INPUT'!$K$46*INDEX('15. SFY 18-19 FINAL MUR'!AW:AW,MATCH(A42,'15. SFY 18-19 FINAL MUR'!A:A,0))*('6. FY 2021-22'!$BB45/'6. FY 2021-22'!$BE45),0)/2 -> 585489.0686 | Y42: =IFERROR('3. VARIABLE INPUT'!$K$47*INDEX('13. 2016 OSHPD MEDI-CAL MC OP'!L:L,MATCH(A42,'13. 2016 OSHPD MEDI-CAL MC OP'!A:A,0))*('6. FY 2021-22'!$BB45/'6. FY 2021-22'!$BE45),0)/2 -> 454747.7214 | Z42: =IFERROR('3. VARIABLE INPUT'!$K$48*INDEX('14. CY2016 MEDI-CAL FFS DAYS'!Y:Y,MATCH(A42,'14. CY2016 MEDI-CAL FFS DAYS'!A:A,0))*('6. FY 2021-22'!$BB45/'6. FY 2021-22'!$BE45),0)/2 -> 0 | AA42: =IFERROR(INDEX('MC PT SA (CHA Only)'!K:K,MATCH(A42,'MC PT SA (CHA Only)'!A:A,0))*('6. FY 2021-22'!$BB45/'6. FY 2021-22'!$BE45),0)/2 -> 0 | AB42: 1040236.79 | AC42: =IFERROR('3. VARIABLE INPUT'!$K$50*INDEX('SFY 17-18 Directed Payments'!H:H,MATCH(A42,'SFY 17-18 Directed Payments'!B:B,0))*('6. FY 2021-22'!$BB45/'6. FY 2021-22'!$BE45),0)/2 -> 2860388.343 | AD42: =IFERROR('3. VARIABLE INPUT'!$K$51*INDEX('SFY 17-18 Directed Payments'!I:I,MATCH(A42,'SFY 17-18 Directed Payments'!B:B,0))*('6. FY 2021-22'!$BB45/'6. FY 2021-22'!$BE45),0)/2 -> 714916.4326 | AE42: 3575304.776 | AF42: 4615541.566
A43: 106370749 | B43: 370749 | C43: 54075 | D43: 3 | E43: ALVARADO PARKWAY INSTITUTE BHS | F43: =IFERROR('3. VARIABLE INPUT'!$C$46*INDEX('15. SFY 18-19 FINAL MUR'!AW:AW,MATCH(A43,'15. SFY 18-19 FINAL MUR'!A:A,0))*('4. FY 2019-20'!$BB46/'4. FY 2019-20'!$BE46),0) -> 0 | G43: =IFERROR('3. VARIABLE INPUT'!$C$47*INDEX('13. 2016 OSHPD MEDI-CAL MC OP'!L:L,MATCH(A43,'13. 2016 OSHPD MEDI-CAL MC OP'!A:A,0))*('4. FY 2019-20'!$BB46/'4. FY 2019-20'!$BE46),0) -> 0 | H43: =IFERROR('3. VARIABLE INPUT'!$C$48*INDEX('14. CY2016 MEDI-CAL FFS DAYS'!Y:Y,MATCH(A43,'14. CY2016 MEDI-CAL FFS DAYS'!A:A,0))*('4. FY 2019-20'!$BB46/'4. FY 2019-20'!$BE46),0) -> 0 | I43: =IFERROR(INDEX('MC PT SA (CHA Only)'!K:K,MATCH(A43,'MC PT SA (CHA Only)'!A:A,0))*('4. FY 2019-20'!$BB46/'4. FY 2019-20'!$BE46),0) -> 0 | J43: 0 | K43: =IFERROR('3. VARIABLE INPUT'!$C$50*INDEX('SFY 17-18 Directed Payments'!H:H,MATCH(A43,'SFY 17-18 Directed Payments'!B:B,0))*('4. FY 2019-20'!$BB46/'4. FY 2019-20'!$BE46),0) -> 0 | L43: =IFERROR('3. VARIABLE INPUT'!$C$51*INDEX('SFY 17-18 Directed Payments'!I:I,MATCH(A43,'SFY 17-18 Directed Payments'!B:B,0))*('4. FY 2019-20'!$BB46/'4. FY 2019-20'!$BE46),0) -> 0 | M43: 0 | N43: 0 | O43: =IFERROR('3. VARIABLE INPUT'!$G$46*INDEX('15. SFY 18-19 FINAL MUR'!AW:AW,MATCH(A43,'15. SFY 18-19 FINAL MUR'!A:A,0))*('5. FY 2020-21'!$BB46/'5. FY 2020-21'!$BE46),0) -> 0 | P43: =IFERROR('3. VARIABLE INPUT'!$G$47*INDEX('13. 2016 OSHPD MEDI-CAL MC OP'!L:L,MATCH(A43,'13. 2016 OSHPD MEDI-CAL MC OP'!A:A,0))*('5. FY 2020-21'!$BB46/'5. FY 2020-21'!$BE46),0) -> 0 | Q43: =IFERROR('3. VARIABLE INPUT'!$G$48*INDEX('14. CY2016 MEDI-CAL FFS DAYS'!Y:Y,MATCH(A43,'14. CY2016 MEDI-CAL FFS DAYS'!A:A,0))*('5. FY 2020-21'!$BB46/'5. FY 2020-21'!$BE46),0) -> 0 | R43: =IFERROR(INDEX('MC PT SA (CHA Only)'!K:K,MATCH(A43,'MC PT SA (CHA Only)'!A:A,0))*('5. FY 2020-21'!$BB46/'5. FY 2020-21'!$BE46),0) -> 0 | S43: 0 | T43: =IFERROR('3. VARIABLE INPUT'!$G$50*INDEX('SFY 17-18 Directed Payments'!H:H,MATCH(A43,'SFY 17-18 Directed Payments'!B:B,0))*('5. FY 2020-21'!$BB46/'5. FY 2020-21'!$BE46),0) -> 0 | U43: =IFERROR('3. VARIABLE INPUT'!$G$51*INDEX('SFY 17-18 Directed Payments'!I:I,MATCH(A43,'SFY 17-18 Directed Payments'!B:B,0))*('5. FY 2020-21'!$BB46/'5. FY 2020-21'!$BE46),0) -> 0 | V43: 0 | W43: 0 | X43: =IFERROR('3. VARIABLE INPUT'!$K$46*INDEX('15. SFY 18-19 FINAL MUR'!AW:AW,MATCH(A43,'15. SFY 18-19 FINAL MUR'!A:A,0))*('6. FY 2021-22'!$BB46/'6. FY 2021-22'!$BE46),0)/2 -> 0 | Y43: =IFERROR('3. VARIABLE INPUT'!$K$47*INDEX('13. 2016 OSHPD MEDI-CAL MC OP'!L:L,MATCH(A43,'13. 2016 OSHPD MEDI-CAL MC OP'!A:A,0))*('6. FY 2021-22'!$BB46/'6. FY 2021-22'!$BE46),0)/2 -> 0 | Z43: =IFERROR('3. VARIABLE INPUT'!$K$48*INDEX('14. CY2016 MEDI-CAL FFS DAYS'!Y:Y,MATCH(A43,'14. CY2016 MEDI-CAL FFS DAYS'!A:A,0))*('6. FY 2021-22'!$BB46/'6. FY 2021-22'!$BE46),0)/2 -> 0 | AA43: =IFERROR(INDEX('MC PT SA (CHA Only)'!K:K,MATCH(A43,'MC PT SA (CHA Only)'!A:A,0))*('6. FY 2021-22'!$BB46/'6. FY 2021-22'!$BE46),0)/2 -> 0 | AB43: 0 | AC43: =IFERROR('3. VARIABLE INPUT'!$K$50*INDEX('SFY 17-18 Directed Payments'!H:H,MATCH(A43,'SFY 17-18 Directed Payments'!B:B,0))*('6. FY 2021-22'!$BB46/'6. FY 2021-22'!$BE46),0)/2 -> 0 | AD43: =IFERROR('3. VARIABLE INPUT'!$K$51*INDEX('SFY 17-18 Directed Payments'!I:I,MATCH(A43,'SFY 17-18 Directed Payments'!B:B,0))*('6. FY 2021-22'!$BB46/'6. FY 2021-22'!$BE46),0)/2 -> 0 | AE43: 0 | AF43: 0
A44: 106301188 | B44: 301188 | C44: 50744 | D44: 3 | E44: ANAHEIM GLOBAL MEDICAL CENTER | F44: =IFERROR('3. VARIABLE INPUT'!$C$46*INDEX('15. SFY 18-19 FINAL MUR'!AW:AW,MATCH(A44,'15. SFY 18-19 FINAL MUR'!A:A,0))*('4. FY 2019-20'!$BB47/'4. FY 2019-20'!$BE47),0) -> 3435885.887 | G44: =IFERROR('3. VARIABLE INPUT'!$C$47*INDEX('13. 2016 OSHPD MEDI-CAL MC OP'!L:L,MATCH(A44,'13. 2016 OSHPD MEDI-CAL MC OP'!A:A,0))*('4. FY 2019-20'!$BB47/'4. FY 2019-20'!$BE47),0) -> 1491396.602 | H44: =IFERROR('3. VARIABLE INPUT'!$C$48*INDEX('14. CY2016 MEDI-CAL FFS DAYS'!Y:Y,MATCH(A44,'14. CY2016 MEDI-CAL FFS DAYS'!A:A,0))*('4. FY 2019-20'!$BB47/'4. FY 2019-20'!$BE47),0) -> 19770247.06 | I44: =IFERROR(INDEX('MC PT SA (CHA Only)'!K:K,MATCH(A44,'MC PT SA (CHA Only)'!A:A,0))*('4. FY 2019-20'!$BB47/'4. FY 2019-20'!$BE47),0) -> 0 | J44: 24697529.54 | K44: =IFERROR('3. VARIABLE INPUT'!$C$50*INDEX('SFY 17-18 Directed Payments'!H:H,MATCH(A44,'SFY 17-18 Directed Payments'!B:B,0))*('4. FY 2019-20'!$BB47/'4. FY 2019-20'!$BE47),0) -> 3655659.07 | L44: =IFERROR('3. VARIABLE INPUT'!$C$51*INDEX('SFY 17-18 Directed Payments'!I:I,MATCH(A44,'SFY 17-18 Directed Payments'!B:B,0))*('4. FY 2019-20'!$BB47/'4. FY 2019-20'!$BE47),0) -> 1195725.97 | M44: 4851385.04 | N44: 29548914.58 | O44: =IFERROR('3. VARIABLE INPUT'!$G$46*INDEX('15. SFY 18-19 FINAL MUR'!AW:AW,MATCH(A44,'15. SFY 18-19 FINAL MUR'!A:A,0))*('5. FY 2020-21'!$BB47/'5. FY 2020-21'!$BE47),0) -> 3655903.367 | P44: =IFERROR('3. VARIABLE INPUT'!$G$47*INDEX('13. 2016 OSHPD MEDI-CAL MC OP'!L:L,MATCH(A44,'13. 2016 OSHPD MEDI-CAL MC OP'!A:A,0))*('5. FY 2020-21'!$BB47/'5. FY 2020-21'!$BE47),0) -> 1336010.687 | Q44: =IFERROR('3. VARIABLE INPUT'!$G$48*INDEX('14. CY2016 MEDI-CAL FFS DAYS'!Y:Y,MATCH(A44,'14. CY2016 MEDI-CAL FFS DAYS'!A:A,0))*('5. FY 2020-21'!$BB47/'5. FY 2020-21'!$BE47),0) -> 20394830.4 | R44: =IFERROR(INDEX('MC PT SA (CHA Only)'!K:K,MATCH(A44,'MC PT SA (CHA Only)'!A:A,0))*('5. FY 2020-21'!$BB47/'5. FY 2020-21'!$BE47),0) -> 0 | S44: 25386744.45 | T44: =IFERROR('3. VARIABLE INPUT'!$G$50*INDEX('SFY 17-18 Directed Payments'!H:H,MATCH(A44,'SFY 17-18 Directed Payments'!B:B,0))*('5. FY 2020-21'!$BB47/'5. FY 2020-21'!$BE47),0) -> 3771148.965 | U44: =IFERROR('3. VARIABLE INPUT'!$G$51*INDEX('SFY 17-18 Directed Payments'!I:I,MATCH(A44,'SFY 17-18 Directed Payments'!B:B,0))*('5. FY 2020-21'!$BB47/'5. FY 2020-21'!$BE47),0) -> 1233501.447 | V44: 5004650.413 | W44: 30391394.87 | X44: =IFERROR('3. VARIABLE INPUT'!$K$46*INDEX('15. SFY 18-19 FINAL MUR'!AW:AW,MATCH(A44,'15. SFY 18-19 FINAL MUR'!A:A,0))*('6. FY 2021-22'!$BB47/'6. FY 2021-22'!$BE47),0)/2 -> 1761862.911 | Y44: =IFERROR('3. VARIABLE INPUT'!$K$47*INDEX('13. 2016 OSHPD MEDI-CAL MC OP'!L:L,MATCH(A44,'13. 2016 OSHPD MEDI-CAL MC OP'!A:A,0))*('6. FY 2021-22'!$BB47/'6. FY 2021-22'!$BE47),0)/2 -> 666288.0933 | Z44: =IFERROR('3. VARIABLE INPUT'!$K$48*INDEX('14. CY2016 MEDI-CAL FFS DAYS'!Y:Y,MATCH(A44,'14. CY2016 MEDI-CAL FFS DAYS'!A:A,0))*('6. FY 2021-22'!$BB47/'6. FY 2021-22'!$BE47),0)/2 -> 10522908.05 | AA44: =IFERROR(INDEX('MC PT SA (CHA Only)'!K:K,MATCH(A44,'MC PT SA (CHA Only)'!A:A,0))*('6. FY 2021-22'!$BB47/'6. FY 2021-22'!$BE47),0)/2 -> 0 | AB44: 12951059.06 | AC44: =IFERROR('3. VARIABLE INPUT'!$K$50*INDEX('SFY 17-18 Directed Payments'!H:H,MATCH(A44,'SFY 17-18 Directed Payments'!B:B,0))*('6. FY 2021-22'!$BB47/'6. FY 2021-22'!$BE47),0)/2 -> 1945760.423 | AD44: =IFERROR('3. VARIABLE INPUT'!$K$51*INDEX('SFY 17-18 Directed Payments'!I:I,MATCH(A44,'SFY 17-18 Directed Payments'!B:B,0))*('6. FY 2021-22'!$BB47/'6. FY 2021-22'!$BE47),0)/2 -> 636436.8843 | AE44: 2582197.307 | AF44: 15533256.36
A45: 106494048 | B45: 494048 | C45: 54151 | D45: 3 | E45: AURORA BEHAVIORAL HEALTHCARE - SANTA ROSA | F45: =IFERROR('3. VARIABLE INPUT'!$C$46*INDEX('15. SFY 18-19 FINAL MUR'!AW:AW,MATCH(A45,'15. SFY 18-19 FINAL MUR'!A:A,0))*('4. FY 2019-20'!$BB48/'4. FY 2019-20'!$BE48),0) -> 0 | G45: =IFERROR('3. VARIABLE INPUT'!$C$47*INDEX('13. 2016 OSHPD MEDI-CAL MC OP'!L:L,MATCH(A45,'13. 2016 OSHPD MEDI-CAL MC OP'!A:A,0))*('4. FY 2019-20'!$BB48/'4. FY 2019-20'!$BE48),0) -> 0 | H45: =IFERROR('3. VARIABLE INPUT'!$C$48*INDEX('14. CY2016 MEDI-CAL FFS DAYS'!Y:Y,MATCH(A45,'14. CY2016 MEDI-CAL FFS DAYS'!A:A,0))*('4. FY 2019-20'!$BB48/'4. FY 2019-20'!$BE48),0) -> 0 | I45: =IFERROR(INDEX('MC PT SA (CHA Only)'!K:K,MATCH(A45,'MC PT SA (CHA Only)'!A:A,0))*('4. FY 2019-20'!$BB48/'4. FY 2019-20'!$BE48),0) -> 0 | J45: 0 | K45: =IFERROR('3. VARIABLE INPUT'!$C$50*INDEX('SFY 17-18 Directed Payments'!H:H,MATCH(A45,'SFY 17-18 Directed Payments'!B:B,0))*('4. FY 2019-20'!$BB48/'4. FY 2019-20'!$BE48),0) -> 0 | L45: =IFERROR('3. VARIABLE INPUT'!$C$51*INDEX('SFY 17-18 Directed Payments'!I:I,MATCH(A45,'SFY 17-18 Directed Payments'!B:B,0))*('4. FY 2019-20'!$BB48/'4. FY 2019-20'!$BE48),0) -> 0 | M45: 0 | N45: 0 | O45: =IFERROR('3. VARIABLE INPUT'!$G$46*INDEX('15. SFY 18-19 FINAL MUR'!AW:AW,MATCH(A45,'15. SFY 18-19 FINAL MUR'!A:A,0))*('5. FY 2020-21'!$BB48/'5. FY 2020-21'!$BE48),0) -> 0 | P45: =IFERROR('3. VARIABLE INPUT'!$G$47*INDEX('13. 2016 OSHPD MEDI-CAL MC OP'!L:L,MATCH(A45,'13. 2016 OSHPD MEDI-CAL MC OP'!A:A,0))*('5. FY 2020-21'!$BB48/'5. FY 2020-21'!$BE48),0) -> 0 | Q45: =IFERROR('3. VARIABLE INPUT'!$G$48*INDEX('14. CY2016 MEDI-CAL FFS DAYS'!Y:Y,MATCH(A45,'14. CY2016 MEDI-CAL FFS DAYS'!A:A,0))*('5. FY 2020-21'!$BB48/'5. FY 2020-21'!$BE48),0) -> 0 | R45: =IFERROR(INDEX('MC PT SA (CHA Only)'!K:K,MATCH(A45,'MC PT SA (CHA Only)'!A:A,0))*('5. FY 2020-21'!$BB48/'5. FY 2020-21'!$BE48),0) -> 0 | S45: 0 | T45: =IFERROR('3. VARIABLE INPUT'!$G$50*INDEX('SFY 17-18 Directed Payments'!H:H,MATCH(A45,'SFY 17-18 Directed Payments'!B:B,0))*('5. FY 2020-21'!$BB48/'5. FY 2020-21'!$BE48),0) -> 0 | U45: =IFERROR('3. VARIABLE INPUT'!$G$51*INDEX('SFY 17-18 Directed Payments'!I:I,MATCH(A45,'SFY 17-18 Directed Payments'!B:B,0))*('5. FY 2020-21'!$BB48/'5. FY 2020-21'!$BE48),0) -> 0 | V45: 0 | W45: 0 | X45: =IFERROR('3. VARIABLE INPUT'!$K$46*INDEX('15. SFY 18-19 FINAL MUR'!AW:AW,MATCH(A45,'15. SFY 18-19 FINAL MUR'!A:A,0))*('6. FY 2021-22'!$BB48/'6. FY 2021-22'!$BE48),0)/2 -> 0 | Y45: =IFERROR('3. VARIABLE INPUT'!$K$47*INDEX('13. 2016 OSHPD MEDI-CAL MC OP'!L:L,MATCH(A45,'13. 2016 OSHPD MEDI-CAL MC OP'!A:A,0))*('6. FY 2021-22'!$BB48/'6. FY 2021-22'!$BE48),0)/2 -> 0 | Z45: =IFERROR('3. VARIABLE INPUT'!$K$48*INDEX('14. CY2016 MEDI-CAL FFS DAYS'!Y:Y,MATCH(A45,'14. CY2016 MEDI-CAL FFS DAYS'!A:A,0))*('6. FY 2021-22'!$BB48/'6. FY 2021-22'!$BE48),0)/2 -> 0 | AA45: =IFERROR(INDEX('MC PT SA (CHA Only)'!K:K,MATCH(A45,'MC PT SA (CHA Only)'!A:A,0))*('6. FY 2021-22'!$BB48/'6. FY 2021-22'!$BE48),0)/2 -> 0 | AB45: 0 | AC45: =IFERROR('3. VARIABLE INPUT'!$K$50*INDEX('SFY 17-18 Directed Payments'!H:H,MATCH(A45,'SFY 17-18 Directed Payments'!B:B,0))*('6. FY 2021-22'!$BB48/'6. FY 2021-22'!$BE48),0)/2 -> 0 | AD45: =IFERROR('3. VARIABLE INPUT'!$K$51*INDEX('SFY 17-18 Directed Payments'!I:I,MATCH(A45,'SFY 17-18 Directed Payments'!B:B,0))*('6. FY 2021-22'!$BB48/'6. FY 2021-22'!$BE48),0)/2 -> 0 | AE45: 0 | AF45: 0
